{"text_format":"1","workbook":"xlsx","n_sheets":5,"sheets":["BExRepositorySheet","Web View","conversion sheet","Accessories","Apple Brand"],"not_rendered":{"charts":0,"images":1,"macros":1,"external_links":0,"defined_names":5,"comments":0,"pivot_tables":0},"unopened":[],"bounds":{"document_bytes":16777216,"sheet_cells":100000,"rows_first":2000,"rows_last":500,"rows_between":2000,"halvings":0,"cell_chars":16384,"cell_head_chars":4096},"cells_cut":0,"cells_raw":0,"read":"whole","date_system":"1900"}

{"sheet":"BExRepositorySheet","index":0,"n_rows":0,"n_cols":0,"rows_kept":0,"cut":false,"hidden":true,"merged":[]}

{"sheet":"Web View","index":1,"n_rows":2553,"n_cols":15,"rows_kept":2553,"cut":false,"hidden":true,"merged":[]}
[null," "]
[null,"*Make sure to add new SKUs (refreshes/new device launches/etc.) to end of list (before C-SKUs) but delete out of Frontline View tab until actual launch date"]
[]
[null,null,null,null,null,null,null,null,null,null,null,"Do Not touch"]
[]
[null,"Article","Basic Category","SAP Category","Description","Compatibility","Last Week MSRP","Current MSRP","MSRP Changed ?","Current Web Status","Web Status Changed?","Status Changed","EOL Date","SN Status"]
[null,157353,"Audio","Wireless Mono","Plantronics M165 Marque","Universal",34.99,34.99,"-","Remove from Web","-",{"$f":"IF(I7=\"Status Changed\",\"Status Changed\",IF(K7=\"Status Changed\",\"Status Changed\",\"-\"))","v":"-"},"2017-11-08","Inactive"]
[null,157354,"Audio","Wireless Mono","PLANTRONICS VOYAGER LEGEND PRO","Universal",79.989999999999995,79.989999999999995,"-","Remove from Web","-","-","2020-10-19","Inactive"]
[null,159498,"Miscellaneous Accessory","Stylus","Incipio Blk Stylus","Universal",7.99,7.99,"-","Remove from Web","-","-","2017-02-17","Inactive"]
[null,164079,"Miscellaneous Accessory","Cleaner","Guadget Guard Greener Cleaner","Universal",4.8600000000000003,4.8600000000000003,"-","Remove from Web","-","-","2016-11-11","Inactive"]
[null,164152,"Case","Waterproof Case","TES Apple 5 Lifeproof Waterproof Blk","iPhone 5S/SE",79.989999999999995,79.989999999999995,"-","Remove from Web","-","-","2017-11-08","Inactive"]
[null,164154,"Case","Waterproof Case","TES Apple 5 Lifeproof Waterproof Wht","iPhone 5S/SE",44.86,44.86,"-","Remove from Web","-","-","2017-02-17","Inactive"]
[null,164156,"Case","Hard Case","TES Apple 5 OtterBox Commuter Blk","iPhone 5S/SE",39.99,39.99,"-","Remove from Web","-","-","2017-11-08","Inactive"]
[null,164244,"Case","Soft Case","SCP LG Wine 3 Black Fitted Case","LG Wine III",4.8600000000000003,4.8600000000000003,"-","Remove from Web","-","-","2017-08-10","Inactive"]
[null,164294,"Charger","Other Cable","Belkin Mixit-Up Aux Cable- Blk","Universal",14.99,14.99,"-","Remove from Web","-","-","2017-02-17","Inactive"]
[null,166218,"Case","Clip Case","TES APPLE IPHONE 5S OTTERBOX DEFENDER BL","iPhone 5S/SE",49.99,49.99,"-","Remove from Web","-","-","2018-12-30T23:00:00","Inactive"]
[null,167436,"Connected Home","Indoor Camera","TES NetCam Wi-Fi Camera","Universal",39.99,39.99,"-","Remove from Web","-","-","2017-11-08","Inactive"]
[null,167640,"Miscellaneous Accessory","Other Miscellaneous Accessory","DEL OBD Car Relocation Kit","Universal",34.99,34.99,"-","Remove from Web","-","-","2017-11-08","Inactive"]
[null,172579,"Charger","Apple Wall","SCP Puregear Lighning 2amp Wall Charger","Apple Lightning",29.99,29.99,"-","Remove from Web","-","-","2017-06-01","Inactive"]
[null,172580,"Charger","Apple Car Charger","CP Puregear Lightning 2amp Car Charger","Apple Lightning",14.99,14.99,"-","Remove from Web","-","-","2017-08-10","Inactive"]
[null,174453,"Miscellaneous Accessory","Mount and Dock","iBolt sPro2 Dock","Universal",19.989999999999998,19.989999999999998,"-","Remove from Web","-","-","2017-02-17","Inactive"]
[null,174454,"Miscellaneous Accessory","Mount and Dock","iBolt xPro Dock Universal Kit","Universal",19.989999999999998,19.989999999999998,"-","Remove from Web","-","-","2017-02-17","Inactive"]
[null,174494,"Audio","Wired Over-Ear","Apple Beats Studio Headphones Black","Universal",179.99,179.99,"-","Remove from Web","-","-","2017-08-10","Inactive"]
[null,174517,"Audio","Wired Over-Ear","Apple Beats Studio Headphones White","Universal",179.99,179.99,"-","Remove from Web","-","-","2017-06-01","Inactive"]
[null,174519,"Audio","Portable Speaker","Apple Beats Pill Bluetooth Speaker Blk","Universal",99.99,99.99,"-","Remove from Web","-","-","2017-06-01","Inactive"]
[null,174523,"Audio","Wired In-Ear","Apple Beats urBeats In Ear Headphones Bl","Universal",49.99,49.99,"-","Remove from Web","-","-","2018-03-09","Inactive"]
[null,174524,"Audio","Wired In-Ear","Apple Beats urBeats In Ear Headphones Re","Universal",49.99,49.99,"-","Remove from Web","-","-","2017-06-01","Inactive"]
[null,174769,"Charger","Android Cable","SCP Puregear Micro USB Charge/Sync Blk","Universal no Apple",4.99,4.99,"-","Remove from Web","-","-","2017-08-10","Inactive"]
[null,174770,"Charger","Android Cable","SCP Puregear Micro USB Charge/Sync Red","Universal no Apple",4.99,4.99,"-","Remove from Web","-","-","2017-08-10","Inactive"]
[null,174772,"Charger","Apple Cable","SCP Puregear Lightning Charge/Sync Blk","Apple Lightning",9.99,9.99,"-","Remove from Web","-","-","2017-08-10","Inactive"]
[null,174776,"Charger","Apple Cable","SCP Puregear Lightning Charge/Sync Wht","Apple Lightning",19.989999999999998,19.989999999999998,"-","Remove from Web","-","-","2016-11-11","Inactive"]
[null,174792,"Charger","Android Wall","SCP Puregear 2am Wall Chgr Micro USB","Universal no Apple",22.99,22.99,"-","Remove from Web","-","-","2016-11-11","Inactive"]
[null,174793,"Charger","Android Car Charger","SCP Puregear 2.1 amp car chagr Micro USB","Universal no Apple",24.99,24.99,"-","Not On Flash","-","-","2016-11-11","Inactive"]
[null,175201,"Connected Home","Home Phone","VTech 2 Hanset Cordless Phone","Universal",19.86,19.86,"-","Remove from Web","-","-","2017-08-10","Inactive"]
[null,175860,"Screen Protection","Plastic","SCP LG Freedom 2 Screen Protector, 3pk","Freedom 2",9.99,9.99,"-","Remove from Web","-","-","2017-02-17","Inactive"]
[null,176086,"Audio","Portable Speaker","SCP ECO Stone Waterproof BT Speaker","Universal",49.99,49.99,"-","Remove from Web","-","-","2017-06-01","Inactive"]
[null,178319,"Audio","Wireless Mono","Plantronics M70 Blk/Wht BT Headset","Universal",39.99,39.99,"-","Remove from Web","-","-","2018-11-08","Inactive"]
[null,178320,"Case","Soft Case","SCP LG Envoy 3 Fitted Case, Black","Envoy 3",4.8600000000000003,4.8600000000000003,"-","Remove from Web","-","-","2017-11-08","Inactive"]
[null,178323,"Audio","Wireless Mono","Plantronics Voyager Legend Chrg Case","Universal",19.989999999999998,19.989999999999998,"-","Remove from Web","-","-","2017-06-01","Inactive"]
[null,178857,"Charger","Universal Portable Charger","Random Order Power Bank Charcoal","Universal",19.989999999999998,19.989999999999998,"-","Remove from Web","-","-","2018-06-14","Inactive"]
[null,179059,"Case","Clip Case","SCP Kyocera Torsion E6762, Holster, Blk","Kyocera DuraForce",19.989999999999998,19.989999999999998,"-","Remove from Web","-","-","2017-11-08","Inactive"]
[null,179448,"Case","Hard Case","TES New iPhone Small Otterbox Cmtr Blk","iPhone 6/6s/7/8",39.99,39.99,"-","Remove from Web","-","-","2017-11-08","Inactive"]
[null,179451,"Case","Clip Case","TES New iPhone Sm Otterbox Dfndr Camo Ma","iPhone 6/6s/7/8",44.99,44.99,"-","Remove from Web","-","-","2017-08-10","Inactive"]
[null,179459,"Screen Protection","Plastic","SCP New iPhone Small Puregear Puretek Pr","iPhone 6/6s/7/8",4.8600000000000003,4.8600000000000003,"-","Not On Flash","-","-","2017-08-10","Inactive"]
[null,179477,"Case","Hard Case","TES New iPhone Large Otterbox Commuter B","iPhone 6/6s/7/8 Plus",49.99,49.99,"-","Remove from Web","-","-","2018-06-14","Inactive"]
[null,179627,"Screen Protection","Plastic","SCP New iPhone Large Puregear Retail Scr","iPhone 6/6s/7/8 Plus",4.8600000000000003,4.8600000000000003,"-","Not On Flash","-","-","2017-08-10","Inactive"]
[null,180163,"Case","Universal Case","M Edge XL Universal Folio, Blk","Universal",15.86,15.86,"-","Remove from Web","-","-","2016-11-11","Inactive"]
[null,180339,"Audio","Wired On-Ear","Apple Beats Solo HD 2- Black","Universal",149.99,149.99,"-","Remove from Web","-","-","2017-08-10","Inactive"]
[null,180340,"Audio","Wired On-Ear","Apple Beats Solo HD 2- Blue","Universal",149.99,149.99,"-","Remove from Web","-","-","2017-06-01","Inactive"]
[null,180341,"Audio","Wired On-Ear","Apple Beats Solo HD 2- Red","Universal",139.99,139.99,"-","Remove from Web","-","-","2017-06-01","Inactive"]
[null,180420,"Audio","Wired Sport","Yurbuds Focus 300 Earbuds Purple","Universal",19.86,19.86,"-","Remove from Web","-","-","2016-11-11","Inactive"]
[null,180498,"Wearable","Android Wearable","Motorola Moto 360 Silver/Dark Metal","Universal",99.99,99.99,"-","Remove from Web","-","-","2017-06-01","Inactive"]
[null,180853,"Charger","Android Car Charger","TEC Micro USB 2amp Car Charger","Universal no Apple",24.99,24.99,"-","Remove from Web","-","-","2017-06-01","Inactive"]
[null,181561,"Screen Protection","Glass","TES iPhone 6 Zagg Glass Screen Protector","iPhone 6/6s/7/8",14.86,14.86,"-","Remove from Web","-","-","2017-02-17","Inactive"]
[null,182479,"Audio","Wired In-Ear","Samsung Level On Ear Headphone, Black","Universal",69.989999999999995,69.989999999999995,"-","Remove from Web","-","-","2017-06-01","Inactive"]
[null,182480,"Audio","Portable Speaker","Samsung Level Box Bluetooth Speaker","Universal",89.99,89.99,"-","Remove from Web","-","-","2017-06-01","Inactive"]
[null,182484,"Case","Soft Case","SCP Kyocera DuraPro Black Fitted Case","DuraPro II XA",19.989999999999998,19.989999999999998,"-","Remove from Web","-","-","2017-11-08","Inactive"]
[null,183828,"Case","Charger Case","iPhone 6 Mophie Juicepack Air Blk","iPhone 6/6s/7/8",49.99,49.99,"-","Remove from Web","-","-","2017-06-01","Inactive"]
[null,183829,"Case","Charger Case","SCP iPhone 6 Mophie Juicepack Air Gold","iPhone 6/6s/7/8",39.86,39.86,"-","Remove from Web","-","-","2017-02-17","Inactive"]
[null,183830,"Case","Charger Case","iPhone 6 Plus Mophie Juicepack Blk","iPhone 6/6s/7/8 Plus",69.989999999999995,69.989999999999995,"-","Remove from Web","-","-","2017-06-01","Inactive"]
[null,183850,"Audio","Portable Speaker","SCP EcoROX Bluetooth Speaker, Black","Universal",29.99,29.99,"-","Remove from Web","-","-","2017-06-01","Inactive"]
[null,184059,"Miscellaneous Accessory","Payment","SQUARE CARD READER, WHITE","Universal",7.99,7.99,"-","Remove from Web","-","-","2018-11-08","Inactive"]
[null,184064,"Charger","Universal Car Charger","SCP 4.8Amp Universal Car Charger","Universal",14.99,14.99,"-","Remove from Web","-","-","2017-08-10","Inactive"]
[null,184066,"Charger","Android Car Charger","SCP Puregear Micro USB 3.4am Car Charger","Universal no Apple",29.99,29.99,"-","Remove from Web","-","-","2017-06-01","Inactive"]
[null,184107,"Charger","Universal Wall","SCP Puregear 4.8am Universal Wall Charge","Universal",14.99,14.99,"-","Remove from Web","-","-","2017-08-10","Inactive"]
[null,184108,"Charger","Apple Car Charger","SCP Puregear 3.4am Lightning Car Charger","Apple Lightning",34.99,34.99,"-","Remove from Web","-","-","2017-08-10","Inactive"]
[null,184112,"Screen Protection","Plastic","SCP Moto E (2nd Gen) Screen Protector","Moto E LTE",4.99,4.99,"-","Remove from Web","-","-","2017-02-17","Inactive"]
[null,184196,"Entertainment","Entertainment Camera","Sunpak Bluetooth Selfie Wand Blk","Universal",7.86,7.86,"-","Remove from Web","-","-","2017-08-10","Inactive"]
[null,184205,"Connected Home","Networking","WEBOOST HOME ROOM KIT","Universal",399.99,399.99,"-","Include on Web, Available","-","-","2023-03-01","Active"]
[null,184247,"Connected Home","Networking","WEBOOST CONNECT 4G","Universal",549.99,549.99,"-","Remove from Web","-","-","2020-05-17","Inactive"]
[null,184248,"Connected Home","Networking","WEBOOST CONNECT 4G X","Universal",899.99,899.99,"-","Remove from Web","-",{"$f":"IF(I71=\"Status Changed\",\"Status Changed\",IF(K71=\"Status Changed\",\"Status Changed\",\"-\"))","v":"-"},"2020-02-16","Inactive"]
[null,184317,"Case","Hard Case","TES iPhone 6 Plus Otterbox Commuter Rose","iPhone 6/6s/7/8 Plus",39.99,39.99,"-","Remove from Web","-","-","2017-02-17","Inactive"]
[null,184351,"Miscellaneous Accessory","Keyboard","Zagg Pocket Universal Keyboard","Universal",19.86,19.86,"-","Remove from Web","-","-","2017-11-08","Inactive"]
[null,184482,"Case","Fashion Case","SA GS6 Casemate Glam Sheer Case","Galaxy S6",15.86,15.86,"-","Remove from Web","-","-","2016-06-10","Inactive"]
[null,184484,"Case","Fashion Case","SA GS6 Edge Casemate Glam Sheer Case","Galaxy S6 Edge",15.86,15.86,"-","Remove from Web","-","-","2016-06-10","Inactive"]
[null,184485,"Audio","Wireless On-Ear","TEC JBL Synchros E40 Bluetooth Headst Bl","Universal",49.99,49.99,"-","Not On Flash","-","-","2017-06-01","Inactive"]
[null,184486,"Audio","Wireless On-Ear","TEC JBL Synchros E40 Bluetooth Headst Rd","Universal",49.99,49.99,"-","Remove from Web","-","-","2017-06-01","Inactive"]
[null,184593,"Case","Soft Case","SA GS6 Bodyglove Blue Gel Skin","Galaxy S6",5.86,5.86,"-","Remove from Web","-","-","2016-11-11","Inactive"]
[null,184594,"Case","Soft Case","SA GS6 Bodyglove Pink Gel Skin","Galaxy S6",5.86,5.86,"-","Remove from Web","-","-","2016-11-11","Inactive"]
[null,184595,"Case","Fashion Case","SA GS6 Trina Turk Poppy Case","Galaxy S6",15.86,15.86,"-","Remove from Web","-","-","2016-06-10","Inactive"]
[null,184622,"Case","Fashion Case","SA GS6 M-Edge Peach Cube Echo Case","Galaxy S6",15.86,15.86,"-","Remove from Web","-","-","2016-06-10","Inactive"]
[null,184623,"Case","Fashion Case","SA GS6 M-Edge Blk Lace Glimpse Case","Galaxy S6",15.86,15.86,"-","Remove from Web","-","-","2016-06-10","Inactive"]
[null,184624,"Case","Fashion Case","SA GS6 M-Edge Big Zig Glimpse Case","Galaxy S6",15.86,15.86,"-","Remove from Web","-","-","2016-06-10","Inactive"]
[null,184625,"Case","Fashion Case","SA GS6 M-Edge Macro Palm Case","Galaxy S6",15.86,15.86,"-","Remove from Web","-","-","2016-06-10","Inactive"]
[null,184731,"Screen Protection","Plastic","SCP SA GS6 Edge Puregear Screen Protecto","Galaxy S6 Edge",5.86,5.86,"-","Remove from Web","-","-","2017-02-17","Inactive"]
[null,184732,"Case","Soft Case","SCP SA GS6 Tech 21 Evo Check Gel, Smoke","Galaxy S6",19.989999999999998,19.989999999999998,"-","Not On Flash","-","-","2017-06-01","Inactive"]
[null,184733,"Case","Soft Case","SCP SA GS6 Tech 21 Evo Check Clear Gel","Galaxy S6",4.8600000000000003,4.8600000000000003,"-","Not On Flash","-","-","2017-08-10","Inactive"]
[null,184735,"Miscellaneous Accessory","Antenna and Booster","TES Mobile Mark LTE/WiFi/GPS Magnet Moun","Universal",299.99,299.99,"-","Remove from Web","-","-","2017-11-08","Inactive"]
[null,184736,"Case","Soft Case","SCP SA GS6 Tech 21 Evo Check Gel, Pink","Galaxy S6",14.86,14.86,"-","Remove from Web","-","-","2017-02-17","Inactive"]
[null,184737,"Case","Universal Case","BodyGlove Universal Clutch, Black","Galaxy S6",9.86,9.86,"-","Remove from Web","-","-","2016-11-11","Inactive"]
[null,184739,"Screen Protection","Plastic","SCP SA GS6 Puretek Screen Protector","Galaxy S6",4.99,4.99,"-","Remove from Web","-","-","2017-02-17","Inactive"]
[null,184740,"Case","Hard Case","SA GS6 Ballistic TJ Blk/Wht","Galaxy S6",11.86,11.86,"-","Remove from Web","-","-","2017-02-17","Inactive"]
[null,185047,"Case","Other Case","Samsung SA GS6 S View Cover Blue Black","Galaxy S6",9.86,9.86,"-","Remove from Web","-","-","2016-11-11","Inactive"]
[null,185048,"Case","Clip Case","TES SA GS6 Otterbox Defender, Blk","Galaxy S6",24.86,24.86,"-","Remove from Web","-","-","2017-11-08","Inactive"]
[null,185049,"Case","Other Case","Samsung SA GS6 Clear Cover, Slver","Galaxy S6",9.86,9.86,"-","Remove from Web","-","-","2016-11-11","Inactive"]
[null,185050,"Case","Hard Case","TES SA GS6 Otterbox Commuter Black","Galaxy S6",14.86,14.86,"-","Remove from Web","-","-","2017-11-08","Inactive"]
[null,185051,"Case","Clip Case","TES SA GS6 Otterbox Defender, Melon/Mint","Galaxy S6",19.86,19.86,"-","Remove from Web","-","-","2017-11-08","Inactive"]
[null,185053,"Case","Hard Case","TES SA GS6 Otterbox Commuter Glacia Wht","Galaxy S6",39.99,39.99,"-","Remove from Web","-","-","2017-02-17","Inactive"]
[null,185054,"Case","Hard Case","TES SA GS6 Otterbox Commute Amethyst Prp","Galaxy S6",19.989999999999998,19.989999999999998,"-","Remove from Web","-","-","2017-06-01","Inactive"]
[null,185055,"Case","Clip Case","TES SA GS6 Otterbox Defend Max 5 HD Camo","Galaxy S6",24.86,24.86,"-","Remove from Web","-","-","2017-11-08","Inactive"]
[null,185057,"Case","Waterproof Case","TES SA GS6 Lifeproof Fre Case Black","Galaxy S6",24.86,24.86,"-","Remove from Web","-","-","2017-11-08","Inactive"]
[null,185059,"Case","Waterproof Case","TES SA GS6 Lifeproof Fre Case Power Pink","Galaxy S6",44.86,44.86,"-","Remove from Web","-","-","2017-02-17","Inactive"]
[null,185130,"Screen Protection","Glass","TES SA GS6 Zagg Glass Screen Protector","Galaxy S6",14.86,14.86,"-","Remove from Web","-","-","2016-02-18","Inactive"]
[null,185655,"Charger","Wireless Dock Charger","Samsung Wireless Charging Mat Black","Universal",49.99,49.99,"-","Remove from Web","-","-","2017-08-10","Inactive"]
[null,185670,"Screen Protection","Plastic","SCP LG G Pad 8' Puregear Screen Protecto","LG G Pad 8\"",9.86,9.86,"-","Remove from Web","-","-","2017-02-17","Inactive"]
[null,185697,"Audio","Wireless Sport","Apple POWERBEATS 2 Wireless Black","Universal",129.99,129.99,"-","Remove from Web","-","-","2017-08-10","Inactive"]
[null,185698,"Audio","Wireless Sport","Apple POWERBEATS 2 Wireless Red","Universal",129.99,129.99,"-","Remove from Web","-","-","2017-06-01","Inactive"]
[null,185700,"Audio","Wireless On-Ear","Apple Beats Solo 2 Red Wireless Headset","Universal",199.99,199.99,"-","Not On Flash","-","-","2017-08-10","Inactive"]
[null,185701,"Audio","Wireless On-Ear","Apple Beats Solo 2 Blk Wireless Headset","Universal",149.99,149.99,"-","Remove from Web","-","-","2018-03-09","Inactive"]
[null,185724,"Wearable","Health and Fitness","Yurbuds Black Universal Armband","Universal",13.86,13.86,"-","Remove from Web","-","-","2016-11-11","Inactive"]
[null,185725,"Audio","Wireless On-Ear","Blue Parrot B350-XT Bluetooth Headse","Universal",79.989999999999995,79.989999999999995,"-","Remove from Web","-","-","2017-06-01","Inactive"]
[null,185738,"Case","Tablet Case","LG G Pad 8 Ballistic Tough Tacket Bl","LG G Pad 8\"",59.99,59.99,"-","Remove from Web","-","-","2017-08-10","Inactive"]
[null,185984,"Case","Keyboard Case","TES ZAGG Autofit Folio Keyboard 10 inch","Universal",31.86,31.86,"-","Remove from Web","-","-","2017-02-17","Inactive"]
[null,186070,"Case","Tablet Case","SCP LG G Pad 8\" Incipio Folio- Blk","LG G Pad 8\"",34.99,34.99,"-","Remove from Web","-","-","2017-02-18","Inactive"]
[null,186071,"Case","Tablet Case","SCP LG G Pad 8\" Incipio Folio- Pink","LG G Pad 8\"",16.86,16.86,"-","Remove from Web","-","-","2017-02-17","Inactive"]
[null,186074,"Case","Clip Case","SCP Kyocera DuraXA Holster, Black","DuraPro II XA",19.989999999999998,19.989999999999998,"-","Remove from Web","-","-","2017-11-08","Inactive"]
[null,186399,"Screen Protection","Glass","TES LG G Pad 8.0 Gadget Guard Glass Scrn","LG G Pad 8\"",49.99,49.99,"-","Remove from Web","-","-","2017-11-08","Inactive"]
[null,186523,"Wearable","Health and Fitness","Jawbone Jawbone UP 2, Black One Sz","Universal",39.99,39.99,"-","Remove from Web","-","-","2017-11-08","Inactive"]
[null,186524,"Wearable","Health and Fitness","Jawbone UP 2 , Gray/Silver One Sz","Universal",39.99,39.99,"-","Remove from Web","-","-","2017-08-10","Inactive"]
[null,186967,"Charger","Wireless Car Charger","TEC VU-CAR Wireless Charging Car Mount","Universal",49.99,49.99,"-","Remove from Web","-","-","2017-11-08","Inactive"]
[null,187482,"Screen Protection","Plastic","SCP Moto G 3rd Gen Puregear Scrn Protect","Moto G 3rd gen",4.99,4.99,"-","Remove from Web","-","-","2017-02-17","Inactive"]
[null,187700,"Screen Protection","Plastic","TES Moto G 3rd Gen GadGrd Scrn Prot","Moto G 3rd gen",8.86,8.86,"-","Remove from Web","-","-","2016-11-11","Inactive"]
[null,187701,"Screen Protection","Plastic","TES SA Tab S2 9.7 GadGrd Scrn Prot","Tab S 2",19.86,19.86,"-","Remove from Web","-","-","2017-08-10","Inactive"]
[null,187787,"Screen Protection","Plastic","TES APL iPad Air 2 GadGrd Scrn Prot","iPad 6th Gen/iPad Pro 9.7",39.99,39.99,"-","Remove from Web","-","-","2019-11-01","Inactive"]
[null,187897,"Connected Home","Doorbell and Lock","SCP Chamberlain My Garage Opener","Universal",79.989999999999995,79.989999999999995,"-","Remove from Web","-","-","2017-11-08","Inactive"]
[null,187898,"Audio","Wireless On-Ear","MO Motorola O2 Wireless Headphones Blk","Universal",19.989999999999998,19.989999999999998,"-","Remove from Web","-","-","2017-06-01","Inactive"]
[null,187899,"Audio","Wireless Neck","LG Ifinium Bluetooth Stereo Headset Blk","Universal",78.86,78.86,"-","Not On Flash","-","-","2016-11-11","Inactive"]
[null,187902,"Charger","Universal Car Charger","TES Belkin Road Rockstar 4-Port Car Char","Universal",19.989999999999998,19.989999999999998,"-","Remove from Web","-","-","2017-11-08","Inactive"]
[null,187909,"Charger","Android Car Charger","TEC Y Tylt Quick Charge Unive 4.8A Car C","Universal",24.99,24.99,"-","Remove from Web","-","-","2017-11-08","Inactive"]
[null,187910,"Screen Protection","Glass","TES SA Galaxy Grand Prim Glass Scrn Prot","Samsung Grand Prime",8.86,8.86,"-","Remove from Web","-","-","2017-02-17","Inactive"]
[null,187911,"Memory","Memory Card","SCP Transcend 8GB UHS-1 Class 10 MicroSD","Universal",9.99,9.99,"-","Remove from Web","-","-","2017-02-17","Inactive"]
[null,187913,"Memory","Memory Card","SCP Transcend 64GB UHS1 Class 10 MicroSD","Universal",69.989999999999995,69.989999999999995,"-","Remove from Web","-","-","2017-02-17","Inactive"]
[null,187914,"Memory","Memory Card","SCP Transcend 16GB UHS1 Class 10 MicroSD","Universal",29.99,29.99,"-","Remove from Web","-","-","2017-02-17","Inactive"]
[null,187915,"Memory","Memory Card","SCP Transcend 32GB UHS1 Class 10 MicroSD","Universal",44.99,44.99,"-","Remove from Web","-","-","2017-02-17","Inactive"]
[null,187919,"Audio","Wireless Neck","Samsung LEVEL U BLUE BLACK BT Headset","Universal",49.99,49.99,"-","Remove from Web","-",{"$f":"IF(I135=\"Status Changed\",\"Status Changed\",IF(K135=\"Status Changed\",\"Status Changed\",\"-\"))","v":"-"},"2017-02-17","Inactive"]
[null,187994,"Connected Home","Indoor Camera","TES MOTO Focus 50 Wi-Fi HD Cam White","Universal",39.99,39.99,"-","Remove from Web","-","-","2018-06-14","Inactive"]
[null,187995,"Audio","Wireless Neck","LG TONE ULTRA 810 BT Black","Universal",79.989999999999995,79.989999999999995,"-","Remove from Web","-","-","2017-06-01","Inactive"]
[null,187996,"Connected Home","Networking","WeBoost Drive 4G-S","Universal",199.99,199.99,"-","Remove from Web","-","-","2018-03-09","Inactive"]
[null,188077,"Connected Home","Networking","WeBoost Drive 4G-M","Universal",379.99,379.99,"-","Remove from Web","-","-","2018-03-09","Inactive"]
[null,188108,"Miscellaneous Accessory","Mount and Dock","TES SCOSCHE HandleIT Bike Mount","Universal",14.99,14.99,"-","Not On Flash","-","-","2017-08-10","Inactive"]
[null,188110,"Case","Tablet Case","SA Galaxy Tab S 2 Incipio Folio Blk","Tab S 2",49.99,49.99,"-","Remove from Web","-","-","2017-11-08","Inactive"]
[null,188366,"Screen Protection","Plastic","SCP SA 6 Edge+ Puretek Screen Protector","Galaxy S6 + Edge",6.86,6.86,"-","Remove from Web","-","-","2017-02-17","Inactive"]
[null,188467,"Case","Soft Case","SCP APL IPHONE 6 TECH 21 EVO CLEAR/GREY","iPhone 6/6s/7/8",39.99,39.99,"-","Remove from Web","-","-","2019-03-07T01:00:00","Inactive"]
[null,188468,"Case","Soft Case","SCP APL iPhone 6 Tech 21 Evo Smoke/Red","iPhone 6/6s/7/8",29.99,29.99,"-","Remove from Web","-","-","2017-11-08","Inactive"]
[null,188469,"Screen Protection","Plastic","TES SA N920 GadGrd BlackIce Scrn Prot","Note 5",8.86,8.86,"-","Not On Flash","-","-","2016-11-11","Inactive"]
[null,189277,"Audio","Portable Speaker","JBL Clip Plus Black","Universal",34.99,34.99,"-","Remove from Web","-","-","2017-06-01","Inactive"]
[null,189278,"Audio","Portable Speaker","JBL Clip Plus Red","Universal",34.99,34.99,"-","Remove from Web","-","-","2017-06-01","Inactive"]
[null,189385,"Entertainment","Drone","SCP Parrot AR Drone Snow","Universal",99.99,99.99,"-","Remove from Web","-","-","2018-03-09","Inactive"]
[null,189386,"Entertainment","Drone","SCP Parrot Rolling Spider","Universal",46.86,46.86,"-","Remove from Web","-","-","2017-06-01","Inactive"]
[null,189454,"Case","Fashion Case","iPhone Sm15 CaseMate Champagne","iPhone 6/6s/7/8",54.99,54.99,"-","Remove from Web","-","-","2017-02-17","Inactive"]
[null,189455,"Screen Protection","Plastic","TES iPhone Sm15 GadGrd Blk Ice","iPhone 6/6s/7/8",9.99,9.99,"-","Remove from Web","-","-","2017-02-17","Inactive"]
[null,189456,"Case","Waterproof Case","TES iPhone Sm15 LifeProof Fre Blk","iPhone 6/6s/7/8",79.989999999999995,79.989999999999995,"-","Remove from Web","-","-","2018-06-14","Inactive"]
[null,189458,"Case","Waterproof Case","TES iPhone Sm15 LifeProof Fre Pink","iPhone 6/6s/7/8",79.989999999999995,79.989999999999995,"-","Remove from Web","-","-","2017-11-08","Inactive"]
[null,189459,"Case","Hard Case","TES iPhone Sm15 Otterbox Commuter Blu","iPhone 6/6s/7/8",34.99,34.99,"-","Remove from Web","-","-","2017-08-10","Inactive"]
[null,189462,"Case","Clip Case","TES iPhone Sm15 Otterbox Defender Blk","iPhone 6/6s/7/8",49.99,49.99,"-","Remove from Web","-","-","2018-06-14","Inactive"]
[null,189463,"Case","Waterproof Case","TES iPhone Lg15 LifeProof Fre Blk","iPhone 6/6s/7/8 Plus",89.99,89.99,"-","Remove from Web","-","-","2018-03-09","Inactive"]
[null,189465,"Case","Clip Case","TES iPhone Sm15 Otterbox Defender Camo","iPhone 6/6s/7/8",59.99,59.99,"-","Remove from Web","-","-","2017-11-08","Inactive"]
[null,189466,"Case","Clip Case","TES iPhone Sm15 Otterbox Defender Pink","iPhone 6/6s/7/8",49.99,49.99,"-","Remove from Web","-","-","2018-03-09","Inactive"]
[null,189468,"Case","Hard Case","TES iPhone Sm15 Otterbox Symmetry Clear","iPhone 6/6s/7/8",29.99,29.99,"-","Remove from Web","-","-","2018-06-14","Inactive"]
[null,189469,"Case","Clip Case","TES IPHONE LG15 OTTERBOX DEFENDER BLK","iPhone 6/6s/7/8 Plus",39.99,39.99,"-","Remove from Web","-","-","2018-10-30T23:00:00","Inactive"]
[null,189470,"Screen Protection","Plastic","TES iPhone Lg15 Gadget Guard Blk Ice","iPhone 6/6s/7/8 Plus",39.99,39.99,"-","Remove from Web","-","-","2017-02-17","Inactive"]
[null,189471,"Case","Clip Case","TES iPhone Lg15 Otterbox Defender Pink","iPhone 6/6s/7/8 Plus",39.99,39.99,"-","Remove from Web","-","-","2017-11-08","Inactive"]
[null,189488,"Case","Soft Case","SCP iPhone Lg15 Tech21 EVO Mesh Aqua","iPhone 6/6s/7/8 Plus",19.989999999999998,19.989999999999998,"-","Remove from Web","-","-","2018-06-14","Inactive"]
[null,189493,"Case","Fashion Case","iPhone Lg15 Incipio Coral Print","iPhone 6/6s/7/8 Plus",29.99,29.99,"-","Remove from Web","-","-","2017-02-17","Inactive"]
[null,189497,"Case","Hard Case","iPhone Lg15 Incipio Pink","iPhone 6/6s/7/8 Plus",29.99,29.99,"-","Remove from Web","-","-","2017-02-17","Inactive"]
[null,189500,"Case","Fashion Case","SCP iPhone Sm15 Incipio Lace","iPhone 6/6s/7/8",29.99,29.99,"-","Remove from Web","-","-","2017-02-17","Inactive"]
[null,189504,"Case","Fashion Case","iPhone Sm15 Incipio Coral Print","iPhone 6/6s/7/8",29.99,29.99,"-","Remove from Web","-","-","2017-02-17","Inactive"]
[null,189506,"Case","Hard Case","iPhone Sm15 Incipio Pink","iPhone 6/6s/7/8",29.99,29.99,"-","Remove from Web","-","-","2017-02-17","Inactive"]
[null,189557,"Screen Protection","Plastic","TES SA Galaxy Tab 8 Gadget Guard Scrn P","Samsung Tab E 8.0",9.99,9.99,"-","Remove from Web","-","-","2017-02-17","Inactive"]
[null,189679,"Charger","Android Cable","SCP PureGear USB C to USB A Cable","Universal no Apple",19.989999999999998,19.989999999999998,"-","Remove from Web","-","-","2017-02-17","Inactive"]
[null,189680,"Wearable","Samsung Wearable","SAM Gear S2 Black","Universal",119.99,119.99,"-","Remove from Web","-","-","2018-03-09","Inactive"]
[null,189689,"Wearable","Samsung Wearable","SAM Gear S2 White","Universal",99.99,99.99,"-","Remove from Web","-","-","2018-03-09","Inactive"]
[null,189781,"Charger","Universal Portable Charger","PureGear 5000 mAh PureJuice","Universal",39.99,39.99,"-","Remove from Web","-","-","2017-11-08","Inactive"]
[null,189782,"Charger","Universal Portable Charger","PureGear 10,400 mAh PureJuice","Universal",59.99,59.99,"-","Remove from Web","-","-","2017-11-08","Inactive"]
[null,189783,"Charger","Universal Portable Charger","PureGear 16,000 mAh PureJuice","Universal",79.989999999999995,79.989999999999995,"-","Remove from Web","-","-","2017-08-10","Inactive"]
[null,189784,"Connected Home",0,"Sense Giz Blk","Universal",7.86,7.86,"-","Remove from Web","-","-","2017-11-08","Inactive"]
[null,189860,"Charger","Other Charger","PureGear, 48W USB Charging Station","Universal",19.989999999999998,19.989999999999998,"-","Remove from Web","-","-","2017-08-10","Inactive"]
[null,189929,"Wearable","Universal Wearable","Withings Activate Steel Blk","Universal",79.989999999999995,79.989999999999995,"-","Remove from Web","-","-","2017-06-01","Inactive"]
[null,189930,"Wearable","Universal Wearable","Withings Activate Steel Wht","Universal",79.989999999999995,79.989999999999995,"-","Remove from Web","-","-","2017-06-01","Inactive"]
[null,189931,"Wearable","Health and Fitness","Withings Smart Body Analyzer Scale","Universal",79.989999999999995,79.989999999999995,"-","Remove from Web","-","-","2017-06-01","Inactive"]
[null,189932,"Miscellaneous Accessory","Tracker","Zagg Limitless Keyboard","Universal",29.86,29.86,"-","Remove from Web","-","-","2017-11-08","Inactive"]
[null,190006,"Charger","Universal Portable Charger","SAM Fast Charge Battery Pack Silver","Universal",29.99,29.99,"-","Remove from Web","-","-","2017-11-08","Inactive"]
[null,190010,"Charger","Wireless Dock Charger","SAM Fast Charge Wireless Charging Mat","Universal no Apple",49.99,49.99,"-","Remove from Web","-","-","2019-09-01","Inactive"]
[null,190025,"Audio","Portable Speaker","JBL Flip 3 Blk","Universal",69.989999999999995,69.989999999999995,"-","Remove from Web","-","-","2018-03-09","Inactive"]
[null,190026,"Audio","Portable Speaker","JBL Flip 3 Red","Universal",69.989999999999995,69.989999999999995,"-","Remove from Web","-","-","2018-03-09","Inactive"]
[null,190028,"Audio","Portable Speaker","SCP Polk Boom Swimmer Grey","Universal",33.86,33.86,"-","Remove from Web","-","-","2016-11-11","Inactive"]
[null,190033,"Case","Tablet Case","SAM TAB E 8.0 INCIPIO FOLIO GREY","Samsung Tab E 8.0",39.99,39.99,"-","Remove from Web","-","-","2018-09-13","Inactive"]
[null,190034,"Audio","Portable Speaker","SCP Braven LUX Bluetooth Speaker Wht","Universal",59.99,59.99,"-","Remove from Web","-","-","2017-02-17","Inactive"]
[null,190036,"Memory","Memory Transfer","SCP Leef Bridge Android 16GB","Universal",29.99,29.99,"-","Remove from Web","-","-","2017-02-17","Inactive"]
[null,190037,"Memory","Memory Transfer","SCP Leef iBridge Apple  16GB","Universal",59.99,59.99,"-","Remove from Web","-","-","2017-02-17","Inactive"]
[null,190351,"Audio","Wireless Car","JBL Trip Carkit","Universal",39.99,39.99,"-","Remove from Web","-","-","2017-11-08","Inactive"]
[null,190352,"Case","Tablet Case","Samsung Tab E 8.0 TJ Ballistic","Samsung Tab E 8.0",39.99,39.99,"-","Remove from Web","-","-","2017-02-17","Inactive"]
[null,190353,"Charger","Android Cable","SCP PureGear 9in Micro Cable","Universal no Apple",4.99,4.99,"-","Remove from Web","-","-","2017-08-10","Inactive"]
[null,190354,"Charger","Apple Cable","SCP PureGear 9in Lightning Cable","Universal",9.99,9.99,"-","Remove from Web","-","-","2017-06-01","Inactive"]
[null,190578,"Screen Protection","Plastic","TES iPad Mini 4 GadGuard Screen Protect","iPad Mini 5th gen/iPad Mini 4th Gen",59.99,59.99,"-","Remove from Web","-","-","2017-02-17","Inactive"]
[null,190648,"Connected Home","Networking","Belkin Wi-Fi Range Extender","Universal",24.99,24.99,"-","Remove from Web","-","-","2017-11-08","Inactive"]
[null,190851,"Entertainment","Virtual and Augmented Reality","SAM Gear VR","Universal",49.99,49.99,"-","Remove from Web","-","-","2017-06-01","Inactive"]
[null,190853,"Charger","Other Charger","SCP PureGear Type-C to USB-A Adapter Blk","Universal no Apple",9.99,9.99,"-","Remove from Web","-","-","2017-08-10","Inactive"]
[null,190855,"Charger","Android Cable","SCP PureGear Type-C Cable 4FT","Universal no Apple",9.99,9.99,"-","Remove from Web","-",{"$f":"IF(I199=\"Status Changed\",\"Status Changed\",IF(K199=\"Status Changed\",\"Status Changed\",\"-\"))","v":"-"},"2016-11-11","Inactive"]
[null,190856,"Case","Waterproof Case","TES iPhone 6s LifeProof Power Fre Blk","iPhone 6/6s/7/8",89.99,89.99,"-","Remove from Web","-","-","2017-08-10","Inactive"]
[null,190917,"Screen Protection","Plastic","TES iPad Pro GadGuard Screen Protector","iPad Pro 12",59.99,59.99,"-","Remove from Web","-","-","2017-02-17","Inactive"]
[null,190918,"Case","Case Accessories","APL Pencil","iPad 6/7/8/9th Gen/iPad mini 5th/iPad Pro 9.7/iPad Air 3rd/iPad Pro 9.7/10.5/12.9/12.9 2nd Gen",99,99,"-","Include on Web, Available","-","-","2022-09-30","Active"]
[null,190919,"Case","Keyboard Case","APL iPad Pro Smart Keyboard","iPad Pro 12",169,169,"-","Remove from Web","-","-","2018-06-14","Inactive"]
[null,191203,"Wearable","Apple Wearable","APL Watch Blk Stainless Blk Sport 42mm","Apple Watch",399,399,"-","Remove from Web","-","-","2017-11-08","Inactive"]
[null,191205,"Wearable","Apple Wearable","APL Watch Blk Stainless Blk Sport 38mm","Apple Watch",349,349,"-","Remove from Web","-","-","2017-11-08","Inactive"]
[null,191214,"Wearable","Wearable Accessory","APL Watch VTG Rose Sport Band 42mm","Apple Watch",49,49,"-","Remove from Web","-","-","2017-02-17","Inactive"]
[null,191226,"Wearable","Apple Wearable","APL Watch RoseGold Alum Stone Sport 42mm","Apple Watch",249,249,"-","Remove from Web","-","-","2017-11-08","Inactive"]
[null,191231,"Wearable","Apple Wearable","APL Watch Silver Alum Wht Sport 42mm","Apple Watch",249,249,"-","Remove from Web","-","-","2017-11-08","Inactive"]
[null,191232,"Wearable","Apple Wearable","APL Watch Silver Alum Wht Sport 38mm","Apple Watch",199,199,"-","Remove from Web","-","-","2017-11-08","Inactive"]
[null,191235,"Wearable","Apple Wearable","APL Watch Stainless Red Sport 42mm","Apple Watch",399,399,"-","Remove from Web","-","-","2017-11-08","Inactive"]
[null,191236,"Wearable","Apple Wearable","APL Watch Stainless Red Sport 38mm","Apple Watch",349,349,"-","Remove from Web","-","-","2017-11-08","Inactive"]
[null,191239,"Wearable","Apple Wearable","APL Watch Gray Alum Blk Sport 42mm","Apple Watch",249,249,"-","Remove from Web","-","-","2017-11-08","Inactive"]
[null,191240,"Wearable","Apple Wearable","APL Watch Gray Alum Blk Sport 38mm","Apple Watch",199,199,"-","Remove from Web","-","-","2017-11-08","Inactive"]
[null,191247,"Wearable","Apple Wearable","APL Watch RoseGold Alum Lav Sport 38mm","Apple Watch",199,199,"-","Remove from Web","-","-","2017-11-08","Inactive"]
[null,191248,"Wearable","Apple Wearable","APL Watch Gold Alum MidBlue Sport 42mm","Apple Watch",249,249,"-","Remove from Web","-","-","2017-11-08","Inactive"]
[null,191249,"Wearable","Apple Wearable","APL Watch Gold Alum Antiq Wht Sport 38mm","Apple Watch",199,199,"-","Remove from Web","-","-","2017-11-08","Inactive"]
[null,191257,"Wearable","Apple Wearable","APL Watch Stainless Wht Sport 42mm","Apple Watch",399,399,"-","Remove from Web","-","-","2017-11-08","Inactive"]
[null,191258,"Wearable","Apple Wearable","APL Watch Stainless Wht Sport 38mm","Apple Watch",349,349,"-","Remove from Web","-","-","2017-11-08","Inactive"]
[null,191275,"Charger","Wearable Charger","Mophie APL Watch Dock","Apple Watch",39.99,39.99,"-","Remove from Web","-","-","2017-08-10","Inactive"]
[null,191298,"Wearable","Wearable Accessory","APL Watch Dragon Red MTE Band 42mm","Apple Watch",49,49,"-","Remove from Web","-","-","2017-11-08","Inactive"]
[null,191299,"Charger","Wearable Charger","APL Watch MAG Charging Cable 1M","Apple Watch",29,29,"-","Remove from Web","-","-","2017-11-08","Inactive"]
[null,191302,"Charger","Wearable Charger","APL Watch MAG Charging Cable .3M","Apple Watch",29,29,"-","Remove from Web","-","-","2017-11-08","Inactive"]
[null,191304,"Charger","Wearable Charger","APL Watch MAG Charging Cable 2M","Apple Watch",39,39,"-","Remove from Web","-","-","2017-11-08","Inactive"]
[null,191305,"Case","Other Case","APL Watch MN Blue Sport Band 38mm","Apple Watch",19.989999999999998,19.989999999999998,"-","Remove from Web","-","-","2020-08-25","Inactive"]
[null,191308,"Wearable","Wearable Accessory","APL Watch Red Matte Sport Band 38mm","Apple Watch",49,49,"-","Remove from Web","-","-","2017-11-08","Inactive"]
[null,191309,"Wearable","Wearable Accessory","APL Watch White Sport Band 42mm","Apple Watch",49,49,"-","Remove from Web","-","-","2018-11-08","Inactive"]
[null,191318,"Wearable","Wearable Accessory","APL Watch VTG Rose Sport Band 38mm","Apple Watch",49,49,"-","Remove from Web","-","-","2017-02-17","Inactive"]
[null,191320,"Wearable","Wearable Accessory","APL Watch Glacier Sport Band 38mm","Apple Watch",49,49,"-","Remove from Web","-","-","2017-11-08","Inactive"]
[null,191324,"Audio","Wired Sport","JBL Sport Reflect Mini Black","Universal",34.99,34.99,"-","Remove from Web","-","-","2017-06-01","Inactive"]
[null,191478,"Audio","Portable Speaker","APL PILL PLUS BLACK","Universal",179.99,179.99,"-","Remove from Web","-","-","2018-06-14","Inactive"]
[null,191479,"Audio","Wired In-Ear","APL URBEATS 2 GOLD","Universal",69.989999999999995,69.989999999999995,"-","Remove from Web","-","-","2018-03-09","Inactive"]
[null,191480,"Audio","Wired In-Ear","APL URBEATS 2 SILVER","Universal",69.989999999999995,69.989999999999995,"-","Remove from Web","-","-","2018-03-09","Inactive"]
[null,191481,"Audio","Wireless Neck","LG TONE ACTIVE BT BLUE","Universal",59.99,59.99,"-","Remove from Web","-","-","2017-11-08","Inactive"]
[null,191950,"Non Accessory","Demo Accessory","Apple Watch S 1, 38mm Rose Gold Try On","Apple Watch",0.01,0.01,"-","Remove from Web","-","-","2017-08-10","Demo"]
[null,191951,"Non Accessory","Demo Accessory","Apple Watch S 2, 42mm Gray Try On","Apple Watch",0.01,0.01,"-","Remove from Web","-","-","2017-08-10","Demo"]
[null,192296,"Case","Soft Case","iPhone 6s Plus Moshi Overture Blk","iPhone 6/6s/7/8 Plus",29.99,29.99,"-","Remove from Web","-","-","2017-06-01","Inactive"]
[null,192306,"Case","Tablet Case","Skech Unvi Case 7-8\" Blk","Universal",13.86,13.86,"-","Remove from Web","-","-","2017-11-08","Inactive"]
[null,192374,"Audio","Wired In-Ear","Sony MDR-EX110AP Earbuds","Universal",14.99,14.99,"-","Remove from Web","-","-","2017-06-01","Inactive"]
[null,192375,"Audio","Wireless Car","JABRA DRIVE BT","Universal",59.99,59.99,"-","Remove from Web","-","-","2018-06-14","Inactive"]
[null,192376,"Audio","Wireless Mono","JABRA TALK 25","Universal",39.99,39.99,"-","Remove from Web","-","-","2019-06-01","Inactive"]
[null,192380,"Wearable","Health and Fitness","Pebble Smartwatch Blk","Universal",29.99,29.99,"-","Remove from Web","-","-","2017-06-01","Inactive"]
[null,192381,"Case","Universal Case","BodyGlove Univ Clutch Pnk","Universal",9.86,9.86,"-","Remove from Web","-","-","2017-02-17","Inactive"]
[null,192382,"Wearable","Health and Fitness","Garmin Vivosmart HR Reg Blk","Universal",79.989999999999995,79.989999999999995,"-","Remove from Web","-","-","2018-03-09","Inactive"]
[null,192397,"Wearable","Android Wearable","SAM Gear S2 Band Blu/Blk","Universal",29.99,29.99,"-","Remove from Web","-","-","2017-11-08","Inactive"]
[null,192398,"Audio","Wireless Car","Jabra Style BT","Universal",49.99,49.99,"-","Remove from Web","-","-","2018-06-14","Inactive"]
[null,192399,"Wearable","Android Wearable","SAM Gear S2 Band Red","Universal",29.99,29.99,"-","Remove from Web","-","-","2017-11-08","Inactive"]
[null,192402,"Charger","Mounts","SCOSCHE MAGICMOUNT CAR MOUNT","Universal",19.989999999999998,19.989999999999998,"-","Remove from Web","-","-","2019-06-01","Inactive"]
[null,192404,"Case","Tablet Case","Skech Univ Case 9-10\" Blk","Universal",9.86,9.86,"-","Remove from Web","-","-","2017-11-08","Inactive"]
[null,192405,"Audio","Wired In-Ear","JLAB METAL EARBUDS BLK","Universal",19.989999999999998,19.989999999999998,"-","Remove from Web","-","-","2018-09-13","Inactive"]
[null,192406,"Case","Tablet Case","Skech Univ Case 9-10\" Purple","Universal",9.86,9.86,"-","Remove from Web","-","-","2017-11-08","Inactive"]
[null,192407,"Case","Tablet Case","Skech Univ Case 7-8\" Purple","Universal",13.86,13.86,"-","Remove from Web","-","-","2017-11-08","Inactive"]
[null,192408,"Charger","Universal Car Charger","SCP PureGear Type C Car Charger Blk","Universal no Apple",34.99,34.99,"-","Remove from Web","-","-","2017-06-01","Inactive"]
[null,192409,"Connected Home","Thermostat","XEN HONEYWELL LYRIC THERMOSTAT","Universal",199.99,199.99,"-","Remove from Web","-","-","2018-06-14","Inactive"]
[null,192410,"Charger","Universal Wall","SCP PureGear Type C Wall Charger Blk","Universal",19.989999999999998,19.989999999999998,"-","Remove from Web","-","-","2017-08-10","Inactive"]
[null,192412,"Connected Home","Thermostat","XEN Honeywell RTH6580  Wifi Thermostat","Universal",69.989999999999995,69.989999999999995,"-","Remove from Web","-","-","2017-11-08","Inactive"]
[null,192417,"Case","Tablet Case","M-Edge Zip Univ Case 9-10\" Blk","Universal",29.99,29.99,"-","Remove from Web","-","-","2017-11-08","Inactive"]
[null,192418,"Case","Clip Case","TES iPad Pro Otterbox Defender Blk","iPad Pro 12",129.99,129.99,"-","Remove from Web","-","-","2017-11-08","Inactive"]
[null,192419,"Audio","Wireless Car","PLANTRONICS EXPLORER 500 BT","Universal",59.99,59.99,"-","Remove from Web","-","-","2018-09-13","Inactive"]
[null,192420,"Case","Waterproof Case","TES iPhone 6s Lifeproof Fre Orange Camo","iPhone 6/6s/7/8",39.99,39.99,"-","Remove from Web","-","-","2018-03-09","Inactive"]
[null,192421,"Charger","Apple Cable","SCP PureGear 6ft Lightning Cable Blk","Universal",24.99,24.99,"-","Remove from Web","-","-","2017-06-01","Inactive"]
[null,192422,"Case","Waterproof Case","TES iPhone 6s LifeProof Nuud Blk","iPhone 6/6s/7/8",49.86,49.86,"-","Remove from Web","-","-","2017-02-18","Inactive"]
[null,192423,"Case","Soft Case","iPhone 6s Moshi Overture Blk","iPhone 6/6s/7/8",24.99,24.99,"-","Remove from Web","-","-","2017-02-17","Inactive"]
[null,192430,"Case","Waterproof Case","TES SAM GS6 LifeProof Fre Blue","Galaxy S6",39.99,39.99,"-","Remove from Web","-",{"$f":"IF(I263=\"Status Changed\",\"Status Changed\",IF(K263=\"Status Changed\",\"Status Changed\",\"-\"))","v":"-"},"2017-06-01","Inactive"]
[null,192431,"Case","Charger Case","Mophie iPhone 6/6s Reserve Blk","iPhone 6/6s/7/8",29.86,29.86,"-","Remove from Web","-","-","2017-11-08","Inactive"]
[null,192432,"Case","Charger Case","Mophie iPhone 6/6s Reserve Pnk","iPhone 6/6s/7/8",29.86,29.86,"-","Remove from Web","-","-","2017-11-08","Inactive"]
[null,192437,"Audio","Wired In-Ear","JLab Metal Earbuds Pnk","Universal",19.989999999999998,19.989999999999998,"-","Remove from Web","-","-","2018-03-09","Inactive"]
[null,192438,"Case","Tablet Case","M-Edge Zip Univ Case 7-8\" Blk","Universal",24.99,24.99,"-","Remove from Web","-","-","2017-11-08","Inactive"]
[null,192447,"Audio","Wireless Car","Jabra Stealth BT","Universal",74.989999999999995,74.989999999999995,"-","Remove from Web","-","-","2017-06-01","Inactive"]
[null,192701,"Connected Home","Networking","TES LINKSY 5-Port Gigabit Ethernet Switc","Universal",29.99,29.99,"-","Remove from Web","-","-","2017-11-08","Inactive"]
[null,192762,"Connected Home","Smart Display","SAM Galaxy View Wifi 32GB Blk","Samsung View",374.99,374.99,"-","Remove from Web","-","-","2018-03-09","Inactive"]
[null,192845,"Case","Waterproof Case","TES SAM GS7 LifeProof Fre Pnk","Galaxy S7",59.99,59.99,"-","Remove from Web","-","-","2017-11-08","Inactive"]
[null,192846,"Case","Hard Case","TES SAM GS7 OTTERBOX COMMUTER BLK","Galaxy S7",34.99,34.99,"-","Remove from Web","-","-","2018-03-09","Inactive"]
[null,192911,"Case","Other Case","SAM GS7 Edge S-View Clear Blk","Galaxy S7 Edge",19.86,19.86,"-","Remove from Web","-","-","2017-11-08","Inactive"]
[null,192978,"Case","Hard Case","TES GS7 Edge Otterbox Symmetry Blk","Galaxy S7 Edge",19.86,19.86,"-","Remove from Web","-","-","2018-03-09","Inactive"]
[null,192979,"Case","Hard Case","TES GS7 Edge Ottebox Symmetry Pnk","Galaxy S7 Edge",19.86,19.86,"-","Remove from Web","-","-","2018-03-09","Inactive"]
[null,192980,"Case","Clip Case","TES SAM GS7 Otterbox Defender Gray/Wht","Galaxy S7",59.99,59.99,"-","Remove from Web","-","-","2017-08-10","Inactive"]
[null,192981,"Case","Folio Case","TES GS7 Edge Otterbox Strada Blk","Galaxy S7 Edge",49.99,49.99,"-","Remove from Web","-","-","2017-02-17","Inactive"]
[null,192982,"Case","Hard Case","SCP SAM GS7 Incipio Dual Pro Silver","Galaxy S7",34.99,34.99,"-","Remove from Web","-","-","2017-11-08","Inactive"]
[null,192983,"Case","Clip Case","TES SAM GS7 OTTERBOX DEFENDER CAMO","Galaxy S7",59.99,59.99,"-","Remove from Web","-","-","2018-03-09","Inactive"]
[null,192984,"Case","Hard Case","SCP SAM GS7 Incipio Isla Silver","Galaxy S7",34.99,34.99,"-","Remove from Web","-","-","2017-02-17","Inactive"]
[null,192985,"Case","Charger Case","SCP SAM GS7 Mophie Juicepack Blk","Galaxy S7",59.99,59.99,"-","Remove from Web","-","-","2017-11-08","Inactive"]
[null,192986,"Case","Waterproof Case","TES SAM GS7 LifeProof Fre Blu","Galaxy S7",59.99,59.99,"-","Remove from Web","-","-","2018-03-09","Inactive"]
[null,192989,"Case","Hard Case","SCP SAM GS7 Edge Incipio Isla Gold","Galaxy S7 Edge",34.99,34.99,"-","Remove from Web","-","-","2017-02-17","Inactive"]
[null,192990,"Case","Soft Case","SCP SAM GS7 Edge Tech21 Evo Frame Smoke","Galaxy S7 Edge",9.86,9.86,"-","Remove from Web","-","-","2018-03-09","Inactive"]
[null,192991,"Screen Protection","Plastic","SAM GS7 Edge PureGear Screen Prot","Galaxy S7 Edge",4.8600000000000003,4.8600000000000003,"-","Remove from Web","-","-","2017-11-08","Inactive"]
[null,192992,"Case","Hard Case","TES GS7 Edge Otterbox Symmetry Clr","Galaxy S7 Edge",14.99,14.99,"-","Remove from Web","-","-","2018-03-09","Inactive"]
[null,192998,"Screen Protection","Glass","SCP SAM GS7 PureGear Impact Screen Prot","Galaxy S7",9.99,9.99,"-","Remove from Web","-","-","2017-02-17","Inactive"]
[null,192999,"Case","Hard Case","TES SAM GS7 Otterbox Commuter Red","Galaxy S7",34.99,34.99,"-","Remove from Web","-","-","2018-03-09","Inactive"]
[null,193000,"Case","Other Case","SCP SAM GS7 Tech21 Evo Wallet Blk","Galaxy S7",29.99,29.99,"-","Remove from Web","-","-","2017-11-08","Inactive"]
[null,193001,"Case","Hard Case","SCP SAM GS7 Speck Candyshell Pineapple","Galaxy S7",39.99,39.99,"-","Remove from Web","-","-","2017-02-17","Inactive"]
[null,193002,"Case","Hard Case","TES SAM GS7 Otterbox Symmetry Clr/Blk","Galaxy S7",29.99,29.99,"-","Remove from Web","-","-","2018-03-09","Inactive"]
[null,193003,"Case","Clip Case","TES SAM GS7 Otterbox Defender Pnk","Galaxy S7",39.99,39.99,"-","Remove from Web","-","-","2018-03-09","Inactive"]
[null,193004,"Case","Fashion Case","TES SAM GS7 Casemate Sheer Champagne","Galaxy S7",19.989999999999998,19.989999999999998,"-","Remove from Web","-","-","2017-02-17","Inactive"]
[null,193005,"Case","Hard Case","TES SAM GS7 Otterbox Symmetry Clr/Blu","Galaxy S7",29.99,29.99,"-","Remove from Web","-","-","2017-11-08","Inactive"]
[null,193006,"Case","Clip Case","TES SAM GS7 Otterbox Defender Blk","Galaxy S7",29.99,29.99,"-","Remove from Web","-","-","2018-03-09","Inactive"]
[null,193007,"Case","Soft Case","SCP SAM GS7 Tech21 Evo Check Smoke/Blk","Galaxy S7",29.99,29.99,"-","Remove from Web","-","-","2018-03-09","Inactive"]
[null,193008,"Screen Protection","Glass","TES SAM GS7 GadGrd Blk Ice Screen Prot","Galaxy S7",9.99,9.99,"-","Remove from Web","-","-","2017-02-17","Inactive"]
[null,193009,"Case","Soft Case","SCP SAM GS7 Tech21 Evo Check Clear/Wht","Galaxy S7",39.99,39.99,"-","Remove from Web","-","-","2017-11-08","Inactive"]
[null,193010,"Case","Soft Case","SCP SAM GS7 Tech21 Evo Check Rose/Clr","Galaxy S7",29.99,29.99,"-","Remove from Web","-","-","2018-03-09","Inactive"]
[null,193017,"Case","Waterproof Case","TES SAM GS7 LifeProof Fre Blk","Galaxy S7",49.99,49.99,"-","Remove from Web","-","-","2018-03-09","Inactive"]
[null,193145,"Case","Other Case","SCP LG G5 Tech21 EVO Wallet Case Blk","LG G5",16.86,16.86,"-","Remove from Web","-","-","2017-02-17","Inactive"]
[null,193146,"Case","Soft Case","SCP LG G5 Tech21 EVO Case Check Blk","LG G5",14.86,14.86,"-","Remove from Web","-","-","2017-02-17","Inactive"]
[null,193190,"Case","Tablet Case","TES ZTE Imperial Max Ballistic Case Blk","ZTE Imperial Max",29.99,29.99,"-","Remove from Web","-","-","2017-11-08","Inactive"]
[null,193305,"Screen Protection","Plastic","SCP ZTE Imperial Max PureGear Scn Prot","ZTE Imperial Max",24.99,24.99,"-","Remove from Web","-","-","2017-11-08","Inactive"]
[null,193359,"Screen Protection","Glass","TES LG G5 GadGuard Glass Screen Prot","LG G5",39.99,39.99,"-","Remove from Web","-","-","2017-11-08","Inactive"]
[null,193360,"Case","Clip Case","TES LG G5 Otterbox Defender Blk","LG G5",49.99,49.99,"-","Remove from Web","-","-","2017-11-08","Inactive"]
[null,193374,"Case","Soft Case","SCP iPhone Spr16 Tech21 Evo Smoke","iPhone 5S/SE",24.99,24.99,"-","Remove from Web","-","-","2018-09-13","Inactive"]
[null,193375,"Case","Soft Case","SCP iPhone Spr16 Tech21 Evo Pink","iPhone 5S/SE",14.86,14.86,"-","Remove from Web","-","-","2017-02-17","Inactive"]
[null,193417,"Case","Soft Case","SCP LG G5 BodyGlove Satin Case Green","LG G5",5.86,5.86,"-","Remove from Web","-","-","2017-02-17","Inactive"]
[null,193462,"Connected Home","Networking","SCP WeBoost EQO Home Cell Booster","Universal",349.99,349.99,"-","Remove from Web","-","-","2017-06-01","Inactive"]
[null,193511,"Case","Hard Case","TES LG K8 Ballistic TJ Case Pnk/Blk","LG K8",12.86,12.86,"-","Remove from Web","-","-","2017-11-08","Inactive"]
[null,193512,"Case","Hard Case","TES LG K8 Ballistic TJ Case Blk/Blk","LG K8",29.99,29.99,"-","Remove from Web","-","-","2017-08-10","Inactive"]
[null,193513,"Case","Soft Case","SCP iPhone Spr16 Incipio Rose Gold","iPhone 5S/SE",34.99,34.99,"-","Remove from Web","-","-","2017-02-17","Inactive"]
[null,193514,"Case","Soft Case","SCP iPhone Spr16 Speck Aqua Floral","iPhone 5S/SE",39.99,39.99,"-","Remove from Web","-","-","2017-02-17","Inactive"]
[null,193530,"Case","Fashion Case","TES iPhone Spr16 Casemate Glam Champagne","iPhone 5S/SE",34.99,34.99,"-","Remove from Web","-","-","2017-02-17","Inactive"]
[null,193531,"Case","Fashion Case","TES iPhone Spr16 Casemate Bril Champagne","iPhone 5S/SE",69.989999999999995,69.989999999999995,"-","Remove from Web","-","-","2017-11-08","Inactive"]
[null,193554,"Case","Hard Case","SCP LG K8 Speck Candyshell Case Clear","LG K8",12.86,12.86,"-","Remove from Web","-","-","2016-11-11","Inactive"]
[null,193556,"Case","Soft Case","SCP LG K8 BodyGlove Case Blue","LG K8",5.86,5.86,"-","Not On Flash","-","-","2017-08-10","Inactive"]
[null,193563,"Wearable","Android Wearable","SAM Gear S2 Classic BT Blk","Universal",159.99,159.99,"-","Remove from Web","-","-","2018-03-09","Inactive"]
[null,193564,"Connected Home","Indoor Camera","LG Cam Plus","LG G5",19.989999999999998,19.989999999999998,"-","Remove from Web","-","-","2017-06-01","Inactive"]
[null,193566,"Connected Home","Indoor Camera","LG 360 Cam","LG G5",59.99,59.99,"-","Remove from Web","-","-","2017-06-01","Inactive"]
[null,193578,"Screen Protection","Glass","SCP LG K8 PureGear Impact Screen Prot","LG K8",24.99,24.99,"-","Not On Flash","-","-","2017-08-10","Inactive"]
[null,193579,"Case","Waterproof Case","TES iPhone Spr16 LifeProof Fre Purp","iPhone 5S/SE",39.99,39.99,"-","Remove from Web","-","-","2017-11-08","Inactive"]
[null,193580,"Case","Hard Case","TES LG K8 Ballistic TJ Case Wht/Blk","LG K8",9.99,9.99,"-","Remove from Web","-","-","2017-11-08","Inactive"]
[null,193582,"Case","Soft Case","TES iPhone Spr16 Moshi Overture Blk","iPhone 5S/SE",39.99,39.99,"-","Remove from Web","-","-","2017-08-10","Inactive"]
[null,193589,"Entertainment","Virtual and Augmented Reality","LG 360 VR","LG G5",99.99,99.99,"-","Remove from Web","-","-","2017-06-01","Inactive"]
[null,193872,"Case","Soft Case","SAM J3 Bodyglove Carbon HD Navy","Samsung J3",7.86,7.86,"-","Remove from Web","-",{"$f":"IF(I327=\"Status Changed\",\"Status Changed\",IF(K327=\"Status Changed\",\"Status Changed\",\"-\"))","v":"-"},"2017-08-10","Inactive"]
[null,193874,"Case","Soft Case","SAM J3 Bodyglove Carbon HD Teal","Samsung J3",24.99,24.99,"-","Remove from Web","-","-","2017-11-08","Inactive"]
[null,193875,"Case","Hard Case","SAM J3 Speck Candyshell Clear","Samsung J3",12.86,12.86,"-","Remove from Web","-","-","2017-08-10","Inactive"]
[null,193878,"Case","Soft Case","SAM J3 Tech21 Evo Check Smoke","Samsung J3",39.99,39.99,"-","Remove from Web","-","-","2017-11-08","Inactive"]
[null,193879,"Case","Soft Case","SAM J3 Tech21 Evo Check Rose","Samsung J3",39.99,39.99,"-","Remove from Web","-","-","2017-11-08","Inactive"]
[null,193906,"Screen Protection","Glass","SAM J3 GadGuard Black Ice Screen Prot","Samsung J3",29.99,29.99,"-","Remove from Web","-","-","2017-11-08","Inactive"]
[null,193907,"Case","Hard Case","SAM J3 Ballistic TJ Wht/Blk","Samsung J3",39.99,39.99,"-","Remove from Web","-","-","2017-11-08","Inactive"]
[null,193908,"Case","Hard Case","SAM J3 Ballistic TJ Pnk/Blk","Samsung J3",39.99,39.99,"-","Remove from Web","-","-","2017-11-08","Inactive"]
[null,193909,"Case","Clip Case","SAM J3 Ballistic TJ Maxx Blk /Blk","Samsung J3",49.99,49.99,"-","Remove from Web","-","-","2017-11-08","Inactive"]
[null,194005,"Case","Tablet Case","iPad Pro 9.7 Incipio Octane Folio Blue","iPad Pro 9.7",24.99,24.99,"-","Remove from Web","-","-","2018-03-09","Inactive"]
[null,194017,"Case","Clip Case","iPad Pro 9.7 Otterbox Defender Blk","iPad Pro 9.7",69.989999999999995,69.989999999999995,"-","Remove from Web","-","-","2018-03-09","Inactive"]
[null,194175,"Charger","Wireless Dock Charger","SAM FAST CHARGE WIRELESS STAND BLK","Universal",59.99,59.99,"-","Remove from Web","-","-","2019-09-01","Inactive"]
[null,194265,"Case","Charger Case","M-Edge Tech Pack Blk","Universal",49.99,49.99,"-","Remove from Web","-","-","2018-06-14","Inactive"]
[null,194266,"Case","Soft Case","iPhone 6/6s Tech21 Evo Elite Gold","iPhone 6/6s/7/8",24.99,24.99,"-","Remove from Web","-","-","2018-06-14","Inactive"]
[null,194290,"Case","Waterproof Case","iPhone 6/6s LifeProof Fre Wht","iPhone 6/6s/7/8",44.86,44.86,"-","Remove from Web","-","-","2017-02-17","Inactive"]
[null,194291,"Case","Waterproof Case","iPhone 6/6s Plus LifeProof Fre Power Blk","iPhone 6/6s/7/8 Plus",82.86,82.86,"-","Remove from Web","-","-","2017-02-17","Inactive"]
[null,194292,"Case","Waterproof Case","iPhone 6s LifeProof Nuud Red","iPhone 6/6s/7/8",50.86,50.86,"-","Remove from Web","-","-","2017-02-17","Inactive"]
[null,194293,"Case","Waterproof Case","iPhone 6s Plus LifeProof Nuud Blk","iPhone 6/6s/7/8 Plus",56.86,56.86,"-","Remove from Web","-","-","2017-02-17","Inactive"]
[null,194304,"Case","Waterproof Case","GS7 LifeProof Fre Wht","Galaxy S7",39.99,39.99,"-","Not On Flash","-","-","2017-08-10","Inactive"]
[null,194305,"Case","Waterproof Case","iPhone 6/6s LifeProof Fre Blue","iPhone 6/6s/7/8",79.989999999999995,79.989999999999995,"-","Remove from Web","-","-","2017-02-17","Inactive"]
[null,194306,"Case","Waterproof Case","iPhone 6/6s LifeProof Fre Power Blue","iPhone 6/6s/7/8",59.86,59.86,"-","Remove from Web","-","-","2017-02-17","Inactive"]
[null,194320,"Case","Waterproof Case","iPhone 6s Plus LifeProof Wht","iPhone 6/6s/7/8 Plus",50.86,50.86,"-","Remove from Web","-","-","2017-02-17","Inactive"]
[null,194322,"Connected Home","Indoor Camera","GOOGLE NEST CAM INDOOR","Universal",129,129,"-","Remove from Web","-","-","2022-02-18","Inactive"]
[null,194323,"Entertainment","Drone","Parrot Airborne Night Drone","Universal",69.989999999999995,69.989999999999995,"-","Remove from Web","-","-","2018-03-09","Inactive"]
[null,194324,"Entertainment","Drone","Parrot Bebop 2 Drone","Universal",449,449,"-","Remove from Web","-","-","2017-08-10","Inactive"]
[null,194325,"Memory","Memory Transfer","Leef Bridge 3.0 32GB Android","Universal",29.99,29.99,"-","Remove from Web","-","-","2017-11-08","Inactive"]
[null,194333,"Connected Home","Switch and Plug","IHOME SMARTPLUG WITH REMOTE CONTROL","Universal",44.99,44.99,"-","Remove from Web","-","-","2018-06-14","Inactive"]
[null,194334,"Miscellaneous Accessory","Mount and Dock","SQUARE CONTACTLESS CHIP READER","Universal",49.99,49.99,"-","Remove from Web","-","-","2019-09-01","Inactive"]
[null,194335,"Miscellaneous Accessory","Mount and Dock","Square Reader Dock","Universal",29.99,29.99,"-","Remove from Web","-","-","2019-03-07T01:00:00","Inactive"]
[null,194336,"Connected Home","Doorbell and Lock","Ring","Universal",179.99,179.99,"-","Remove from Web","-","-","2018-03-09","Inactive"]
[null,194350,"Audio","Wireless Neck","LG Tone Pro 770 Blk","Universal",69.989999999999995,69.989999999999995,"-","Not On Flash","-","-","2017-06-01","Inactive"]
[null,194351,"Audio","Wireless Neck","LG Tone Pro 770 Gold","Universal",69.989999999999995,69.989999999999995,"-","Not On Flash","-","-","2017-06-01","Inactive"]
[null,194352,"Audio","Wireless Neck","LG Tone Infinim 910 Rose Gold","Universal",119.99,119.99,"-","Remove from Web","-","-","2017-11-08","Inactive"]
[null,194357,"Charger","Universal Portable Charger","Scosche 3 in 1 Power Bank 2600 mAh Blk","Universal",14.99,14.99,"-","Remove from Web","-","-","2018-06-14","Inactive"]
[null,194358,"Case","Soft Case","iPhone 6/6s Plus Tech21 Evo Elite Gold","iPhone 6/6s/7/8 Plus",19.989999999999998,19.989999999999998,"-","Remove from Web","-","-","2018-10-30T23:00:00","Inactive"]
[null,194359,"Case","Soft Case","iPhone 6/6s Tech21 Evo Elite Blk","iPhone 6/6s/7/8",29.99,29.99,"-","Remove from Web","-","-","2018-03-09","Inactive"]
[null,194360,"Entertainment","Virtual and Augmented Reality","Casemate Virtual Reality Viewer","Universal",9.86,9.86,"-","Not On Flash","-","-","2017-08-10","Inactive"]
[null,194361,"Case","Charger Case","iPhone 6/6s Reserve Pack with Wireless","iPhone 6/6s/7/8",44.99,44.99,"-","Remove from Web","-","-","2017-08-10","Inactive"]
[null,194362,"Case","Soft Case","GS7 Tech21 Evo Elite Gold","Galaxy S7",39.99,39.99,"-","Remove from Web","-","-","2018-03-09","Inactive"]
[null,194363,"Charger","Mounts","SCOSCHE VENT MAGICMOUNT","Universal",24.99,24.99,"-","Remove from Web","-","-","2018-03-09","Inactive"]
[null,194364,"Case","Soft Case","GS7 Tech21 Evo Elite Blk","Galaxy S7",19.989999999999998,19.989999999999998,"-","Remove from Web","-","-","2018-03-09","Inactive"]
[null,194367,"Case","Waterproof Case","iPhone 6/6s LifeProof Fre Purp","iPhone 6/6s/7/8",79.989999999999995,79.989999999999995,"-","Remove from Web","-","-","2017-02-17","Inactive"]
[null,194368,"Wearable","Health and Fitness","Jawbone Up2 Rope Gold","Universal",39.99,39.99,"-","Remove from Web","-","-","2018-03-09","Inactive"]
[null,194369,"Wearable","Health and Fitness","Jawbone Up2 Rope Blue","Universal",29.99,29.99,"-","Remove from Web","-","-","2017-11-08","Inactive"]
[null,194370,"Audio","Portable Speaker","JLAB CRASHER MINI GREY","Universal",29.99,29.99,"-","Remove from Web","-","-","2018-09-13","Inactive"]
[null,194371,"Audio","Portable Speaker","JLAB CRASHER MINI BLUE","Universal",29.99,29.99,"-","Remove from Web","-","-","2019-03-07","Inactive"]
[null,194372,"Memory","Memory Transfer","Leef iBridge 32GB iOS","Universal",39.99,39.99,"-","Remove from Web","-","-","2017-11-08","Inactive"]
[null,194373,"Memory","Memory Card","Transcend MicroSD Class 10 128GB","Universal",45.86,45.86,"-","Remove from Web","-","-","2017-02-17","Inactive"]
[null,194374,"Wearable","Health and Fitness","Garmin Vivofit 3 Blk","Universal",59.99,59.99,"-","Remove from Web","-","-","2018-03-09","Inactive"]
[null,194375,"Wearable","Health and Fitness","Garmin Vivofit 3 Band Bundle Camo/Orange","Universal",19.989999999999998,19.989999999999998,"-","Remove from Web","-","-","2017-11-08","Inactive"]
[null,194389,"Connected Home","Lighting","Phillips Hue Single Bulb","Universal",39.99,39.99,"-","Remove from Web","-","-","2017-11-08","Inactive"]
[null,194390,"Connected Home","Lighting","Phillips Hue Starter kit","Universal",149.99,149.99,"-","Remove from Web","-","-","2017-11-08","Inactive"]
[null,194391,"Audio","Portable Speaker","EcoPebble Lite Blk","Universal",19.989999999999998,19.989999999999998,"-","Not On Flash","-","-","2017-06-01","Inactive"]
[null,194392,"Audio","Portable Speaker","UE Roll Blk","Universal",49.99,49.99,"-","Remove from Web","-","-","2018-03-09","Inactive"]
[null,194393,"Audio","Portable Speaker","UE Roll Purp","Universal",49.99,49.99,"-","Remove from Web","-","-","2018-03-09","Inactive"]
[null,194394,"Audio","Portable Speaker","UE BOOM 2 BLK","Universal",129.99,129.99,"-","Remove from Web","-","-","2019-06-01","Inactive"]
[null,194395,"Audio","Portable Speaker","EcoPebble Lite Orange","Universal",29.99,29.99,"-","Remove from Web","-","-","2017-06-01","Inactive"]
[null,194396,"Audio","Portable Speaker","UE BOOM 2 BLUE","Universal",129.99,129.99,"-","Remove from Web","-","-","2018-09-13","Inactive"]
[null,194407,"Case","Keyboard Case","PUREGEAR UNIVERSAL KEYBOARD FOLIO SMALL","Universal",29.99,29.99,"-","Remove from Web","-","-","2018-09-13","Inactive"]
[null,194408,"Case","Keyboard Case","PUREGEAR UNIVERSAL KEYBOARD FOLIO LARGE","Universal",79.989999999999995,79.989999999999995,"-","Remove from Web","-","-","2018-09-13","Inactive"]
[null,194409,"Connected Home","Thermostat","GOOGLE NEST LEARNING THERMOSTAT","Universal",249.99,249.99,"-","Remove from Web","-","-","2020-08-25","Inactive"]
[null,194410,"Connected Home","Home Protection","GOOGLE NEST PROTECT","Universal",119.99,119.99,"-","Remove from Web","-","-","2019-06-01","Inactive"]
[null,194417,"Charger","Universal Portable Charger","Random Order Portable Charger 3200 Gold","Universal",19.989999999999998,19.989999999999998,"-","Remove from Web","-","-","2018-09-13","Inactive"]
[null,194418,"Wearable","Android Wearable","Moto 360 2nd Gen 42 Mens Blk","Universal",129.99,129.99,"-","Remove from Web","-","-","2018-03-09","Inactive"]
[null,194484,"Case","Soft Case","LG Wine 4 Fitted Case Blk","LG Wine IV",19.989999999999998,19.989999999999998,"-","Remove from Web","-",{"$f":"IF(I391=\"Status Changed\",\"Status Changed\",IF(K391=\"Status Changed\",\"Status Changed\",\"-\"))","v":"-"},"2017-11-08","Inactive"]
[null,194485,"Case","Hard Case","LG Wine 4 Shell Case Blue","LG Wine IV",19.989999999999998,19.989999999999998,"-","Remove from Web","-","-","2017-11-08","Inactive"]
[null,194816,"Wearable","Health and Fitness","Samsung Gear Fit2 Black Large","Universal",79.989999999999995,79.989999999999995,"-","Remove from Web","-","-","2018-03-09","Inactive"]
[null,194998,"Connected Home","Indoor Camera","Samsung Gear 360 Camera","Universal",149.99,149.99,"-","Remove from Web","-","-","2018-03-09","Inactive"]
[null,195005,"Audio","Wireless In-Ear","Samsung IconX","Universal",129.99,129.99,"-","Remove from Web","-","-","2017-11-08","Inactive"]
[null,195027,"Wearable","Health and Fitness","Samsung Gear Fit2 Black Small","Universal",79.989999999999995,79.989999999999995,"-","Remove from Web","-","-","2018-03-09","Inactive"]
[null,195335,"Audio","Home Entertainment","Samsung Sound Bar J250","Universal",129.99,129.99,"-","Remove from Web","-","-","2017-06-01","Inactive"]
[null,195593,"Case","Keyboard Case","APL iPad Pro 9.7 Smart Keyboard","iPad Pro 9.7",149,149,"-","Remove from Web","-","-","2018-10-30T23:00:00","Inactive"]
[null,196007,"Audio","Wireless Neck","SAM Level U Pro ANC BLK","Universal",99.99,99.99,"-","Remove from Web","-","-","2018-06-14","Inactive"]
[null,196021,"Memory","Memory Card","PNY Micro SD Card Elite Class 10 32GB","Universal",44.99,44.99,"-","Remove from Web","-","-","2017-06-01","Inactive"]
[null,196022,"Memory","Memory Card","PNY Micro SD Card Elite Class 10 64GB","Universal",69.989999999999995,69.989999999999995,"-","Remove from Web","-","-","2017-06-01","Inactive"]
[null,196023,"Charger","Universal Car Charger","Random Order Dual USB Bullet Chrg 4.8","Universal no Apple",39.99,39.99,"-","Remove from Web","-","-","2017-08-10","Inactive"]
[null,196024,"Memory","Memory Card","PNY Micro SD Card Elite Class 10 8GB","Universal",3.86,3.86,"-","Remove from Web","-","-","2017-02-17","Inactive"]
[null,196025,"Charger","Universal Wall","Random Order Dual USB Univ Wall Chrg 4.8","Universal no Apple",39.99,39.99,"-","Remove from Web","-","-","2018-06-14","Inactive"]
[null,196132,"Screen Protection","Plastic","Random Order iPhone 6/6s Plus Scrn 3pk","iPhone 6/6s/7/8 Plus",19.989999999999998,19.989999999999998,"-","Not On Flash","-","-","2017-06-01","Inactive"]
[null,196134,"Screen Protection","Plastic","Random Order iPhone 6/6s Scrn Prot 3pk","iPhone 6/6s/7/8",19.989999999999998,19.989999999999998,"-","Remove from Web","-","-","2017-02-17","Inactive"]
[null,196135,"Charger","Android Wall","Random Order Micro USB Wall Chrg 2.4","Universal no Apple",24.99,24.99,"-","Remove from Web","-","-","2018-06-14","Inactive"]
[null,196136,"Charger","Android Car Charger","Random Order Quick Chg USB Car Chrg 2.4","Universal no Apple",29.99,29.99,"-","Remove from Web","-","-","2018-06-14","Inactive"]
[null,196138,"Charger","Android Cable","Random Order Micro USB Cable 4ft Red","Universal no Apple",14.99,14.99,"-","Remove from Web","-","-","2018-06-14","Inactive"]
[null,196139,"Charger","Android Cable","Random Order Micro USB Cable 6ft Blk","Universal no Apple",19.989999999999998,19.989999999999998,"-","Remove from Web","-","-","2018-06-14","Inactive"]
[null,196140,"Charger","Android Cable","Random Order Micro USB Cable 9in Blk","Universal no Apple",12.99,12.99,"-","Remove from Web","-","-","2018-03-09","Inactive"]
[null,196141,"Charger","Android Car Charger","Random Order Micro USB Car Chrg 2.4","Universal no Apple",24.99,24.99,"-","Remove from Web","-","-","2018-06-14","Inactive"]
[null,196142,"Charger","Android Car Charger","Random Order Micro USB Car Chrg 3.4","Universal no Apple",29.99,29.99,"-","Remove from Web","-","-","2018-09-13","Inactive"]
[null,196159,"Screen Protection","Glass","Random Order Sam GS7 Glass Scrn","Galaxy S7",39.99,39.99,"-","Remove from Web","-","-","2018-03-09","Inactive"]
[null,196160,"Screen Protection","Plastic","Random Order Sam GS7 edge Scrn Prot 3pk","Galaxy S7 Edge",24.99,24.99,"-","Remove from Web","-","-","2018-03-09","Inactive"]
[null,196163,"Memory","Memory Card","PNY Micro SD Card Elite Class 10 16GB","Universal",29.99,29.99,"-","Remove from Web","-","-","2017-06-01","Inactive"]
[null,196164,"Charger","Apple Cable","Random Order Lightning USB Cable 9in Blk","Apple Lightning",14.99,14.99,"-","Remove from Web","-","-","2017-11-08","Inactive"]
[null,196165,"Charger","Apple Car Charger","Random Order Lightning USB Car Chrg 2.4","Apple Lightning",29.99,29.99,"-","Remove from Web","-","-","2018-06-14","Inactive"]
[null,196166,"Charger","Apple Car Charger","Random Order Lightning USB Car Chrg 3.4","Apple Lightning",34.99,34.99,"-","Remove from Web","-","-","2017-11-08","Inactive"]
[null,196167,"Screen Protection","Glass","Random Order iPhone 5s/SE Glass Scrn","iPhone 5S/SE",29.99,29.99,"-","Remove from Web","-","-","2018-09-13","Inactive"]
[null,196168,"Screen Protection","Glass","Random Order Apl iPad Pro Glass Scrn","iPad Pro 12",59.99,59.99,"-","Remove from Web","-","-","2018-06-14","Inactive"]
[null,196169,"Screen Protection","Glass","Random Order iPhone 6/6s Glass Scrn","iPhone 6/6s/7/8",39.99,39.99,"-","Remove from Web","-","-","2017-11-08","Inactive"]
[null,196170,"Screen Protection","Glass","Random Order Sam Tab S2 9.7 Glass Scrn","Tab S 2",59.99,59.99,"-","Remove from Web","-","-","2017-08-10","Inactive"]
[null,196171,"Charger","Other Cable","Random Order Type C-C Cable Blk","Universal no Apple",24.99,24.99,"-","Remove from Web","-","-","2018-06-14","Inactive"]
[null,196172,"Charger","Android Car Charger","Random Order Type C Car Chrg","Universal no Apple",34.99,34.99,"-","Remove from Web","-","-","2018-06-14","Inactive"]
[null,196173,"Screen Protection","Glass","Random Order iPhone 6/6s Plus Glass Scrn","iPhone 6/6s/7/8 Plus",39.99,39.99,"-","Remove from Web","-","-","2017-08-10","Inactive"]
[null,196174,"Charger","Android Wall","Random Order Type C Wall Chrg","Universal no Apple",34.99,34.99,"-","Remove from Web","-","-","2018-06-14","Inactive"]
[null,196175,"Charger","Other Cable","Random Order Type C-A Adapter Cable Blk","Universal no Apple",14.99,14.99,"-","Remove from Web","-","-","2017-11-08","Inactive"]
[null,196176,"Charger","Other Cable","Random Order Type C-A Cable Blk","Universal no Apple",19.989999999999998,19.989999999999998,"-","Remove from Web","-","-","2018-09-13","Inactive"]
[null,196178,"Charger","Apple Cable","Random Order Lightning USB Cable 4ft Blk","Apple Lightning",14.99,14.99,"-","Remove from Web","-","-","2018-09-13","Inactive"]
[null,196179,"Charger","Android Wall","Random Order Quick Chg USB Wall Chrg 2.4","Universal no Apple",29.99,29.99,"-","Remove from Web","-","-","2018-06-14","Inactive"]
[null,196180,"Screen Protection","Glass","Random Order Sam GS6 Glass Scrn","Galaxy S6",39.99,39.99,"-","Remove from Web","-","-","2017-11-08","Inactive"]
[null,196181,"Charger","Apple Cable","Random Order Lightning USB Cable 4ft Wht","Apple Lightning",19.989999999999998,19.989999999999998,"-","Remove from Web","-","-","2018-06-14","Inactive"]
[null,196182,"Charger","Apple Cable","Random Order Lightning USB Cable 6ft Blk","Apple Lightning",24.99,24.99,"-","Remove from Web","-","-","2018-06-14","Inactive"]
[null,196183,"Screen Protection","Plastic","Random Order Sam GS6 Scrn Prot 3pk","Galaxy S6",4.8600000000000003,4.8600000000000003,"-","Remove from Web","-","-","2017-02-17","Inactive"]
[null,196187,"Charger","Apple Wall","Random Order Lightning USB Wall Chrg 2.4","Apple Lightning",29.99,29.99,"-","Remove from Web","-","-","2018-06-14","Inactive"]
[null,196188,"Charger","Android Cable","Random Order Micro USB Cable 4ft Blk","Universal no Apple",14.99,14.99,"-","Remove from Web","-","-","2018-06-14","Inactive"]
[null,196207,"Screen Protection","Glass","ZAGG SAM GS7 GLASS SCRN","Galaxy S7",44.99,44.99,"-","Remove from Web","-","-","2018-03-09","Inactive"]
[null,196208,"Entertainment","Virtual and Augmented Reality","Sam Gear VR Gen 2 Blk/Blu","Universal",39.99,39.99,"-","Remove from Web","-","-","2018-03-09","Inactive"]
[null,196226,"Screen Protection","Glass","LG Classic Random Order Glass Scrn","LG Classic",4.8600000000000003,4.8600000000000003,"-","Remove from Web","-","-","2017-02-17","Inactive"]
[null,196227,"Screen Protection","Glass","Moto G Play Random Order Glass Scrn","Moto G 4th gen Play",39.99,39.99,"-","Remove from Web","-","-","2018-03-09","Inactive"]
[null,196228,"Screen Protection","Glass","LG G Pad X II Random Order Glass Scrn","LG G Pad X II",29.99,29.99,"-","Remove from Web","-","-","2018-03-09","Inactive"]
[null,196230,"Case","Soft Case","LG G Pad X II BodyGlove Satin Folio Blue","LG G Pad X II",29.99,29.99,"-","Not On Flash","-","-","2017-08-10","Inactive"]
[null,196231,"Screen Protection","Glass","Random Order LG X Power Glass Scrn","LG X Power",39.99,39.99,"-","Remove from Web","-","-","2018-03-09","Inactive"]
[null,196240,"Case","Fashion Case","Galaxy S7 Case-Mate Karat Rose","Galaxy S7",49.99,49.99,"-","Remove from Web","-","-","2017-11-08","Inactive"]
[null,196241,"Case","Fashion Case","iPhone 6/6s Case-Mate Design Your Case","iPhone 6/6s/7/8",15.86,15.86,"-","Remove from Web","-","-","2017-02-17","Inactive"]
[null,196262,"Wearable","Health and Fitness","myKronoz ZeFit 2","Universal",39.99,39.99,"-","Remove from Web","-","-","2017-08-10","Inactive"]
[null,196263,"Charger","Other Cable","Random Order 3.5mm Aux Cable","Universal",14.99,14.99,"-","Remove from Web","-","-","2018-06-14","Inactive"]
[null,196264,"Charger","Dock Charger","TYLT Energi Desktop Charging Station","Universal",79.989999999999995,79.989999999999995,"-","Remove from Web","-","-","2017-11-08","Inactive"]
[null,196265,"Charger","Wireless Dock Charger","TYLT VU Blade Wireless Charger","Universal",49.99,49.99,"-","Remove from Web","-","-","2018-06-14","Inactive"]
[null,196266,"Audio","Wireless In-Ear","Jaybird Freedom Wireless Blk","Universal",99.99,99.99,"-","Not On Flash","-","-","2017-08-10","Inactive"]
[null,196276,"Audio","Wired On-Ear","eKids Star Wars Marshall Headphones","Universal",29.99,29.99,"-","Remove from Web","-","-","2017-11-08","Inactive"]
[null,196308,"Audio","Portable Speaker","JLab Crasher Mini Pnk","Universal",29.99,29.99,"-","Remove from Web","-","-","2018-06-14","Inactive"]
[null,196310,"Wearable","Health and Fitness","Withings Thermo","Universal",49.99,49.99,"-","Remove from Web","-","-","2017-06-01","Inactive"]
[null,196312,"Audio","Portable Speaker","eKids Despicable Me Minion BT Speaker","Universal",29.86,29.86,"-","Not On Flash","-",{"$f":"IF(I455=\"Status Changed\",\"Status Changed\",IF(K455=\"Status Changed\",\"Status Changed\",\"-\"))","v":"-"},"2017-08-10","Inactive"]
[null,196316,"Audio","Wired On-Ear","eKids Frozen Cool Tunes Headphones","Universal",24.99,24.99,"-","Remove from Web","-","-","2018-03-09","Inactive"]
[null,196318,"Audio","Wired On-Ear","eKids Minnie Bow-tastic Headphones","Universal",29.99,29.99,"-","Not On Flash","-","-","2017-08-10","Inactive"]
[null,196327,"Audio","Wired On-Ear","eKids Ultimate Spider-Man Headphones","Universal",29.99,29.99,"-","Not On Flash","-","-","2017-08-10","Inactive"]
[null,196328,"Entertainment","Game and Toy","Mad Catz  C.T.R.L.i Gamepad iOS","Universal",29.86,29.86,"-","Remove from Web","-","-","2017-08-10","Inactive"]
[null,196329,"Entertainment","Game and Toy","Mad Catz C.T.R.L. Gamepad Android","Universal",29.86,29.86,"-","Remove from Web","-","-","2017-08-10","Inactive"]
[null,196330,"Miscellaneous Accessory","Mount and Dock","Spigen Style Ring Blk","Universal",14.99,14.99,"-","Not On Flash","-","-","2017-08-10","Inactive"]
[null,196337,"Case","Hard Case","Galaxy S7 Spigen Slim Armor Gry","Galaxy S7",19.989999999999998,19.989999999999998,"-","Remove from Web","-","-","2018-03-09","Inactive"]
[null,196338,"Case","Fashion Case","iPhone 6/6s eKids Despicable Me Case","iPhone 6/6s/7/8",14.99,14.99,"-","Remove from Web","-","-","2017-06-01","Inactive"]
[null,196339,"Case","Fashion Case","iPhone 6/6s eKids Hello Kitty Case","iPhone 6/6s/7/8",14.99,14.99,"-","Remove from Web","-","-","2017-11-08","Inactive"]
[null,196340,"Case","Fashion Case","iPhone 6/6s eKids Stars Wars Case","iPhone 6/6s/7/8",9.99,9.99,"-","Remove from Web","-","-","2017-06-01","Inactive"]
[null,196341,"Case","Hard Case","J3 OtterBox Commuter Blk","Samsung J3",19.989999999999998,19.989999999999998,"-","Remove from Web","-","-","2017-11-08","Inactive"]
[null,196342,"Case","Fashion Case","iPhone 6/6s eKids Trolls Case","iPhone 6/6s/7/8",14.99,14.99,"-","Remove from Web","-","-","2017-06-01","Inactive"]
[null,196343,"Case","Hard Case","J3 OtterBox Commuter Teal","Samsung J3",19.989999999999998,19.989999999999998,"-","Remove from Web","-","-","2017-11-08","Inactive"]
[null,196344,"Case","Hard Case","LG Classic Ballistic Jewel Grn","LG Classic",9.99,9.99,"-","Not On Flash","-","-","2017-08-10","Inactive"]
[null,196345,"Case","Hard Case","LG Classic Ballistic TJ Blk","LG Classic",11.86,11.86,"-","Remove from Web","-","-","2017-02-17","Inactive"]
[null,196346,"Case","Clip Case","LG Classic Ballistic TJ Maxx Blk","LG Classic",16.86,16.86,"-","Remove from Web","-","-","2017-02-17","Inactive"]
[null,196348,"Case","Fashion Case","iPhone 6/6s LifeProof Belt Clip","iPhone 6/6s/7/8",19.989999999999998,19.989999999999998,"-","Remove from Web","-","-","2017-08-10","Inactive"]
[null,196350,"Case","Clip Case","GALAXY S7 EDGE OTTERBOX DEFENDER BLK","Galaxy S7 Edge",59.99,59.99,"-","Remove from Web","-","-","2018-03-09","Inactive"]
[null,196351,"Case","Hard Case","iPhone 6/6s Plus Spigen Slim Armor Gry","iPhone 6/6s/7/8 Plus",29.99,29.99,"-","Remove from Web","-","-","2017-11-08","Inactive"]
[null,196352,"Case","Hard Case","iPhone 6/6s Plus Spigen Slim Armor Rose","iPhone 6/6s/7/8 Plus",29.99,29.99,"-","Remove from Web","-","-","2017-08-10","Inactive"]
[null,196353,"Case","Hard Case","Galaxy S7 edge Spigen Slim Armor Blu","Galaxy S7 Edge",29.99,29.99,"-","Remove from Web","-","-","2017-11-08","Inactive"]
[null,196354,"Case","Hard Case","iPhone 6/6s Spigen Slim Armor Gry","iPhone 6/6s/7/8",14.99,14.99,"-","Remove from Web","-","-","2017-11-08","Inactive"]
[null,196355,"Case","Hard Case","iPhone 6/6s Spigen Slim Armor Rose","iPhone 6/6s/7/8",29.99,29.99,"-","Remove from Web","-","-","2017-11-08","Inactive"]
[null,196357,"Case","Tablet Case","LG G Pad X II Ballistic TJ Blk","LG G Pad X II",49.99,49.99,"-","Remove from Web","-","-","2018-03-09","Inactive"]
[null,196358,"Case","Hard Case","LG X Power Ballistic Jewel Grn","LG X Power",19.989999999999998,19.989999999999998,"-","Remove from Web","-","-","2017-08-10","Inactive"]
[null,196359,"Case","Hard Case","LG X Power Ballistic Jewel Gry","LG X Power",29.99,29.99,"-","Remove from Web","-","-","2017-08-10","Inactive"]
[null,196360,"Case","Hard Case","LG X Power Ballistic TJ Blk","LG X Power",39.99,39.99,"-","Remove from Web","-","-","2017-08-10","Inactive"]
[null,196361,"Case","Clip Case","LG X Power Ballistic TJ Maxx Blk","LG X Power",49.99,49.99,"-","Remove from Web","-","-","2017-08-10","Inactive"]
[null,196367,"Case","Hard Case","Moto G Play Ballistic Jewel Grn","Moto G 4th gen Play",19.989999999999998,19.989999999999998,"-","Remove from Web","-","-","2017-08-10","Inactive"]
[null,196368,"Case","Hard Case","Moto G Play Ballistic Jewel Gry","Moto G 4th gen Play",29.99,29.99,"-","Remove from Web","-","-","2017-06-01","Inactive"]
[null,196369,"Case","Hard Case","Moto G Play Ballistic TJ Blk","Moto G 4th gen Play",39.99,39.99,"-","Remove from Web","-","-","2017-08-10","Inactive"]
[null,196372,"Case","Clip Case","Moto G Play Ballistic TJ Maxx Blk","Moto G 4th gen Play",49.99,49.99,"-","Remove from Web","-","-","2017-08-10","Inactive"]
[null,196376,"Case","Fashion Case","Galaxy S7 Case-Mate Brilliance Champagne","Galaxy S7",79.989999999999995,79.989999999999995,"-","Remove from Web","-","-","2017-06-01","Inactive"]
[null,196427,"Memory","Memory Card","Gigastone iFlash Drive Max U2 16GB","Universal",29.99,29.99,"-","Remove from Web","-","-","2017-11-08","Inactive"]
[null,196428,"Memory","Memory Transfer","Gigastone Micro OTG Flash Drive 16GB","Universal",14.99,14.99,"-","Remove from Web","-","-","2017-11-08","Inactive"]
[null,196429,"Case","Tablet Case","LG G Pad X II Incipio Clarion Blk","LG G Pad X II",19.989999999999998,19.989999999999998,"-","Remove from Web","-","-","2018-03-09","Inactive"]
[null,196430,"Case","Tablet Case","LG G Pad X II Incipio Clarion Pnk","LG G Pad X II",29.99,29.99,"-","Remove from Web","-","-","2018-03-09","Inactive"]
[null,196431,"Case","Hard Case","LG Classic Incipio DualPro Pnk","LG Classic",12.86,12.86,"-","Remove from Web","-","-","2017-02-17","Inactive"]
[null,196432,"Case","Hard Case","LG X POWER INCIPIO DUALPRO PNK","LG X Power",29.99,29.99,"-","Remove from Web","-","-","2018-03-09","Inactive"]
[null,196433,"Case","Hard Case","Moto G Play Incipio DualPro Pnk","Moto G 4th gen Play",19.989999999999998,19.989999999999998,"-","Remove from Web","-","-","2017-11-08","Inactive"]
[null,196659,"Case","Waterproof Case","GS7 LifeProof Fre Gry","Galaxy S7",79.989999999999995,79.989999999999995,"-","Not On Flash","-","-","2017-08-10","Inactive"]
[null,196660,"Case","Waterproof Case","GS7 LifeProof Fre Purp","Galaxy S7",79.989999999999995,79.989999999999995,"-","Remove from Web","-","-","2017-08-10","Inactive"]
[null,196661,"Case","Folio Case","GS7 OtterBox Strada Blu","Galaxy S7",49.99,49.99,"-","Not On Flash","-","-","2017-08-10","Inactive"]
[null,196662,"Case","Hard Case","GS7 OtterBox Symmetry Gry","Galaxy S7",39.99,39.99,"-","Remove from Web","-","-","2017-08-10","Inactive"]
[null,196663,"Case","Hard Case","GS7 OtterBox Symmetry Pnk","Galaxy S7",39.99,39.99,"-","Remove from Web","-","-","2017-08-10","Inactive"]
[null,196664,"Case","Hard Case","iPhone 6/6s Plus OtterBox Symmetry Gry","iPhone 6/6s/7/8 Plus",49.99,49.99,"-","Remove from Web","-","-","2017-08-10","Inactive"]
[null,196665,"Case","Hard Case","iPhone 6/6s Plus OtterBox Symmetry Purp","iPhone 6/6s/7/8 Plus",49.99,49.99,"-","Remove from Web","-","-","2017-08-10","Inactive"]
[null,196688,"Case","Hard Case","iPhone 6/6s OtterBox Symmetry Blu","iPhone 6/6s/7/8",39.99,39.99,"-","Remove from Web","-","-","2017-08-10","Inactive"]
[null,196689,"Case","Hard Case","iPhone 6/6s OtterBox Symmetry Red","iPhone 6/6s/7/8",29.99,29.99,"-","Not On Flash","-","-","2017-08-10","Inactive"]
[null,196690,"Case","Waterproof Case","iPhone 6/6s Plus LifeProof Nuud Blu","iPhone 6/6s/7/8 Plus",99.99,99.99,"-","Remove from Web","-","-","2017-08-10","Inactive"]
[null,196691,"Case","Waterproof Case","iPhone 6/6s Plus LifeProof Nuud Wht","iPhone 6/6s/7/8 Plus",99.99,99.99,"-","Remove from Web","-","-","2017-08-10","Inactive"]
[null,196703,"Case","Waterproof Case","iPhone 6/6s LifeProof Fre Pnk","iPhone 6/6s/7/8",69.989999999999995,69.989999999999995,"-","Remove from Web","-","-","2017-08-10","Inactive"]
[null,196704,"Case","Waterproof Case","iPhone 6/6s LifeProof Nuud Blu","iPhone 6/6s/7/8",49.99,49.99,"-","Remove from Web","-","-","2017-06-01","Inactive"]
[null,196705,"Case","Waterproof Case","iPhone 6/6s LifeProof Nuud Grn","iPhone 6/6s/7/8",89.99,89.99,"-","Not On Flash","-","-","2017-08-10","Inactive"]
[null,196706,"Case","Waterproof Case","iPhone 6/6s LifeProof Nuud Pnk","iPhone 6/6s/7/8",49.99,49.99,"-","Remove from Web","-","-","2017-06-01","Inactive"]
[null,196840,"Case","Hard Case","IPHONE 7 OTTERBOX COMMUTER BLK","iPhone SE 2nd Gen",39.99,39.99,"-","Include on Web, Available","-","-","2023-03-31","Active"]
[null,196841,"Case","Fashion Case","iPhone 7 Incipio Design Flower Blu","iPhone 6/6s/7/8",34.99,34.99,"-","Remove from Web","-","-","2017-08-10","Inactive"]
[null,196842,"Case","Clip Case","IPHONE 7 OTTERBOX DEFENDER BLK","iPhone 6/6s/7/8",49.99,49.99,"-","Remove from Web","-","-","2020-10-19","Inactive"]
[null,196843,"Case","Hard Case","iPhone 7 Incipio DualPro Blu","iPhone 6/6s/7/8",29.99,29.99,"-","Not On Flash","-","-","2017-11-08","Inactive"]
[null,196844,"Case","Hard Case","iPhone 7 Incipio DualPro Pnk","iPhone 6/6s/7/8",29.99,29.99,"-","Remove from Web","-","-","2017-11-08","Inactive"]
[null,196845,"Case","Hard Case","iPhone 7 OtterBox Symmetry Stripes Pnk","iPhone 6/6s/7/8",39.99,39.99,"-","Remove from Web","-","-","2017-08-10","Inactive"]
[null,196846,"Case","Hard Case","iPhone 7 OtterBox Symmetry Red","iPhone 6/6s/7/8",39.99,39.99,"-","Remove from Web","-","-","2017-11-08","Inactive"]
[null,196861,"Case","Clip Case","IPHONE 7 PLUS OTTERBOX DEFENDER BLK","iPhone 6/6s/7/8 Plus",59.99,59.99,"-","Remove from Web","-","-","2019-11-01","Inactive"]
[null,196862,"Case","Clip Case","IPHONE 7 PLUS OTTERBOX DEFENDER GRN","iPhone 6/6s/7/8 Plus",59.99,59.99,"-","Remove from Web","-",{"$f":"IF(I519=\"Status Changed\",\"Status Changed\",IF(K519=\"Status Changed\",\"Status Changed\",\"-\"))","v":"-"},"2019-06-01","Inactive"]
[null,196863,"Case","Clip Case","IPHONE 7 PLUS OTTERBOX DEFENDER PURP","iPhone 6/6s/7/8 Plus",59.99,59.99,"-","Remove from Web","-","-","2019-11-01","Inactive"]
[null,196864,"Case","Hard Case","iPhone 7 plus OtterBox Symmetry Pnk","iPhone 6/6s/7/8 Plus",49.99,49.99,"-","Remove from Web","-","-","2017-08-10","Inactive"]
[null,196865,"Case","Hard Case","iPhone 7 plus OtterBox Symmetry Red","iPhone 6/6s/7/8 Plus",49.99,49.99,"-","Remove from Web","-","-","2017-11-08","Inactive"]
[null,196962,"Screen Protection","Glass","iPhone 7 plus Random Order Glass Scrn","iPhone 6/6s/7/8 Plus",29.99,29.99,"-","Remove from Web","-","-","2018-09-13","Inactive"]
[null,196963,"Case","Hard Case","iPhone 7 plus Spigen Slim Armor Blk","iPhone 6/6s/7/8 Plus",29.99,29.99,"-","Remove from Web","-","-","2018-03-09","Inactive"]
[null,196964,"Case","Soft Case","iPhone 7 plus tech21 Check Clr","iPhone 6/6s/7/8 Plus",39.99,39.99,"-","Remove from Web","-","-","2018-03-09","Inactive"]
[null,196965,"Case","Other Case","iPhone 7 plus tech21 Evo Wallet Blk","iPhone 6/6s/7/8 Plus",49.99,49.99,"-","Remove from Web","-","-","2018-03-09","Inactive"]
[null,196966,"Case","Soft Case","IPHONE 7 PLUS TECH21 CHECK BLK","iPhone 6/6s/7/8 Plus",39.99,39.99,"-","Remove from Web","-","-","2018-09-13","Inactive"]
[null,196969,"Case","Soft Case","iPhone 7 tech21 Check Clr","iPhone 6/6s/7/8",39.99,39.99,"-","Remove from Web","-","-","2017-11-08","Inactive"]
[null,196970,"Screen Protection","Glass","IPHONE 7 ZAGG GLASS SCRN PROT","iPhone 6/6s/7/8",44.99,44.99,"-","Remove from Web","-","-","2018-09-13","Inactive"]
[null,196971,"Case","Soft Case","IPHONE 7 TECH21 CHECK BLK","iPhone 6/6s/7/8",39.99,39.99,"-","Remove from Web","-","-","2019-03-07T01:00:00","Inactive"]
[null,196972,"Case","Folio Case","iPhone 7 plus Case-Mate Leathr Folio Blk","iPhone 6/6s/7/8 Plus",59.99,59.99,"-","Remove from Web","-","-","2017-08-10","Inactive"]
[null,196973,"Case","Soft Case","IPHONE 7 TECH21 EVO ELITE BLK","iPhone 6/6s/7/8",29.99,29.99,"-","Remove from Web","-","-","2018-06-14","Inactive"]
[null,196974,"Case","Soft Case","iPhone 7 tech21 Evo Elite Pnk","iPhone 6/6s/7/8",24.99,24.99,"-","Remove from Web","-","-","2018-09-13","Inactive"]
[null,196975,"Case","Hard Case","iPhone 7 plus Incipio DualPro Clr Blu","iPhone 6/6s/7/8 Plus",29.99,29.99,"-","Remove from Web","-","-","2017-08-10","Inactive"]
[null,196976,"Case","Other Case","iPhone 7 tech21 Evo Wallet Blk","iPhone 6/6s/7/8",29.99,29.99,"-","Remove from Web","-","-","2017-11-08","Inactive"]
[null,196977,"Case","Clip Case","IPHONE 7 OTTERBOX DEFENDER CAMO","iPhone 6/6s/7/8",59.99,59.99,"-","Remove from Web","-","-","2019-11-01","Inactive"]
[null,196978,"Case","Fashion Case","iPhone 7 Case-Mate Brillance Champagne","iPhone 6/6s/7/8",79.989999999999995,79.989999999999995,"-","Remove from Web","-","-","2017-08-10","Inactive"]
[null,196979,"Case","Hard Case","iPhone 7 Case-Mate Naked Tough Clr","iPhone 6/6s/7/8",34.99,34.99,"-","Remove from Web","-","-","2017-08-10","Inactive"]
[null,196980,"Case","Fashion Case","iPhone 7 Case-Mate Karat Pnk","iPhone 6/6s/7/8",49.99,49.99,"-","Remove from Web","-","-","2017-11-08","Inactive"]
[null,196981,"Case","Folio Case","iPhone 7 Case-Mate Leather Folio Blk","iPhone 6/6s/7/8",59.99,59.99,"-","Remove from Web","-","-","2017-08-10","Inactive"]
[null,196982,"Case","Waterproof Case","iPhone 7 LifeProof Fre Purp","iPhone 6/6s/7/8",89.99,89.99,"-","Remove from Web","-","-","2017-11-08","Inactive"]
[null,196983,"Case","Waterproof Case","iPhone 7 plus LifeProof Fre Purp","iPhone 6/6s/7/8 Plus",89.99,89.99,"-","Remove from Web","-","-","2018-03-09","Inactive"]
[null,196987,"Case","Clip Case","IPHONE 7 OTTERBOX DEFENDER PURP","iPhone 6/6s/7/8",34.99,34.99,"-","Remove from Web","-","-","2020-10-19","Inactive"]
[null,196988,"Case","Waterproof Case","iPhone 7 LifeProof Fre Blk","iPhone 6/6s/7/8",49.99,49.99,"-","Remove from Web","-","-","2018-03-09","Inactive"]
[null,196989,"Case","Waterproof Case","iPhone 7 LifeProof Fre Blu","iPhone 6/6s/7/8",49.99,49.99,"-","Remove from Web","-","-","2018-03-09","Inactive"]
[null,196990,"Case","Hard Case","IPHONE 7 OTTERBOX SYMMETRY CLR","iPhone 6/6s/7/8",29.99,29.99,"-","Remove from Web","-","-","2018-09-13","Inactive"]
[null,196991,"Screen Protection","Glass","iPhone 7 Random Order Glass Scrn Prot","iPhone 6/6s/7/8",29.99,29.99,"-","Remove from Web","-","-","2018-06-14","Inactive"]
[null,196992,"Case","Hard Case","iPhone 7 OtterBox Symmetry Polka Blu","iPhone 6/6s/7/8",39.99,39.99,"-","Remove from Web","-","-","2017-08-10","Inactive"]
[null,196993,"Case","Hard Case","iPhone 7 Spigen Slim Armor Gold","iPhone 6/6s/7/8",24.99,24.99,"-","Remove from Web","-","-","2017-11-08","Inactive"]
[null,196994,"Case","Hard Case","iPhone 7 Spigen Slim Armor Gry","iPhone 6/6s/7/8",29.99,29.99,"-","Remove from Web","-","-","2018-03-09","Inactive"]
[null,196997,"Case","Waterproof Case","iPhone 7 plus LifeProof Fre Blk","iPhone 6/6s/7/8 Plus",69.989999999999995,69.989999999999995,"-","Remove from Web","-","-","2018-06-14","Inactive"]
[null,196998,"Case","Hard Case","IPHONE 7 PLUS OTTERBOX COMMUTER BLK","iPhone 6/6s/7/8 Plus",49.99,49.99,"-","Remove from Web","-","-","2019-11-01","Inactive"]
[null,197007,"Screen Protection","Glass","IPHONE 7 PLUS ZAGG GLASS SCRN PROT","iPhone 6/6s/7/8 Plus",49.99,49.99,"-","Remove from Web","-","-","2018-09-13","Inactive"]
[null,197008,"Case","Soft Case","iPhone 7 plus tech21 Elite Pnk","iPhone 6/6s/7/8 Plus",49.99,49.99,"-","Remove from Web","-","-","2018-03-09","Inactive"]
[null,197009,"Charger","Other Cable","Scosche Lightning to 3.5mm Audio Adaptor","Universal",39.99,39.99,"-","Remove from Web","-","-","2017-11-08","Inactive"]
[null,197477,"Case","Hard Case","LG V20 Ballistic Jewel Case Pnk","LG V20",19.989999999999998,19.989999999999998,"-","Remove from Web","-","-","2017-08-10","Inactive"]
[null,197478,"Case","Clip Case","LG V20 OtterBox Defender Blk","LG V20",39.99,39.99,"-","Remove from Web","-","-","2018-03-09","Inactive"]
[null,197479,"Screen Protection","Glass","LG V20 Random Order Glass Screen Prot","LG V20",29.99,29.99,"-","Remove from Web","-","-","2018-03-09","Inactive"]
[null,197480,"Case","Tablet Case","ZTE ZPAD PureGear Folio Blk","ZTE ZPAD",39.99,39.99,"-","Remove from Web","-","-","2018-06-14","Inactive"]
[null,197481,"Case","Tablet Case","ZTE ZPAD PureGear Folio Blu","ZTE ZPAD",49.99,49.99,"-","Remove from Web","-","-","2017-11-08","Inactive"]
[null,197482,"Case","Tablet Case","ZTE ZPAD PureGear Folio Pnk","ZTE ZPAD",49.99,49.99,"-","Remove from Web","-","-","2017-11-08","Inactive"]
[null,197487,"Case","Soft Case","LG V20 tech21 Evo Check Clr","LG V20",19.989999999999998,19.989999999999998,"-","Remove from Web","-","-","2018-03-09","Inactive"]
[null,197488,"Case","Soft Case","LG V20 TECH21 EVO BLK","LG V20",19.989999999999998,19.989999999999998,"-","Remove from Web","-","-","2018-03-09","Inactive"]
[null,197489,"Screen Protection","Glass","ZTE ZPAD Random Order Glass Screen Prot","ZTE ZPAD",29.99,29.99,"-","Remove from Web","-","-","2018-06-14","Inactive"]
[null,197582,"Wearable","Android Wearable","Sam Gear S3 Frontier","Universal",179.99,179.99,"-","Remove from Web","-","-","2020-08-25","Inactive"]
[null,197583,"Wearable","Android Wearable","Sam Gear S3 Classic","Universal",179.99,179.99,"-","Remove from Web","-","-","2020-08-25","Inactive"]
[null,197584,"Case","Case Accessories","Ventev Stylus Pro","Universal",7.86,7.86,"-","Remove from Web","-","-","2017-11-08","Inactive"]
[null,197585,"Case","Case Accessories","Ventev Stylus","Universal",7.99,7.99,"-","Remove from Web","-","-","2017-11-08","Inactive"]
[null,197586,"Charger","Mounts","SCOSCHE STUCKUP WINDOW/VENT MOUNT","Universal",24.99,24.99,"-","Remove from Web","-","-","2019-06-01","Inactive"]
[null,197626,"Audio","Portable Speaker","JBL CLIP 2 BLK","Universal",39.99,39.99,"-","Remove from Web","-","-","2018-06-14","Inactive"]
[null,197631,"Entertainment","Entertainment Camera","Sam Gear 360 Accessory Starter Kit","Universal",29.99,29.99,"-","Remove from Web","-","-","2018-03-09","Inactive"]
[null,197632,"Connected Home","Sensor and Detector","Sam SmartThings Water Leak Sensor","Universal",29.99,29.99,"-","Remove from Web","-","-","2018-06-14","Inactive"]
[null,197633,"Connected Home","Sensor and Detector","Sam SmartThings Motion Sensor","Universal",29.99,29.99,"-","Remove from Web","-","-","2018-06-14","Inactive"]
[null,197634,"Connected Home","Sensor and Detector","Sam SmartThings Arrival Sensor","Universal",29.99,29.99,"-","Remove from Web","-","-","2018-06-14","Inactive"]
[null,197635,"Connected Home","Hub","Sam SmartThings Hub","Universal",79.989999999999995,79.989999999999995,"-","Remove from Web","-","-","2018-06-14","Inactive"]
[null,197636,"Audio","Wireless Over-Ear","Beats Studio 2 Wireless Over-Ear Blk","Universal",249.99,249.99,"-","Remove from Web","-","-","2018-03-09","Inactive"]
[null,197639,"Entertainment","Virtual and Augmented Reality","Sanho HYPERVR","Universal",29.99,29.99,"-","Remove from Web","-","-","2017-11-08","Inactive"]
[null,197640,"Case","Other Case","NITE IZE DEVICE HOLSTER XL BLK","Universal",24.99,24.99,"-","Remove from Web","-","-","2018-03-09","Inactive"]
[null,197641,"Wearable","Health and Fitness","Pebble 2 Heart Rate Wht","Universal",64.989999999999995,64.989999999999995,"-","Remove from Web","-","-","2017-06-01","Inactive"]
[null,197642,"Wearable","Health and Fitness","Pebble 2 Heart Rate Blk","Universal",64.989999999999995,64.989999999999995,"-","Remove from Web","-","-","2017-06-01","Inactive"]
[null,197643,"Audio","Wireless Sport","Plantronics BackBeat Fit Blk","Universal",99.99,99.99,"-","Remove from Web","-","-","2017-11-08","Inactive"]
[null,197647,"Audio","Portable Speaker","JBL Clip 2 Blu","Universal",39.99,39.99,"-","Remove from Web","-","-","2018-06-14","Inactive"]
[null,197648,"Audio","Portable Speaker","JBL CHARGE 3 BLK","Universal",99.99,99.99,"-","Remove from Web","-",{"$f":"IF(I583=\"Status Changed\",\"Status Changed\",IF(K583=\"Status Changed\",\"Status Changed\",\"-\"))","v":"-"},"2019-06-01","Inactive"]
[null,197649,"Audio","Wireless Neck","LG Tone Platinum 1100 Blk","Universal",169.99,169.99,"-","Remove from Web","-","-","2017-11-08","Inactive"]
[null,197650,"Audio","Wireless Neck","LG Tone Infinim 910 Blk","Universal",119.99,119.99,"-","Remove from Web","-","-","2017-11-08","Inactive"]
[null,197651,"Audio","Home Entertainment","Sam 360 R1 BT Speaker","Universal",129.99,129.99,"-","Remove from Web","-","-","2017-11-08","Inactive"]
[null,197652,"Memory","Memory Card","Sam Micro SD Evo Memory Card 256GB","Universal",129.99,129.99,"-","Remove from Web","-","-","2018-03-09","Inactive"]
[null,197653,"Audio","Wired On-Ear","Sam Level On Wireless Blk","Universal",149.99,149.99,"-","Remove from Web","-","-","2017-11-08","Inactive"]
[null,197654,"Audio","Wired In-Ear","Sam Active In-Ear Blk","Universal",19.989999999999998,19.989999999999998,"-","Remove from Web","-","-","2018-09-13","Inactive"]
[null,197655,"Audio","Wired In-Ear","Sam Active In-Ear Red","Universal",24.99,24.99,"-","Remove from Web","-","-","2017-11-08","Inactive"]
[null,197666,"Wearable","Health and Fitness","Gabba Goods Waist Band Fitness Belt Blk","Universal",19.989999999999998,19.989999999999998,"-","Remove from Web","-","-","2017-11-08","Inactive"]
[null,197667,"Audio","Wireless Car","BLUE PARROT B450 BT HEADSET","Universal",99.99,99.99,"-","Remove from Web","-","-","2019-03-07","Inactive"]
[null,197668,"Connected Home","Outdoor Camera","GOOGLE NEST CAM OUTDOOR","Universal",199.99,199.99,"-","Remove from Web","-","-","2022-02-18","Inactive"]
[null,197669,"Entertainment","Drone","Parrot Swing Minidrone","Universal",99.99,99.99,"-","Remove from Web","-","-","2018-06-14","Inactive"]
[null,197670,"Entertainment","Drone","Parrot Mambo Minidrone","Universal",119.99,119.99,"-","Remove from Web","-","-","2018-03-09","Inactive"]
[null,197671,"Audio","Portable Speaker","UE MEGA BOOM BLK","Universal",249.99,249.99,"-","Remove from Web","-","-","2018-06-14","Inactive"]
[null,197672,"Audio","Wired Sport","MEE Audio M7P Sports In-Ear Blk","Universal",24.99,24.99,"-","Remove from Web","-","-","2017-08-10","Inactive"]
[null,197673,"Charger","Apple Cable","Random Order Micro/Lightning Duo Cable","Universal",9.99,9.99,"-","Remove from Web","-","-","2018-03-09","Inactive"]
[null,197674,"Charger","Android Cable","Random Order Type C/Micro Duo Cable","Universal",12.99,12.99,"-","Remove from Web","-","-","2018-06-14","Inactive"]
[null,197675,"Case","Fashion Case","iPhone 7 eKids Pokemon Case Blk","iPhone 6/6s/7/8",12.99,12.99,"-","Not On Flash","-","-","2017-08-10","Inactive"]
[null,197676,"Screen Protection","Cleaner","Whoosh! Screen Shine","Universal",7.99,7.99,"-","Remove from Web","-","-","2018-03-09","Inactive"]
[null,197677,"Wearable","Health and Fitness","Belkin Sport-Fit Armband","Universal",24.99,24.99,"-","Remove from Web","-","-","2018-03-09","Inactive"]
[null,197678,"Charger","Android Portable Charger","Scosche Magnetic Phone Chgr Micro","Universal",24.99,24.99,"-","Remove from Web","-","-","2017-11-08","Inactive"]
[null,197679,"Charger","ApplePortable Charger","Scosche Magnetic Phone Chgr Lightning","Universal",39.99,39.99,"-","Remove from Web","-","-","2017-11-08","Inactive"]
[null,197680,"Audio","Wired In-Ear","eKids Pokemon Over-The-Ear Headphones","Universal",29.99,29.99,"-","Remove from Web","-","-","2017-11-08","Inactive"]
[null,198004,"Audio","True Wireless","APL AirPods","Universal",159,159,"-","Remove from Web","-","-","2019-06-01","Inactive"]
[null,198006,"Audio","Wireless On-Ear","APL Beats Solo3 Wireless On-Ear Blk","Universal",99.99,99.99,"-","Remove from Web","-","-","2020-08-25","Inactive"]
[null,198016,"Audio","Wireless In-Ear","APL BeatsX Wireless Wht","Universal",149.99,149.99,"-","Remove from Web","-","-","2018-09-13","Inactive"]
[null,198026,"Audio","Wireless On-Ear","APL Beats Solo3 Wireless On-Ear RoseGld","Universal",299.99,299.99,"-","Remove from Web","-","-","2019-09-01","Inactive"]
[null,198031,"Wearable","Apple Wearable","APL Watch Pnk/Midnight Blu Nylon 38mm","Apple Watch",49,49,"-","Remove from Web","-","-","2017-11-08","Inactive"]
[null,198033,"Wearable","Apple Wearable","APL Watch S1 RoseGld Alum Pnk Sport 38mm","Apple Watch",249,249,"-","Remove from Web","-","-","2018-03-09","Inactive"]
[null,198034,"Wearable","Apple Wearable","APL Watch S1 Sil Alum Wht Sport 38mm","Apple Watch",200,200,"-","Remove from Web","-","-","2019-03-07T01:00:00","Inactive"]
[null,198049,"Audio","Wireless In-Ear","APL BeatsX Wireless Blk","Universal",149.99,149.99,"-","Remove from Web","-","-","2018-09-13","Inactive"]
[null,198052,"Wearable","Wearable Accessory","APL Watch Band Blk Nylon 42mm","Apple Watch",49,49,"-","Remove from Web","-","-","2017-11-08","Inactive"]
[null,198053,"Wearable","Wearable Accessory","APL Watch Pearl Nylon 42mm","Apple Watch",49,49,"-","Remove from Web","-","-","2017-11-08","Inactive"]
[null,198054,"Wearable","Apple Wearable","APL Watch S2 Silver Alum Wht Sport 42mm","Apple Watch",299,299,"-","Remove from Web","-","-","2018-03-09","Inactive"]
[null,198055,"Wearable","Apple Wearable","APL Watch S2 Spc Gry Alum Blk Sprt 42mm","Apple Watch",299,299,"-","Remove from Web","-","-","2018-03-09","Inactive"]
[null,198057,"Audio","Wired On-Ear","APL Powerbeats3 Wireless Blk","Universal",199.99,199.99,"-","Remove from Web","-","-","2018-09-13","Inactive"]
[null,198058,"Audio","Wired On-Ear","APL Powerbeats3 Wireless Blu","Universal",199.99,199.99,"-","Remove from Web","-","-","2018-06-14","Inactive"]
[null,198060,"Wearable","Apple Wearable","APL Watch S1 Sil Alum Wht Sport 42mm","Apple Watch",220,220,"-","Remove from Web","-","-","2019-03-07T01:00:00","Inactive"]
[null,198062,"Wearable","Apple Wearable","APL Watch S2 Silver Alum Wht Sport 38mm","Apple Watch",269,269,"-","Remove from Web","-","-","2018-03-09","Inactive"]
[null,198063,"Wearable","Apple Wearable","APL Watch S1 Spc Gry Alum Blk Sport 38mm","Apple Watch",200,200,"-","Remove from Web","-","-","2019-03-07T01:00:00","Inactive"]
[null,198064,"Wearable","Apple Wearable","APL Watch S2 Spc Gry Alum Blk Sprt 38mm","Apple Watch",269,269,"-","Remove from Web","-","-","2018-03-09","Inactive"]
[null,198065,"Wearable","Apple Wearable","APL Watch S1 Spc Gry Alum Blk Sport 42mm","Apple Watch",220,220,"-","Remove from Web","-","-","2019-03-07T01:00:00","Inactive"]
[null,198066,"Wearable","Apple Wearable","APL Watch S2 RoseGld Alum Pnk Spt 38mm","Apple Watch",269,269,"-","Remove from Web","-","-","2018-03-09","Inactive"]
[null,199393,"Screen Protection","Glass","LG K8 2017 Random Order Glass Scrn Prot","LG K8 2017",39.99,39.99,"-","Remove from Web","-","-","2018-09-13","Inactive"]
[null,199394,"Case","Charger Case","iPhone 7 mophie Juice pack air Blk","iPhone 6/6s/7/8",99.99,99.99,"-","Remove from Web","-","-","2017-11-08","Inactive"]
[null,199395,"Case","Charger Case","iPhone 7 Plus mophie Juice pack air Blk","iPhone 6/6s/7/8 Plus",99.99,99.99,"-","Remove from Web","-","-","2017-11-08","Inactive"]
[null,199478,"Case","Soft Case","LG K8 2017 TECH21 EVO CHECK BLK","LG K8 2017",19.989999999999998,19.989999999999998,"-","Remove from Web","-","-","2018-09-13","Inactive"]
[null,199479,"Case","Soft Case","LG K8 2017 tech21 Evo Check Wht","LG K8 2017",29.99,29.99,"-","Remove from Web","-","-","2018-06-14","Inactive"]
[null,199480,"Case","Hard Case","LG K8 2017 OTTERBOX ACHIEVER BLK","LG K8 2017",29.99,29.99,"-","Remove from Web","-","-","2018-09-13","Inactive"]
[null,199481,"Case","Hard Case","LG K8 2017 OtterBox Achiever Purp","LG K8 2017",29.99,29.99,"-","Remove from Web","-","-","2018-09-13","Inactive"]
[null,199920,"Case","Case Accessories","POPSOCKET PEACE SKY BLU/BLK","Universal",9.99,9.99,"-","Remove from Web","-","-","2019-06-01","Inactive"]
[null,199921,"Audio","Wired In-Ear","JLab JBuddies Kids Headphones Purp","Universal",9.99,9.99,"-","Remove from Web","-","-","2018-06-14","Inactive"]
[null,199922,"Audio","Wired In-Ear","JLab JBuddies Kids Headphones Blu","Universal",9.99,9.99,"-","Remove from Web","-","-","2018-06-14","Inactive"]
[null,199938,"Connected Home","Indoor Camera","Motorola Focus 86 WiFi HD Camera","Universal",69.989999999999995,69.989999999999995,"-","Remove from Web","-","-","2018-06-14","Inactive"]
[null,199939,"Case","Waterproof Case","iPhone 7 LifeProof NUUD Purp","iPhone 6/6s/7/8",99.99,99.99,"-","Remove from Web","-","-","2017-11-08","Inactive"]
[null,199940,"Case","Tablet Case","Belkin Universal Folio 7-8in Purp","Universal",19.989999999999998,19.989999999999998,"-","Remove from Web","-","-","2018-09-13","Inactive"]
[null,199941,"Case","Waterproof Case","iPhone 7 LifeProof NUUD Grn","iPhone 6/6s/7/8",59.99,59.99,"-","Remove from Web","-","-","2018-03-09","Inactive"]
[null,199942,"Audio","Wired Sport","Yurbuds Inspire 500 Teal","Universal",59.99,59.99,"-","Remove from Web","-","-","2018-03-09","Inactive"]
[null,199943,"Case","Tablet Case","Belkin Universal Folio 7-8in Blk","Universal",19.989999999999998,19.989999999999998,"-","Remove from Web","-","-","2018-09-13","Inactive"]
[null,199944,"Case","Waterproof Case","iPhone 7 plus LifeProof NUUD Purp","iPhone 6/6s/7/8 Plus",99.99,99.99,"-","Remove from Web","-","-","2017-11-08","Inactive"]
[null,199945,"Audio","Wired In-Ear","JBL E15 Wired Earbuds Blk","Universal",29.99,29.99,"-","Remove from Web","-","-","2018-06-14","Inactive"]
[null,199946,"Case","Waterproof Case","iPhone 7 plus LifeProof NUUD Grn","iPhone 6/6s/7/8 Plus",49.99,49.99,"-","Remove from Web","-","-","2018-03-09","Inactive"]
[null,199947,"Connected Home","Home Phone","VTECH 3 HANDSET ANSWERING SYSTEM CALL ID","Universal",49.99,49.99,"-","Remove from Web","-","-","2019-01-01","Inactive"]
[null,199948,"Connected Home","Thermostat","HONEYWELL LYRIC T5 SMART THERMOSTAT","Universal",149.99,149.99,"-","Remove from Web","-","-","2019-06-01","Inactive"]
[null,199949,"Audio","Wireless Car","LG Tone Active HBS-A80 BT Blk","Universal",89.99,89.99,"-","Remove from Web","-",{"$f":"IF(I647=\"Status Changed\",\"Status Changed\",IF(K647=\"Status Changed\",\"Status Changed\",\"-\"))","v":"-"},"2018-03-09","Inactive"]
[null,199950,"Memory","Memory Card","PNY Elite Micro SD Card 128GB","Universal",59.99,59.99,"-","Remove from Web","-","-","2018-03-09","Inactive"]
[null,199951,"Connected Home","Networking","PCTEL Omnidirection Antenna SMA Male","Universal",19.989999999999998,19.989999999999998,"-","Remove from Web","-","-","2019-06-01","Inactive","*Leave off web; open PO for 1-time business order"]
[null,199957,"Case","Tablet Case","Belkin Universal Folio 10in Blk","Universal",24.99,24.99,"-","Remove from Web","-","-","2018-09-13","Inactive"]
[null,199958,"Case","Keyboard Case","Logitech K480 Multi-Device BT Keyboard","Universal",19.989999999999998,19.989999999999998,"-","Remove from Web","-","-","2018-06-14","Inactive"]
[null,199959,"Charger","Universal Portable Charger","mophie Power Capsule","Universal",24.99,24.99,"-","Remove from Web","-","-","2017-11-08","Inactive"]
[null,199960,"Audio","Other Audio","Griffin iTrip Clip BT Adpt","Universal",14.99,14.99,"-","Remove from Web","-","-","2018-03-09","Inactive"]
[null,199961,"Case","Case Accessories","POPSOCKET BLK","Universal",9.99,9.99,"-","Remove from Web","-","-","2019-06-01","Inactive"]
[null,199962,"Audio","Wired Sport","Yurbuds Inspire 500 Blk","Universal",24.99,24.99,"-","Remove from Web","-","-","2018-06-14","Inactive"]
[null,200200,"Case","Hard Case","Moto G 4th Play Incipio Octane Wht/Blu","Moto G 4th gen Play",24.99,24.99,"-","Remove from Web","-","-","2017-11-08","Inactive"]
[null,200201,"Case","Hard Case","Moto G 4th Play Incipio Octane Wht/Blk","Moto G 4th gen Play",24.99,24.99,"-","Remove from Web","-","-","2017-11-08","Inactive"]
[null,200202,"Case","Hard Case","Moto G 4th Play Incipio DualPro Blk","Moto G 4th gen Play",19.989999999999998,19.989999999999998,"-","Remove from Web","-","-","2018-03-09","Inactive"]
[null,200203,"Case","Charger Case","LG X POWER DUALPRO BLK","LG X Power",29.99,29.99,"-","Remove from Web","-","-","2018-03-09","Inactive"]
[null,200553,"Case","Waterproof Case","GALAXY S8 LIFEPROOF FRE TEAL","Galaxy S8",79.989999999999995,79.989999999999995,"-","Remove from Web","-","-","2018-06-14","Inactive"]
[null,200554,"Case","Charger Case","GALAXY S8 MOPHIE JUICE PACK BLK","Galaxy S8",99.99,99.99,"-","Remove from Web","-","-","2018-03-09","Inactive"]
[null,200555,"Screen Protection","Plastic","Galaxy S8 Random Order TPU Scn Prot","Galaxy S8",9.99,9.99,"-","Remove from Web","-","-","2018-06-14","Inactive"]
[null,200556,"Case","Other Case","Galaxy S8 SAM S-View Cover Blk","Galaxy S8",59.99,59.99,"-","Remove from Web","-","-","2018-03-09","Inactive"]
[null,200594,"Case","Soft Case","Galaxy S8 Speck Presido Teal","Galaxy S8",19.989999999999998,19.989999999999998,"-","Remove from Web","-","-","2018-06-14","Inactive"]
[null,200629,"Case","Fashion Case","Galaxy S8 Case-Mate Brilliance Champagne","Galaxy S8",69.989999999999995,69.989999999999995,"-","Remove from Web","-","-","2018-03-09","Inactive"]
[null,200630,"Case","Fashion Case","Galaxy S8 Case-Mate Karat Rose Gold","Galaxy S8",29.99,29.99,"-","Remove from Web","-","-","2018-06-14","Inactive"]
[null,200631,"Case","Other Case","Galaxy S8 Plus Case-Mate Wrist Folio Blk","Galaxy S8+",59.99,59.99,"-","Remove from Web","-","-","2017-11-08","Inactive"]
[null,200632,"Case","Other Case","Galaxy S8 Case-Mate Wrist Folio Blk","Galaxy S8",49.99,49.99,"-","Remove from Web","-","-","2018-03-09","Inactive"]
[null,200633,"Case","Waterproof Case","GALAXY S8 LIFEPROOF FRE BLK","Galaxy S8",89.99,89.99,"-","Remove from Web","-","-","2019-06-01","Inactive"]
[null,200634,"Case","Waterproof Case","Galaxy S8 Plus LifeProof Fre Blk","Galaxy S8+",69.989999999999995,69.989999999999995,"-","Remove from Web","-","-","2018-06-14","Inactive"]
[null,200635,"Case","Waterproof Case","Galaxy S8 Plus LifeProof Fre Pnk","Galaxy S8+",59.99,59.99,"-","Remove from Web","-","-","2018-06-14","Inactive"]
[null,200636,"Case","Waterproof Case","GALAXY S8 LIFEPROOF FRE PNK","Galaxy S8",79.989999999999995,79.989999999999995,"-","Remove from Web","-","-","2018-09-13","Inactive"]
[null,200660,"Case","Soft Case","GALAXY S8 TECH21 EVO CHECK ROSE","Galaxy S8",39.99,39.99,"-","Remove from Web","-","-","2018-09-13","Inactive"]
[null,200661,"Case","Other Case","Galaxy S8 Tech21 Evo Check Wallet Blk","Galaxy S8",39.99,39.99,"-","Remove from Web","-","-","2018-06-14","Inactive"]
[null,200662,"Case","Soft Case","GALAXY S8 TECH21 EVO CHECK WHT","Galaxy S8",39.99,39.99,"-","Remove from Web","-","-","2018-09-13","Inactive"]
[null,200663,"Screen Protection","Glass","GALAXY S8 ZAGG GLASS SCRN PROT","Galaxy S8",49.99,49.99,"-","Remove from Web","-","-","2019-06-01","Inactive","*EOL removed via EPC sub"]
[null,200664,"Case","Other Case","Galaxy S8 Plus Case-Mate Karat Rose Gold","Galaxy S8+",19.989999999999998,19.989999999999998,"-","Remove from Web","-","-","2018-06-14","Inactive"]
[null,200665,"Case","Soft Case","Galaxy S8 Plus Speck Presidio Grip Blu","Galaxy S8+",44.99,44.99,"-","Remove from Web","-","-","2017-11-08","Inactive"]
[null,200666,"Case","Hard Case","GALAXY S8 PLUS SPIGEN SLIM ARMOR GRY","Galaxy S8+",34.99,34.99,"-","Remove from Web","-","-","2018-03-09","Inactive"]
[null,200669,"Case","Clip Case","GALAXY S8 OTTERBOX DEFENDER PURP","Galaxy S8",49.99,49.99,"-","Remove from Web","-","-","2018-11-08","Inactive"]
[null,200670,"Case","Hard Case","Galaxy S8 OtterBox Symmetry Blu","Galaxy S8",39.99,39.99,"-","Remove from Web","-","-","2018-06-14","Inactive"]
[null,200671,"Case","Clip Case","Galaxy S8 Plus OtterBox Defender Blk","Galaxy S8+",39.99,39.99,"-","Remove from Web","-","-","2018-09-13","Inactive"]
[null,200672,"Case","Hard Case","GALAXY S8 OTTERBOX SYMMETRY CLR","Galaxy S8",39.99,39.99,"-","Remove from Web","-","-","2018-09-13","Inactive"]
[null,200673,"Case","Clip Case","Galaxy S8 Plus OtterBox Defender Gry","Galaxy S8+",49.99,49.99,"-","Remove from Web","-","-","2018-06-14","Inactive"]
[null,200674,"Case","Hard Case","Galaxy S8 Plus OtterBox Symmetry Clr","Galaxy S8+",24.99,24.99,"-","Remove from Web","-","-","2018-06-14","Inactive"]
[null,200675,"Case","Hard Case","GALAXY S8 OTTERBOX SYMMETRY GLITTER","Galaxy S8",39.99,39.99,"-","Remove from Web","-","-","2019-01-31T23:00:00","Inactive"]
[null,200676,"Case","Hard Case","GALAXY S8 OTTERBOX SYMMETRY ROSE GOLD","Galaxy S8",44.99,44.99,"-","Remove from Web","-","-","2018-09-13","Inactive"]
[null,200717,"Case","Hard Case","GALAXY S8 OTTERBOX COMMUTER BLK","Galaxy S8",39.99,39.99,"-","Remove from Web","-","-","2019-06-01","Inactive"]
[null,200719,"Case","Clip Case","GALAXY S8 OTTERBOX DEFENDER BLK","Galaxy S8",49.99,49.99,"-","Remove from Web","-","-","2019-06-01","Inactive"]
[null,200720,"Case","Clip Case","GALAXY S8 OTTERBOX DEFENDER CAMO","Galaxy S8",59.99,59.99,"-","Remove from Web","-","-","2019-01-31T23:00:00","Inactive"]
[null,200721,"Case","Hard Case","Galaxy S8 Spigen Slim Armor Gry","Galaxy S8",29.99,29.99,"-","Remove from Web","-","-","2018-06-14","Inactive"]
[null,200722,"Case","Soft Case","GALAXY S8 TECH21 EVO CHECK BLK","Galaxy S8",39.99,39.99,"-","Remove from Web","-","-","2019-06-01","Inactive"]
[null,200723,"Case","Fashion Case","LG G6 Case-Mate Waterfall Rose Gold","LG G6",29.99,29.99,"-","Remove from Web","-","-","2018-03-09","Inactive"]
[null,200724,"Case","Clip Case","LG G6 OtterBox Defender Blk","LG G6",39.99,39.99,"-","Remove from Web","-","-","2018-12-31T23:00:00","Inactive"]
[null,200725,"Case","Clip Case","LG G6 OtterBox Defender Gry","LG G6",49.99,49.99,"-","Remove from Web","-","-","2018-06-14","Inactive"]
[null,200726,"Screen Protection","Glass","LG K3 2017 Random Order Glass Scrn Prot","LG K3 2017",9.99,9.99,"-","Remove from Web","-","-","2018-11-08","Inactive"]
[null,200727,"Case","Charger Case","GALAXY S8 PLUS MOPHIE JUICE PACK BLK","Galaxy S8+",99.99,99.99,"-","Remove from Web","-","-","2018-03-09","Inactive"]
[null,200728,"Case","Hard Case","Galaxy S8 Plus OtterBox Commuter Purp","Galaxy S8+",39.99,39.99,"-","Remove from Web","-","-","2018-06-14","Inactive"]
[null,200737,"Screen Protection","Plastic","Galaxy S8 Plus Random Order TPU Scn Prot","Galaxy S8+",9.99,9.99,"-","Remove from Web","-","-","2018-03-09","Inactive"]
[null,200738,"Case","Other Case","Galaxy S8 Plus SAM S-View Cover Blk","Galaxy S8+",59.99,59.99,"-","Remove from Web","-","-","2018-03-09","Inactive"]
[null,200739,"Case","Soft Case","LG G6 TECH21 EVO CHECK BLK","LG G6",24.99,24.99,"-","Remove from Web","-","-","2018-06-14","Inactive"]
[null,200740,"Case","Soft Case","LG G6 TECH21 EVO CHECK BLU","LG G6",29.99,29.99,"-","Remove from Web","-","-","2018-06-14","Inactive"]
[null,200741,"Case","Soft Case","LG G6 Tech21 Evo Check Wht","LG G6",19.989999999999998,19.989999999999998,"-","Remove from Web","-","-","2018-06-14","Inactive"]
[null,200743,"Case","Soft Case","LG K3 2017 GEAR4 PICCADILLY BLK","LG K3 2017",39.99,39.99,"-","Remove from Web","-","-","2018-11-08","Inactive"]
[null,200744,"Case","Soft Case","ZTE BLADE MAX 3 PICACADILLY BLK","ZTE Blade Max 3",24.99,24.99,"-","Remove from Web","-","-","2018-09-13","Inactive"]
[null,200745,"Screen Protection","Glass","ZTE Blade Max 3 Random Order Glass","ZTE Blade Max 3",29.99,29.99,"-","Remove from Web","-","-","2018-09-13","Inactive"]
[null,200747,"Case","Soft Case","Galaxy S8 PLus Tech21 Evo Check Blk","Galaxy S8+",19.989999999999998,19.989999999999998,"-","Remove from Web","-","-","2018-06-14","Inactive"]
[null,200748,"Case","Soft Case","Galaxy S8 Plus Tech21 Evo Check Rose","Galaxy S8+",29.99,29.99,"-","Remove from Web","-","-","2018-06-14","Inactive"]
[null,200749,"Screen Protection","Glass","Galaxy S8 Plus Zagg Glass Scrn Prot","Galaxy S8+",29.99,29.99,"-","Remove from Web","-","-","2018-09-13","Inactive"]
[null,200750,"Entertainment","Virtual and Augmented Reality","SAM Gear VR w/Controller","Universal",79.989999999999995,79.989999999999995,"-","Remove from Web","-","-","2018-03-09","Inactive"]
[null,200751,"Connected Home","Indoor Camera","SAM Gear 360 2nd Gen","Universal",229.99,229.99,"-","Remove from Web","-",{"$f":"IF(I711=\"Status Changed\",\"Status Changed\",IF(K711=\"Status Changed\",\"Status Changed\",\"-\"))","v":"-"},"2018-09-13","Inactive"]
[null,200757,"Case","Clip Case","LG K3 2017 TRIDENT KRAKEN BLK","LG K3 2017",29.99,29.99,"-","Remove from Web","-","-","2018-06-14","Inactive"]
[null,200758,"Case","Hard Case","LG G6 OtterBox Symmety Pink","LG G6",29.99,29.99,"-","Remove from Web","-","-","2018-03-09","Inactive"]
[null,200759,"Screen Protection","Glass","LG G6 Random Order Glass Scrn Prot","LG G6",39.99,39.99,"-","Remove from Web","-","-","2018-09-13","Inactive"]
[null,200760,"Charger","Android Portable Charger","SAM Fast Chrg Battery Pack Blu 5100mah","Universal",39.99,39.99,"-","Remove from Web","-","-","2019-03-07T01:00:00","Inactive"]
[null,200761,"Charger","Wireless Dock Charger","SAM Fast Chrg Wireless Chrg Stand Sil","Universal",59.99,59.99,"-","Remove from Web","-","-","2019-09-01","Inactive"]
[null,200762,"Charger","Wireless Dock Charger","SAM Fast Chrg Wireless Convertible Stand","Universal",39.99,39.99,"-","Remove from Web","-","-","2020-08-25","Inactive"]
[null,201001,"Case","Hard Case","SAM J7 2017 OTTERBOX SYMMETRY PNK/BLU","Samsung J7 2017",49.99,49.99,"-","Remove from Web","-","-","2018-11-08","Inactive"]
[null,201002,"Screen Protection","Glass","SAM J3 2017 Random Order Glass Scrn Prot","Samsung J3 2017",39.99,39.99,"-","Remove from Web","-","-","2018-09-13","Inactive"]
[null,201003,"Screen Protection","Glass","SAM J7 2017 Random Order Glass Scrn Prot","Samsung J7 2017",39.99,39.99,"-","Remove from Web","-","-","2018-09-13","Inactive"]
[null,201146,"Case","Soft Case","SAM J7 2017 TECH21 EVO CHECK GRY","Samsung J7 2017",39.99,39.99,"-","Remove from Web","-","-","2018-11-08","Inactive"]
[null,201187,"Case","Hard Case","SAM J3 2017 OTTERBOX SYMMETRY PNK/BLU","Samsung J3 2017",29.99,29.99,"-","Remove from Web","-","-","2019-01-31T23:00:00","Inactive"]
[null,201188,"Case","Clip Case","SAM J3 2017 TRIDENT CYCLOPS BLK","Samsung J3 2017",39.99,39.99,"-","Remove from Web","-","-","2018-06-14","Inactive"]
[null,201189,"Case","Soft Case","SAM J7 2017 TECH21 EVO CHECK CLR/WHT","Samsung J7 2017",39.99,39.99,"-","Remove from Web","-","-","2018-09-13","Inactive"]
[null,201190,"Case","Hard Case","SAM J3 2017 INCIPIO NGP BLU","Samsung J3 2017",19.989999999999998,19.989999999999998,"-","Remove from Web","-","-","2019-02-01","Inactive"]
[null,201191,"Case","Soft Case","SAM J3 2017 TECH21 EVO CHECK GRY","Samsung J3 2017",29.99,29.99,"-","Not On Flash","-","-","2019-02-01","Inactive"]
[null,201192,"Case","Other Case","SAM J3 2017 Case-Mate Sheer Glam Champ","Samsung J3 2017",34.99,34.99,"-","Remove from Web","-","-","2017-11-08","Inactive"]
[null,201193,"Case","Hard Case","SAM J7 2017 OTTERBOX SYMMETRY BLK","Samsung J7 2017",49.99,49.99,"-","Remove from Web","-","-","2018-11-08","Inactive"]
[null,201194,"Case","Soft Case","SAM J3 2017 TECH21 EVO CHECK CLR/WHT","Samsung J3 2017",39.99,39.99,"-","Remove from Web","-","-","2018-06-14","Inactive"]
[null,201195,"Case","Hard Case","SAM J3 2017 OTTERBOX SYMMETRY BLK","Samsung J3 2017",39.99,39.99,"-","Not On Flash","-","-","2019-02-01","Inactive"]
[null,201898,"Screen Protection","Glass","iPad Pro 10.5 2017 Random Order Glass","iPad Pro 10.5 2017",39.99,39.99,"-","Remove from Web","-","-","2018-09-13","Inactive"]
[null,201899,"Case","Tablet Case","IPAD PRO 9.7 2017 INCIPIO CLARION BLK","iPad Pro 9.7 2017",34.99,34.99,"-","Remove from Web","-","-","2019-11-01","Inactive"]
[null,201900,"Case","Tablet Case","IPAD PRO 9.7 2017 INCIPIO CLARION BLUE","iPad Pro 9.7 2017",34.99,34.99,"-","Remove from Web","-","-","2018-09-13","Inactive"]
[null,201901,"Case","Tablet Case","IPAD PRO 10.5 2017 INCIPIO CLARION BLK","iPad Pro 10.5 2017",34.99,34.99,"-","Remove from Web","-","-","2019-05-01","Inactive"]
[null,201902,"Case","Tablet Case","IPAD PRO 10.5 2017 INCIPIO CLARION BLUE","iPad Pro 10.5 2017",34.99,34.99,"-","Remove from Web","-","-","2018-06-14","Inactive"]
[null,201908,"Case","Tablet Case","IPAD PRO 12.9 2017 INCIPIO CLARION BLK","iPad Pro 12.9 2017",44.99,44.99,"-","Remove from Web","-","-","2018-09-13","Inactive"]
[null,201909,"Case","Tablet Case","IPAD PRO 12.9 2017 INCIPIO CLARION BLUE","iPad Pro 12.9 2017",44.99,44.99,"-","Remove from Web","-","-","2018-06-14","Inactive"]
[null,201928,"Audio","Wireless Car","LG Tone Pro 780 Blk","Universal",69.989999999999995,69.989999999999995,"-","Remove from Web","-","-","2018-11-08","Inactive"]
[null,201929,"Audio","Wireless Car","LG Tone Pro 780 Gold","Universal",69.989999999999995,69.989999999999995,"-","Not On Flash","-","-","2019-03-07","Inactive"]
[null,201930,"Audio","Wireless Car","LG Tone Free True Wireless","Universal",139.99,139.99,"-","Remove from Web","-","-","2018-03-09","Inactive"]
[null,201942,"Connected Home","Networking","weboost eqo 4G","Universal",249.99,249.99,"-","Remove from Web","-","-","2018-09-13","Inactive"]
[null,201975,"Audio","Wireless Car","LG Tone Ultra 820 Blk","Universal",79.989999999999995,79.989999999999995,"-","Remove from Web","-","-","2018-03-09","Inactive"]
[null,201999,"Miscellaneous Accessory","Payment","Square Stand","Universal",169.99,169.99,"-","Remove from Web","-","-","2018-11-08","Inactive"]
[null,202033,"Screen Protection","Glass","SAM Tab S 3 Random Order Glass Scrn","Tab S 3",39.99,39.99,"-","Remove from Web","-","-","2018-06-14","Inactive"]
[null,202034,"Case","Tablet Case","CASEMATE UNIVERSAL FOLIO 10.5IN PNK","Universal",39.99,39.99,"-","Remove from Web","-","-","2018-11-08","Inactive"]
[null,202035,"Case","Tablet Case","SAM GALAXY TAB S 3 INCIPIO FOLIO BLK","Tab S 3",34.99,34.99,"-","Remove from Web","-","-","2018-11-08","Inactive"]
[null,202036,"Case","Keyboard Case","SAM Tab S 3 BT Keyboard Cover Gry","Tab S 3",129.99,129.99,"-","Remove from Web","-","-","2018-11-08","Inactive"]
[null,202054,"Audio","Wired On-Ear","JBL E45 BT BLK","Universal",99.99,99.99,"-","Remove from Web","-","-","2018-09-13","Inactive"]
[null,202059,"Audio","Wired On-Ear","JBL E45 BT Blu","Universal",99.99,99.99,"-","Remove from Web","-","-","2018-06-14","Inactive"]
[null,202060,"Audio","Portable Speaker","JBL CHARGE 3 RED","Universal",99.99,99.99,"-","Remove from Web","-","-","2019-06-01","Inactive"]
[null,202061,"Connected Home","Doorbell and Lock","RING CHIME WITH WI-FI EXTENDER","Universal",49.99,49.99,"-","Remove from Web","-","-","2018-06-14","Inactive"]
[null,202062,"Connected Home","Lighting","PHILLIPS HUE WHITE SINGLE BULB","Universal",9.99,9.99,"-","Remove from Web","-","-","2019-06-01","Inactive"]
[null,202063,"Connected Home","Lighting","PHILLIPS HUE WHITE STARTER KIT","Universal",39.99,39.99,"-","Remove from Web","-","-","2019-06-01","Inactive"]
[null,202064,"Connected Home","Lighting","PHILLIPS HUE SINGLE BULB A19 GEN 3","Universal",39.99,39.99,"-","Remove from Web","-","-","2019-03-07","Inactive"]
[null,202068,"Audio","Wireless Mono","PLANTRONICS VOYAGER 5200 HEADSET BLK","Universal",119.99,119.99,"-","Remove from Web","-","-","2020-10-19","Inactive"]
[null,202097,"Audio","Wireless Sport","JLAB EPIC 2 BT SPORT EARBUDS BLK","Universal",99.99,99.99,"-","Remove from Web","-","-","2018-06-14","Inactive"]
[null,202098,"Audio","Wireless In-Ear","JLAB JBUDS PRO BT EARBUDS BLK","Universal",29.99,29.99,"-","Remove from Web","-","-","2018-06-14","Inactive"]
[null,202118,"Non Accessory","Demo Accessory","Apple Watch Blck 42mm Display Sprt Band","Apple Watch",0.01,0.01,"-","Remove from Web","-","-","2018-09-13","Demo"]
[null,202160,"Entertainment","Entertainment Camera","Spigen Selfie Stick","Universal",9.99,9.99,"-","Remove from Web","-","-","2018-06-14","Inactive"]
[null,202161,"Entertainment","Drone","Xtreme Mini Raptor Drone","Universal",29.99,29.99,"-","Remove from Web","-","-","2018-03-09","Inactive"]
[null,202162,"Connected Home","Tracker","TILE MATE","Universal",24.99,24.99,"-","Not On Flash","-","-","2019-03-07","Inactive"]
[null,202163,"Memory","Memory Transfer","GIGASTONE MICRO OTG FLASH DRIVE 32GB","Universal",29.99,29.99,"-","Remove from Web","-","-","2018-09-13","Inactive"]
[null,202164,"Memory","Memory Transfer","GIGASTONE PHOTOFAST IFLASH DRIVE 32GB","Universal",49.99,49.99,"-","Remove from Web","-","-","2019-09-01","Inactive"]
[null,202227,"Memory","Memory Card","GIGASTONE PRIME MICRO SD CARD 16GB","Universal",24.99,24.99,"-","Remove from Web","-","-","2019-06-01","Inactive"]
[null,202229,"Memory","Memory Card","GIGASTONE PRIME MICRO SD CARD 64GB","Universal",69.989999999999995,69.989999999999995,"-","Remove from Web","-","-","2019-06-01","Inactive"]
[null,202230,"Memory","Memory Card","GIGASTONE PRIME MICRO SD CARD 128GB","Universal",99.99,99.99,"-","Remove from Web","-","-","2019-06-01","Inactive"]
[null,202279,"Connected Home","Smart Speaker","Amazon Echo Blk","Universal",79.989999999999995,79.989999999999995,"-","Remove from Web","-","-","2018-03-09","Inactive"]
[null,202280,"Connected Home","Smart Speaker","AMAZON DOT BLK","Universal",24.99,24.99,"-","Remove from Web","-","-","2019-06-01","Inactive"]
[null,202739,"Case","Charger Case","Moto Z Motorola MOD Charging Case","Moto Z",44.99,44.99,"-","Remove from Web","-","-","2019-03-31","Inactive"]
[null,202740,"Screen Protection","Glass","LG X Venture Random Order Glass Scrn","LG X Venture",39.99,39.99,"-","Remove from Web","-","-","2018-06-14","Inactive"]
[null,202741,"Case","Hard Case","MOTO Z INCIPIO OCTANE BLK","Moto Z",19.989999999999998,19.989999999999998,"-","Remove from Web","-","-","2018-06-14","Inactive"]
[null,202742,"Case","Soft Case","LG X VENTURE GEAR4 PICCADILLY CLR/BLK","LG X Venture",39.99,39.99,"-","Remove from Web","-","-","2019-11-01","Inactive"]
[null,202743,"Case","Hard Case","MOTO Z INCIPIO OCTANE PURPLE","Moto Z",14.99,14.99,"-","Remove from Web","-","-","2018-06-14","Inactive"]
[null,202744,"Case","Clip Case","LG X Venture Trident Warrior Blk","LG X Venture",39.99,39.99,"-","Remove from Web","-","-","2019-03-01","Inactive"]
[null,202745,"Screen Protection","Glass","Moto E+ 2017 Random Order Glass Scrn","Moto E+ 2017",39.99,39.99,"-","Remove from Web","-",{"$f":"IF(I775=\"Status Changed\",\"Status Changed\",IF(K775=\"Status Changed\",\"Status Changed\",\"-\"))","v":"-"},"2018-09-13","Inactive"]
[null,202746,"Case","Soft Case","MOTO E+ 2017 GEAR4 PICCADILLY CLR/BLK","Moto E+ 2017",39.99,39.99,"-","Remove from Web","-","-","2018-11-08","Inactive"]
[null,202798,"Case","Hard Case","MOTO E+ 2017 INCIPIO OCTANE BLK","Moto E+ 2017",24.99,24.99,"-","Remove from Web","-","-","2018-11-08","Inactive"]
[null,202799,"Case","Clip Case","MOTO Z OTTERBOX DEFENDER BLUE","Moto Z",49.99,49.99,"-","Remove from Web","-","-","2018-06-14","Inactive"]
[null,202800,"Case","Clip Case","MOTO Z OTTERBOX DEFENDER BLK","Moto Z",49.99,49.99,"-","Remove from Web","-","-","2018-09-13","Inactive"]
[null,202801,"Screen Protection","Glass","Moto E 2017 Random Order Glass Scrn","Moto E 2017",39.99,39.99,"-","Remove from Web","-","-","2018-09-13","Inactive"]
[null,202802,"Case","Hard Case","MOTO E 2017 GEAR4 PICCADILLY CLR/BLK","Moto E 2017",39.99,39.99,"-","Remove from Web","-","-","2018-09-13","Inactive"]
[null,202803,"Case","Fashion Case","Moto Z CaseMate Rose Gld Waterfall","Moto Z",19.989999999999998,19.989999999999998,"-","Remove from Web","-","-","2018-06-14","Inactive"]
[null,202804,"Case","Hard Case","MOTO E 2017 INCIPIO NGP PURP","Moto E 2017",19.989999999999998,19.989999999999998,"-","Remove from Web","-","-","2018-09-13","Inactive"]
[null,202805,"Case","Soft Case","MOTO Z TECH21 EVO CHECK CLR/BLK","Moto Z",24.99,24.99,"-","Remove from Web","-","-","2018-06-14","Inactive"]
[null,202806,"Case","Hard Case","MOTO E 2017 INCIPIO NGP BLK","Moto E 2017",19.989999999999998,19.989999999999998,"-","Remove from Web","-","-","2018-11-08","Inactive"]
[null,202928,"Connected Home","Smart Speaker","GOOGLE HOME","Universal",99,99,"-","Remove from Web","-","-","2020-08-25","Inactive"]
[null,202937,"Case","Hard Case","MOTO E+ 2017 INCIPIO OCTANE PURP","Moto E+ 2017",24.99,24.99,"-","Remove from Web","-","-","2018-11-08","Inactive"]
[null,202947,"Screen Protection","Glass","Moto Z Random Order Glass Scrn","Moto Z",39.99,39.99,"-","Remove from Web","-","-","2018-03-09","Inactive"]
[null,203167,"Entertainment","Projector","MOTO INSTA-SHARE PROJECTOR","Moto Z",199.99,199.99,"-","Remove from Web","-","-","2018-09-13","Inactive"]
[null,203168,"Entertainment","Entertainment Camera","HASSELBLAD TRUE ZOOM","Moto Z",199.99,199.99,"-","Remove from Web","-","-","2018-09-13","Inactive"]
[null,203191,"Audio","Home Entertainment","JBL SOUNDBOOST 2 BLACK","Moto Z",69.989999999999995,69.989999999999995,"-","Remove from Web","-","-","2018-11-08","Inactive"]
[null,203443,"Case","Fashion Case","Galaxy S8 Kate Spade Saffiano Blk","Galaxy S8",29.99,29.99,"-","Remove from Web","-","-","2018-06-14","Inactive"]
[null,203444,"Case","Fashion Case","Galaxy S8+ Kate Spade Stripe2 Gld/Blk","Galaxy S8+",29.99,29.99,"-","Remove from Web","-","-","2018-06-14","Inactive"]
[null,203445,"Case","Fashion Case","Galaxy S8+ Kate Spade Hollyhock Clr/Crm","Galaxy S8+",39.99,39.99,"-","Remove from Web","-","-","2018-06-14","Inactive","*EOL removed via EPC sub"]
[null,203446,"Connected Home","Doorbell and Lock","RING VIDEO DOORBELL V2","Universal",99.99,99.99,"-","Remove from Web","-","-","2021-05-17","Inactive","*EOL removed via EPC sub"]
[null,203460,"Case","Fashion Case","iPhone 7 Kate Spade Stripe2 Gld/Blk","iPhone 6/6s/7/8",39.99,39.99,"-","Remove from Web","-","-","2018-06-14","Inactive"]
[null,203461,"Case","Fashion Case","IPHONE 7 KATE SPADE HOLLYHOCK CLR/CRM","iPhone 6/6s/7/8",39.99,39.99,"-","Remove from Web","-","-","2018-11-08","Inactive"]
[null,203462,"Case","Fashion Case","Galaxy S8 Kate Spade Stripe2 Gld/Blk","Galaxy S8",29.99,29.99,"-","Remove from Web","-","-","2018-06-14","Inactive"]
[null,203463,"Case","Fashion Case","GALAXY S8 KATE SPADE HOLLYHOCK CLR/CRM","Galaxy S8",39.99,39.99,"-","Remove from Web","-","-","2018-09-13","Inactive"]
[null,203464,"Case","Fashion Case","Galaxy S8 Kate Spade Glitter is my fav","Galaxy S8",29.99,29.99,"-","Remove from Web","-","-","2018-06-14","Inactive"]
[null,203465,"Case","Case Accessories","POPSOCKET BLUSH","Universal",9.99,9.99,"-","Remove from Web","-","-","2019-06-01","Inactive"]
[null,203466,"Case","Case Accessories","Ventev Stylus Pro Gry","Universal",9.99,9.99,"-","Remove from Web","-","-","2019-05-31T23:00:00","Inactive"]
[null,203483,"Connected Home","Indoor Camera","Motorola Focus 67 WiFi HD Camera","Universal",69.989999999999995,69.989999999999995,"-","Remove from Web","-","-","2018-06-14","Inactive"]
[null,203484,"Connected Home","Indoor Camera","Motorola Orbit indoor/outdoor Camera","Universal",99.99,99.99,"-","Remove from Web","-","-","2018-09-13","Inactive"]
[null,203485,"Miscellaneous Accessory","Antenna and Booster","D-link AC1200 Wi-Fi Extender","Universal",44.99,44.99,"-","Remove from Web","-","-","2018-09-13","Inactive"]
[null,203487,"Case","Tablet Case","CASEMATE UNIVERSAL FOLIO 8.5IN PNK","Universal",19.989999999999998,19.989999999999998,"-","Remove from Web","-","-","2018-09-13","Inactive"]
[null,203489,"Charger","Wireless Portable Charger","Mophie Wireless Portable Charger Blk","Universal",59.99,59.99,"-","Remove from Web","-","-","2018-09-13","Inactive"]
[null,203490,"Charger","Universal Portable Charger","IWALK SCORPION 8000MAH PORTABLE CHARGER","Universal",59.99,59.99,"-","Remove from Web","-","-","2019-11-01","Inactive"]
[null,203492,"Charger","Universal Portable Charger","TYLT dockit - double battery dock Gray","Universal",29.99,29.99,"-","Remove from Web","-","-","2019-03-07","Inactive"]
[null,203493,"Charger","Android Portable Charger","Flipstick - 3350mAh Type-C Gray","Universal",39.99,39.99,"-","Remove from Web","-","-","2018-03-09","Inactive"]
[null,203494,"Charger","Android Cable","Random Order TypeC cable 6ft Blk","Universal",24.99,24.99,"-","Remove from Web","-","-","2018-06-14","Inactive"]
[null,203507,"Case","Keyboard Case","iPad Pro 10.5 Smart Keyboard","iPad Pro 10.5 2017",159,159,"-","Include on Web, Available","-","-","2022-09-30","Active"]
[null,203520,"Case","Tablet Case","ZTE ZPAD 8 Incipio Clarion Blk","ZTE ZPAD 8",19.989999999999998,19.989999999999998,"-","Remove from Web","-","-","2018-09-13","Inactive"]
[null,203521,"Case","Tablet Case","ZTE ZPAD 8 Incipio Clarion Pnk","ZTE ZPAD 8",29.99,29.99,"-","Remove from Web","-","-","2018-09-13","Inactive"]
[null,203522,"Case","Tablet Case","ZZTE ZPAD 8 Incipio Clarion Blu","ZTE ZPAD 8",19.989999999999998,19.989999999999998,"-","Remove from Web","-","-","2018-09-13","Inactive"]
[null,203523,"Screen Protection","Glass","ZTE ZPAD 8 Random Order Glass Scrn","ZTE ZPAD 8",14.99,14.99,"-","Remove from Web","-","-","2018-09-13","Inactive"]
[null,203539,"Audio","Wireless Car","LG Infinim 920 Headset Blk","Universal",99.99,99.99,"-","Remove from Web","-","-","2018-03-09","Inactive"]
[null,203540,"Entertainment","Drone","PARROT BEBOP 2 DRONE FPV","Universal",499.99,499.99,"-","Remove from Web","-","-","2018-09-13","Inactive"]
[null,203541,"Audio","Wireless Car","LG Infinim 920 Headset Sil","Universal",104.99,104.99,"-","Remove from Web","-","-","2018-03-09","Inactive"]
[null,203542,"Audio","Home Entertainment","Samsung Level Box Slim Blk","Universal",79.989999999999995,79.989999999999995,"-","Remove from Web","-","-","2018-06-14","Inactive"]
[null,203543,"Miscellaneous Accessory","Mount and Dock","RANDOM ORDER CAR AIR VENT MOUNT","Universal",12.99,12.99,"-","Remove from Web","-","-","2018-09-13","Inactive"]
[null,203544,"Audio","Home Entertainment","Samsung M360 Soundbar","Universal",199.99,199.99,"-","Remove from Web","-","-","2018-09-13","Inactive"]
[null,203545,"Entertainment","Game and Toy","Steel Series Nimbus APL Wireless Control","Universal",49.99,49.99,"-","Remove from Web","-","-","2018-06-14","Inactive"]
[null,203546,"Entertainment","Game and Toy","Steel Series Stratus XL Wireless Control","Universal",59.99,59.99,"-","Remove from Web","-","-","2018-06-14","Inactive"]
[null,203547,"Audio","Portable Speaker","JBL FLIP 4 BLK","Universal",99.99,99.99,"-","Remove from Web","-","-","2019-09-01","Inactive"]
[null,203548,"Case","Case Accessories","POPSOCKET GRY","Universal",14.99,14.99,"-","Remove from Web","-","-","2018-06-14","Inactive"]
[null,203549,"Audio","Portable Speaker","JBL FLIP 4 BLU","Universal",99.99,99.99,"-","Remove from Web","-","-","2019-09-01","Inactive"]
[null,203550,"Audio","Portable Speaker","UE WONDERBOOM BLK","Universal",39.99,39.99,"-","Remove from Web","-","-","2020-08-25","Inactive"]
[null,203551,"Audio","Portable Speaker","JBL FLIP 4 TEAL","Universal",99.99,99.99,"-","Remove from Web","-","-","2018-06-14","Inactive"]
[null,203552,"Audio","Portable Speaker","UE WONDERBOOM PURP","Universal",69.989999999999995,69.989999999999995,"-","Remove from Web","-","-","2019-03-07","Inactive"]
[null,203553,"Wearable","Health and Fitness","GARMIN VIVOSMART 3 BLK LARGE","Universal",139.99,139.99,"-","Remove from Web","-","-","2018-09-13","Inactive"]
[null,203722,"Case","Soft Case","LG V30 TECH21 EVO CHECK GRY","LG V30",39.99,39.99,"-","Remove from Web","-","-","2018-09-13","Inactive"]
[null,203723,"Case","Hard Case","LG V30 INCIPIO OCTANE BLU","LG V30",14.99,14.99,"-","Remove from Web","-","-","2018-06-14","Inactive"]
[null,203724,"Screen Protection","Glass","LG V30 Random Order Glass Scrn","LG V30",39.99,39.99,"-","Remove from Web","-","-","2018-03-09","Inactive"]
[null,203725,"Case","Clip Case","LG V30 OTTERBOX DEFENDER BLK","LG V30",49.99,49.99,"-","Remove from Web","-","-","2019-01-30T23:00:00","Inactive"]
[null,203921,"Case","Soft Case","SAM NOTE 8 TECH21 PURE CLR","Note 8",39.99,39.99,"-","Remove from Web","-","-","2018-11-08","Inactive"]
[null,203922,"Case","Hard Case","SAM NOTE OTTERBOX SYMMETRY TEAL","Note 8",39.99,39.99,"-","Remove from Web","-","-","2018-06-14","Inactive"]
[null,203923,"Case","Fashion Case","SAM Note 8 Case-Mate Waterfall Rose Gld","Note 8",29.99,29.99,"-","Remove from Web","-","-","2018-06-14","Inactive"]
[null,203924,"Case","Soft Case","SAM NOTE 8 TECH21 EVO CHECK GRY","Note 8",39.99,39.99,"-","Remove from Web","-",{"$f":"IF(I839=\"Status Changed\",\"Status Changed\",IF(K839=\"Status Changed\",\"Status Changed\",\"-\"))","v":"-"},"2018-11-08","Inactive"]
[null,203925,"Screen Protection","Plastic","SAM Note 8 Tech21 TPU Scn Prot","Note 8",24.99,24.99,"-","Remove from Web","-","-","2018-06-14","Inactive"]
[null,203926,"Case","Clip Case","SAM NOTE 8 OTTERBOX DEFENDER PURP","Note 8",49.99,49.99,"-","Remove from Web","-","-","2018-11-08","Inactive"]
[null,203932,"Case","Hard Case","SAM NOTE 8 INCIPIO OCTANE BLU","Note 8",9.99,9.99,"-","Remove from Web","-","-","2018-06-14","Inactive"]
[null,203933,"Case","Hard Case","SAM NOTE 8 INCIPIO OCTANE PURP","Note 8",9.99,9.99,"-","Remove from Web","-","-","2018-06-14","Inactive"]
[null,203934,"Case","Clip Case","SAM NOTE 8 OTTERBOX DEFENDER BLK","Note 8",59.99,59.99,"-","Remove from Web","-","-","2018-11-08","Inactive"]
[null,203935,"Case","Hard Case","SAM NOTE 8  OTTERBOX SYMMETRY BLK","Note 8",34.99,34.99,"-","Remove from Web","-","-","2018-11-08","Inactive"]
[null,203936,"Case","Hard Case","SAM NOTE 8 OTTERBOX SYMMETRY GLITTER","Note 8",49.99,49.99,"-","Remove from Web","-","-","2018-11-08","Inactive"]
[null,203967,"Screen Protection","Glass","SAM Note 8 Bodyguardz Glass Scrn","Note 8",49.99,49.99,"-","Remove from Web","-","-","2018-11-08","Inactive"]
[null,203968,"Case","Other Case","SAM Note 8 SAM S-view Cover Blk","Note 8",59.99,59.99,"-","Remove from Web","-","-","2018-03-09","Inactive"]
[null,204244,"Case","Waterproof Case","IPHONE X LIFEPROOF FRE BLK","iPhone X/Xs",89.99,89.99,"-","Remove from Web","-","-","2018-11-06","Inactive"]
[null,204245,"Case","Waterproof Case","iPhone X LifeProof NEXT Blk","iPhone X/Xs",79.989999999999995,79.989999999999995,"-","Remove from Web","-","-","2018-03-09","Inactive"]
[null,204246,"Case","Waterproof Case","IPHONE X LIFEPROOF FRE PURP","iPhone X/Xs",89.99,89.99,"-","Remove from Web","-","-","2018-11-06","Inactive"]
[null,204259,"Case","Soft Case","IPHONE X TECH21 EVO CHECK GRY","iPhone X/Xs",39.99,39.99,"-","Remove from Web","-","-","2019-11-01","Inactive"]
[null,204260,"Screen Protection","Plastic","iPhone 8 tech21 TPU  Anti-Glare Scn Prot","iPhone 6/6s/7/8",9.99,9.99,"-","Remove from Web","-","-","2018-06-14","Inactive"]
[null,204261,"Case","Soft Case","IPHONE 8 TECH21 EVO CHECK PNK","iPhone 6/6s/7/8",39.99,39.99,"-","Remove from Web","-","-","2018-11-08","Inactive"]
[null,204262,"Case","Hard Case","iPhone 8 Incipio Octane Grn","iPhone 6/6s/7/8",14.99,14.99,"-","Remove from Web","-","-","2018-09-13","Inactive"]
[null,204263,"Case","Hard Case","IPHONE 8 INCIPIO OCTANE PLUM","iPhone 6/6s/7/8",24.99,24.99,"-","Remove from Web","-","-","2018-09-13","Inactive"]
[null,204264,"Case","Fashion Case","IPHONE 8 UA GRIP BLK/RED","iPhone 6/6s/7/8",39.99,39.99,"-","Remove from Web","-","-","2018-09-13","Inactive"]
[null,204265,"Case","Fashion Case","iPhone 8 UA Grip Gry/Ylw","iPhone 6/6s/7/8",39.99,39.99,"-","Remove from Web","-","-","2018-09-13","Inactive"]
[null,204266,"Case","Fashion Case","IPHONE 8 UA ARSENAL BLK/BLK","iPhone 6/6s/7/8",39.99,39.99,"-","Remove from Web","-","-","2019-03-11","Inactive"]
[null,204274,"Case","Hard Case","IPHONE 8 PLUS INCIPIO OCTANE BLU","iPhone 6/6s/7/8 Plus",19.989999999999998,19.989999999999998,"-","Remove from Web","-","-","2018-09-13","Inactive"]
[null,204275,"Case","Fashion Case","IPHONE 8 PLUS KATE SPADE HOLLYHOCK CLR/C","iPhone 6/6s/7/8 Plus",39.99,39.99,"-","Remove from Web","-","-","2018-11-08","Inactive"]
[null,204276,"Case","Fashion Case","IPHONE 8 PLUS KATE SPADE STRIPE BLK/CRM","iPhone 6/6s/7/8 Plus",39.99,39.99,"-","Remove from Web","-","-","2019-06-01","Inactive"]
[null,204277,"Case","Soft Case","IPHONE 8 PLUS TECH21 EVO CHECK PNK","iPhone 6/6s/7/8 Plus",39.99,39.99,"-","Remove from Web","-","-","2018-09-13","Inactive"]
[null,204278,"Case","Soft Case","IPHONE X TECH 21 EVO CHECK PNK","iPhone X/Xs",29.99,29.99,"-","Remove from Web","-","-","2019-01-01","Inactive"]
[null,204279,"Case","Soft Case","IPHONE 8 PLUS TECH21 PURECLEAR","iPhone 6/6s/7/8 Plus",39.99,39.99,"-","Remove from Web","-","-","2019-11-01","Inactive"]
[null,204280,"Case","Soft Case","IPHONE X TECH 21 PURECLEAR","iPhone X/Xs",29.99,29.99,"-","Remove from Web","-","-","2019-06-01","Inactive"]
[null,204281,"Case","Soft Case","IPHONE 8 TECH21 PURECLEAR","iPhone 6/6s/7/8",39.99,39.99,"-","Remove from Web","-","-","2020-10-19","Inactive"]
[null,204282,"Case","Waterproof Case","IPHONE 8 PLUS LIFEPROOF FRE BLK","iPhone 6/6s/7/8 Plus",89.99,89.99,"-","Remove from Web","-","-","2019-11-01","Inactive"]
[null,204283,"Case","Waterproof Case","iPhone 8 plus LifeProof NEXT Blk","iPhone 6/6s/7/8 Plus",79.989999999999995,79.989999999999995,"-","Remove from Web","-","-","2018-09-13","Inactive"]
[null,204284,"Case","Waterproof Case","IPHONE 8 PLUS LIFEPROOF FRE AQUA","iPhone 6/6s/7/8 Plus",89.99,89.99,"-","Remove from Web","-","-","2019-06-01","Inactive"]
[null,204285,"Case","Hard Case","IPHONE 8 PLUS OTTERBOX COMMUTER BLUE","iPhone 6/6s/7/8 Plus",39.99,39.99,"-","Remove from Web","-","-","2018-11-08","Inactive"]
[null,204286,"Case","Hard Case","IPHONE 8 PLUS OTTERBOX COMMUTER TEAL","iPhone 6/6s/7/8 Plus",39.99,39.99,"-","Remove from Web","-","-","2019-11-01","Inactive"]
[null,204287,"Case","Fashion Case","IPHONE 8 CASE-MATE WATERFALL PNK","iPhone 6/6s/7/8",39.99,39.99,"-","Remove from Web","-","-","2019-09-01","Inactive"]
[null,204288,"Case","Fashion Case","IPHONE 8 CASE-MATE KARAT PEARL","iPhone 6/6s/7/8",49.99,49.99,"-","Remove from Web","-","-","2018-11-08","Inactive"]
[null,204289,"Case","Fashion Case","iPhone 8 Case-Mate Mirror Pnk","iPhone 6/6s/7/8",39.99,39.99,"-","Remove from Web","-","-","2018-09-13","Inactive"]
[null,204290,"Case","Fashion Case","IPHONE 8 PLUS CASE-MATE WATERFALL PNK","iPhone 6/6s/7/8 Plus",39.99,39.99,"-","Remove from Web","-","-","2019-11-01","Inactive"]
[null,204291,"Case","Fashion Case","IPHONE X CASE-MATE WATERFALL PNK","iPhone X/Xs",39.99,39.99,"-","Remove from Web","-","-","2018-11-08","Inactive"]
[null,204297,"Case","Fashion Case","iPhone X Kate Spade Stripe Blk/Crm","iPhone X/Xs",39.99,39.99,"-","Remove from Web","-","-","2018-09-13","Inactive"]
[null,204298,"Case","Hard Case","IPHONE X INCIPIO OCTANE BLU","iPhone X/Xs",24.99,24.99,"-","Remove from Web","-","-","2018-03-09","Inactive"]
[null,204301,"Case","Waterproof Case","IPHONE 8 LIFEPROOF FRE BLK","iPhone 6/6s/7/8",89.99,89.99,"-","Remove from Web","-","-","2019-11-01","Inactive"]
[null,204303,"Case","Waterproof Case","iPhone 8 LifeProof NEXT Blk","iPhone 6/6s/7/8",49.99,49.99,"-","Remove from Web","-","-","2018-09-13","Inactive"]
[null,204304,"Case","Waterproof Case","IPHONE 8 LIFEPROOF FRE AQUA","iPhone 6/6s/7/8",89.99,89.99,"-","Remove from Web","-","-","2019-06-01","Inactive"]
[null,204305,"Case","Hard Case","IPHONE 8 OTTERBOX COMMUTER TEAL","iPhone 6/6s/7/8",39.99,39.99,"-","Remove from Web","-","-","2019-06-01","Inactive"]
[null,204306,"Case","Hard Case","IPHONE 8 OTTERBOX SYMMETRY GLITTER","iPhone SE 2nd Gen",24.99,24.99,"-","Include on Web, Available","-","-","2023-03-31","Active"]
[null,204307,"Case","Fashion Case","IPHONE X KATE SPADE HOLLYHOCK CLR/CRM","iPhone X/Xs",39.99,39.99,"-","Remove from Web","-","-","2019-09-01","Inactive"]
[null,204308,"Case","Hard Case","IPHONE 8 PLUS OTTERBOX SYMMETRY GLITTER","iPhone 6/6s/7/8 Plus",49.99,49.99,"-","Remove from Web","-","-","2019-11-01","Inactive"]
[null,204310,"Screen Protection","Glass","iPhone X Bodyguardz Pure Glass Scrn","iPhone X/Xs",39.99,39.99,"-","Remove from Web","-","-","2018-09-13","Inactive"]
[null,204312,"Case","Clip Case","IPHONE X OTTERBOX DEFENDER TEAL","iPhone X/Xs",44.99,44.99,"-","Remove from Web","-","-","2019-09-01","Inactive"]
[null,204313,"Case","Hard Case","IPHONE X OTTERBOX SYMMETRY BLK","iPhone X/Xs",39.99,39.99,"-","Remove from Web","-","-","2019-09-01","Inactive"]
[null,204314,"Case","Hard Case","IPHONE X OTTERBOX SYMMETRY GLITTER","iPhone X/Xs",29.99,29.99,"-","Remove from Web","-","-","2019-06-01","Inactive"]
[null,204317,"Case","Clip Case","IPHONE X OTTERBOX DEFENDER BLK","iPhone X/Xs",39.99,39.99,"-","Remove from Web","-","-","2019-06-01","Inactive"]
[null,204318,"Case","Clip Case","IPHONE X OTTERBOX DEFENDER PURP","iPhone X/Xs",29.99,29.99,"-","Remove from Web","-","-","2019-06-01","Inactive"]
[null,204398,"Screen Protection","Plastic","iPhone X Random Order TPU Scn Prot","iPhone X/Xs",14.99,14.99,"-","Remove from Web","-","-","2018-06-14","Inactive"]
[null,204450,"Screen Protection","Glass","iPhone 8 Bodyguardz Pure2 Glass Scrn","iPhone 6/6s/7/8",39.99,39.99,"-","Remove from Web","-","-","2018-11-07T23:00:00","Inactive"]
[null,204451,"Screen Protection","Glass","iPhone 8 plus Bodyguardz Glass Scrn","iPhone 6/6s/7/8 Plus",39.99,39.99,"-","Remove from Web","-","-","2018-09-13","Inactive"]
[null,204739,"Case","Hard Case","LG WINE LTE HARD SHELL BLK","LG Wine LTE",14.99,14.99,"-","Remove from Web","-","-","2020-08-25","Inactive"]
[null,204840,"Entertainment","Virtual and Augmented Reality","Samsung Gear VR w/Controller Note 8 Ed","Universal",129.99,129.99,"-","Remove from Web","-","-","2019-03-07","Inactive"]
[null,204911,"Wearable","Health and Fitness","Samsung Gear Fit Pro 2 Small","Universal",99.99,99.99,"-","Remove from Web","-","-","2020-08-25","Inactive"]
[null,204912,"Wearable","Health and Fitness","Samsung Gear Fit Pro 2 Large","Universal",99.99,99.99,"-","Remove from Web","-","-","2020-08-25","Inactive"]
[null,205432,"Charger","Universal Portable Charger","TZUMI POCKET JUICE AC 6K MAH BLK","Universal",34.99,34.99,"-","Remove from Web","-","-","2019-06-01","Inactive"]
[null,205433,"Connected Home","Streaming Device","GOOGLE CHROMECAST ULTRA","Universal",69.989999999999995,69.989999999999995,"-","Remove from Web","-","-","2019-09-01","Inactive"]
[null,205434,"Charger","Dock Charger","Ventev USB Charging Hub RQ600","Universal",34.99,34.99,"-","Remove from Web","-","-","2019-03-07T01:00:00","Inactive"]
[null,205435,"Charger","Wireless Car Charger","Ventev Wireless Pro Dock Car Charger","Universal",59.99,59.99,"-","Remove from Web","-",{"$f":"IF(I903=\"Status Changed\",\"Status Changed\",IF(K903=\"Status Changed\",\"Status Changed\",\"-\"))","v":"-"},"2019-06-01","Inactive"]
[null,205446,"Case","Waterproof Case","OTTERBOX DRY BOX BLK","Universal",24.99,24.99,"-","Remove from Web","-","-","2018-11-08","Inactive"]
[null,205463,"Miscellaneous Accessory","Mount and Dock","Samsung DeX Station","Universal",149.99,149.99,"-","Remove from Web","-","-","2018-09-13","Inactive"]
[null,205465,"Audio","Portable Speaker","JBL PULSE 3 BLK","Universal",199.99,199.99,"-","Remove from Web","-","-","2019-11-01","Inactive"]
[null,205466,"Audio","Portable Speaker","JLAB CRASHER MICRO GRY","Universal",14.99,14.99,"-","Remove from Web","-","-","2020-05-17","Inactive"]
[null,205471,"Audio","True Wireless","Samsung IconX 2018","Universal",179.99,179.99,"-","Remove from Web","-","-","2019-03-07","Inactive"]
[null,205531,"Charger","Universal Portable Charger","TZUMI POCKET JUICE A/C 8K MAH","Universal",39.99,39.99,"-","Remove from Web","-","-","2019-03-07T01:00:00","Inactive"]
[null,205532,"Charger","Universal Portable Charger","TZUMI POCKET JUICE AC 12K MAH BLK","Universal",49.99,49.99,"-","Remove from Web","-","-","2019-06-01","Inactive"]
[null,205555,"Charger","Universal Portable Charger","SURVIVOR RUGGED POWER BANK 6K mAh-Blk","Universal",29.99,29.99,"-","Remove from Web","-","-","2018-06-14","Inactive"]
[null,205556,"Charger","Universal Portable Charger","SURVIVOR RUGGED POWER BANK 10050 mAh-Blk","Universal",39.99,39.99,"-","Remove from Web","-","-","2018-06-14","Inactive"]
[null,205562,"Memory","Memory Transfer","GIGASTONE USB TO TYPE-C FLASH DRIVE 32GB","Universal",29.99,29.99,"-","Remove from Web","-","-","2018-11-08","Inactive"]
[null,205563,"Audio","Portable Speaker","HDMX Jamoji Love Struck","Universal",19.989999999999998,19.989999999999998,"-","Remove from Web","-","-","2018-06-14","Inactive"]
[null,205564,"Audio","Portable Speaker","HDMX Jamoji Chocolate Swirl","Universal",19.989999999999998,19.989999999999998,"-","Remove from Web","-","-","2018-06-14","Inactive"]
[null,205565,"Entertainment","Drone","DJI Spark","Universal",399.99,399.99,"-","Remove from Web","-","-","2018-11-08","Inactive"]
[null,205566,"Entertainment","Game and Toy","Tzumi Pop Solo Blk","Universal",14.99,14.99,"-","Remove from Web","-","-","2018-06-14","Inactive"]
[null,205567,"Charger","Universal Wall","Ventev Wallport r430 Gry","Universal",24.99,24.99,"-","Remove from Web","-","-","2018-06-14","Inactive"]
[null,205568,"Charger","Universal Wall","Ventev Wallport r2300 3A/2.4A","Universal",34.99,34.99,"-","Remove from Web","-","-","2019-03-07","Inactive"]
[null,205569,"Charger","Android Wall","Ventev Wallport rq1300 A to C","Universal",39.99,39.99,"-","Not On Flash","-","-","2019-03-07","Inactive"]
[null,205570,"Charger","Apple Cable","Ventev Lightning Alloy Cable 4ft Gry","Universal",24.99,24.99,"-","Include on Web, Available","-","-","2022-05-27","Active"]
[null,205577,"Charger","Apple Car Charger","Ventev Dashport r2340C Lightning","Universal",34.99,34.99,"-","Include on Web, Available","-","-","2022-08-19","Active"]
[null,205578,"Case","Fashion Case","IPHONE X EVO WAVE TEAL","iPhone X/Xs",39.99,39.99,"-","Remove from Web","-","-","2018-09-13","Inactive"]
[null,205579,"Screen Protection","Liquid","GadgetGuard Black Ice Liquid Screen Plus","Universal",49.99,49.99,"-","Include on Web, Available","-","-","2022-11-01","Active"]
[null,205580,"Screen Protection","Liquid","GadgetGuard Black Ice Liquid Screen","Universal",39.99,39.99,"-","Remove from Web","-","-","2019-04-01","Inactive"]
[null,205597,"Connected Home","Smart Speaker","JBL LINK 10 BLK","Universal",149.99,149.99,"-","Remove from Web","-","-","2019-11-01","Inactive"]
[null,205598,"Audio","Wired On-Ear","eKids Frozen Headphone Noise Limit","Universal",15.99,15.99,"-","Remove from Web","-","-","2018-03-09","Inactive"]
[null,205599,"Audio","Wired On-Ear","eKids Trolls Headphone Noise Limit","Universal",24.99,24.99,"-","Remove from Web","-","-","2018-03-09","Inactive"]
[null,205600,"Wearable","Health and Fitness","GARMIN VIVOSMART 3 BLK S/M","Universal",99.99,99.99,"-","Remove from Web","-","-","2018-11-08","Inactive"]
[null,205601,"Audio","Wired On-Ear","eKids Star Wars Headphone Noise Limit","Universal",15.99,15.99,"-","Remove from Web","-","-","2018-03-09","Inactive"]
[null,205602,"Connected Home","Thermostat","GOOGLE NEST THERMOSTAT E","Universal",169.99,169.99,"-","Remove from Web","-","-","2020-08-25","Inactive"]
[null,205603,"Audio","Wired On-Ear","eKids Spiderman Headphone Noise Limit","Universal",24.99,24.99,"-","Remove from Web","-","-","2018-03-09","Inactive"]
[null,205604,"Connected Home","Indoor Camera","GOOGLE NEST CAM IQ INDOOR","Universal",299.99,299.99,"-","Remove from Web","-","-","2019-06-01","Inactive"]
[null,205630,"Charger","Apple Cable","Ventev Lightning Alloy Cable 4ft RoseGld","Universal",24.99,24.99,"-","Remove from Web","-","-","2019-06-01","Inactive"]
[null,205631,"Charger","Android Cable","Ventev A to C Alloy Cable 4ft Steel Gry","Universal",24.99,24.99,"-","Include on Web, Available","-","-","2022-08-19","Active"]
[null,205632,"Charger","Android Cable","Ventev A to C Alloy Cable 4ft Rose Gold","Universal",24.99,24.99,"-","Remove from Web","-","-","2019-06-01","Inactive"]
[null,205633,"Charger","Android Cable","Ventev C to C Alloy Cable 4ft Steel Gray","Universal",24.99,24.99,"-","Include on Web, Available","-","-","2022-08-19","Active"]
[null,205637,"Charger","Universal Car Charger","Ventev Dashport rq2300 3A/2.4A","Universal",34.99,34.99,"-","Remove from Web","-","-","2019-06-01","Inactive"]
[null,205638,"Charger","Android Car Charger","Ventev dashport r2400cTypeC 3.0A/1A","Universal",34.99,34.99,"-","Include on Web, Available","-","-","2022-08-19","Active"]
[null,205639,"Screen Protection","Plastic","Random Order LG V30 TPU Scrn - 3pk","LG V30",9.99,9.99,"-","Remove from Web","-","-","2018-06-14","Inactive"]
[null,205643,"Wearable","Apple Wearable","APL Watch S3 Gray Alum Blk Sport 38mm","Apple Watch",199,199,"-","Remove from Web","-","-","2020-08-25","Inactive"]
[null,205644,"Wearable","Apple Wearable","APL Watch S3 Gold Alum Pnk Sport 38mm","Apple Watch",199,199,"-","Remove from Web","-","-","2020-08-25","Inactive"]
[null,205645,"Wearable","Apple Wearable","APL Watch S3 Sil Alum Gry Sport 42mm","Apple Watch",229,229,"-","Remove from Web","-","-","2018-06-14","Inactive"]
[null,205646,"Wearable","Apple Wearable","APL Watch S3 Gray Alum Blk Sport 42mm","Apple Watch",229,229,"-","Remove from Web","-","-","2020-08-25","Inactive"]
[null,205667,"Entertainment","Virtual and Augmented Reality","Google Daydream View v2","Universal",99.99,99.99,"-","Remove from Web","-","-","2018-09-13","Inactive"]
[null,205668,"Connected Home","Smart Speaker","GOOGLE HOME MINI WHT","Universal",49.99,49.99,"-","Remove from Web","-","-","2020-08-25","Inactive"]
[null,205683,"Non Accessory","Try On Accessory","APL Watch S3 Gold Alum 38mm Try On","Apple Watch",0.01,0.01,"-","Remove from Web","-","-","2018-09-13","Demo"]
[null,205684,"Non Accessory","Try On Accessory","APL Watch S3 Sil Alum 42mm Try On","Apple Watch",0.01,0.01,"-","Remove from Web","-","-","2018-09-13","Demo"]
[null,205709,"Non Accessory","Demo Accessory","APL Sprt Band Wht S/M and M/L 38mm Demo","Apple Watch",0.01,0.01,"-","Remove from Web","-","-","2019-03-07","Demo"]
[null,205710,"Non Accessory","Demo Accessory","APL Sprt Band Gry S/M and M/L 42mm Demo","Apple Watch",0.01,0.01,"-","Remove from Web","-","-","2019-03-07","Demo"]
[null,205738,"Audio","Wireless Over-Ear","Beats Studio3 Wireless Over-Ear Blk","Universal",149.99,149.99,"-","Remove from Web","-","-","2021-02-19","Inactive"]
[null,205832,"Audio","Portable Speaker","Ultimate Ears Boom 2 Limited Ed","Universal",99.99,99.99,"-","Remove from Web","-","-","2018-03-09","Inactive"]
[null,205863,"Wearable","Samsung Wearable","Samsung Gear Sport Blk","Universal",299.99,299.99,"-","Remove from Web","-","-","2019-11-01","Inactive"]
[null,205864,"Entertainment","Drone","PARROT MAMBO MINIDRONE BLK","Universal",109.99,109.99,"-","Remove from Web","-","-","2018-11-08","Inactive"]
[null,206004,"Case","Tablet Case","SPECK STYLEFOLIO FLEX 7-8.5  PINK","Universal",39.99,39.99,"-","Remove from Web","-","-","2019-11-01","Inactive"]
[null,206005,"Case","Tablet Case","Speck StyleFolio Flex 7-8.5 Black","Universal",39.99,39.99,"-","Remove from Web","-","-","2021-05-17","Inactive"]
[null,206006,"Case","Tablet Case","Speck StyleFolio Flex 9-10.5 Black","Universal",44.99,44.99,"-","Remove from Web","-","-","2021-05-17","Inactive"]
[null,206023,"Connected Home","Smart Speaker","GOOGLE HOME MINI - GRAY","Universal",49.99,49.99,"-","Remove from Web","-","-","2019-11-01","Inactive"]
[null,206024,"Miscellaneous Accessory","Mount and Dock","RAM MOUNTS INTELLISKIN SAMSUNG TAB E 8","Samsung Tab E 8.0",46.99,46.99,"-","Remove from Web","-","-","2019-09-01","Inactive"]
[null,206025,"Charger","Universal Car Charger","Ventev dashpport r1240 universal 2.4","Universal",24.99,24.99,"-","Remove from Web","-","-","2018-06-14","Inactive"]
[null,206026,"Miscellaneous Accessory","Mount and Dock","RAM DOUBLE SOCKET ARM MOUNT","Universal",31.99,31.99,"-","Remove from Web","-","-","2019-11-16","Inactive"]
[null,206042,"Miscellaneous Accessory","Mount and Dock","RAM INTELLISKIN GDS FOR SAMSUNG TABE 9.6","Samsung Tab E 9.6",56.99,56.99,"-","Remove from Web","-","-","2019-11-16","Inactive"]
[null,206048,"Entertainment","Virtual and Augmented Reality","STAR WARS JEDI CHALLENGE AR HEADSET","Universal",99.99,99.99,"-","Remove from Web","-","-","2019-03-07","Inactive"]
[null,206051,"Charger","Wireless Dock Charger","TYLT VU Wireless Charger blue","Universal",19.989999999999998,19.989999999999998,"-","Remove from Web","-","-","2018-11-08","Inactive"]
[null,206059,"Miscellaneous Accessory","Mount and Dock","RAM 1INCH BALL MOUNT","Universal",20.99,20.99,"-","Remove from Web","-","-","2019-11-16","Inactive"]
[null,206060,"Miscellaneous Accessory","Mount and Dock","RAM STEP DOWN CONVERTER CHARGER","Universal",17.989999999999998,17.989999999999998,"-","Remove from Web","-","-","2019-11-16","Inactive"]
[null,206063,"Miscellaneous Accessory","Mount and Dock","RAM VEHICLE DOCK SAMSUNG TAB E 9.6","Universal",86.99,86.99,"-","Remove from Web","-",{"$f":"IF(I967=\"Status Changed\",\"Status Changed\",IF(K967=\"Status Changed\",\"Status Changed\",\"-\"))","v":"-"},"2019-11-16","Inactive"]
[null,206064,"Miscellaneous Accessory","Mount and Dock","RAM VEHICLE DOCK SAMSUNG TAB E 8.0","Universal",79.989999999999995,79.989999999999995,"-","Remove from Web","-","-","2019-11-16","Inactive"]
[null,206126,"Screen Protection","Glass","MOTO Z2 FORCE GADGRDBLKICE GLASSSCRNPROT","Moto Z",39.99,39.99,"-","Not On Flash","-","-","2018-11-08","Inactive"]
[null,206127,"Connected Home","Smart Speaker","AMAZON ECHO GEN 2 GRAY","Universal",69.989999999999995,69.989999999999995,"-","Remove from Web","-","-","2019-06-01","Inactive"]
[null,206128,"Connected Home","Home Protection","NEST SECURE ALARM SYSTEM STARTER PACK","Universal",499.99,499.99,"-","Remove from Web","-","-","00:00:00","Not Launching"]
[null,206142,"Charger","Wireless Dock Charger","Mophie Wireless Charger 7.5","Universal",59.99,59.99,"-","Remove from Web","-","-","2018-11-08","Inactive"]
[null,207553,"Case","Soft Case","Galaxy S9 plus Samsung S-View Blk","Galaxy S9+",59.99,59.99,"-","Remove from Web","-","-","2019-03-07","Inactive"]
[null,207554,"Case","Fashion Case","GALAXY S9 KATE SPADE SCATTER DOT","Galaxy S9",39.99,39.99,"-","Remove from Web","-","-","2019-03-07","Inactive"]
[null,207555,"Case","Other Case","Galaxy S9 plus Samsung S-View Purp","Galaxy S9+",59.99,59.99,"-","Remove from Web","-","-","2019-03-07","Inactive"]
[null,207556,"Case","Fashion Case","Galaxy S9 UA Protect Grn","Galaxy S9",24.99,24.99,"-","Not On Flash","-","-","2019-03-07","Inactive"]
[null,207574,"Screen Protection","Glass","Galaxy S9 BodyGuardz Glass Scrn Prot","Galaxy S9",49.99,49.99,"-","Remove from Web","-","-","2019-06-01","Inactive"]
[null,207575,"Case","Hard Case","GALAXY S9 OTTERBOX COMMUTER TEAL","Galaxy S9",39.99,39.99,"-","Remove from Web","-","-","2019-06-01","Inactive"]
[null,207576,"Screen Protection","Glass","Galaxy S9 plus BodyGuardz Glass Scrn","Galaxy S9+",49.99,49.99,"-","Remove from Web","-","-","2019-06-01","Inactive"]
[null,207640,"Case","Fashion Case","GALAXY S9 PLUS OTTERBOX SYMMETRY GLITTER","Galaxy S9+",49.99,49.99,"-","Remove from Web","-","-","2019-06-01","Inactive"]
[null,207641,"Case","Other Case","Galaxy S9 Samsung S-View Blk","Galaxy S9",59.99,59.99,"-","Remove from Web","-","-","2019-03-07","Inactive"]
[null,207642,"Case","Other Case","Galaxy S9 Samsung S-View Purp","Galaxy S9",59.99,59.99,"-","Remove from Web","-","-","2018-11-01T01:00:00","Inactive"]
[null,207643,"Case","Fashion Case","Galaxy S9 Samsung HYPERKNIT Red","Galaxy S9",34.99,34.99,"-","Remove from Web","-","-","2019-03-07","Inactive"]
[null,207644,"Case","Hard Case","Galaxy S9 Samsung Kickstand Blk","Galaxy S9",39.99,39.99,"-","Remove from Web","-","-","2019-03-07","Inactive"]
[null,207663,"Charger","Other Charger","Samsung Fast Charge Power Bundle","Universal",124.99,124.99,"-","Remove from Web","-","-","2019-03-07T01:00:00","Inactive"]
[null,207664,"Charger","Universal Portable Charger","IWALK SCORPION 8000 PORTABLE CHARGER SLV","Universal",59.99,59.99,"-","Remove from Web","-","-","2019-06-01","Inactive"]
[null,207665,"Connected Home","Networking","WEBOOST DRIVE SLEEK","Universal",199.99,199.99,"-","Include on Web, Available","-","-","2023-03-01","Active"]
[null,207666,"Charger","Wireless Dock Charger","DockAll Fast Wireless Charging Sound Hub","Universal",59.99,59.99,"-","Remove from Web","-","-","2019-03-07","Inactive"]
[null,207668,"Case","Hard Case","GALAXY S9 PLUS OTTERBOX COMMUTER BLK","Galaxy S9+",44.99,44.99,"-","Remove from Web","-","-","2019-06-01","Inactive"]
[null,207669,"Case","Hard Case","GALAXY S9 PLUS OTTERBOX COMMUTER TEAL","Galaxy S9+",29.99,29.99,"-","Remove from Web","-","-","2019-06-01","Inactive"]
[null,207670,"Case","Waterproof Case","GALAXY S9 PLUS LIFEPROOF FRE BLK","Galaxy S9+",89.99,89.99,"-","Remove from Web","-","-","2019-06-01","Inactive"]
[null,207673,"Case","Waterproof Case","GALAXY S9 PLUS LIFEPROOF FRE TEAL","Galaxy S9+",89.99,89.99,"-","Not On Flash","-","-","2019-03-07","Inactive"]
[null,207674,"Case","Fashion Case","GALAXY S9 PLUS CASE-MATE WATERFALL PNK","Galaxy S9+",39.99,39.99,"-","Remove from Web","-","-","2019-06-01","Inactive"]
[null,207677,"Case","Clip Case","GALAXY S9 OTTERBOX DEFENDER BLK","Galaxy S9",49.99,49.99,"-","Remove from Web","-","-","2020-02-16","Inactive"]
[null,207678,"Case","Waterproof Case","GALAXY S9 LIFEPROOF FRE TEAL","Galaxy S9",89.99,89.99,"-","Remove from Web","-","-","2019-03-07","Inactive"]
[null,207679,"Case","Clip Case","GALAXY S9 PLUS OTTERBOX DEFENDER BLK","Galaxy S9+",54.99,54.99,"-","Remove from Web","-","-","2019-06-01","Inactive"]
[null,207680,"Case","Waterproof Case","GALAXY S9 LIFEPROOF FRE BLK","Galaxy S9",89.99,89.99,"-","Remove from Web","-","-","2019-09-01","Inactive"]
[null,207681,"Case","Fashion Case","GALAXY S9 CASE-MATE WATERFALL PNK","Galaxy S9",39.99,39.99,"-","Not On Flash","-","-","2019-03-07","Inactive"]
[null,207682,"Case","Clip Case","GALAXY S9 PLUS OTTERBOX DEFENDER PURP","Galaxy S9+",54.99,54.99,"-","Remove from Web","-","-","2019-06-01","Inactive"]
[null,207683,"Case","Fashion Case","GALAXY S9 OTTERBOX SYMMETRY GLITTER","Galaxy S9",44.99,44.99,"-","Remove from Web","-","-","2020-02-16","Inactive"]
[null,207684,"Case","Clip Case","GALAXY S9 OTTERBOX DEFENDER CAMO","Galaxy S9",54.99,54.99,"-","Remove from Web","-","-","2020-02-01","Inactive"]
[null,207685,"Case","Clip Case","GALAXY S9 PLUS OTTERBOX DEFENDER TEAL","Galaxy S9+",54.99,54.99,"-","Remove from Web","-","-","2019-06-01","Inactive"]
[null,207686,"Case","Hard Case","GALAXY S9 OTTERBOX COMMUTER BLK","Galaxy S9",39.99,39.99,"-","Remove from Web","-","-","2020-02-16","Inactive"]
[null,207687,"Case","Clip Case","GALAXY S9 OTTERBOX DEFENDER PURP","Galaxy S9",49.99,49.99,"-","Remove from Web","-","-","2019-08-01","Inactive"]
[null,207692,"Charger","Wireless Portable Charger","TYLT Wireless Portable Charger - 5K","Universal",49.99,49.99,"-","Remove from Web","-","-","2019-11-01","Inactive"]
[null,207703,"Case","Soft Case","GALAXY S9 TECH21 PURE CLR","Galaxy S9",39.99,39.99,"-","Remove from Web","-","-","2020-02-16","Inactive"]
[null,207704,"Case","Soft Case","GALAXY S9 TECH21 CHECK BLK","Galaxy S9",39.99,39.99,"-","Remove from Web","-","-","2020-02-16","Inactive"]
[null,207705,"Case","Soft Case","GALAXY S9 PLUS TECH21 CHECK BLK","Galaxy S9+",44.99,44.99,"-","Remove from Web","-","-","2019-06-01","Inactive"]
[null,207706,"Case","Soft Case","GALAXY S9 TECH21 CHECK PURP","Galaxy S9",39.99,39.99,"-","Remove from Web","-","-","2019-06-01","Inactive"]
[null,207717,"Case","Fashion Case","Galaxy S9 plus Samsung HYPERKNIT Red","Galaxy S9+",34.99,34.99,"-","Remove from Web","-","-","2019-03-07","Inactive"]
[null,207718,"Case","Fashion Case","GALAXY S9 PLUS KATE SPADE BLOSSOM","Galaxy S9+",39.99,39.99,"-","Remove from Web","-","-","2019-03-07","Inactive"]
[null,207719,"Case","Hard Case","Galaxy S9 plus Samsung Kickstand Blk","Galaxy S9+",39.99,39.99,"-","Remove from Web","-","-","2019-03-07","Inactive"]
[null,207720,"Case","Fashion Case","GALAXY S9 PLUS KATE SPADE SCATTER DOT","Galaxy S9+",29.99,29.99,"-","Not On Flash","-","-","2019-03-07","Inactive"]
[null,207721,"Case","Fashion Case","GALAXY S9 KATE SPADE BLOSSOM","Galaxy S9",39.99,39.99,"-","Remove from Web","-","-","2019-06-01","Inactive"]
[null,207722,"Case","Fashion Case","Galaxy S9 plus UA Protect Grn","Galaxy S9+",39.99,39.99,"-","Remove from Web","-","-","2018-09-13","Inactive"]
[null,207727,"Case","Soft Case","GALAXY S9 PLUS TECH21 CHECK PURP","Galaxy S9+",39.99,39.99,"-","Remove from Web","-","-","2019-06-01","Inactive"]
[null,207728,"Case","Soft Case","GALAXY S9 TECH21 LUXE BLK","Galaxy S9",24.99,24.99,"-","Not On Flash","-","-","2019-03-07","Inactive"]
[null,207729,"Case","Soft Case","GALAXY S9 PLUS TECH21 LUXE BLK","Galaxy S9+",29.99,29.99,"-","Not On Flash","-","-","2019-03-07","Inactive"]
[null,207730,"Case","Soft Case","GALAXY S9 PLUS TECH21 PURE CLR","Galaxy S9+",44.99,44.99,"-","Remove from Web","-","-","2019-06-01","Inactive"]
[null,207761,"Case","Hard Case","LG K8 PLUS 2018 OTTERBOX COMMUTER BLK","LG K8+ 2018",39.99,39.99,"-","Remove from Web","-","-","2019-06-01","Inactive"]
[null,207762,"Case","Hard Case","LG K8 PLUS 2018 OTTERBOX COMMUTER PURP","LG K8+ 2018",39.99,39.99,"-","Remove from Web","-","-","2019-06-01","Inactive"]
[null,207763,"Screen Protection","Glass","LG K8 plus 2018 Bodyguardz Glass Scrn Pr","LG K8+ 2018",39.99,39.99,"-","Remove from Web","-","-","2019-06-01","Inactive"]
[null,207764,"Case","Soft Case","LG K8 plus 2018 tech21 Shell Clear","LG K8+ 2018",29.99,29.99,"-","Remove from Web","-","-","2019-06-01","Inactive"]
[null,207765,"Case","Soft Case","LG K8 plus 2018 tech21 Shell Blk","LG K8+ 2018",29.99,29.99,"-","Remove from Web","-","-","2018-11-08","Inactive"]
[null,207893,"Charger","Wearable Charger","BELKIN PORTABLE CHARGER AND APPLE DOCK","Universal",79.989999999999995,79.989999999999995,"-","Remove from Web","-","-","2019-09-01","Inactive"]
[null,207992,"Connected Home","Indoor Camera","GUARDZILLA ALL-IN-ONE HD SECURITY CAMERA","Universal",49.99,49.99,"-","Remove from Web","-","-","2019-09-01","Inactive"]
[null,207993,"Audio","Wireless Over-Ear","JBL DUETNC BT BLK","Universal",129.99,129.99,"-","Remove from Web","-","-","2019-09-01","Inactive"]
[null,207994,"Audio","Wireless In-Ear","JBL DUET MINI BT BLK","Universal",39.99,39.99,"-","Remove from Web","-","-","2018-09-13","Inactive"]
[null,207995,"Miscellaneous Accessory","Mount and Dock","Samsung DeX Pad","Universal",99.99,99.99,"-","Remove from Web","-","-","2019-03-07T01:00:00","Inactive"]
[null,207996,"Audio","Wireless In-Ear","IFROGZ IMPLUSE DUO BT BLK","Universal",29.99,29.99,"-","Not On Flash","-","-","2019-03-07","Inactive"]
[null,208013,"Audio","Wireless On-Ear","PLANTRONICS BACKBEAT 505 WIRELESS BLK","Universal",79.989999999999995,79.989999999999995,"-","Remove from Web","-",{"$f":"IF(I1031=\"Status Changed\",\"Status Changed\",IF(K1031=\"Status Changed\",\"Status Changed\",\"-\"))","v":"-"},"2019-06-01","Inactive"]
[null,208014,"Connected Home","Doorbell and Lock","AUGUST CONNECT","Universal",79.989999999999995,79.989999999999995,"-","Remove from Web","-","-","2018-09-13","Inactive"]
[null,208015,"Connected Home","Doorbell and Lock","AUGUST SMART LOCK","Universal",149.99,149.99,"-","Remove from Web","-","-","2019-06-01","Inactive"]
[null,208016,"Audio","True Wireless","Bragi The Headphone","Universal",149.99,149.99,"-","Remove from Web","-","-","2018-09-13","Inactive"]
[null,208047,"Screen Protection","Cleaner","SCREENDR SCREEN CLEANER 2OZ","Universal",9.99,9.99,"-","Remove from Web","-","-","2019-06-01","Inactive"]
[null,208048,"Charger","Wireless Dock Charger","Ventev Wireless Charging Dock","Universal",59.99,59.99,"-","Remove from Web","-","-","2019-09-01","Inactive"]
[null,208049,"Audio","Wired In-Ear","Beats urBeats3 Blk","Universal",79.989999999999995,79.989999999999995,"-","Remove from Web","-","-","2019-06-01","Inactive"]
[null,208050,"Audio","Wired In-Ear","Apple EarPods Lightning Connector","Universal",19.989999999999998,19.989999999999998,"-","Include on Web, Available","-","-","2023-03-01","Active"]
[null,208173,"Connected Home","Streaming Device","AMAZON FIRE TV STICK","Universal",39.99,39.99,"-","Remove from Web","-","-","2019-06-01","Inactive"]
[null,208248,"Miscellaneous Accessory","Mount and Dock","KENU MAGNETIC VENT MOUNT","Universal",24.99,24.99,"-","Remove from Web","-","-","2019-06-01","Inactive"]
[null,208249,"Audio","Wired In-Ear","HAPPY PLUGS EARBUD PLUS GOLD","Universal",29.99,29.99,"-","Remove from Web","-","-","2018-09-13","Inactive"]
[null,208250,"Audio","Wired In-Ear","HAPPY PLUGS EARBUD PLUS WHT MARBLE","Universal",29.99,29.99,"-","Remove from Web","-","-","2018-09-13","Inactive"]
[null,208287,"Connected Home","Streaming Device","Apple TV 4K 32GB","Universal",179,179,"-","Not On Flash","-","-","00:00:00","Demo"]
[null,208784,"Case","Clip Case","LG G7 CASE-MATE WATERFALL ROSE GOLD","LG G7",39.99,39.99,"-","Remove from Web","-","-","2018-11-06T23:00:00","Inactive"]
[null,208785,"Case","Clip Case","LG G7 OTTERBOX DEFENDER BLK","LG G7",49.99,49.99,"-","Remove from Web","-","-","2018-11-06T23:00:00","Inactive"]
[null,208786,"Case","Clip Case","LG G7 OTTERBOX DEFENDER PURP","LG G7",49.99,49.99,"-","Remove from Web","-","-","2018-11-06T23:00:00","Inactive"]
[null,208947,"Screen Protection","Glass","LG G7 Bodyguardz Glass Scrn Prot","LG G7",39.99,39.99,"-","Remove from Web","-","-","2018-09-13","Inactive"]
[null,208948,"Case","Soft Case","LG G7 GEAR4 PICCADILLY CLR/BLK","LG G7",39.99,39.99,"-","Remove from Web","-","-","2018-11-06T23:00:00","Inactive"]
[null,209055,"Charger","Universal Portable Charger","PUREGEAR 3000MAH PUREJUICE BLK","Universal",19.989999999999998,19.989999999999998,"-","Remove from Web","-","-","2019-11-01","Inactive"]
[null,209059,"Case","Hard Case","ZTE CYMBAL 2 GEAR4 WEMBLEY BLK","ZTE Cymbal 2",29.99,29.99,"-","Remove from Web","-","-","00:00:00","Not Launching"]
[null,209062,"Case","Hard Case","MOTO E5 PLUS INCIPIO OCTANE BLK","Moto E5 plus",24.99,24.99,"-","Remove from Web","-","-","00:00:00","Not Launching"]
[null,209063,"Case","Hard Case","MOTO E5 PLUS INCIPIO OCTANE PURP","Moto E5 plus",24.99,24.99,"-","Remove from Web","-","-","00:00:00","Not Launching"]
[null,209064,"Screen Protection","Glass","Moto E5 plus Bodyguard Glass Scrn","Moto E5 plus",39.99,39.99,"-","Remove from Web","-","-","00:00:00","Not Launching"]
[null,209065,"Case","Soft Case","MOTO E5 PLUS GEAR4 PICCADILLY BLK","Moto E5 plus",39.99,39.99,"-","Remove from Web","-","-","00:00:00","Not Launching"]
[null,209066,"Case","Soft Case","MOTO E5 PLUS GEAR4 PICCADILLY PNK","Moto E5 plus",39.99,39.99,"-","Remove from Web","-","-","00:00:00","Not Launching"]
[null,209126,"Case","Other Case","APL WATCH BUMPER CLR 42MM","Universal",4.99,4.99,"-","Remove from Web","-","-","2020-08-25","Inactive"]
[null,209190,"Case","Other Case","APL Watch Band Apple Sport Nike 42mm","Apple Watch",19.989999999999998,19.989999999999998,"-","Remove from Web","-","-","2020-08-25","Inactive"]
[null,209191,"Case","Other Case","APL Watch Band Apple Woven Pnk 38mm","Universal",19.989999999999998,19.989999999999998,"-","Remove from Web","-","-","2020-08-25","Inactive"]
[null,209192,"Case","Other Case","APL Watch Band Apple Woven Wht 38mm","Universal",19.989999999999998,19.989999999999998,"-","Remove from Web","-","-","2020-08-25","Inactive"]
[null,209206,"Case","Fashion Case","IPHONE 8 PLUS KATE SPADE SAFFIANO BLK","iPhone 6/6s/7/8 Plus",39.99,39.99,"-","Remove from Web","-","-","2019-06-01","Inactive"]
[null,209207,"Case","Fashion Case","IPHONE 8 KATE SPADE SAFFIANO BLK","iPhone 6/6s/7/8",34.99,34.99,"-","Remove from Web","-","-","2019-06-01","Inactive"]
[null,209208,"Case","Fashion Case","IPHONE 8 KATE SPADE LACE CAGE BLK","iPhone 6/6s/7/8",34.99,34.99,"-","Remove from Web","-","-","2019-03-07T01:00:00","Inactive"]
[null,209209,"Case","Fashion Case","IPHONE X KATE SPADE SAFFIANO BLK","iPhone X/Xs",49.99,49.99,"-","Remove from Web","-","-","2018-11-08","Inactive"]
[null,209215,"Case","Fashion Case","IPHONE 8 OTTERBOX DARTH","iPhone 6/6s/7/8",29.99,29.99,"-","Remove from Web","-","-","2019-03-07T01:00:00","Inactive"]
[null,209216,"Case","Fashion Case","IPHONE 8 OTTERBOX CAPTAIN AMERICA","iPhone 6/6s/7/8",29.99,29.99,"-","Remove from Web","-","-","2019-03-07T01:00:00","Inactive"]
[null,209231,"Wearable","Other Wearable","Belkin Mixit Apple Watch Cable RoseGold","Universal",49.99,49.99,"-","Remove from Web","-","-","2019-09-01","Inactive"]
[null,209232,"Wearable","Other Wearable","Belkin Mixit Apple Watch Cable Black","Universal",49.99,49.99,"-","Remove from Web","-","-","2019-09-01","Inactive"]
[null,209237,"Case","Fashion Case","IPHONE 8 PLUS OTTERBOX MICKEY","iPhone 6/6s/7/8 Plus",29.99,29.99,"-","Not On Flash","-","-","2019-03-07T01:00:00","Inactive"]
[null,209238,"Case","Other Case","APL WATCH BUMPER CLR 38MM","Universal",4.99,4.99,"-","Remove from Web","-","-","2020-08-25","Inactive"]
[null,209239,"Case","Fashion Case","IPHONE 8 PLUS OTTERBOX MINNIE","iPhone 6/6s/7/8 Plus",29.99,29.99,"-","Not On Flash","-","-","2019-03-07T01:00:00","Inactive"]
[null,209240,"Case","Fashion Case","IPHONE 8 PLUS OTTERBOX DARTH","iPhone 6/6s/7/8 Plus",29.99,29.99,"-","Remove from Web","-","-","2019-03-07T01:00:00","Inactive"]
[null,209241,"Case","Other Case","APL WATCH BAND CASE-MATE METAL BLK 42MM","Universal",19.989999999999998,19.989999999999998,"-","Remove from Web","-","-","2020-08-25","Inactive"]
[null,209242,"Case","Fashion Case","IPHONE 8 OTTERBOX MICKEY","iPhone 6/6s/7/8",29.99,29.99,"-","Remove from Web","-","-","2019-03-07T01:00:00","Inactive"]
[null,209243,"Case","Other Case","APL WATCH BAND CASE-MATE METAL PNK 38MM","Universal",19.989999999999998,19.989999999999998,"-","Remove from Web","-","-","2020-08-25","Inactive"]
[null,209244,"Case","Fashion Case","IPHONE 8 OTTERBOX MINNIE","iPhone 6/6s/7/8",29.99,29.99,"-","Remove from Web","-","-","2019-03-07T01:00:00","Inactive"]
[null,209245,"Wearable","Wearable Accessory","APL WATCH BAND CASE-MATE LEATHER BRN 42","Universal",39.99,39.99,"-","Remove from Web","-","-","2018-09-06","Inactive"]
[null,209280,"Charger","Android Wall","Ventev 121c Wall Chrger 2.1A Type C, Gry","Universal",24.99,24.99,"-","Include on Web, Available","-","-","2022-08-19","Active"]
[null,209289,"Charger","Android Cable","Ventev chargesync cable A-C Blk, 6ft","Universal",24.99,24.99,"-","Include on Web, Available","-","-","2022-08-19","Active"]
[null,209290,"Charger","Android Cable","Ventev chargesync Micro Cable Gry, 3.3ft","Universal",14.99,14.99,"-","Include on Web, Available","-","-","2022-05-27","Active"]
[null,209291,"Charger","Android Cable","Ventev chargesync Micro Cable Gry, 6ft","Universal",19.989999999999998,19.989999999999998,"-","Include on Web, Available","-","-","2022-08-19","Active"]
[null,209292,"Charger","Android Cable","Ventev 121c Wall Charger 2.1A Micro Gry","Universal",19.989999999999998,19.989999999999998,"-","Include on Web, Available","-","-","2022-08-19","Active"]
[null,209297,"Charger","Android Cable","Ventev 121c Car Charger 2.1 Micro Gry","Universal",24.99,24.99,"-","Include on Web, Available","-","-","2022-10-28","Active"]
[null,209298,"Charger","Apple Cable","Ventev chargesync Lightning 3ft-White","Universal",19.989999999999998,19.989999999999998,"-","Include on Web, Available","-","-","2022-05-27","Active"]
[null,209299,"Charger","Apple Cable","Ventev chargesync Lightning 6ft-White","Universal",24.99,24.99,"-","Include on Web, Available","-","-","2022-05-27","Active"]
[null,209300,"Charger","Android Cable","Ventev chargesync Cable A-C Blk, 3ft","Universal",19.989999999999998,19.989999999999998,"-","Include on Web, Available","-","-","2022-08-19","Active"]
[null,209309,"Charger","Wireless Car Charger","TZUMI WIRELESS INTELLIGRIP","Universal",59.99,59.99,"-","Remove from Web","-","-","2019-06-01","Inactive"]
[null,209316,"Case","Soft Case","MOTO Z3 PLAY GEAR4 PICCADILLY BLK","Moto Z3 Play",34.99,34.99,"-","Remove from Web","-","-","2019-06-01","Inactive"]
[null,209362,"Charger","Wireless Dock Charger","TWISTY WIRELESS CHARGER WOOD","Universal",59.99,59.99,"-","Remove from Web","-","-","2019-11-01","Inactive"]
[null,209364,"Charger","Other Charger","TYLT CHARGING BACKPACK","Universal",49.99,49.99,"-","Remove from Web","-","-","2019-03-07T01:00:00","Inactive"]
[null,209365,"Case","Fashion Case","KATE SPADE STABILITY RING BLK","Universal",19.989999999999998,19.989999999999998,"-","Remove from Web","-","-","2019-06-01","Inactive"]
[null,209366,"Case","Fashion Case","KATE SPADE STABILITY RING WHT","Universal",19.989999999999998,19.989999999999998,"-","Remove from Web","-","-","2019-06-01","Inactive"]
[null,209389,"Audio","Portable Speaker","JBL CLIP 3 BLK","Universal",49.99,49.99,"-","Temp. Unavailable, Remove from Web","-","-","2021-10-15","Inactive"]
[null,209390,"Audio","Wired In-Ear","JBL ENDURANCE RUN BLK","Universal",19.989999999999998,19.989999999999998,"-","Include on Web, Available","-","-","2023-01-01","Active"]
[null,209391,"Audio","Wireless In-Ear","JBL TUNE 205BT BLK","Universal",39.99,39.99,"-","Remove from Web","-","-","2019-03-07","Inactive"]
[null,209392,"Audio","Wireless In-Ear","JBL LIVE 200BT BLK","Universal",69.989999999999995,69.989999999999995,"-","Remove from Web","-",{"$f":"IF(I1095=\"Status Changed\",\"Status Changed\",IF(K1095=\"Status Changed\",\"Status Changed\",\"-\"))","v":"-"},"2019-11-01","Inactive"]
[null,209393,"Audio","Wireless In-Ear","JBL ENDURANCE SPRINT BLK","Universal",19.989999999999998,19.989999999999998,"-","Remove from Web","-","-","2021-02-19","Inactive"]
[null,209417,"Case","Other Case","CATALYST AIRPODS CASE GRY","Universal",14.99,14.99,"-","Remove from Web","-","-","2020-08-25","Inactive"]
[null,209418,"Connected Home","Tracker","TILE STYLE AND SPORT COMBO","Universal",59.99,59.99,"-","Remove from Web","-","-","2019-06-01","Inactive"]
[null,209419,"Audio","Wireless In-Ear","JLAB METAL BT BLK","Universal",24.99,24.99,"-","Remove from Web","-","-","2020-08-25","Inactive"]
[null,209420,"Entertainment","Drone","RYZE TELLO MINI DRONE","Universal",99.99,99.99,"-","Remove from Web","-","-","2019-06-01","Inactive"]
[null,209446,"Non Accessory","Demo Accessory","APL WATCH S3 CELL GOLD ALUM 38MM DEMO","Apple Watch",0.01,0.01,"-","Not On Flash","-","-","2019-03-07","Demo"]
[null,209458,"Wearable","Cellular Apple Wearable","APL WATCH S3 CELL GLD ALUM PNK 42","Apple Watch",329,329,"-","Remove from Web","-","-","2019-09-01","Inactive"]
[null,209459,"Wearable","Cellular Apple Wearable","APL WATCH S3 CELL GLD ALUM PNK 38","Apple Watch",299,299,"-","Remove from Web","-","-","2019-09-01","Inactive"]
[null,209460,"Wearable","Apple Wearable","APL WATCH S3 CELL GRY ALUM BLK 38","Apple Watch",299,299,"-","Remove from Web","-","-","2019-09-01","Inactive"]
[null,209461,"Wearable","Apple Wearable","APL WATCH S3 CELL GRY ALUM BLK 42","Apple Watch",329,329,"-","Remove from Web","-","-","2019-09-01","Inactive"]
[null,209550,"Case","Leather Case","IPHONE 8 APPLE LEATHER BLK","iPhone 6/6s/7/8",45,45,"-","Remove from Web","-","-","2019-09-01","Inactive"]
[null,209551,"Case","Leather Case","IPHONE 8 APPLE LEATHER BRN","iPhone 6/6s/7/8",45,45,"-","Remove from Web","-","-","2019-09-01","Inactive"]
[null,209552,"Case","Soft Case","IPHONE 8 APPLE SILICONE PNK","iPhone 6/6s/7/8",35,35,"-","Remove from Web","-","-","2019-09-01","Inactive"]
[null,209553,"Case","Leather Case","IPHONE 8 PLUS APPLE LEATHER BLK","iPhone 6/6s/7/8 Plus",49,49,"-","Remove from Web","-","-","2019-09-01","Inactive"]
[null,209554,"Case","Leather Case","IPHONE 8 PLUS APPLE LEATHER BRN","iPhone 6/6s/7/8 Plus",49,49,"-","Remove from Web","-","-","2019-09-01","Inactive"]
[null,209555,"Case","Soft Case","IPHONE 8 PLUS APPLE SILICONE PNK","iPhone 6/6s/7/8 Plus",39,39,"-","Remove from Web","-","-","2019-09-01","Inactive"]
[null,209556,"Case","Leather Case","IPHONE X APPLE LEATHER BLK","iPhone X/Xs",49,49,"-","Remove from Web","-","-","2019-09-01","Inactive"]
[null,209616,"Connected Home","Switch and Plug","WEMO MINI SMART PLUG","Universal",8.99,8.99,"-","Remove from Web","-","-","2020-08-25","Inactive"]
[null,209617,"Non Accessory","Demo Accessory","APL WATCH S3 CELL GRAY ALUM 42MM DEMO","Apple Watch",0.01,0.01,"-","Not On Flash","-","-","2019-03-07","Demo"]
[null,209654,"Non Accessory","Demo Accessory","APL SPRT BAND PNK S/M AND M/L 38MM DEMO","Apple Watch",0.01,0.01,"-","Not On Flash","-","-","2018-09-13","Demo"]
[null,209747,"Case","Hard Case","MOTO Z3 PLAY OTTERBOX COMMUTER BLK","Moto Z3 Play",39.99,39.99,"-","Remove from Web","-","-","2019-09-01","Inactive"]
[null,209748,"Case","Hard Case","MOTO Z3 PLAY OTTERBOX COMMUTER TEAL","Moto Z3 Play",34.99,34.99,"-","Remove from Web","-","-","2019-06-01","Inactive"]
[null,209749,"Screen Protection","Glass","MOTO Z3 PLAY BODYGUARDZ GLASS SCRN PROT","Moto Z3 Play",39.99,39.99,"-","Remove from Web","-","-","2019-09-01","Inactive"]
[null,209750,"Case","Hard Case","MOTO Z3 PLAY INCIPIO DUALPRO RED","Moto Z3 Play",29.99,29.99,"-","Remove from Web","-","-","2019-06-01","Inactive"]
[null,209751,"Case","Hard Case","MOTO Z3 PLAY INCIPIO DUALPRO SHINE","Moto Z3 Play",24.99,24.99,"-","Remove from Web","-","-","2019-03-31T23:00:00","Inactive"]
[null,209803,"Audio","Other Audio","APL LIGHTNING TO 3.5MM ADAPTER","Universal",9.99,9.99,"-","Include on Web, Available","-","-","2023-03-01","Active"]
[null,209807,"Case","Fashion Case","IPHONE X APPLE LEATHER BRN","iPhone X/Xs",49,49,"-","Remove from Web","-","-","2019-09-01","Inactive"]
[null,209808,"Case","Fashion Case","IPHONE X APPLE SILICONE PNK","iPhone X/Xs",39,39,"-","Remove from Web","-","-","2019-09-01","Inactive"]
[null,209829,"Charger","Other Charger","APPLE WATCH MAGNETIC CHARGING DOCK","Apple Watch",29.99,29.99,"-","Remove from Web","-","-","2021-02-19","Inactive"]
[null,209840,"Case","Soft Case","IPHONE SE2 OCTANE CLEAR BLK","iPhone SE2",0,0,"-","Remove from Web","-","-","2019-06-14","Not Launching"]
[null,209841,"Case","Soft Case","IPHONE SE2 OCTANE CLEAR BLUE","iPhone SE2",0,0,"-","Remove from Web","-","-","2019-06-14","Not Launching"]
[null,209842,"Case","Fashion Case","IPHONE SE2 CASE-MATE WATERFALL PNK","iPhone SE2",0,0,"-","Remove from Web","-","-","2019-06-14","Not Launching"]
[null,209843,"Screen Protection","Glass","IPHONE SE2 BODYGUARDZ PURE GLASS SCRN","iPhone SE2",0,0,"-","Remove from Web","-","-","2019-06-14","Not Launching"]
[null,209844,"Case","Soft Case","IPHONE SE2 TECH21 EVO MESH BLK","iPhone SE2",0,0,"-","Remove from Web","-","-","2019-06-14","Not Launching"]
[null,209883,"Charger","Wireless Dock Charger","SAMSUNG WIRELESS CHARGING BUNDLE","Universal",119.99,119.99,"-","Remove from Web","-","-","2019-09-01","Inactive"]
[null,209943,"Case","Soft Case","IPHONE SE2 TECH21 PURECLEAR","iPhone SE2",0,0,"-","Remove from Web","-","-","2019-06-14","Not Launching"]
[null,209944,"Case","Soft Case","IPHONE SE2 TECH21 EVO MESH PURP","iPhone SE2",0,0,"-","Remove from Web","-","-","2019-06-14","Not Launching"]
[null,210038,"Charger","Wireless Dock Charger","MOPHIE CHARGE STREAM PAD PLUS WHITE","Universal",59.99,59.99,"-","Remove from Web","-","-","2019-12-01","Inactive"]
[null,210203,"Case","Case Accessories","SAMSUNG NOTE 9 S PEN PURPLE","Note9",29.99,29.99,"-","Remove from Web","-","-","2019-10-31T23:00:00","Inactive"]
[null,210204,"Case","Case Accessories","SAMSUNG NOTE 9 S-PEN BLUE","Note9",29.99,29.99,"-","Remove from Web","-","-","2019-10-31T23:00:00","Inactive"]
[null,210265,"Case","Clip Case","SAM NOTE9 OTTERBOX DEFENDER BLK","Note9",59.99,59.99,"-","Remove from Web","-","-","2019-09-15","Inactive"]
[null,210266,"Case","Hard Case","SAM NOTE9 OTTERBOX SYMMETRY PURP","Note9",49.99,49.99,"-","Remove from Web","-","-","2019-09-15","Inactive"]
[null,210289,"Case","Fashion Case","SAM J7 AURA INCIPIO SPRING FLORAL","Samsung J7 Aura",24.99,24.99,"-","Remove from Web","-","-","00:00:00","Not Launching"]
[null,210290,"Case","Hard Case","SAM J7 AURA INCIPIO NGP CLR","Samsung J7 Aura",19.989999999999998,19.989999999999998,"-","Remove from Web","-","-","2019-11-01","Inactive"]
[null,210291,"Case","Fashion Case","SAM NOTE 9 INCIPIO CARNABY GRY","Note9",34.99,34.99,"-","Remove from Web","-","-","00:00:00","Not Launching"]
[null,210292,"Case","Fashion Case","SAM NOTE 9 KATE SPADE BLOSSOM","Note9",39.99,39.99,"-","Remove from Web","-","-","2019-09-15","Inactive"]
[null,210293,"Case","Hard Case","SAM J7 AURA OTTERBOX SYMMETRY BLK","Samsung J7 Aura",39.99,39.99,"-","Remove from Web","-","-","2019-11-01","Inactive"]
[null,210298,"Case","Hard Case","SAM J7 AURA OTTERBOX SYMMETRY TEAL","Samsung J7 Aura",39.99,39.99,"-","Remove from Web","-","-","2019-11-01","Inactive"]
[null,210304,"Case","Soft Case","SAM NOTE 9 TECH21 EVO CHECK BLK","Note9",44.99,44.99,"-","Remove from Web","-","-","2019-09-15","Inactive"]
[null,210305,"Case","Soft Case","SAM NOTE 9 TECH21 EVO CHECK PURP","Note9",44.99,44.99,"-","Remove from Web","-","-","2019-09-15","Inactive"]
[null,210306,"Screen Protection","Glass","SAM J7 AURA GADGET GUARD GLASS SCRN PROT","Samsung J7 Aura",39.99,39.99,"-","Remove from Web","-","-","2019-11-01","Inactive"]
[null,210307,"Case","Hard Case","SAM NOTE 9 OTTERBOX SYMMETRY BLK","Note9",49.99,49.99,"-","Remove from Web","-","-","2019-09-15","Inactive"]
[null,210308,"Case","Fashion Case","SAM NOTE 9 OTTERBOX SYMMETRY GLITTER","Note9",49.99,49.99,"-","Remove from Web","-","-","2019-09-15","Inactive"]
[null,210309,"Case","Hard Case","SAM NOTE 9 TECH21 PURE CLR","Note9",44.99,44.99,"-","Remove from Web","-","-","2019-09-15","Inactive"]
[null,210317,"Screen Protection","Glass","SAM NOTE 9 GADGET GUARD GLASS SCRN PROT","Note9",49.99,49.99,"-","Remove from Web","-","-","2019-09-15","Inactive"]
[null,210318,"Case","Other Case","SAM NOTE 9 SAMSUNG S-VIEW BLK","Note9",59.99,59.99,"-","Remove from Web","-","-","2019-09-15","Inactive"]
[null,210327,"Case","Other Case","SAM NOTE 9 SAMSUNG S-VIEW PURP","Note9",59.99,59.99,"-","Remove from Web","-","-","2019-09-15","Inactive","*EOL removed via EPC sub"]
[null,210328,"Case","Other Case","SAM NOTE 9 SAMSUNG KICKSTAND BLK","Note9",39.99,39.99,"-","Remove from Web","-","-","2019-09-15","Inactive","*EOL removed via EPC sub"]
[null,210329,"Charger","Wireless Dock Charger","SAMSUNG WIRELESS CHARGER DUO BLACK","Universal",99.99,99.99,"-","Remove from Web","-","-","2019-06-01","Inactive","*EOL removed via EPC sub"]
[null,210330,"Charger","Wireless Dock Charger","SAMSUNG DUO WIRELESS CHARGER WHITE","Universal",99.99,99.99,"-","Remove from Web","-","-","2019-06-01","Inactive"]
[null,210438,"Audio","Wireless In-Ear","AKG Y100 WIRELESS BLK","Universal",69.989999999999995,69.989999999999995,"-","Remove from Web","-","-","2019-11-01","Inactive"]
[null,210439,"Audio","Wireless On-Ear","AKG Y500 WIRELESS BLK","Universal",99.99,99.99,"-","Remove from Web","-","-","2019-11-01","Inactive"]
[null,210505,"Charger","Apple Car Charger","VENTEV DASH 124C LIGHTNING","Apple Lightning",24.99,24.99,"-","Temp. Unavailable, Remove from Web","-","-","2022-05-27","Active"]
[null,210506,"Charger","Apple Wall","Ventev Wall 124c Lightning Gray","Apple Lightning",24.99,24.99,"-","Include on Web, Available","-",{"$f":"IF(I1159=\"Status Changed\",\"Status Changed\",IF(K1159=\"Status Changed\",\"Status Changed\",\"-\"))","v":"-"},"2022-08-19","Active"]
[null,210507,"Charger","Other Cable","Ventev Auxcable 4ft Gray","Universal",9.99,9.99,"-","Temp. Unavailable, Remove from Web","-","-","2021-10-15","Inactive"]
[null,210535,"Miscellaneous Accessory","Mount and Dock","SPIGEN UNIVERSAL MAGNETIC VENT MOUNT - B","Universal",19.989999999999998,19.989999999999998,"-","Remove from Web","-","-","2019-06-01","Inactive"]
[null,210608,"Screen Protection","Glass","SAM J7 GADGRD BLK ICE GLASS SCRN PROT","Samsung J7 2017",39.99,39.99,"-","Remove from Web","-","-","00:00:00","Not Launching"]
[null,210609,"Screen Protection","Glass","SAM J3 GADGRD BLK ICE GLASS SCREEN PROT","Samsung J3 2017",39.99,39.99,"-","Remove from Web","-","-","2019-01-31T23:00:00","Inactive"]
[null,210610,"Screen Protection","Glass","IPHONE 7/8 PLUS GADGRDBLKICE GLSSCRNPROT","iPhone 6/6s/7/8 Plus",39.99,39.99,"-","Remove from Web","-","-","2019-11-01","Inactive"]
[null,210611,"Screen Protection","Glass","LG K8 2017 GADGRD BLK ICE GLASS SCRNPROT","LG K8 2017",39.99,39.99,"-","Remove from Web","-","-","00:00:00","Not Launching"]
[null,210612,"Screen Protection","Glass","LG G6 GADGRD BLK ICE GLASS SCREEN PROT","LG G6",39.99,39.99,"-","Remove from Web","-","-","00:00:00","Not Launching"]
[null,210613,"Screen Protection","Glass","IPHONE 5/5C/5S/SE GADGRDBKICEGLSSCRNPROT","iPhone 5S/SE",39.99,39.99,"-","Remove from Web","-","-","00:00:00","Not Launching"]
[null,210614,"Screen Protection","Glass","ZTE BLADE MAX3 GADGRD BLKICE GLSSCRNPROT","ZTE Blade Max 3",39.99,39.99,"-","Remove from Web","-","-","00:00:00","Not Launching"]
[null,210615,"Screen Protection","Glass","LG X POWER GADGRD BLK ICE GLASS SCRNPROT","LG X Power",39.99,39.99,"-","Remove from Web","-","-","00:00:00","Not Launching"]
[null,210616,"Screen Protection","Glass","iPhone X GadGrd Blk Ice Glass Scrn Prot","iPhone X/Xs",39.99,39.99,"-","Remove from Web","-","-","2021-02-19","Inactive"]
[null,210617,"Screen Protection","Glass","LG X VENTURE GADGRD BLKICE GLS SCRNPROT","LG X Venture",39.99,39.99,"-","Not On Flash","-","-","00:00:00","Not Launching"]
[null,210618,"Screen Protection","Glass","LG K3 2017 GADGRD BLK ICE GLASS SCRNPROT","LG K3 2017",39.99,39.99,"-","Remove from Web","-","-","00:00:00","Not Launching"]
[null,210619,"Screen Protection","Glass","SAM TAB S GADGRDBLKICE GLASSSCRNPROT","Tab S 3",69.989999999999995,69.989999999999995,"-","Remove from Web","-","-","00:00:00","Not Launching"]
[null,210620,"Screen Protection","Glass","LG V30 GADGRD BLK ICE GLASS SCREEN PROT","LG V30",44.99,44.99,"-","Not On Flash","-","-","00:00:00","Not Launching"]
[null,210621,"Screen Protection","Glass","IPAD PRO 10.5 GADGRD BLKICE GLS SCRNPROT","iPad Pro 10.5 2017",69.989999999999995,69.989999999999995,"-","Remove from Web","-","-","2021-02-19","Inactive"]
[null,210622,"Screen Protection","Glass","SAM G S9 GADGRDBLKICE GLASSSCRNPROT","Galaxy S9",29.99,29.99,"-","Remove from Web","-","-","2020-08-25","Inactive"]
[null,210623,"Screen Protection","Glass","SAM G S9 PLUS GADGRD BLKICE GLS SCRNPROT","Galaxy S9+",49.99,49.99,"-","Remove from Web","-","-","2019-06-01","Not Launching"]
[null,210624,"Screen Protection","Glass","IPHONE 7/8 GADGRD BLK ICE GLASS SCRNPROT","iPhone 6/6s/7/8",39.99,39.99,"-","Remove from Web","-","-","2020-10-19","Inactive"]
[null,210625,"Screen Protection","Glass","SAM NOTE8 GADGRD BLK ICE GLASS SCRN PROT","Note 8",49.99,49.99,"-","Remove from Web","-","-","00:00:00","Not Launching"]
[null,210626,"Screen Protection","Glass","LG G7 GADGRD BLK ICE GLASS SCREEN PROT","LG G7",39.99,39.99,"-","Remove from Web","-","-","2018-11-07","Inactive"]
[null,210681,"Screen Protection","Glass","LG K8 PLUS 2018 GADGRDBLKICE GLSSCRNPROT","LG K8+ 2018",39.99,39.99,"-","Remove from Web","-","-","00:00:00","Not Launching"]
[null,210682,"Charger","Wireless Dock Charger","Ventev Wireless Chargepad Plus Gray","Universal",49.99,49.99,"-","Include on Web, Available","-","-","2023-03-01","Active"]
[null,210772,"Charger","Android Portable Charger","IWALK 3,300 MICRO PORTABLE BATTERY-BLK","Universal",19.989999999999998,19.989999999999998,"-","Remove from Web","-","-","2019-06-01","Inactive"]
[null,210773,"Charger","Android Portable Charger","IWALK 3,300 TYPE-C PORTABLE BATTERY-BLK","Universal",19.989999999999998,19.989999999999998,"-","Remove from Web","-","-","2019-06-01","Inactive"]
[null,210810,"Screen Protection","Glass","GADGET GUARD BLACK ICE MOTO E4 2017","Moto E 2017",39.99,39.99,"-","Remove from Web","-","-","00:00:00","Not Launching"]
[null,210811,"Screen Protection","Glass","MOTO E4 PLUS GADGRD BLKICE GLS SCRN PROT","Moto E+ 2017",39.99,39.99,"-","Remove from Web","-","-","00:00:00","Not Launching"]
[null,210812,"Screen Protection","Glass","GADGET GUARD MOTO G5 PLAY BLACK ICE","Moto G5 Play",39.99,39.99,"-","Remove from Web","-","-","00:00:00","Not Launching"]
[null,210859,"Case","Case Accessories","POPSOCKETS AMERICAN FLAG","Universal",9.99,9.99,"-","Remove from Web","-","-","2019-06-01","Inactive"]
[null,210860,"Case","Case Accessories","POPSOCKETS MULTISURFACE MOUNT","Universal",4.99,4.99,"-","Remove from Web","-","-","2021-05-17","Inactive"]
[null,210878,"Case","Hard Case","LG STYLO4 GEAR4 PICCADILLY BLK","LG Stylo4",39.99,39.99,"-","Remove from Web","-","-","2019-11-01","Inactive"]
[null,210879,"Case","Hard Case","LG STYLO4 GEAR4 PICCADILLY PNK","LG Stylo4",39.99,39.99,"-","Remove from Web","-","-","2019-11-01","Inactive"]
[null,210890,"Case","Case Accessories","POPSOCKETS GOLDEN SILENCE","Universal",9.99,9.99,"-","Not On Flash","-","-","2019-03-07","Inactive"]
[null,210891,"Case","Case Accessories","POPSOCKETS OPAL","Universal",9.99,9.99,"-","Remove from Web","-","-","2019-06-01","Inactive"]
[null,210959,"Audio","True Wireless","Jabra Elite 65t","Universal",169.99,169.99,"-","Remove from Web","-","-","2019-09-01","Inactive"]
[null,210960,"Wearable","Wearable Accessory","Zagg Apple Watch Elite 38MM ScrnPrt","Universal",39.99,39.99,"-","Not On Flash","-","-","2019-03-01","Not Launching"]
[null,210961,"Wearable","Wearable Accessory","Zagg Apple Watch Elite 42MM ScrnPrt","Universal",39.99,39.99,"-","Not On Flash","-","-","2019-03-01","Not Launching"]
[null,210962,"Case","Fashion Case","IPHONE 8/7 PLUS OTTERBOX SYMMETRY PACKRS","iPhone 6/6s/7/8 Plus",54.99,54.99,"-","Remove from Web","-","-","2019-11-01","Inactive"]
[null,210963,"Case","Fashion Case","IPHONE 8/7 OTTERBOX SYMMETRY PACKRS","iPhone 6/6s/7/8",44.99,44.99,"-","Remove from Web","-","-","2019-11-01","Inactive"]
[null,210964,"Case","Fashion Case","IPHONE X OTTERBOX SYMMETRY PACKRS","iPhone X/Xs",39.99,39.99,"-","Remove from Web","-","-","2019-11-01","Inactive"]
[null,210965,"Charger","ApplePortable Charger","IWALK 3,300 LIGHTNING PORTABLE BATTERY-WHT","Apple Lightning",24.99,24.99,"-","Remove from Web","-","-","2019-06-01","Inactive"]
[null,210966,"Connected Home","Outdoor Camera","ARLO PRO 2 SECURITY CAMERA SYSTEM","Universal",479.99,479.99,"-","Remove from Web","-","-","2020-10-19","Inactive"]
[null,211039,"Connected Home","Indoor Camera","D-LINK HD WIFI INDOOR CAMERA 8010LH","Universal",19.989999999999998,19.989999999999998,"-","Remove from Web","-","-","2020-08-25","Inactive"]
[null,211040,"Audio","Other Audio","Moto Stereo Speaker Mod","Moto Z2/Z3",59.99,59.99,"-","Remove from Web","-","-","2019-06-01","Inactive"]
[null,211041,"Connected Home","Doorbell and Lock","Google Nest Hello","Universal",229.99,229.99,"-","Remove from Web","-","-","2022-02-18","Inactive"]
[null,211042,"Connected Home","Networking","GOOGLE WIFI MESH ROUTER SINGLE","Universal",129.99,129.99,"-","Remove from Web","-","-","2020-10-19","Inactive"]
[null,211043,"Connected Home","Networking","GOOGLE WIFI MESH ROUTER 3 PCK","Universal",299.99,299.99,"-","Remove from Web","-","-","2020-08-25","Inactive"]
[null,211044,"Connected Home","Doorbell and Lock","August Smart Lock Pro plus Connect","Universal",279.99,279.99,"-","Remove from Web","-","-","2019-06-01","Inactive"]
[null,211122,"Audio","Portable Speaker","ULTIMATE EARS BOOM 3 BLK","Universal",59.99,59.99,"-","Remove from Web","-","-","2020-08-25","Inactive"]
[null,211123,"Audio","Portable Speaker","ULTIMATE EARS BOOM 3 BLU","Universal",59.99,59.99,"-","Remove from Web","-","-","2020-08-25","Inactive"]
[null,211124,"Audio","Portable Speaker","UE Megaboom 3","Universal",199.99,199.99,"-","Remove from Web","-","-","2019-03-07","Inactive"]
[null,211125,"Connected Home","Outdoor Camera","Logitech Circle 2 Wired Camera","Universal",49.99,49.99,"-","Remove from Web","-","-","2020-08-25","Inactive"]
[null,211126,"Audio","Wired In-Ear","APL BeatsX Wireless Defiant Blk/Red","Universal",149.99,149.99,"-","Remove from Web","-","-","2019-06-01","Inactive"]
[null,211127,"Audio","Portable Speaker","JLab Crasher Slim Grey","Universal",49.99,49.99,"-","Not On Flash","-","-","2019-03-07","Inactive"]
[null,211128,"Audio","Portable Speaker","JLab Crasher Slim Blu","Universal",49.99,49.99,"-","Not On Flash","-","-","2019-03-07","Inactive"]
[null,211129,"Audio","Portable Speaker","Ultimate Ears Wonderboom Blu","Universal",39.99,39.99,"-","Remove from Web","-","-","2020-08-25","Inactive"]
[null,211130,"Audio","Wireless Mono","BLUEPARROTT C400-XT HEADSET","Universal",139.99,139.99,"-","Include on Web, Available","-","-","2023-03-01","Active"]
[null,211131,"Audio","Wireless On-Ear","Jlab Rewind","Universal",19.989999999999998,19.989999999999998,"-","Remove from Web","-","-","2019-06-01","Inactive"]
[null,211153,"Case","Fashion Case","SAM J7 Aura Tech21 Evo Check Gry","Samsung J7 Aura",39.99,39.99,"-","Remove from Web","-","-","2019-11-01","Inactive"]
[null,211237,"Audio","Wireless In-Ear","APL Powerbeats3 Wireless Defiant Blk/Red","Universal",69.989999999999995,69.989999999999995,"-","Remove from Web","-","-","2020-08-25","Inactive"]
[null,211238,"Screen Protection","Glass","LG STYLO4 GADGRD BLK ICE GLASS SCRNPROT","LG Stylo4",39.99,39.99,"-","Remove from Web","-","-","2019-09-30T23:00:00","Inactive"]
[null,211273,"Case","Hard Case","MOTO G6 PLAY OTTERBOX COMMUTER BLK","Moto G6 Play",39.99,39.99,"-","Remove from Web","-","-","2019-08-31T23:00:00","Inactive"]
[null,211274,"Case","Soft Case","MOTO G6 PLAY SPECK GEMSHELL CLR","Moto G6 Play",24.99,24.99,"-","Remove from Web","-","-","2019-08-31T23:00:00","Inactive"]
[null,211275,"Screen Protection","Glass","MOTO G6 PLAY GADGRD BLK ICE GLS SCRNPROT","Moto G6 Play",39.99,39.99,"-","Remove from Web","-",{"$f":"IF(I1223=\"Status Changed\",\"Status Changed\",IF(K1223=\"Status Changed\",\"Status Changed\",\"-\"))","v":"-"},"2019-08-31","Inactive"]
[null,211276,"Case","Soft Case","MOTO G6 PLAY GEAR4 PICCADILLY BLK","Moto G6 Play",39.99,39.99,"-","Remove from Web","-","-","2019-08-31","Inactive"]
[null,211366,"Wearable","Samsung Wearable","SAM GALAXY WATCH BLUETOOTH 46MM SIL","Universal",219.99,219.99,"-","Remove from Web","-","-","2021-10-15","Inactive"]
[null,211376,"Case","Keyboard Case","SAM GALAXY TAB S4 KEYBOARD COVER BLK","Samsung Tab S4",149.99,149.99,"-","Remove from Web","-","-","2019-11-01","Inactive"]
[null,211407,"Wearable","Samsung Wearable","SAM GALAXY WATCH BLUETOOTH 42MM BLK","Universal",209.99,209.99,"-","Remove from Web","-","-","2021-10-15","Inactive"]
[null,211408,"Wearable","Samsung Wearable","SAM GALAXY WATCH BLUETOOTH 42MM ROSEGLD","Universal",209.99,209.99,"-","Remove from Web","-","-","2021-10-15","Inactive"]
[null,211409,"Screen Protection","Glass","GOOGLE PIXEL 3 GADGRD BLK ICE SCRNPRT","Google Pixel 3",44.99,44.99,"-","Remove from Web","-","-","2020-02-16","Inactive"]
[null,211410,"Case","Hard Case","GOOGLE PIXEL 3 OTTERBOX SYMMETRY PURP","Google Pixel 3",39.99,39.99,"-","Remove from Web","-","-","2019-06-01","Inactive"]
[null,211411,"Case","Gel Case","GOOGLE PIXEL 3 SPECK PRESIDIO CLR","Google Pixel 3",39.99,39.99,"-","Remove from Web","-","-","2019-11-01","Inactive"]
[null,211412,"Case","Gel Case","GOOGLE PIXEL 3 SPECK PRESIDIO GRY","Google Pixel 3",39.99,39.99,"-","Remove from Web","-","-","2019-06-01","Inactive"]
[null,211413,"Case","Clip Case","GOOGLE PIXEL 3 OTTERBOX DEFENDER BLK","Google Pixel 3",49.99,49.99,"-","Remove from Web","-","-","2019-11-01","Inactive"]
[null,211417,"Case","Tablet Case","SAM GALAXY TAB S4 BOOK COVER BLK","Samsung Tab S4",69.989999999999995,69.989999999999995,"-","Remove from Web","-","-","2019-11-01","Inactive"]
[null,211418,"Screen Protection","Glass","SAM GALAXY TAB S4 GADGRD SCRNPRT","Samsung Tab S4",69.989999999999995,69.989999999999995,"-","Remove from Web","-","-","2019-11-01","Inactive"]
[null,211419,"Screen Protection","Glass","GOOGLE PIXEL 3 XL GADGRD BLK ICE SCRNPRT","Google Pixel 3 XL",44.99,44.99,"-","Remove from Web","-","-","2020-02-16","Inactive"]
[null,211420,"Case","Clip Case","GOOGLE PIXEL 3 XL OTTERBOX DEFENDER BLK","Google Pixel 3 XL",59.99,59.99,"-","Remove from Web","-","-","2019-11-01","Inactive"]
[null,211421,"Case","Hard Case","GOOGLE PIXEL 3 XL OTTERBOX SYMMETRY PURP","Google Pixel 3 XL",49.99,49.99,"-","Remove from Web","-","-","2019-06-01","Inactive"]
[null,211422,"Case","Gel Case","GOOGLE PIXEL 3 XL SPECK PRESIDIO CLR","Google Pixel 3 XL",44.99,44.99,"-","Remove from Web","-","-","2019-11-01","Inactive"]
[null,211423,"Case","Hard Case","GOOGLE PIXEL 3 XL SPIGEN SLIM ARMOR BLK","Google Pixel 3 XL",39.99,39.99,"-","Remove from Web","-","-","2019-06-01","Inactive"]
[null,211427,"Screen Protection","Glass","SAM J3 AURA GADGRD BLK ICE SCRNPRT","Samsung J3 Aura",39.99,39.99,"-","Remove from Web","-","-","2019-11-01","Inactive"]
[null,211428,"Case","Gel Case","SAM J3 AURA CASE-MATE NAKED TOUGH CLR","Samsung J3 Aura",34.99,34.99,"-","Remove from Web","-","-","2019-11-01","Inactive"]
[null,211429,"Case","Fashion Case","SAM J3 AURA INCIPIO DESIGN GLITTER","Samsung J3 Aura",24.99,24.99,"-","Remove from Web","-","-","2019-11-01","Inactive"]
[null,211430,"Case","Hard Case","SAM J3 AURA INCIPIO NPG CLR","Samsung J3 Aura",19.989999999999998,19.989999999999998,"-","Remove from Web","-","-","2019-11-01","Inactive"]
[null,211431,"Case","Gel Case","SAM J3 AURA NIMBUS9 LATITUDE PNK","Samsung J3 Aura",24.99,24.99,"-","Remove from Web","-","-","2019-11-01","Inactive"]
[null,211432,"Case","Gel Case","SAM J3 AURA NIMBUS9 LATITUDE TEAL","Samsung J3 Aura",24.99,24.99,"-","Remove from Web","-","-","2019-11-01","Inactive"]
[null,211433,"Case","Hard Case","SAM J3 AURA OTTERBOX SYMMETRY BLK","Samsung J3 Aura",39.99,39.99,"-","Remove from Web","-","-","2019-11-01","Inactive"]
[null,211434,"Case","Hard Case","SAM J3 AURA SPECK PRESIDIO BLK","Samsung J3 Aura",39.99,39.99,"-","Remove from Web","-","-","2019-11-01","Inactive"]
[null,211557,"Case","Fashion Case","iPhone XR Adidas Gazelle Blue","iPhone XR",39.99,39.99,"-","Remove from Web","-","-","2019-06-01","Inactive"]
[null,211558,"Case","Fashion Case","iPhone XR Adidas Gazelle Light Blu","iPhone XR",39.99,39.99,"-","Remove from Web","-","-","2019-06-01","Inactive"]
[null,211559,"Case","Fashion Case","iPhone XR Adidas Samba Blk","iPhone XR",39.99,39.99,"-","Remove from Web","-","-","2019-09-01","Inactive"]
[null,211560,"Case","Fashion Case","iPhone XR Adidas Samba Wht","iPhone XR",39.99,39.99,"-","Remove from Web","-","-","2019-09-01","Inactive"]
[null,211561,"Screen Protection","Glass","iPhone XR GadGuard Glass Scrn Prt","iPhone 11",39.99,39.99,"-","Include on Web, Available","-","-","2022-09-01","Active"]
[null,211562,"Case","Soft Case","IPHONE XR GEAR4 PICCADILLY BLK","iPhone XR",39.99,39.99,"-","Remove from Web","-","-","2020-10-19","Inactive"]
[null,211563,"Case","Hard Case","iPhone XR Gear 4 Picadilly Rose","iPhone XR",39.99,39.99,"-","Remove from Web","-","-","2019-09-01","Inactive","*0 at NDC, on Active-SB"]
[null,211564,"Screen Protection","Glass","iPhone XS MAX GadGuard Glass Scn Prt","iPhone Xs Max",39.99,39.99,"-","Remove from Web","-","-","2021-02-19","Inactive"]
[null,211565,"Case","Fashion Case","iPhone XS MAX Gear4 Adidas Samba Blk","iPhone Xs Max",39.99,39.99,"-","Remove from Web","-","-","2019-06-01","Inactive"]
[null,211566,"Case","Hard Case","iPhone XS MAX Gear4 Piccadilly Blk","iPhone Xs Max",39.99,39.99,"-","Remove from Web","-","-","2019-09-01","Inactive"]
[null,211567,"Case","Hard Case","iPhone XS MAX Gear4 Piccadilly Rose","iPhone Xs Max",39.99,39.99,"-","Remove from Web","-","-","2019-09-01","Inactive"]
[null,211568,"Case","Fashion Case","iPhone XS Adidas Gazelle Blu","iPhone X/Xs",29.99,29.99,"-","Remove from Web","-","-","2019-06-01","Inactive"]
[null,211569,"Case","Fashion Case","iPhone XS Adidas Gazelle Light Blu","iPhone X/Xs",29.99,29.99,"-","Remove from Web","-","-","2019-06-01","Inactive"]
[null,211570,"Case","Fashion Case","iPhone XS Adidas Gazelle Mar","iPhone X/Xs",29.99,29.99,"-","Remove from Web","-","-","2019-06-01","Inactive"]
[null,211571,"Case","Fashion Case","iPhone XS Adidas Samba Blk","iPhone X/Xs",29.99,29.99,"-","Remove from Web","-","-","2019-06-01","Inactive"]
[null,211572,"Case","Fashion Case","iPhone XS Adidas Samba White","iPhone X/Xs",29.99,29.99,"-","Remove from Web","-","-","2019-06-01","Inactive"]
[null,211573,"Case","Hard Case","iPhone XS Gear4 Piccadilly Black","iPhone X/Xs",39.99,39.99,"-","Remove from Web","-","-","2019-09-01","Inactive"]
[null,211574,"Case","Hard Case","iPhone XS Gear4 Piccadilly Rose","iPhone X/Xs",34.99,34.99,"-","Remove from Web","-","-","2019-09-01","Inactive"]
[null,211575,"Case","Fashion Case","iPhone XR Case-Mate Metalic Dot","iPhone XR",39.99,39.99,"-","Remove from Web","-","-","2019-09-01","Inactive"]
[null,211576,"Case","Fashion Case","iPhone XR Case-Mate Pink Poppy","iPhone XR",39.99,39.99,"-","Remove from Web","-","-","2019-06-01","Inactive"]
[null,211577,"Case","Fashion Case","iPhone XR Case-Mate WATERFALL ROSEGOLD","iPhone XR",39.99,39.99,"-","Remove from Web","-","-","2019-11-01","Inactive"]
[null,211578,"Case","Waterproof Case","IPHONE XR LIFEPROOF FRE BLK","iPhone XR",69.989999999999995,69.989999999999995,"-","Remove from Web","-","-","2021-02-19","Inactive"]
[null,211579,"Case","Waterproof Case","iPhone XR LifeProof Fre BLU","iPhone XR",89.99,89.99,"-","Remove from Web","-","-","2019-09-01","Inactive"]
[null,211580,"Case","Clip Case","iPhone XR OtterBox Defender Blk","iPhone XR",59.99,59.99,"-","Remove from Web","-","-","2021-08-17","Inactive"]
[null,211581,"Case","Clip Case","iPhone XR OtterBox Defender Purp","iPhone XR",59.99,59.99,"-","Remove from Web","-","-","2019-09-01","Inactive"]
[null,211582,"Case","Clip Case","iPhone XR OtterBox Defender Blu","iPhone XR",59.99,59.99,"-","Remove from Web","-","-","2019-09-01","Inactive"]
[null,211583,"Case","Hard Case","iPhone XR OtterBox Commuter Blk","iPhone XR",49.99,49.99,"-","Remove from Web","-","-","2021-05-17","Inactive"]
[null,211584,"Case","Hard Case","iPhone XR OtterBox Commuter Blu","iPhone XR",49.99,49.99,"-","Remove from Web","-","-","2019-11-01","Inactive"]
[null,211585,"Case","Hard Case","iPhone XR OtterBox Symmetry Purp","iPhone XR",49.99,49.99,"-","Remove from Web","-","-","2019-06-01","Inactive"]
[null,211586,"Case","Hard Case","iPhone XR OtterBox Symmetry Grn","iPhone XR",49.99,49.99,"-","Remove from Web","-","-","2019-06-01","Inactive"]
[null,211587,"Case","Hard Case","iPhone XR OtterBox Symmetry Yel","iPhone XR",49.99,49.99,"-","Remove from Web","-","-","2019-06-01","Inactive"]
[null,211588,"Case","Hard Case","iPhone XR OtterBox Symmetry Stardust","iPhone XR",49.99,49.99,"-","Remove from Web","-","-","2021-02-19","Inactive"]
[null,211589,"Case","Soft Case","iPhone XR tech21 Evo Check Purp","iPhone XR",39.99,39.99,"-","Remove from Web","-","-","2019-09-01","Inactive"]
[null,211590,"Case","Soft Case","IPHONE XR TECH21 PURE CLR","iPhone XR",39.99,39.99,"-","Remove from Web","-","-","2021-02-19","Inactive"]
[null,211591,"Case","Soft Case","IPHONE XR TECH21 PURE CLR GRY","iPhone XR",39.99,39.99,"-","Remove from Web","-","-","2019-11-01","Inactive"]
[null,211592,"Case","Fashion Case","iPhone XS MAX Case-Mate Metallic Dot","iPhone Xs Max",39.99,39.99,"-","Remove from Web","-","-","2019-09-01","Inactive"]
[null,211593,"Case","Fashion Case","iPhone XS MAX Case-Mate Waterfall Rosgld","iPhone Xs Max",39.99,39.99,"-","Remove from Web","-","-","2019-11-01","Inactive"]
[null,211594,"Case","Waterproof Case","iPhone XS MAX LifeProof Fre Blk","iPhone Xs Max",89.99,89.99,"-","Remove from Web","-","-","2019-11-01","Inactive"]
[null,211595,"Case","Waterproof Case","iPhone XS MAX LifeProof Fre BLU","iPhone Xs Max",89.99,89.99,"-","Remove from Web","-",{"$f":"IF(I1287=\"Status Changed\",\"Status Changed\",IF(K1287=\"Status Changed\",\"Status Changed\",\"-\"))","v":"-"},"2019-09-01","Inactive"]
[null,211596,"Case","Clip Case","iPhone XS MAX Otterbox Defender Blk","iPhone Xs Max",59.99,59.99,"-","Remove from Web","-","-","2020-10-19","Inactive"]
[null,211597,"Case","Clip Case","iPhone XS MAX Otterbox Defender Purp","iPhone Xs Max",59.99,59.99,"-","Remove from Web","-","-","2019-11-01","Inactive"]
[null,211598,"Case","Hard Case","IPHONE XS MAX OTTERBOX COMMUTER BLK","iPhone Xs Max",39.99,39.99,"-","Remove from Web","-","-","2020-10-19","Inactive"]
[null,211599,"Case","Hard Case","IPHONE XS MAX OTTERBOX COMMUTER BLU","iPhone Xs Max",49.99,49.99,"-","Remove from Web","-","-","2019-09-01","Inactive"]
[null,211600,"Case","Hard Case","IPHONE XS MAX OTTERBOX SYMMETRY YEL","iPhone Xs Max",49.99,49.99,"-","Remove from Web","-","-","2019-06-01","Inactive"]
[null,211601,"Case","Hard Case","IPHONE XS MAX OTTERBOX SYMMETRY CLR","iPhone Xs Max",49.99,49.99,"-","Remove from Web","-","-","2020-10-19","Inactive"]
[null,211602,"Case","Soft Case","IPHONE XS MAX TECH21 EVO CHECK PURP","iPhone Xs Max",39.99,39.99,"-","Remove from Web","-","-","2019-09-01","Inactive"]
[null,211603,"Case","Soft Case","IPHONE XS MAX TECH21 PURE CLR","iPhone Xs Max",19.989999999999998,19.989999999999998,"-","Remove from Web","-","-","2020-10-19","Inactive"]
[null,211604,"Case","Soft Case","IPHONE XS MAX TECH21 PURE CLR GRY","iPhone Xs Max",39.99,39.99,"-","Remove from Web","-","-","2019-09-01","Inactive"]
[null,211605,"Case","Fashion Case","IPHONE XS CASE-MATE WALL METAL DOT BLK","iPhone X/Xs",29.99,29.99,"-","Remove from Web","-","-","2019-06-01","Inactive"]
[null,211606,"Case","Fashion Case","IPHONE XS CASE-MATE WALL POPPY PNK","iPhone X/Xs",29.99,29.99,"-","Remove from Web","-","-","2019-06-01","Inactive"]
[null,211607,"Case","Fashion Case","IPHONE XS CASE-MATE WATERFALL ROSEGOLD","iPhone X/Xs",39.99,39.99,"-","Remove from Web","-","-","2019-11-01","Inactive"]
[null,211608,"Case","Waterproof Case","iPhone XS LifeProof Fre Blk","iPhone X/Xs",89.99,89.99,"-","Remove from Web","-","-","2019-11-01","Inactive"]
[null,211609,"Case","Waterproof Case","iPhone XS LifeProof Fre BLU","iPhone X/Xs",69.989999999999995,69.989999999999995,"-","Remove from Web","-","-","2019-06-01","Inactive"]
[null,211610,"Case","Clip Case","iPhone XS Otterbox Defender Blk","iPhone X/Xs",39.99,39.99,"-","Remove from Web","-","-","2020-10-19","Inactive"]
[null,211611,"Case","Clip Case","iPhone XS Otterbox Defender Purp","iPhone X/Xs",39.99,39.99,"-","Remove from Web","-","-","2019-06-01","Inactive"]
[null,211612,"Case","Clip Case","iPhone XS Otterbox Defender Blu","iPhone X/Xs",44.99,44.99,"-","Remove from Web","-","-","2019-09-01","Inactive"]
[null,211613,"Case","Hard Case","iPhone XS Otterbox Commuter Blk","iPhone X/Xs",39.99,39.99,"-","Remove from Web","-","-","2020-10-19","Inactive"]
[null,211614,"Case","Hard Case","IPHONE XS OTTERBOX COMMUTER BLU","iPhone X/Xs",34.99,34.99,"-","Remove from Web","-","-","2019-06-01","Inactive"]
[null,211615,"Case","Hard Case","IPHONE XS OTTERBOX SYMMETRY PURP","iPhone X/Xs",39.99,39.99,"-","Remove from Web","-","-","2019-09-01","Inactive"]
[null,211616,"Case","Hard Case","IPHONE XS OTTERBOX SYMMETRY GLITTER","iPhone X/Xs",39.99,39.99,"-","Remove from Web","-","-","2020-10-19","Inactive"]
[null,211617,"Case","Soft Case","IPHONE XS TECH21 EVO CHECK PURP","iPhone X/Xs",34.99,34.99,"-","Remove from Web","-","-","2019-09-01","Inactive"]
[null,211618,"Case","Soft Case","IPHONE XS TECH21 PURE CLR","iPhone X/Xs",29.99,29.99,"-","Remove from Web","-","-","2020-10-19","Inactive"]
[null,211650,"Case","Fashion Case","iPhone XR Adidas Gazelle Mar","iPhone XR",39.99,39.99,"-","Remove from Web","-","-","2019-06-01","Inactive"]
[null,211651,"Case","Soft Case","IPHONE XS TECH21 PURE CLR GRY","iPhone X/Xs",29.99,29.99,"-","Remove from Web","-","-","2019-09-01","Inactive"]
[null,211726,"Case","Tablet Case","IPAD PRO 10.5 SPECK BALANCE FOLIO BLK","iPad Pro 10.5 2017",39.99,39.99,"-","Remove from Web","-","-","2020-02-05","Not Launching"]
[null,211783,"Case","Tablet Case","IPAD PRO 12.9 2017 OTTERBOX DEFENDER BLK","iPad Pro 12.9 2017",129.99,129.99,"-","Remove from Web","-","-","2020-08-25","Inactive"]
[null,211784,"Case","Clip Case","LG V40 OTTERBOX DEFENDER BLK","LG V40",59.99,59.99,"-","Remove from Web","-","-","2019-09-01","Inactive"]
[null,211785,"Case","Clip Case","LG V40 OTTERBOX DEFENDER BLU","LG V40",59.99,59.99,"-","Remove from Web","-","-","2019-09-01","Inactive"]
[null,211786,"Case","Hard Case","LG V40 SPECK PRESIDIO CLR","LG V40",39.99,39.99,"-","Remove from Web","-","-","2019-06-01","Inactive"]
[null,211797,"Case","Tablet Case","IPAD PRO 12.9 SPECK PRESIDIO PRO BLK","iPad Pro 12.9 2017",89.99,89.99,"-","Remove from Web","-","-","2020-02-05","Not Launching"]
[null,211798,"Case","Tablet Case","ZAGG FLEX 2 UNIVERSAL KEYBOARD CASE BLK","Universal",69.989999999999995,69.989999999999995,"-","Remove from Web","-","-","00:00:00","Not Launching"]
[null,211799,"Case","Tablet Case","SAM TAB E 8.0 SPECK BALANCE FOLIO BLK","Samsung Tab E 8.0",34.99,34.99,"-","Remove from Web","-","-","2020-02-05","Not Launching"]
[null,211800,"Case","Tablet Case","IPAD 9.7 SPECK BALANCE FOLIO BLK","iPad Pro 9.7 2017",39.99,39.99,"-","Remove from Web","-","-","00:00:00","Not Launching"]
[null,211801,"Case","Tablet Case","SAM TAB A 8.0 OTTERBOX DEFENDER BLK","Samsung Tab E 8.0",69.989999999999995,69.989999999999995,"-","Remove from Web","-","-","00:00:00","Inactive"]
[null,211802,"Case","Tablet Case","SAM TAB E 8.0 OTTERBOX DEFENDER BLK","Samsung Tab E 8.0",69.989999999999995,69.989999999999995,"-","Remove from Web","-","-","2020-08-25","Inactive"]
[null,211803,"Case","Tablet Case","IPAD 9.7 OTTERBOX DEFENDER BLK","iPad Pro 9.7 2017",89.99,89.99,"-","Remove from Web","-","-","2020-02-16","Inactive"]
[null,211804,"Case","Tablet Case","IPAD PRO 10.5 OTTERBOX DEFENDER BLK","iPad Pro 10.5 2017",89.99,89.99,"-","Remove from Web","-","-","2020-08-25","Inactive"]
[null,211807,"Case","Hard Case","LG V40 SPECK PRESIDIO BLK","LG V40",39.99,39.99,"-","Remove from Web","-","-","2019-06-01","Inactive"]
[null,211808,"Case","Hard Case","LG V40 SPECK PRESIDIO BLU","LG V40",39.99,39.99,"-","Remove from Web","-","-","2019-06-01","Inactive"]
[null,211809,"Screen Protection","Glass","LG V40 GADGUARD GLASS SCRNPRT","LG V40",44.99,44.99,"-","Remove from Web","-","-","2019-09-01","Inactive"]
[null,211810,"Case","Case Accessories","POPSOCKETS CARBONITE WEAVE","Universal",9.99,9.99,"-","Remove from Web","-","-","2019-06-01","Inactive"]
[null,211811,"Case","Case Accessories","POPSOCKETS BLUE NEBULA","Universal",9.99,9.99,"-","Remove from Web","-","-","2019-06-01","Inactive"]
[null,211812,"Case","Case Accessories","POPSOCKETS WHITE MARBLE","Universal",9.99,9.99,"-","Remove from Web","-","-","2019-03-07","Inactive"]
[null,211813,"Case","Case Accessories","POPSOCKETS HIBISCUS","Universal",9.99,9.99,"-","Remove from Web","-","-","2019-01-31T23:00:00","Not Launching"]
[null,211815,"Audio","Wireless Over-Ear","JBL EVEREST 310GA","Universal",49.99,49.99,"-","Remove from Web","-","-","2020-08-25","Inactive"]
[null,211816,"Audio","Wireless Over-Ear","JBL EVEREST 710GA","Universal",59.99,59.99,"-","Remove from Web","-","-","2020-08-25","Inactive"]
[null,212036,"Wearable","Cellular Apple Wearable","APL WATCH S4 CELL GLD ALUM PNK 40","Apple Watch",399,399,"-","Remove from Web","-","-","2020-08-25","Inactive"]
[null,212043,"Wearable","Cellular Apple Wearable","APL WATCH S4 CELL GLD ALUM PNK 44","Apple Watch",429,429,"-","Remove from Web","-","-","2020-08-25","Inactive"]
[null,212067,"Wearable","Cellular Apple Wearable","APL WATCH S4 CELL GLD STN GRY 40","Apple Watch",599,599,"-","Remove from Web","-","-","2020-01-01","Inactive"]
[null,212068,"Wearable","Cellular Apple Wearable","APL WATCH S4 CELL SIL ALUM WHT 40","Apple Watch",399,399,"-","Remove from Web","-","-","2020-08-25","Inactive"]
[null,212069,"Wearable","Cellular Apple Wearable","APL WATCH S4 CELL BLK STN BLK 40","Apple Watch",599,599,"-","Remove from Web","-","-","2020-03-31","Inactive"]
[null,212070,"Wearable","Cellular Apple Wearable","APL WATCH S4 CELL GLD STN GRY 44","Apple Watch",649,649,"-","Remove from Web","-","-","2020-01-01","Inactive"]
[null,212071,"Wearable","Cellular Apple Wearable","APL WATCH S4 CELL GRY ALUM BLK 40","Apple Watch",399,399,"-","Remove from Web","-","-","2020-02-01","Inactive"]
[null,212072,"Wearable","Cellular Apple Wearable","APL WATCH S4 CELL SIL STN WHT 40","Apple Watch",599,599,"-","Remove from Web","-","-","2020-03-31","Inactive"]
[null,212073,"Wearable","Cellular Apple Wearable","APL WATCH S4 CELL SIL ALUM WHT 44","Apple Watch",429,429,"-","Remove from Web","-","-","2020-08-25","Inactive"]
[null,212074,"Wearable","Cellular Apple Wearable","APL WATCH S4 CELL BLK STN BLK 44","Apple Watch",649,649,"-","Remove from Web","-","-","2020-03-31","Inactive"]
[null,212075,"Wearable","Cellular Apple Wearable","APL WATCH S4 CELL GRY ALUM BLK 44","Apple Watch",429,429,"-","Remove from Web","-","-","2020-02-01","Inactive"]
[null,212076,"Wearable","Cellular Apple Wearable","APL WATCH S4 CELL SIL STN WHT 44","Apple Watch",649,649,"-","Remove from Web","-","-","2020-09-01","Inactive"]
[null,212079,"Connected Home","Outdoor Camera","Arlo Go and Pro 2 Solar Charging Panel","Arlo Go",79.989999999999995,79.989999999999995,"-","Remove from Web","-","-","2019-11-01","Inactive"]
[null,212080,"Connected Home","Outdoor Camera","Arlo Go and Pro 2 Dual Charging Station","Arlo Go",59.99,59.99,"-","Remove from Web","-","-","2019-11-01","Inactive"]
[null,212081,"Connected Home","Outdoor Camera","Arlo Go Rechargeable Battery","Arlo Go",59.99,59.99,"-","Remove from Web","-","-","2019-11-01","Inactive"]
[null,212087,"Case","Soft Case","IPHONE XS APPLE LEATHER PINK","iPhone X/Xs",49,49,"-","Remove from Web","-","-","2019-09-01","Inactive"]
[null,212088,"Case","Soft Case","IPHONE XS MAX APPLE SILICONE LAV","iPhone Xs Max",39,39,"-","Remove from Web","-",{"$f":"IF(I1351=\"Status Changed\",\"Status Changed\",IF(K1351=\"Status Changed\",\"Status Changed\",\"-\"))","v":"-"},"2019-09-01","Inactive"]
[null,212089,"Non Accessory","Demo Accessory","APL WATCH S4 CELL GLD ALUM 40 DEMO","Apple Watch",0.01,0.01,"-",{"$error":"#N/A"},{"$error":"#N/A"},{"$error":"#N/A"},"2019-12-31","Demo"]
[null,212090,"Non Accessory","Demo Accessory","APL WATCH S4 CELL GRY ALUM 44 DEMO","Apple Watch",0.01,0.01,"-",{"$error":"#N/A"},{"$error":"#N/A"},{"$error":"#N/A"},"2019-12-31","Demo"]
[null,212091,"Non Accessory","Demo Accessory","APL SPRT BAND PNK S/M AND M/L 40 DEMO","Apple Watch",0.01,0.01,"-",{"$error":"#N/A"},{"$error":"#N/A"},{"$error":"#N/A"},"00:00:00","Demo"]
[null,212092,"Non Accessory","Demo Accessory","APL SPRT BAND BLK S/M AND M/L 44 DEMO","Apple Watch",0.01,0.01,"-",{"$error":"#N/A"},{"$error":"#N/A"},{"$error":"#N/A"},"00:00:00","Demo"]
[null,212093,"Wearable","Cellular Apple Wearable","APL WATCH S3 CELL SIL ALUM WHT 38","Apple Watch",219,219,"-","Remove from Web","-","-","2020-09-18","Inactive"]
[null,212094,"Wearable","Cellular Apple Wearable","APL WATCH S3 CELL GRY ALUM BLK 38 FA","Apple Watch",219,219,"-","Remove from Web","-","-","2020-09-18","Inactive"]
[null,212095,"Wearable","Cellular Apple Wearable","APL WATCH S3 CELL SIL ALUM WHT 42","Apple Watch",249,249,"-","Remove from Web","-","-","2020-09-18","Inactive"]
[null,212096,"Wearable","Cellular Apple Wearable","APL WATCH S3 CELL GRY ALUM BLK 42 FA","Apple Watch",249,249,"-","Remove from Web","-","-","2020-09-18","Inactive"]
[null,212097,"Charger","Apple Cable","APL LIGHTNING CABLE 1M WHT","Apple Lightning",19,19,"-","Remove from Web","-","-","00:00:00","Not Launching"]
[null,212098,"Connected Home","Outdoor Camera","Arlo Go Skin 2Pk Camo","Arlo Go",34.99,34.99,"-","Remove from Web","-","-","2019-11-01","Inactive"]
[null,212099,"Connected Home","Outdoor Camera","Arlo Go Skin 2PK GRN/Black","Arlo Go",19.989999999999998,19.989999999999998,"-","Remove from Web","-","-","2019-11-01","Inactive"]
[null,212109,"Connected Home","Networking","D-LINK 5-PORT GIGABIT SWITCH","Universal",19.989999999999998,19.989999999999998,"-","Remove from Web","-","-","2019-06-01","Inactive"]
[null,212111,"Audio","Portable Speaker","EKIDS MILLENIUM FALCON BT SPEAKER","Universal",49.99,49.99,"-","Remove from Web","-","-","2019-03-07","Inactive"]
[null,212112,"Audio","Other Audio","EKIDS MOANA SING ALONG PRETEND MIC","Universal",14.99,14.99,"-","Remove from Web","-","-","2019-03-07","Inactive"]
[null,212120,"Connected Home","Smart Display","GOOGLE NEST HUB DISPLAY GRY","Universal",89,89,"-","Remove from Web","-","-","2021-05-17","Inactive"]
[null,212121,"Connected Home","Smart Display","GOOGLE NEST HUB DISPLAY WHITE","Universal",89,89,"-","Remove from Web","-","-","2021-05-17","Inactive"]
[null,212122,"Connected Home","Streaming Device","GOOGLE CHROMECAST 3RD GEN","Universal",20,20,"-","Remove from Web","-","-","2020-08-25","Inactive"]
[null,212124,"Connected Home","Home Phone","VTECH 2 HANDSET ANSWERING SYSTEM DS66212","Universal",29.99,29.99,"-","Remove from Web","-","-","2021-05-17","Inactive"]
[null,212125,"Audio","Portable Speaker","JBL CHARGE 4 BLK","Universal",114.99,114.99,"-","Remove from Web","-","-","2022-02-18","Inactive"]
[null,212126,"Audio","Portable Speaker","JBL CHARGE 4 RED","Universal",114.99,114.99,"-","Remove from Web","-","-","2022-02-18","Inactive"]
[null,212157,"Connected Home","Lighting","WIZ LIGHTBULB A19 WHT","Universal",4.99,4.99,"-","Remove from Web","-","-","2020-08-25","Inactive"]
[null,212158,"Connected Home","Lighting","WIZ LIGHTBULB A19 COLOR","Universal",7.99,7.99,"-","Remove from Web","-","-","2020-08-25","Inactive"]
[null,212228,"Connected Home","Tracker","TILE MATE WITH REPLACEABLE BATTERY","Universal",14.99,14.99,"-","Remove from Web","-","-","2020-08-25","Inactive"]
[null,212229,"Audio","Portable Speaker","HK ONYX STUDIO 5 BLK","Universal",179.99,179.99,"-","Remove from Web","-","-","2019-09-01","Inactive"]
[null,212587,"Screen Protection","Glass","MOTO E5 PLAY GADGUARD GLASS SCRN PROT","Moto E5 Play",39.99,39.99,"-","Remove from Web","-","-","2020-02-16","Inactive"]
[null,212588,"Case","Hard Case","MOTO E5 PLAY OTTERBOX PREFIX BLK","Moto E5 Play",24.99,24.99,"-","Remove from Web","-","-","2020-02-16","Inactive"]
[null,212589,"Case","Hard Case","MOTO E5 PLAY OTTERBOX PREFIX CLR","Moto E5 Play",24.99,24.99,"-","Remove from Web","-","-","2020-02-16","Inactive"]
[null,212908,"Case","Keyboard Case","APL IPAD PRO 11IN SMART KEYBOARD FOLIO","iPad Pro 11in",165,165,"-","Remove from Web","-","-","2020-10-19","Inactive"]
[null,212909,"Screen Protection","Glass","IPAD PRO 11IN GADGUARD SCRN PROT","iPad Pro 11in",69.989999999999995,69.989999999999995,"-","Remove from Web","-","-","2022-05-27","Active"]
[null,212910,"Case","Tablet Case","IPAD PRO 11IN OTTERBOX DEFENDER BLK","iPad Pro 11in",89.99,89.99,"-","Remove from Web","-","-","2020-08-25","Inactive"]
[null,212911,"Case","Case Accessories","APL PENCIL 2ND GEN","iPad mini 6th Gen/iPad Air 4th Gen/iPad Pro 11in 1/2/3rd Gen/iPad Pro 12.9 3/4/5th Gen",129,129,"-","Include on Web, Available","-","-","2022-08-19","Active"]
[null,212912,"Charger","Apple Cable","APL USB-C TO LIGHTNING CABLE 1M","iPad Pro 11in/iPad Pro 12.9 3rd Gen",19,19,"-","Remove from Web","-","-","2019-11-01","Inactive"]
[null,212913,"Case","Keyboard Case","APL IPAD PRO 12.9IN 3RDGEN SMT KEYBD FOL","iPad Pro 12.9 3rd Gen",179,179,"-","Remove from Web","-","-","2020-10-19","Inactive"]
[null,212914,"Screen Protection","Glass","IPAD PRO 12.9IN 3RD GEN GADGUARD SCN PRT","iPad Pro 12.9 3rd Gen",69.989999999999995,69.989999999999995,"-","Temp. Unavailable, Remove from Web","-","-","2022-09-30","Active"]
[null,212915,"Case","Tablet Case","IPAD PRO 12.9IN 3RD GEN OTTERBOX DEF BLK","iPad Pro 12.9 3rd Gen",129.99,129.99,"-","Remove from Web","-","-","2020-08-25","Inactive"]
[null,212958,"Case","Hard Case","IPHONE XR SPECK PRESIDIO STAY CLEAR CLR","iPhone XR",39.99,39.99,"-","Remove from Web","-","-","2019-09-20","Inactive"]
[null,212959,"Case","Hard Case","IPHONE XR SPECK PRESIDIO GRIP BLK","iPhone XR",39.99,39.99,"-","Remove from Web","-","-","2019-06-01","Inactive"]
[null,212960,"Case","Hard Case","IPHONE XS MAX SPECK PRESID STY CLEAR CLR","iPhone Xs Max",44.99,44.99,"-","Remove from Web","-","-","2019-09-01","Inactive"]
[null,212961,"Case","Hard Case","IPHONE XS MAX SPECK PRESIDIO GRIP BLK","iPhone Xs Max",44.99,44.99,"-","Remove from Web","-","-","2019-09-01","Inactive"]
[null,212962,"Case","Hard Case","IPHONE X/XS SPECK PRESID STAY CLEAR CLR","iPhone X/Xs",39.99,39.99,"-","Remove from Web","-","-","2019-09-01","Inactive"]
[null,212963,"Case","Hard Case","IPHONE X/XS SPECK PRESIDIO GRIP BLK","iPhone X/Xs",39.99,39.99,"-","Remove from Web","-","-","2019-06-01","Inactive"]
[null,213357,"Case","Hard Case","SAM TAB A 8.0 2018 OTTERBOX DEFENDER BLK","Samsung Tab A 8.0 2018",69.989999999999995,69.989999999999995,"-","Remove from Web","-","-","2019-12-01","Inactive"]
[null,213359,"Audio","Other Audio","CELLET TYPE C TO 3.5MM AUX CABLE","Universal",4.99,4.99,"-","Remove from Web","-","-","2020-05-17","Inactive"]
[null,213366,"Audio","Wireless Mono","PLANTRONICS VOYAGER 104","Universal",49.99,49.99,"-","Remove from Web","-","-","2021-02-19","Inactive"]
[null,213506,"Case","Hard Case","SAMSUNG GALAXY S10 OTTERBOX COMMUTER BLK","Samsung Galaxy S10",39.99,39.99,"-","Remove from Web","-","-","2020-10-19","Inactive"]
[null,213510,"Charger","Apple Cable","Ventev Lightning Alloy Cable 10ft Gry","Apple Lightning",29.99,29.99,"-","Include on Web, Available","-","-","2022-05-27","Active"]
[null,213511,"Charger","Android Cable","Ventev A to C Alloy Cable 10ft Gry","Universal",29.99,29.99,"-","Include on Web, Available","-","-","2022-08-19","Active"]
[null,213512,"Charger","Universal Wall","Ventev Wallport RQ1300","Universal",14.99,14.99,"-","Remove from Web","-","-","2021-10-15","Inactive"]
[null,213513,"Charger","Universal Car Charger","Ventev Dashport RQ1300","Universal",19.989999999999998,19.989999999999998,"-","Include on Web, Available","-","-","2022-10-28","Active"]
[null,213514,"Charger","Universal Wall","Ventev  Essentials Wall 224","Universal",19.989999999999998,19.989999999999998,"-","Remove from Web","-","-","2020-10-19","Inactive"]
[null,213515,"Charger","Universal Car Charger","Ventev  Essentials Dash 224","Universal",9.99,9.99,"-","Remove from Web","-","-","2021-08-17","Inactive"]
[null,213517,"Case","Other Case","CATALYST AIRPODS CASE PURPLE","Universal",14.99,14.99,"-","Remove from Web","-","-","2020-08-25","Inactive"]
[null,213531,"Audio","True Wireless","SAMSUNG GALAXY BUDS - BLACK","Universal",64.989999999999995,64.989999999999995,"-","Remove from Web","-","-","2021-02-19","Inactive"]
[null,213532,"Audio","True Wireless","SAMSUNG GALAXY BUDS - WHITE","Universal",64.989999999999995,64.989999999999995,"-","Remove from Web","-","-","2021-02-19","Inactive","*0 at NDC, on Active-SB"]
[null,213554,"Case","Hard Case","SAMSUNG GALAXY S10E TECH21 PURE CLR CLR","Samsung Galaxy S10e",39.99,39.99,"-","Remove from Web","-","-","2020-08-25","Inactive"]
[null,213555,"Case","Hard Case","SAMSUNG GALAXY S10E TECH21 EVO CHECK BLU","Samsung Galaxy S10e",39.99,39.99,"-","Remove from Web","-","-","2020-08-25","Inactive"]
[null,213556,"Case","Hard Case","SAMSUNG GALAXY S10E TECH21 EVO CHECK BLK","Samsung Galaxy S10e",39.99,39.99,"-","Remove from Web","-","-","2020-08-25","Inactive"]
[null,213567,"Case","Hard Case","SAMSUNG GALAXY S10E OTTER COMMUTER BLK","Samsung Galaxy S10e",39.99,39.99,"-","Remove from Web","-","-","2020-08-25","Inactive"]
[null,213568,"Case","Hard Case","SAMSUNG GALAXY S10E OTTER DEFENDER BLK","Samsung Galaxy S10e",59.99,59.99,"-","Remove from Web","-","-","2020-08-25","Inactive"]
[null,213569,"Case","Hard Case","SAMSUNG GALAXY S10E OTTER DEFENDER PURP","Samsung Galaxy S10e",59.99,59.99,"-","Remove from Web","-","-","2020-08-25","Inactive"]
[null,213570,"Case","Hard Case","SAMSUNG GALAXY S10E OTTER SYMMETRY BLK","Samsung Galaxy S10e",49.99,49.99,"-","Remove from Web","-","-","2020-08-25","Inactive"]
[null,213571,"Case","Hard Case","SAMSUNG GALAXY S10E OTTER SYMMETRY GLTR","Samsung Galaxy S10e",49.99,49.99,"-","Remove from Web","-","-","2020-08-25","Inactive"]
[null,213572,"Case","Hard Case","SAMSUNG GALAXY S10E SPECK PRESI GRIP BLK","Samsung Galaxy S10e",39.99,39.99,"-","Remove from Web","-","-","2020-02-16","Inactive"]
[null,213573,"Case","Hard Case","SAMSUNG GALAXY S10E SPECK PRESID PRO BLK","Samsung Galaxy S10e",39.99,39.99,"-","Remove from Web","-",{"$f":"IF(I1415=\"Status Changed\",\"Status Changed\",IF(K1415=\"Status Changed\",\"Status Changed\",\"-\"))","v":"-"},"2020-02-16","Inactive"]
[null,213574,"Case","Hard Case","SAMSUNG GALAXY S10E SPECK PRESI STAY CLR","Samsung Galaxy S10e",39.99,39.99,"-","Remove from Web","-","-","2020-02-16","Inactive"]
[null,213577,"Case","Hard Case","SAMSUNG GALAXY S10 OTTERBOX DEFENDER BLK","Samsung Galaxy S10",59.99,59.99,"-","Remove from Web","-","-","2020-10-19","Inactive"]
[null,213578,"Case","Hard Case","SAMSUNG GALAXY S10 OTTER DEFENDER PURP","Samsung Galaxy S10",59.99,59.99,"-","Remove from Web","-","-","2020-10-19","Inactive"]
[null,213579,"Case","Hard Case","SAMSUNG GALAXY S10 OTTERBOX SYMMETRY BLK","Samsung Galaxy S10",49.99,49.99,"-","Remove from Web","-","-","2020-08-25","Inactive"]
[null,213580,"Case","Hard Case","SAMSUNG GALAXY S10 OTTER SYMMETRY GLTR","Samsung Galaxy S10",49.99,49.99,"-","Remove from Web","-","-","2020-10-19","Inactive"]
[null,213581,"Case","Hard Case","SAMSUNG GALAXY S10 SPECK PRESID GRIP BLK","Samsung Galaxy S10",39.99,39.99,"-","Remove from Web","-","-","2020-02-16","Inactive"]
[null,213582,"Case","Hard Case","SAMSUNG GALAXY S10 SPECK PRESID PRO BLK","Samsung Galaxy S10",39.99,39.99,"-","Remove from Web","-","-","2020-02-16","Inactive"]
[null,213583,"Case","Hard Case","SAMSUNG GALAXY S10 SPECK PRESID STAY CLR","Samsung Galaxy S10",39.99,39.99,"-","Remove from Web","-","-","2020-02-16","Inactive"]
[null,213584,"Case","Hard Case","SAMSUNG GALAXY S10PLUS OTTER COMM BLK","Samsung Galaxy S10+",24.99,24.99,"-","Remove from Web","-","-","2020-08-25","Inactive"]
[null,213585,"Case","Hard Case","SAMSUNG GALAXY S10PLUS OTTER DEF BLK","Samsung Galaxy S10+",34.99,34.99,"-","Remove from Web","-","-","2020-08-25","Inactive"]
[null,213586,"Case","Hard Case","SAMSUNG GALAXY S10PLUS OTTER DEF PURP","Samsung Galaxy S10+",39.99,39.99,"-","Remove from Web","-","-","2020-08-25","Inactive"]
[null,213587,"Case","Hard Case","SAMSUNG GALAXY S10PLUS OTTER SYMM BLK","Samsung Galaxy S10+",39.99,39.99,"-","Remove from Web","-","-","2020-08-25","Inactive"]
[null,213588,"Case","Hard Case","SAMSUNG GALAXY S10PLUS OTTER SYMM GLTR","Samsung Galaxy S10+",39.99,39.99,"-","Remove from Web","-","-","2020-08-25","Inactive"]
[null,213589,"Case","Hard Case","SAMSUNG GALAXY S10PLUS SPECK PRS GRP BLK","Samsung Galaxy S10+",19.989999999999998,19.989999999999998,"-","Remove from Web","-","-","2020-08-25","Inactive"]
[null,213590,"Case","Hard Case","SAMSUNG GALAXY S10PLUS SPECK PRES ST CLR","Samsung Galaxy S10+",19.989999999999998,19.989999999999998,"-","Remove from Web","-","-","2020-08-25","Inactive"]
[null,213607,"Case","Hard Case","SAMSUNG GALAXY S10E TECH21 EVO CHEK PURP","Samsung Galaxy S10e",39.99,39.99,"-","Remove from Web","-","-","2020-02-16","Inactive"]
[null,213608,"Case","Hard Case","SAMSUNG GALAXY S10 TECH21 PURE CLEAR CLR","Samsung Galaxy S10",39.99,39.99,"-","Remove from Web","-","-","2020-10-19","Inactive"]
[null,213609,"Case","Hard Case","SAMSUNG GALAXY S10 TECH21 EVO CHECK BLK","Samsung Galaxy S10",39.99,39.99,"-","Remove from Web","-","-","2020-10-19","Inactive"]
[null,213610,"Case","Hard Case","SAMSUNG GALAXY S10 TECH21 EVO CHECK PURP","Samsung Galaxy S10",39.99,39.99,"-","Remove from Web","-","-","2020-02-16","Inactive"]
[null,213611,"Case","Hard Case","SAMSUNG GALAXY S10PLUS TECH21 PR CLR CLR","Samsung Galaxy S10+",24.99,24.99,"-","Remove from Web","-","-","2020-08-25","Inactive"]
[null,213612,"Case","Hard Case","SAMSUNG GALAXY S10PLUS TECH21 EVO CK BLK","Samsung Galaxy S10+",24.99,24.99,"-","Remove from Web","-","-","2020-08-25","Inactive"]
[null,213617,"Audio","Wireless Mono","PLANTRONICS EXPLORER 80 SERIES","Universal",39.99,39.99,"-","Remove from Web","-","-","2020-08-25","Inactive"]
[null,213618,"Case","Tablet Case","LOGITECH SLIM FOLIO iPAD 5TH/6TH GEN","iPad Pro 9.7 2018",99.99,99.99,"-","Remove from Web","-","-","2019-11-01","Inactive"]
[null,213722,"Case","Leather Case","SAM GS10 LEATHER BACK COVER BLK","Samsung Galaxy S10",49.99,49.99,"-","Remove from Web","-","-","2019-09-01","Inactive"]
[null,213723,"Case","Hard Case","SAM GS10 RUGGED PROT STANDING COVER BLK","Samsung Galaxy S10",34.99,34.99,"-","Remove from Web","-","-","2020-02-16","Inactive"]
[null,213724,"Case","Soft Case","SAM GS10 SILICONE COVER BLK","Samsung Galaxy S10",29.99,29.99,"-","Remove from Web","-","-","2020-02-16","Inactive"]
[null,213725,"Case","Folio Case","SAM GS10 S-VIEW FLIP COVER BLK","Samsung Galaxy S10",59.99,59.99,"-","Remove from Web","-","-","2020-02-16","Inactive"]
[null,213756,"Charger","Wireless Dock Charger","SAMSUNG WIRELESS CHARGER DUO PAD WHT",0,79.989999999999995,79.989999999999995,"-","Remove from Web","-","-","2020-08-25","Inactive"]
[null,213771,"Charger","Wireless Dock Charger","SAMSUNG WIRELESS CHARGER DUO PAD BLK","Universal",59.99,59.99,"-","Remove from Web","-","-","2020-10-19","Inactive"]
[null,213772,"Case","Leather Case","SAM GS10PLUS LEATHER BACK COVER BLK","Samsung Galaxy S10+",49.99,49.99,"-","Remove from Web","-","-","2019-09-01","Inactive"]
[null,213773,"Case","Hard Case","SAM GS10PLUS RUGGED PROT STAND COVER BLK","Samsung Galaxy S10+",24.99,24.99,"-","Remove from Web","-","-","2020-08-25","Inactive"]
[null,213774,"Case","Soft Case","SAM GS10PLUS SILICONE COVER BLK","Samsung Galaxy S10+",14.99,14.99,"-","Remove from Web","-","-","2020-08-25","Inactive"]
[null,213775,"Case","Folio Case","SAM GS10PLUS S-VIEW FLIP COVER BLK","Samsung Galaxy S10+",29.99,29.99,"-","Remove from Web","-","-","2020-08-25","Inactive"]
[null,213825,"Case","Case Accessories","POPSOCKETS COLOR CHROME MERMAID WHT","Universal",14.99,14.99,"-","Remove from Web","-","-","2019-06-01","Inactive"]
[null,213826,"Case","Case Accessories","POPSOCKETS SPARKLE BLK","Universal",14.99,14.99,"-","Remove from Web","-","-","2019-09-01","Inactive"]
[null,213858,"Case","Leather Case","SAM GS10E LEATHER BACK COVER BLK","Samsung Galaxy S10e",49.99,49.99,"-","Remove from Web","-","-","2019-09-01","Inactive"]
[null,213859,"Case","Hard Case","SAM GS10E RUGGED PROT STANDING COVER BLK","Samsung Galaxy S10e",34.99,34.99,"-","Remove from Web","-","-","2020-02-16","Inactive"]
[null,213860,"Case","Soft Case","SAM GS10E SILICONE COVER BLK","Samsung Galaxy S10e",29.99,29.99,"-","Remove from Web","-","-","2020-02-16","Inactive"]
[null,213861,"Case","Folio Case","SAM GS10E S-VIEW FLIP COVER BLK","Samsung Galaxy S10e",59.99,59.99,"-","Remove from Web","-","-","2020-02-16","Inactive"]
[null,213907,"Wearable","Samsung Wearable","SAM GALAXY WATCH ACTIVE BLK","Universal",199.99,199.99,"-","Remove from Web","-","-","2021-10-15","Inactive"]
[null,213908,"Wearable","Samsung Wearable","SAM GALAXY WATCH ACTIVE ROSEGLD","Universal",199.99,199.99,"-","Remove from Web","-","-","2021-10-15","Inactive"]
[null,213909,"Wearable","Samsung Wearable","SAM GALAXY WATCH ACTIVE GRN","Samsung Beyond",199.99,199.99,"-",{"$error":"#N/A"},{"$error":"#N/A"},{"$error":"#N/A"},"2020-03-01","Not Launching"]
[null,213912,"Case","Fashion Case","IPHONE XS SONIX SOUTHERN FLORAL CLR","iPhone X/Xs",34.99,34.99,"-","Remove from Web","-","-","2019-11-01","Inactive"]
[null,213913,"Case","Fashion Case","IPHONE XR SONIX RHINESTONE HARPER CLR","iPhone Xr",29.99,29.99,"-","Remove from Web","-","-","2020-10-19","Inactive"]
[null,213914,"Case","Fashion Case","IPHONE XR SONIX SOUTHERN FLORAL CLR","iPhone Xr",34.99,34.99,"-","Remove from Web","-","-","2019-11-01","Inactive"]
[null,213915,"Case","Fashion Case","IPHONE XR SONIX RAINBOW GLIT","iPhone Xr",34.99,34.99,"-","Remove from Web","-","-","2019-11-01","Inactive"]
[null,213916,"Case","Fashion Case","IPHONE XS MAX SONIX RHINESTONE HARP CLR","iPhone Xs Max",39.99,39.99,"-","Remove from Web","-","-","2020-08-25","Inactive"]
[null,213977,"Screen Protection","Glass","SAM GS10E GADGUARD GLASS SCRN PROT","Samsung Galaxy S10e",39.99,39.99,"-","Remove from Web","-","-","2020-08-25","Inactive"]
[null,213978,"Screen Protection","Plastic","SAM GS10 GADGUARD FLEX SCRN PROT","Samsung Galaxy S10",29.99,29.99,"-","Remove from Web","-","-","2020-10-19","Inactive"]
[null,213979,"Screen Protection","Plastic","SAM GS10PLUS GADGUARD FLEX SCRN PROT","Samsung Galaxy S10+",29.99,29.99,"-","Remove from Web","-","-","2020-08-25","Inactive"]
[null,213980,"Screen Protection","Liquid","GADGUARD BLACK ICE LIQ PLUS SCRN 2ND ED","Universal",69.989999999999995,69.989999999999995,"-","Include on Web, Available","-","-","2022-11-01","Active"]
[null,214034,"Case","Fashion Case","SAM GS10E SONIX SOUTHERN FLORAL","Samsung Galaxy S10e",34.99,34.99,"-","Remove from Web","-","-","2020-02-16","Inactive"]
[null,214035,"Case","Fashion Case","SAM GS10 SONIX SOUTHERN FLORAL","Samsung Galaxy S10",39.99,39.99,"-","Remove from Web","-","-","2020-08-25","Inactive"]
[null,214036,"Case","Fashion Case","SAM GS10PLUS SONIX SOUTHERN FLORAL","Samsung Galaxy S10+",39.99,39.99,"-","Remove from Web","-","-","2020-08-25","Inactive"]
[null,214047,"Case","Fashion Case","SAM GS10E CASE-MATE WATERFALL GOLD","Samsung Galaxy S10e",39.99,39.99,"-","Remove from Web","-","-","2020-02-16","Inactive"]
[null,214048,"Case","Fashion Case","SAM GS10 CASE-MATE WATERFALL GOLD","Samsung Galaxy S10",39.99,39.99,"-","Remove from Web","-","-","2020-08-25","Inactive"]
[null,214049,"Case","Fashion Case","SAM GS10PLUS CASE-MATE WATERFALL GOLD","Samsung Galaxy S10+",19.989999999999998,19.989999999999998,"-","Remove from Web","-","-","2020-08-25","Inactive"]
[null,214062,"Screen Protection","Cleaner","GADGUARD TECHTONIC SCRN CLEANER KIT 2OZ","Universal",14.99,14.99,"-","Include on Web, Available","-","-","2022-08-19","Active"]
[null,214087,"Case","Fashion Case","IPHONE XR CASE-MATE WATERFALL GLD","iPhone Xr",39.99,39.99,"-","Remove from Web","-","-","2019-11-01","Inactive"]
[null,214088,"Case","Fashion Case","IPHONE XS CASE-MATE WATERFALL GLD","iPhone X/Xs",39.99,39.99,"-","Remove from Web","-","-","2019-09-01","Inactive"]
[null,214418,"Case","Hard Case","LG K8S OTTERBOX COMMUTER BLK","LG K8s",19.989999999999998,19.989999999999998,"-","Remove from Web","-","-","2020-10-19","Inactive"]
[null,214419,"Case","Hard Case","LG K8S UAG SCOUT BLK","LG K8s",9.99,9.99,"-","Remove from Web","-","-","2020-10-19","Inactive"]
[null,214420,"Case","Hard Case","LG K8S SPECK CANDYSHELL LITE BLK","LG K8s",19.989999999999998,19.989999999999998,"-","Remove from Web","-","-","2020-02-16","Inactive"]
[null,214421,"Case","Hard Case","LG K8S CASE-MATE PROTECTION PACK","LG K8s",19.989999999999998,19.989999999999998,"-","Remove from Web","-",{"$f":"IF(I1479=\"Status Changed\",\"Status Changed\",IF(K1479=\"Status Changed\",\"Status Changed\",\"-\"))","v":"-"},"2020-10-19","Inactive"]
[null,214422,"Case","Hard Case","LG K8S NIMBUS9 LATITUDE BLK","LG K8s",12.99,12.99,"-","Remove from Web","-","-","2020-10-19","Inactive"]
[null,214423,"Case","Hard Case","LG K8S NIMBUS9 LATITUDE TEAL","LG K8s",12.99,12.99,"-","Remove from Web","-","-","2020-10-19","Inactive"]
[null,214443,"Screen Protection","Glass","LG K8S GADGUARD BLACK ICE SCREEN PROT","LG K8s",39.99,39.99,"-","Remove from Web","-","-","2020-08-25","Inactive"]
[null,214455,"Wearable","Samsung Wearable","SAM GALAXY FIT BLK","Universal",79.989999999999995,79.989999999999995,"-","Remove from Web","-","-","2021-02-19","Inactive"]
[null,214456,"Wearable","Samsung Wearable","SAM GALAXY FIT SIL","Universal",79.989999999999995,79.989999999999995,"-","Remove from Web","-","-","2021-02-19","Inactive"]
[null,214565,"Charger","Wireless Portable Charger","SAMSUNG WIRELESS PORTABLE BATTERY 10K","Universal",59.99,59.99,"-","Include on Web, Available","-","-","2022-08-19","Active"]
[null,214566,"Charger","Other Charger","Scosche 3 in 1 Universal Car Mount","Universal",19.989999999999998,19.989999999999998,"-","Include on Web, Available","-","-","2023-06-01","Active"]
[null,214611,"Case","Keyboard Case","IPAD MINI 5TH GEN APL SMART COVER GRY","iPad mini 5th Gen",39,39,"-","Remove from Web","-","-","2020-08-25","Inactive"]
[null,214613,"Case","Fashion Case","GOOGLE PIXEL 3 FABRIC CASE BLK","Google Pixel 3",40,40,"-","Remove from Web","-","-","2019-11-01","Inactive"]
[null,214614,"Case","Fashion Case","GOOGLE PIXEL 3 FABRIC CASE GRY","Google Pixel 3",40,40,"-","Remove from Web","-","-","2019-11-01","Inactive"]
[null,214615,"Case","Hard Case","GOOGLE PIXEL 3 OTTERBOX SYMMETRY BLK","Google Pixel 3",39.99,39.99,"-","Remove from Web","-","-","2020-02-16","Inactive"]
[null,214616,"Case","Hard Case","GOOGLE PIXEL 3 OTTERBOX SYMMETRY GLIT","Google Pixel 3",39.99,39.99,"-","Remove from Web","-","-","2020-02-16","Inactive"]
[null,214665,"Charger","Wireless Dock Charger","VENTEV WIRELESS CHARGEPAD DUO","Universal",69.989999999999995,69.989999999999995,"-","Include on Web, Available","-","-","2023-03-01","Active"]
[null,214666,"Charger","Wireless Car Charger","VENTEV WIRELESS CAR CHARGING KIT","Universal",59.99,59.99,"-","Temp. Unavailable, Remove from Web","-","-","2023-03-01","Active"]
[null,214675,"Case","Hard Case","GOOGLE PIXEL 3A XL CASE-MATE TOUGH CASE CLR","Google Pixel 3a XL",34.99,34.99,"-","Remove from Web","-","-","2020-08-25","Inactive"]
[null,214676,"Screen Protection","Glass","GOOGLE PIXEL 3A XL GADGUARD BLK SCRNPROT","Google Pixel 3a XL",39.99,39.99,"-","Remove from Web","-","-","2020-08-25","Inactive"]
[null,214677,"Charger","Universal Portable Charger","OTTERBOX POWER PACK 10K GRAY","Universal",29.99,29.99,"-","Remove from Web","-","-","2020-10-19","Inactive"]
[null,214678,"Charger","Universal Portable Charger","MOPHIE POWERSTATION 10K BLK","Universal",49.99,49.99,"-","Remove from Web","-","-","2021-02-19","Inactive"]
[null,214679,"Charger","Universal Portable Charger","MOPHIE POWERSTATION 5K BLK","Universal",24.99,24.99,"-","Include on Web, Available","-","-","2022-02-18","Inactive"]
[null,214680,"Charger","Wireless Dock Charger","Samsung Wireless Charger Pad 2018 Blk","Universal",49.99,49.99,"-","Remove from Web","-","-","2019-11-01","Inactive"]
[null,214681,"Charger","Wireless Dock Charger","Samsung Wireless Charger Stand 2018 Blk","Universal",59.99,59.99,"-","Remove from Web","-","-","2019-11-01","Inactive"]
[null,214697,"Charger","Other Charger","Scosche Magnetic Dash Mount","Universal",24.99,24.99,"-","Remove from Web","-","-","2020-10-19","Inactive"]
[null,214698,"Charger","Other Charger","Scosche Magnetic Vent Mount","Universal",24.99,24.99,"-","Remove from Web","-","-","2020-10-19","Inactive"]
[null,214699,"Charger","Wireless Car Charger","SCOSCHE MAGICMOUNT PRO WIRELESS CHARGER","Universal",49.99,49.99,"-","Remove from Web","-","-","2020-10-19","Inactive"]
[null,214700,"Audio","True Wireless","APL AIRPODS GEN 2 WIRELESS CHARGING","Universal",199,199,"-","Remove from Web","-","-","2020-10-19","Inactive"]
[null,214701,"Audio","True Wireless","APL AIRPODS GEN 2","Universal",129.99,129.99,"-","Include on Web, Available","-","-","2023-03-01","Active"]
[null,214702,"Audio","Other Audio","APL AIRPODS WIRELESS CHRG CASE","Universal",79,79,"-","Remove from Web","-","-","2020-08-25","Inactive"]
[null,214703,"Case","Hard Case","GOOGLE PIXEL 3A CASE-MATE TOUGH CASE CLR","Google Pixel 3a",34.99,34.99,"-","Remove from Web","-","-","2020-10-19","Inactive"]
[null,214704,"Screen Protection","Glass","GOOGLE PIXEL 3A GADGUARD BLACK ICE SCRN PROT","Google Pixel 3a",39.99,39.99,"-","Remove from Web","-","-","2020-08-25","Inactive"]
[null,214705,"Case","Fashion Case","GOOGLE PIXEL 3A FABRIC CASE BLK","Google Pixel 3a",40,40,"-","Remove from Web","-","-","2019-11-01","Inactive"]
[null,214706,"Case","Fashion Case","GOOGLE PIXEL 3A FABRIC CASE GRY","Google Pixel 3a",40,40,"-","Remove from Web","-","-","2019-11-01","Inactive"]
[null,214776,"Case","Fashion Case","GOOGLE PIXEL 3 XL  FABRIC CASE BLK","Google Pixel 3 XL",40,40,"-","Remove from Web","-","-","2019-11-01","Inactive"]
[null,214777,"Case","Soft Case","GOOGLE PIXEL 3 TECH21 EVO CHK BLK","Google Pixel 3",39.99,39.99,"-","Remove from Web","-","-","2020-02-16","Inactive"]
[null,214787,"Case","Fashion Case","GOOGLE PIXEL 3 XL FABRIC CASE GRY","Google Pixel 3 XL",40,40,"-","Remove from Web","-","-","2019-11-01","Inactive"]
[null,214788,"Case","Hard Case","GOOGLE PIXEL 3 XL OTTERBOX SYMMETRY BLK","Google Pixel 3 XL",49.99,49.99,"-","Remove from Web","-","-","2020-02-16","Inactive"]
[null,214789,"Case","Hard Case","GOOGLE PIXEL 3 XL OTTERBOX SYMMETRY GLIT","Google Pixel 3 XL",49.99,49.99,"-","Remove from Web","-","-","2020-02-16","Inactive"]
[null,214790,"Case","Soft Case","GOOGLE PIXEL 3 XL TECH21 EVO CHECK BLK","Google Pixel 3 XL",44.99,44.99,"-","Remove from Web","-","-","2020-02-16","Inactive"]
[null,214797,"Case","Hard Case","GOOGLE PIXEL 3A OTTERBOX SYMMETRY BLK","Google Pixel 3a",24.99,24.99,"-","Remove from Web","-","-","2020-08-25","Inactive"]
[null,214798,"Case","Clip Case","GOOGLE PIXEL 3A OTTERBOX DEFENDER BLK","Google Pixel 3a",29.99,29.99,"-","Remove from Web","-","-","2020-08-25","Inactive"]
[null,214799,"Case","Soft Case","GOOGLE PIXEL 3A TECH21 DESIGN STUDIO BLK","Google Pixel 3a",29.99,29.99,"-","Remove from Web","-","-","2020-10-19","Inactive"]
[null,214807,"Case","Fashion Case","GOOGLE PIXEL 3A XL FABRIC CASE BLK","Google Pixel 3a XL",40,40,"-","Remove from Web","-","-","2019-11-01","Inactive"]
[null,214808,"Case","Fashion Case","GOOGLE PIXEL 3A XL FABRIC CASE GRY","Google Pixel 3a XL",40,40,"-","Remove from Web","-","-","2019-11-01","Inactive"]
[null,214809,"Case","Hard Case","GOOGLE PIXEL 3A XL OTTERBOX SYMMETRY BLK","Google Pixel 3a XL",24.99,24.99,"-","Remove from Web","-","-","2020-10-19","Inactive"]
[null,214810,"Case","Clip Case","GOOGLE PIXEL 3A XL OTTERBOX DEFENDER BLK","Google Pixel 3a XL",29.99,29.99,"-","Remove from Web","-","-","2020-08-25","Inactive"]
[null,214811,"Case","Soft Case","GOOGLE PIXEL 3A XL TECH21 STUDIO DESIGN BLK","Google Pixel 3a XL",29.99,29.99,"-","Remove from Web","-","-","2020-10-19","Inactive"]
[null,214848,"Wearable","Other Wearable","RELAY KIDS GPS TRACKER WALKIE TALKIE BLU","Universal",49.99,49.99,"-","Remove from Web","-","-","2020-10-19","Inactive"]
[null,214849,"Case","Other Case","RELAY LOOP CASE AND LANYARD BLK","Universal",14.99,14.99,"-","Remove from Web","-","-","2020-10-19","Inactive"]
[null,214862,"Charger","Other Charger","CABLE CANDY CABLE TIES MULTI","Universal",4.99,4.99,"-","Remove from Web","-","-","2020-08-25","Inactive"]
[null,214863,"Charger","Other Charger","CABLE CANDY DONUT PNK","Universal",4.99,4.99,"-","Remove from Web","-","-","2020-08-25","Inactive"]
[null,214864,"Charger","Other Charger","CABLE CANDY DONUT BLU","Universal",4.99,4.99,"-","Remove from Web","-","-","2020-08-25","Inactive"]
[null,214865,"Charger","Other Charger","CABLE CANDY MIXED BEANS BLK","Universal",4.99,4.99,"-","Remove from Web","-","-","2020-08-25","Inactive"]
[null,214866,"Charger","Other Charger","CABLE CANDY MIXED BEANS WHT","Universal",4.99,4.99,"-","Remove from Web","-","-","2020-08-25","Inactive"]
[null,214950,"Charger","Android Cable","Ventev Helix Cable A to C Gray","Universal",24.99,24.99,"-","Remove from Web","-","-","2019-11-01","Inactive"]
[null,214951,"Charger","Apple Cable","Ventev Helix Cable Lightning Gray","Universal",24.99,24.99,"-","Remove from Web","-","-","2019-11-01","Inactive"]
[null,214954,"Memory","Memory Card","Samsung EVO Plus Memory Card 32GB","Universal",19.989999999999998,19.989999999999998,"-","Include on Web, Available","-","-","2022-05-27","Inactive"]
[null,214955,"Memory","Memory Card","Samsung EVO Plus Memory Card 64GB","Universal",29.99,29.99,"-","Include on Web, Available","-","-","2021-10-15","Inactive"]
[null,214956,"Memory","Memory Card","Samsung EVO Plus Memory Card 128GB","Universal",49.99,49.99,"-","Remove from Web","-","-","2021-02-19","Inactive"]
[null,214961,"Case","Case Accessories","POPSOCKETS POPWALLET BLK","Universal",19.989999999999998,19.989999999999998,"-","Remove from Web","-","-","2021-02-19","Inactive"]
[null,214962,"Case","Case Accessories","POPSOCKETS CAR VENT MOUNT","Universal",14.99,14.99,"-","Remove from Web","-","-","2021-02-19","Inactive"]
[null,214963,"Case","Case Accessories","POPSOCKETS POPGRIP BLK","Universal",6.99,6.99,"-","Include on Web, Available","-","-","2021-08-17","Inactive"]
[null,214964,"Case","Case Accessories","POPSOCKETS POPGRIP PEACE MANDALA SKY","Universal",9.99,9.99,"-","Include on Web, Available","-","-","2022-05-27","Active"]
[null,214965,"Case","Case Accessories","POPSOCKETS POPGRIP CARBONITE WEAVE","Universal",9.99,9.99,"-","Remove from Web","-","-","2021-08-17","Inactive"]
[null,214966,"Case","Case Accessories","POPSOCKETS POPGRIP OH SAY CAN YOU SEE","Universal",9.99,9.99,"-","Remove from Web","-","-","2020-08-25","Inactive"]
[null,215127,"Case","Case Accessories","POPSOCKETS POPGRIP TROPICAL PUNCH","Universal",9.99,9.99,"-","Remove from Web","-",{"$f":"IF(I1543=\"Status Changed\",\"Status Changed\",IF(K1543=\"Status Changed\",\"Status Changed\",\"-\"))","v":"-"},"2020-08-25","Inactive"]
[null,215128,"Case","Case Accessories","POPSOCKETS POPGRIP BLUE NEBULA","Universal",9.99,9.99,"-","Remove from Web","-","-","2020-08-25","Inactive"]
[null,215129,"Case","Case Accessories","POPSOCKETS POPGRIP OPAL","Universal",9.99,9.99,"-","Include on Web, Available","-","-","2022-05-27","Active"]
[null,215130,"Case","Case Accessories","POPSOCKETS PINEAPPLE MODERNIST","Universal",9.99,9.99,"-","Remove from Web","-","-","2020-08-25","Inactive"]
[null,215137,"Case","Hard Case","NUU MOBILE A6LUC PUREGEAR SLIM SHELL BLK","NUU Mobile A6L-UC",19.989999999999998,19.989999999999998,"-","Remove from Web","-","-","2020-10-19","Inactive"]
[null,215162,"Charger","Wireless Dock Charger","MOPHIE CHARGE STREAM PAD PLUS BLK","Universal",49.99,49.99,"-","Remove from Web","-","-","2020-08-25","Inactive"]
[null,215168,"Screen Protection","Liquid","GADGUARD BLACK ICE PLUS LIQUID WEARABLES","Universal",39.99,39.99,"-","Include on Web, Available","-","-","2022-11-01","Active"]
[null,215233,"Case","Clip Case","LG G8 THINQ OTTERBOX DEFENDER BLK","LG G8 ThinQ",19.989999999999998,19.989999999999998,"-","Remove from Web","-","-","2021-02-19","Inactive"]
[null,215234,"Case","Clip Case","LG G8 THINQ OTTERBOX SYMMETRY BLK","LG G8 ThinQ",24.99,24.99,"-","Remove from Web","-","-","2020-10-19","Inactive"]
[null,215235,"Case","Hard Case","LG G8 THINQ OTTERBOX SYMMETRY PURP","LG G8 ThinQ",24.99,24.99,"-","Remove from Web","-","-","2020-10-19","Inactive"]
[null,215236,"Case","Other Case","LG G8 THINQ CASE-MATE PROTECTION PACK","LG G8 ThinQ",39.99,39.99,"-","Remove from Web","-","-","2020-08-25","Inactive"]
[null,215238,"Case","Case Accessories","UA PROTECT DRY BAG BLK","Universal",19.989999999999998,19.989999999999998,"-","Remove from Web","-","-","2019-11-01","Inactive"]
[null,215239,"Case","Hard Case","IPHONE 8/7 OTTERPOP DEFENDER BLK","iPhone 6/6s/7/8",59.99,59.99,"-","Remove from Web","-","-","2019-11-01","Inactive"]
[null,215240,"Case","Hard Case","IPHONE 8/7 OTTERPOP SYMMETRY BLK","iPhone 6/6s/7/8",49.99,49.99,"-","Remove from Web","-","-","2019-11-01","Inactive"]
[null,215241,"Case","Hard Case","IPHONE XR OTTERPOP DEFENDER BLK","iPhone XR",34.99,34.99,"-","Remove from Web","-","-","2020-10-19","Inactive"]
[null,215242,"Case","Hard Case","IPHONE XR OTTERPOP DEFENDER BLU","iPhone XR",44.99,44.99,"-","Remove from Web","-","-","2020-10-19","Inactive"]
[null,215243,"Case","Hard Case","IPHONE XR OTTERPOP SYMMETRY BLK","iPhone XR",39.99,39.99,"-","Remove from Web","-","-","2020-10-19","Inactive"]
[null,215245,"Case","Hard Case","IPHONE XS MAX OTTERPOP SYMMETRY BLK","iPhone Xs Max",29.99,29.99,"-","Remove from Web","-","-","2020-08-25","Inactive"]
[null,215247,"Memory","Memory Card","Samsung EVO Plus Memory Card 256GB","Universal",99.99,99.99,"-","Include on Web, Available","-","-","2022-08-19","Inactive"]
[null,215250,"Case","Hard Case","SAM GALAXY S10PLUS OTTERPOP DEFENDER BLK","Samsung Galaxy S10+",34.99,34.99,"-","Remove from Web","-","-","2020-08-25","Inactive","*On Stop-Buy"]
[null,215251,"Case","Soft Case","SAM GALAXY S10PLUS TECH21 EVO CHECK BLU","Samsung Galaxy S10+",24.99,24.99,"-","Remove from Web","-","-","2020-08-25","Inactive"]
[null,215252,"Case","Hard Case","SAM GALAXY S10E OTTERPOP DEFENDER BLK","Samsung Galaxy S10e",69.989999999999995,69.989999999999995,"-","Remove from Web","-","-","2020-02-16","Inactive"]
[null,215277,"Audio","True Wireless","JBL ENDURANCE PEAK TW BLK","Universal",49.99,49.99,"-","Remove from Web","-","-","2021-02-19","Inactive"]
[null,215278,"Case","Hard Case","IPHONE XS MAX OTTERPOP DEFENDER BLK","iPhone Xs Max",34.99,34.99,"-","Remove from Web","-","-","2020-08-25","Inactive"]
[null,215279,"Case","Waterproof Case","SAM GALAXY S10 LIFEPROOF FRE BLACK","Samsung Galaxy S10",89.99,89.99,"-","Remove from Web","-","-","2020-08-25","Inactive"]
[null,215280,"Case","Hard Case","SAM GALAXY S10 OTTERPOP DEFENDER BLK","Samsung Galaxy S10",69.989999999999995,69.989999999999995,"-","Remove from Web","-","-","2020-02-16","Inactive"]
[null,215281,"Case","Soft Case","SAM GALAXY S10 TECH21 EVO CHECK BLUE","Samsung Galaxy S10",39.99,39.99,"-","Remove from Web","-","-","2020-02-16","Inactive"]
[null,215282,"Case","Waterproof Case","SAM GALAXY S10PLUS LIFEPROOF FRE BLACK","Samsung Galaxy S10+",49.99,49.99,"-","Remove from Web","-","-","2020-08-25","Inactive"]
[null,215286,"Case","Hard Case","IPHONE XR OTTERPOP SYMMETRY PURP","iPhone XR",34.99,34.99,"-","Remove from Web","-","-","2020-10-19","Inactive"]
[null,215397,"Case","Soft Case","LG G8 THINQ TECH21 EVOCHECK BLK","LG G8 ThinQ",19.989999999999998,19.989999999999998,"-","Remove from Web","-","-","2020-08-25","Inactive"]
[null,215398,"Case","Soft Case","LG G8 THINQ TECH21 EVOCHECK PURP","LG G8 ThinQ",39.99,39.99,"-","Remove from Web","-","-","2020-08-25","Inactive"]
[null,215399,"Screen Protection","Glass","LG G8 THINQ GADGUARD BLACK ICE SCRN PROT","LG G8 ThinQ",44.99,44.99,"-","Remove from Web","-","-","2020-08-25","Inactive"]
[null,215421,"Case","Other Case","LG K40 CASE-MATE PROTECTION PACK","LG K40",39.99,39.99,"-","Remove from Web","-","-","2021-02-19","Inactive"]
[null,215422,"Screen Protection","Glass","LG K40 GADGUARD BLACK ICE SCRN PROT","LG K40",39.99,39.99,"-","Remove from Web","-","-","2021-02-19","Inactive"]
[null,215423,"Case","Hard Case","LG K40 NIMBUS9 LATITUDE BLK","LG K40",12.99,12.99,"-","Remove from Web","-","-","2020-10-19","Inactive"]
[null,215424,"Case","Hard Case","LG K40 NIMBUS9 LATITUDE TEAL","LG K40",12.99,12.99,"-","Remove from Web","-","-","2020-10-19","Inactive"]
[null,215425,"Case","Hard Case","LG K40 OTTERBOX COMMUTER LITE BLK","LG K40",29.99,29.99,"-","Remove from Web","-","-","2021-02-19","Inactive"]
[null,215426,"Case","Soft Case","LG K40 TECH21 EVO CHECK GRAY","LG K40",14.99,14.99,"-","Remove from Web","-","-","2020-10-19","Inactive"]
[null,215451,"Audio","True Wireless","BEATS POWERBEATS PRO TRUE WIRELESS BLK","Universal",249.95,249.95,"-","Remove from Web","-","-","2022-02-18","Inactive"]
[null,215507,"Case","Other Case","MOTO G7 PLAY CASE-MATE PROTECTION PACK","Moto G7 Play",19.989999999999998,19.989999999999998,"-","Remove from Web","-","-","2020-08-25","Inactive"]
[null,215508,"Screen Protection","Glass","MOTO G7 PLAY GADGUARD BLACK ICE SCRN PRT","Moto G7 Play",39.99,39.99,"-","Remove from Web","-","-","2020-08-25","Inactive"]
[null,215509,"Case","Hard Case","MOTO G7 PLAY NIMBUS9 LATITUDE BLK","Moto G7 Play",24.99,24.99,"-","Remove from Web","-","-","2020-08-25","Inactive"]
[null,215510,"Case","Hard Case","MOTO G7 PLAY NIMBUS9 LATITUDE TEAL","Moto G7 Play",12.99,12.99,"-","Remove from Web","-","-","2020-08-25","Inactive"]
[null,215891,"Charger","Universal Wall Charger","XENTRIS 2.4A USB WALL CHARGER BLK","Universal",9.99,9.99,"-",{"$error":"#N/A"},{"$error":"#N/A"},{"$error":"#N/A"},"2022-02-18","Inactive"]
[null,215892,"Charger","Universal Car Charger","XENTRIS 2.4 USB CAR CHARGER BLK","Universal",9.99,9.99,"-",{"$error":"#N/A"},{"$error":"#N/A"},{"$error":"#N/A"},"2022-02-18","Inactive"]
[null,215893,"Charger","Android Cable","XENTRIS MICRO-USB CABLE 4-FOOT BLK","Samsung Galaxy GS10e",9.99,9.99,"-",{"$error":"#N/A"},{"$error":"#N/A"},{"$error":"#N/A"},"2022-02-18","Inactive"]
[null,215894,"Charger","Android Cable","XENTRIS USB-C CABLE 6-FOOT BLK",0,9.99,9.99,"-",{"$error":"#N/A"},{"$error":"#N/A"},{"$error":"#N/A"},"2022-02-18","Inactive"]
[null,215895,"Charger","Apple Cable","XENTRIS LIGHTNING CABLE 4-FOOT BLK","Apple Lightning",14.99,14.99,"-",{"$error":"#N/A"},{"$error":"#N/A"},{"$error":"#N/A"},"2022-02-18","Inactive"]
[null,215896,"Charger","Wireless In-Ear","XENTRIS WIRELESS EARBUDS BLK","Universal",14.99,14.99,"-",{"$error":"#N/A"},{"$error":"#N/A"},{"$error":"#N/A"},"00:00:00","Not Launching"]
[null,215909,"Screen Protection","Glass","IPHONE 8/7/6 SHOCK SHIELD GLSS SCRN PROT","iPhone 6/6s/7/8",19.989999999999998,19.989999999999998,"-",{"$error":"#N/A"},{"$error":"#N/A"},{"$error":"#N/A"},"2020-08-25","Inactive"]
[null,215910,"Screen Protection","Glass","LG K8S SHOCK SHIELD GLASS SCRN PROT","LG K8s",19.989999999999998,19.989999999999998,"-",{"$error":"#N/A"},{"$error":"#N/A"},{"$error":"#N/A"},"2020-08-25","Inactive"]
[null,215911,"Screen Protection","Glass","MOTO E5 SHOCK SHIELD GLASS SCRN PROT","Moto E5 Play",19.989999999999998,19.989999999999998,"-",{"$error":"#N/A"},{"$error":"#N/A"},{"$error":"#N/A"},"2020-08-25","Inactive"]
[null,215912,"Screen Protection","Glass","NUU A6L-UC SHOCK SHIELD GLASS SCRN PROT","NUU Mobile A6L-UC",19.989999999999998,19.989999999999998,"-",{"$error":"#N/A"},{"$error":"#N/A"},{"$error":"#N/A"},"2020-10-19","Inactive"]
[null,215913,"Case","Soft Case","IPHONE 7 XENTRIS CLR","iPhone 6/6s/7/8",9.99,9.99,"-",{"$error":"#N/A"},{"$error":"#N/A"},{"$error":"#N/A"},"2020-08-25","Inactive"]
[null,215914,"Case","Soft Case","IPHONE 7 XENTRIS BLK","iPhone 6/6s/7/8",9.99,9.99,"-",{"$error":"#N/A"},{"$error":"#N/A"},{"$error":"#N/A"},"2020-08-25","Inactive"]
[null,215915,"Case","Soft Case","MOTO E5 XENTRIS CLR","Moto E5 Play",9.99,9.99,"-",{"$error":"#N/A"},{"$error":"#N/A"},{"$error":"#N/A"},"2020-08-25","Inactive"]
[null,215916,"Case","Soft Case","MOTO E5 XENTRIS BLK","Moto E5 Play",9.99,9.99,"-",{"$error":"#N/A"},{"$error":"#N/A"},{"$error":"#N/A"},"2020-08-25","Inactive"]
[null,215927,"Case","Soft Case","LG K8S XENTRIS CLR","LG K8s",9.99,9.99,"-",{"$error":"#N/A"},{"$error":"#N/A"},{"$error":"#N/A"},"00:00:00","Not Launching"]
[null,215928,"Case","Soft Case","LG K8S XENTRIS BLK","LG K8s",9.99,9.99,"-",{"$error":"#N/A"},{"$error":"#N/A"},{"$error":"#N/A"},"00:00:00","Not Launching"]
[null,216323,"Connected Home","Other Connected Home","ARLO QUADPOD MOUNT","Universal",34.99,34.99,"-","Remove from Web","-","-","2020-10-19","Inactive"]
[null,216382,"Case","Folio Case","NOTE10PLUS S-VIEW FLIP COVER BLK","Samsung Note10+",49.99,49.99,"-","Remove from Web","-","-","2020-08-25","Inactive"]
[null,216383,"Case","Hard Case","NOTE10PLUS RUGGED PROTECTIVE COVER BLK","Samsung Note10+",39.99,39.99,"-","Remove from Web","-","-","2020-08-25","Inactive"]
[null,216384,"Screen Protection","Plastic","NOTE10PLUS GADGUARD BLK ICE CORNICE FLEX","Samsung Note10+",44.99,44.99,"-","Remove from Web","-","-","2020-08-25","Inactive"]
[null,216385,"Case","Hard Case","NOTE10PLUS OTTERBOX DEFENDER BLK","Samsung Note10+",59.99,59.99,"-","Remove from Web","-","-","2020-08-25","Inactive"]
[null,216386,"Case","Hard Case","NOTE10PLUS OTTERBOX SYMMETRY BLK","Samsung Note10+",49.99,49.99,"-","Remove from Web","-",{"$f":"IF(I1607=\"Status Changed\",\"Status Changed\",IF(K1607=\"Status Changed\",\"Status Changed\",\"-\"))","v":"-"},"2020-08-25","Inactive"]
[null,216402,"Audio","Portable Speaker","JBL FLIP 5 BLK","Universal",129.99,129.99,"-","Include on Web, Available","-","-","2022-02-18","Inactive"]
[null,216403,"Audio","Portable Speaker","JBL FLIP 5 BLU","Universal",129.99,129.99,"-","Include on Web, Available","-","-","2022-02-18","Inactive"]
[null,216404,"Audio","Portable Speaker","JBL XTREME 2 BLK","Universal",179.99,179.99,"-","Remove from Web","-","-","2021-05-17","Inactive"]
[null,216405,"Wearable","Cellular Samsung Wearable","SAM GALAXY WATCH ACTIVE2 LTE 44MM BLK SS",0,299.99,299.99,"-","Remove from Web","-","-","2022-02-11","Inactive"]
[null,216406,"Wearable","Cellular Samsung Wearable","SAM GALAXY WATCH ACTIVE2 LTE 40MM RGD SS",0,279.99,279.99,"-","Remove from Web","-","-","2022-02-11","Inactive"]
[null,216472,"Audio","True Wireless","JLAB JBUDS AIR EXECUTIVE BLK","Universal",49.99,49.99,"-","Remove from Web","-","-","2021-08-17","Inactive"]
[null,216473,"Audio","True Wireless","JLAB JBUDS AIR SPORT BLK","Universal",69.989999999999995,69.989999999999995,"-","Temp. Unavailable, Remove from Web","-","-","2023-03-01","Active"]
[null,216498,"Case","Folio Case","NOTE10 S-VIEW FLIP COVER BLK","Samsung Note10",49.99,49.99,"-","Remove from Web","-","-","2020-08-25","Inactive"]
[null,216499,"Case","Hard Case","NOTE10 RUGGED PROTECTIVE COVER BLK","Samsung Note10",39.99,39.99,"-","Remove from Web","-","-","2020-08-25","Inactive"]
[null,216500,"Screen Protection","Plastic","NOTE10 GADGUARD BLACK ICE CORNICE FLEX","Samsung Note10",44.99,44.99,"-","Remove from Web","-","-","2020-08-25","Inactive"]
[null,216501,"Case","Hard Case","NOTE10 OTTERBOX DEFENDER BLK","Samsung Note10",59.99,59.99,"-","Remove from Web","-","-","2020-08-25","Inactive"]
[null,216502,"Case","Hard Case","NOTE10 OTTERBOX SYMMETRY GLITTER","Samsung Note10",49.99,49.99,"-","Remove from Web","-","-","2020-08-25","Inactive"]
[null,216503,"Case","Soft Case","NOTE10 TECH21 EVO CHECK BLK","Samsung Note10",39.99,39.99,"-","Remove from Web","-","-","2020-08-25","Inactive"]
[null,216504,"Case","Soft Case","NOTE10 TECH21 PURE CLR","Samsung Note10",39.99,39.99,"-","Remove from Web","-","-","2020-08-25","Inactive"]
[null,216505,"Case","Fashion Case","NOTE10 CASE-MATE TWINKLE","Samsung Note10",39.99,39.99,"-","Remove from Web","-","-","2020-08-25","Inactive"]
[null,216508,"Charger","Universal Wall","VENTEV WALLPORT PD1180","Universal",12.99,12.99,"-","Include on Web, Available","-","-","2022-02-18","Inactive"]
[null,216509,"Charger","Universal Car Charger","VENTEV DASHPORT PD1300","Universal",24.99,24.99,"-","Remove from Web","-","-","2021-05-17","Inactive"]
[null,216510,"Charger","Apple Cable","VENTEV CHARGESYNC C-LIGHTNING","Universal",24.99,24.99,"-","Remove from Web","Status Changed","Status Changed","2022-05-27","Active"]
[null,216517,"Case","Hard Case","NOTE10PLUS OTTERBOX SYMMETRY GLITTER","Samsung Note10+",49.99,49.99,"-","Remove from Web","-","-","2020-08-25","Inactive"]
[null,216518,"Case","Soft Case","NOTE10PLUS TECH21 EVO CHECK BLK","Samsung Note10+",39.99,39.99,"-","Remove from Web","-","-","2020-08-25","Inactive"]
[null,216519,"Case","Soft Case","NOTE10PLUS TECH21 PURE CLR","Samsung Note10+",39.99,39.99,"-","Remove from Web","-","-","2020-08-25","Inactive"]
[null,216520,"Case","Fashion Case","NOTE10PLUS CASE-MATE TWINKLE","Samsung Note10+",39.99,39.99,"-","Remove from Web","-","-","2020-02-16","Inactive"]
[null,216521,"Case","Fashion Case","NOTE10PLUS RIFLE PAPER JULIET ROSE","Samsung Note10+",19.989999999999998,19.989999999999998,"-","Remove from Web","-","-","2020-02-16","Inactive"]
[null,216522,"Case","Other Case","SAM A50 CASE-MATE PROTECTION PACK CLEAR","Samsung Galaxy A50",39.99,39.99,"-","Remove from Web","-","-","2020-10-19","Inactive"]
[null,216523,"Screen Protection","Glass","SAM A50 GADGUARD BLACK ICE SCREEN PROT","Samsung Galaxy A50",39.99,39.99,"-","Remove from Web","-","-","2020-10-19","Inactive"]
[null,216524,"Case","Hard Case","SAM A50 OTTERBOX COMMUTER LITE BLK","Samsung Galaxy A50",29.99,29.99,"-","Remove from Web","-","-","2020-10-19","Inactive"]
[null,216525,"Case","Fashion Case","SAM A50 GRADATION COVER BLACK","Samsung Galaxy A50",19.989999999999998,19.989999999999998,"-","Remove from Web","-","-","2020-02-16","Inactive"]
[null,216526,"Case","Soft Case","SAM A50 TECH21 STUDIO COLOUR BLK","Samsung Galaxy A50",29.99,29.99,"-","Remove from Web","-","-","2020-10-19","Inactive"]
[null,216537,"Case","Fashion Case","SAM A50 TECH21 STUDIO COLOUR CORAL","Samsung Galaxy A50",29.99,29.99,"-","Remove from Web","-","-","2020-10-19","Inactive"]
[null,216545,"Charger","Wireless Dock Charger","SAMSUNG WIRELESS CHARGER STAND 15W","Universal",79.989999999999995,79.989999999999995,"-","Include on Web, Available","-","-","2022-08-19","Active"]
[null,216567,"Case","Hard Case","SAM A50 SPECK PRESIDIO LITE BLU","Samsung Galaxy A50",24.99,24.99,"-","Remove from Web","-","-","2020-10-19","Inactive"]
[null,216661,"Screen Protection","Glass","SAM A10E GADGUARD BLACK ICE SCREEN PROT","Samsung Galaxy A10e",39.99,39.99,"-","Remove from Web","-","-","2020-10-19","Inactive"]
[null,216662,"Case","Hard Case","SAM A10E OTTERBOX COMMUTER LITE BLK","Samsung Galaxy A10e",29.99,29.99,"-","Remove from Web","-","-","2020-10-19","Inactive"]
[null,216663,"Case","Hard Case","SAM A10E OTTERBOX COMMUTER LITE TEAL","Samsung Galaxy A10e",29.99,29.99,"-","Remove from Web","-","-","2020-08-25","Inactive"]
[null,216664,"Case","Other Case","SAM A10E CASE-MATE PROTECTION PACK CLR","Samsung Galaxy A10e",39.99,39.99,"-","Remove from Web","-","-","2020-08-25","Inactive"]
[null,216665,"Case","Soft Case","SAM A10E TECH21 STUDIO COLOUR BLK","Samsung Galaxy A10e",29.99,29.99,"-","Remove from Web","-","-","2020-08-25","Inactive"]
[null,216666,"Case","Soft Case","SAM A10E TECH21 STUDIO COLOUR GRN","Samsung Galaxy A10e",29.99,29.99,"-","Remove from Web","-","-","2020-08-25","Inactive"]
[null,216685,"Case","Clip Case","XP3 SONIM HOLSTER WITH CLIP BLK","Sonim XP3",29.99,29.99,"-","Include on Web, Available","-","-","2022-12-31","Active"]
[null,216707,"Case","Leather Case","ANS F30 FITTED CASE BLK","ANS F30",19.989999999999998,19.989999999999998,"-","Include on Web, Available","-","-","2022-09-01","Active"]
[null,216732,"Charger","Wireless Dock Charger","SAMSUNG WIRELESS CHARGER STAND 9W","Universal",49.99,49.99,"-","Remove from Web","-","-","2020-10-19","Inactive"]
[null,216733,"Charger","Wireless Dock Charger","SAMSUNG WIRELESS CHARGER PAD 9W","Universal",29.99,29.99,"-","Include on Web, Available","-","-","2022-02-18","Inactive"]
[null,216737,"Case","Soft Case","SAM A10E TECH21 EVO CHECK BLK","Samsung Galaxy A10e",39.99,39.99,"-","Remove from Web","-","-","2020-08-25","Inactive"]
[null,216738,"Case","Case Accessories","NOTE10/10PLUS SAM S PEN WHT","Samsung Note10/10+",29.99,29.99,"-","Remove from Web","-","-","2020-08-25","Inactive"]
[null,216739,"Case","Case Accessories","NOTE10/10PLUS SAM S PEN SIL","Samsung Note10/10+",29.99,29.99,"-","Remove from Web","-","-","2020-08-25","Inactive"]
[null,216740,"Case","Case Accessories","NOTE10/10PLUS SAM S PEN BLK","Samsung Note10/10+",29.99,29.99,"-","Remove from Web","-","-","2020-08-25","Inactive"]
[null,216744,"Case","Fashion Case","IPHONE 11 PRO MAX CASE-MATE WATERFAL GLD","iPhone 11 Pro Max",24.99,24.99,"-","Remove from Web","-","-","2021-02-19","Inactive"]
[null,216745,"Case","Hard Case","IPHONE 11 PRO MAX OTTERBOX COMMUTER BLK","iPhone 11 Pro Max",39.99,39.99,"-","Remove from Web","-","-","2021-02-19","Inactive"]
[null,216746,"Case","Hard Case","IPHONE 11 PRO MAX OTTERBOX COMMUTER BLU","iPhone 11 Pro Max",39.99,39.99,"-","Remove from Web","-","-","2021-02-19","Inactive"]
[null,216913,"Case","Hard Case","IPHONE 11 PRO TECH21 PURE CLR","iPhone 11 Pro",24.99,24.99,"-","Remove from Web","-","-","2021-02-19","Inactive"]
[null,216914,"Case","Fashion Case","IPHONE 11 CASE-MATE WATERFALL GLD","iPhone 11",39.99,39.99,"-","Remove from Web","-","-","2020-10-19","Inactive"]
[null,216915,"Case","Fashion Case","IPHONE 11 CASE-MATE TWINKLE STARDUST","iPhone 11",39.99,39.99,"-","Remove from Web","-","-","2022-08-19","Inactive"]
[null,216916,"Case","Hard Case","IPHONE 11 GEAR4 PICCADILLY CLR","iPhone 11",39.99,39.99,"-","Remove from Web","-","-","2021-05-17","Inactive"]
[null,216959,"Audio","Wireless On-Ear","JBL TUNE 600BTNC BLK","Universal",99.99,99.99,"-","Include on Web, Available","-","-","2022-02-18","Inactive"]
[null,216960,"Audio","Wireless On-Ear","JBL TUNE 500BT BLK","Universal",49.99,49.99,"-","Remove from Web","-","-","2021-10-15","Inactive"]
[null,216961,"Audio","Wireless Neck","JBL LIVE 220BT BLK","Universal",69.989999999999995,69.989999999999995,"-","Include on Web, Available","-","-","2022-02-18","Inactive"]
[null,216962,"Audio","Portable Speaker","JBL PULSE 4 BLK","Universal",249.99,249.99,"-","Include on Web, Available","-","-","2022-10-28","Active"]
[null,216963,"Case","Fashion Case","IPHONE 11 PRO CASE-MATE TWINKLE STARDUST","iPhone 11 Pro",29.99,29.99,"-","Remove from Web","-","-","2020-10-19","Inactive"]
[null,216964,"Case","Fashion Case","IPHONE 11 PRO CASE-MATE WATERFALL GLD","iPhone 11 Pro",29.99,29.99,"-","Remove from Web","-","-","2020-10-19","Inactive"]
[null,216965,"Case","Hard Case","IPHONE 11 PRO OTTERBOX COMMUTER BLK","iPhone 11 Pro",39.99,39.99,"-","Remove from Web","-","-","2021-02-19","Inactive"]
[null,216966,"Case","Hard Case","IPHONE 11 PRO OTTERBOX COMMUTER BLU","iPhone 11 Pro",29.99,29.99,"-","Remove from Web","-","-","2021-02-19","Inactive"]
[null,216967,"Case","Fashion Case","IPHONE 11 KATE SPADE DISCO DOTS BLK","iPhone 11",39.99,39.99,"-","Remove from Web","-","-","2020-10-19","Inactive"]
[null,216968,"Case","Fashion Case","IPHONE 11 MELLOW BIODEGRADABLE WHT","iPhone 11",39.99,39.99,"-","Remove from Web","-","-","2020-08-25","Inactive"]
[null,216969,"Case","Hard Case","IPHONE 11 OTTERBOX COMMUTER BLK","iPhone 11",39.99,39.99,"-","Remove from Web","-","-","2021-08-17","Inactive"]
[null,216970,"Case","Hard Case","IPHONE 11 OTTERBOX COMMUTER BLU","iPhone 11",39.99,39.99,"-","Remove from Web","-",{"$f":"IF(I1671=\"Status Changed\",\"Status Changed\",IF(K1671=\"Status Changed\",\"Status Changed\",\"-\"))","v":"-"},"2021-05-17","Inactive"]
[null,216971,"Case","Clip Case","IPHONE 11 OTTERBOX DEFENDER BLK","iPhone 11",64.989999999999995,64.989999999999995,"-","Include on Web, Available","-","-","2022-09-01","Active"]
[null,216972,"Case","Hard Case","IPHONE 11 OTTERPOP SYMMETRY PURP","iPhone 11",59.99,59.99,"-","Remove from Web","-","-","2021-02-19","Inactive"]
[null,216977,"Case","Clip Case","IPHONE 11 PRO OTTERBOX DEFENDER BLK","iPhone 11 Pro",59.99,59.99,"-","Remove from Web","-","-","2021-02-19","Inactive"]
[null,216978,"Case","Hard Case","IPHONE 11 PRO OTTERPOP DEFENDER BLK","iPhone 11 Pro",49.99,49.99,"-","Remove from Web","-","-","2020-10-19","Inactive"]
[null,216979,"Case","Fashion Case","IPHONE 11 PRO OTTERBOX SYMMETRY STARDUST","iPhone 11 Pro",49.99,49.99,"-","Remove from Web","-","-","2021-02-19","Inactive"]
[null,216980,"Case","Fashion Case","IPHONE 11 PRO RIFLE PAPER CO WILD ROSE","iPhone 11 Pro",24.99,24.99,"-","Remove from Web","-","-","2020-10-19","Inactive"]
[null,216981,"Case","Fashion Case","IPHONE 11 PRO SONIX LILY WHT","iPhone 11 Pro",19.989999999999998,19.989999999999998,"-","Remove from Web","-","-","2020-10-19","Inactive"]
[null,216982,"Case","Soft Case","IPHONE 11 PRO TECH EVO CHECK BLK","iPhone 11 Pro",24.99,24.99,"-","Remove from Web","-","-","2021-02-19","Inactive"]
[null,216987,"Case","Hard Case","IPHONE 11 OTTERPOP DEFENDER BLK","iPhone 11",69.989999999999995,69.989999999999995,"-","Remove from Web","-","-","2020-10-19","Inactive"]
[null,216988,"Case","Hard Case","IPHONE 11 OTTERBOX SYMMETRY STARDUST","iPhone 11",39.99,39.99,"-","Include on Web, Available","-","-","2022-09-01","Active"]
[null,216989,"Case","Fashion Case","IPHONE 11 RIFLE PAPER CO WILD ROSE","iPhone 11",29.99,29.99,"-","Remove from Web","-","-","2021-02-19","Inactive"]
[null,216990,"Case","Fashion Case","IPHONE 11 SONIX LILY WHT","iPhone 11",34.99,34.99,"-","Remove from Web","-","-","2020-02-16","Inactive"]
[null,216991,"Case","Fashion Case","IPHONE 11 SONIX SILICONE CORAL","iPhone 11",39.99,39.99,"-","Remove from Web","-","-","2020-08-25","Inactive"]
[null,216992,"Case","Hard Case","IPHONE 11 SPECK PRESIDIO PRO BLU","iPhone 11",19.989999999999998,19.989999999999998,"-","Remove from Web","-","-","2020-10-19","Inactive"]
[null,216993,"Case","Soft Case","IPHONE 11 TECH21 EVO CHECK BLK","iPhone 11",39.99,39.99,"-","Remove from Web","-","-","2021-02-19","Inactive"]
[null,216994,"Case","Hard Case","IPHONE 11 TECH21 PURE CLR","iPhone 11",29.99,29.99,"-","Temp. Unavailable, Remove from Web","-","-","2022-09-01","Active"]
[null,216995,"Case","Soft Case","IPHONE 11 TECH21 STUDIO COLOUR BLK","iPhone 11",29.99,29.99,"-","Remove from Web","-","-","2020-10-19","Inactive"]
[null,216996,"Case","Fashion Case","IPHONE 11 PRO MAX CASE-MATE TWINKLE STAR","iPhone 11 Pro Max",24.99,24.99,"-","Remove from Web","-","-","2021-02-19","Inactive"]
[null,216997,"Case","Clip Case","IPHONE 11 PRO MAX OTTERBOX DEFENDER BLK","iPhone 11 Pro Max",59.99,59.99,"-","Remove from Web","-","-","2021-02-19","Inactive"]
[null,216998,"Case","Hard Case","IPHONE 11 PRO MAX OTTERPOP DEFENDER BLK","iPhone 11 Pro Max",69.989999999999995,69.989999999999995,"-","Remove from Web","-","-","2020-10-19","Inactive"]
[null,216999,"Case","Hard Case","IPHONE 11 PRO MAX OTTERBOX SYMMETRY STAR","iPhone 11 Pro Max",49.99,49.99,"-","Remove from Web","-","-","2021-02-19","Inactive"]
[null,217000,"Case","Fashion Case","IPHONE 11 PRO MAX RIFLE PAPER WILD ROSE","iPhone 11 Pro Max",39.99,39.99,"-","Remove from Web","-","-","2020-10-19","Inactive"]
[null,217001,"Case","Fashion Case","IPHONE 11 PRO MAX SONIX LILY WHT","iPhone 11 Pro Max",24.99,24.99,"-","Remove from Web","-","-","2021-02-19","Inactive"]
[null,217002,"Case","Soft Case","IPHONE 11 PRO MAX TECH21 EVO CHECK BLK","iPhone 11 Pro Max",39.99,39.99,"-","Remove from Web","-","-","2020-10-19","Inactive"]
[null,217003,"Case","Hard Case","IPHONE 11 PRO MAX TECH21 PURE CLR","iPhone 11 Pro Max",39.99,39.99,"-","Remove from Web","-","-","2020-10-19","Inactive"]
[null,217017,"Screen Protection","Glass","MOTO E6 GADGAURD BLACK ICE SCRN PROT","Moto E6",39.99,39.99,"-","Remove from Web","-","-","2020-10-19","Inactive"]
[null,217018,"Case","Hard Case","MOTO E6 SPECK PRESIDIO LITE GRY","Moto E6",12.99,12.99,"-","Remove from Web","-","-","2020-10-19","Inactive"]
[null,217019,"Case","Other Case","MOTE E6 CASE-MATE PROTECTION PACK BLK","Moto E6",19.989999999999998,19.989999999999998,"-","Remove from Web","-","-","2020-10-19","Inactive"]
[null,217020,"Case","Other Case","MOTE E6 CASE-MATE PROTECTION PACK CLR","Moto E6",19.989999999999998,19.989999999999998,"-","Remove from Web","-","-","2020-10-19","Inactive"]
[null,217150,"Charger","Universal Portable Charger","MOPHIE POWER BOOST 2600 MAH BLK","Universal",14.99,14.99,"-","Include on Web, Available","-","-","2022-02-18","Inactive"]
[null,217151,"Charger","Wireless Portable Charger","TYLT XACT 5K PORTABLE CHARGER BLK","Universal",39.99,39.99,"-","Remove from Web","-","-","2020-10-19","Inactive"]
[null,217177,"Charger","Wireless Dock Charger","MOPHIE WIRELESS CHARGE STREAM STAND BLK","Universal",59.99,59.99,"-","Remove from Web","-","-","2020-10-19","Inactive"]
[null,217227,"Audio","Portable Speaker","BRAVEN BRV MINI BLU","Universal",34.99,34.99,"-","Include on Web, Available","-","-","2022-02-18","Inactive"]
[null,217228,"Audio","Portable Speaker","BRAVEN BRV MINI BLK","Universal",34.99,34.99,"-","Include on Web, Available","-","-","2022-02-18","Inactive"]
[null,217229,"Audio","Portable Speaker","BRAVEN BRV X2 BLK","Universal",99.99,99.99,"-","Include on Web, Available","-","-","2022-02-18","Inactive"]
[null,217240,"Charger","Apple Cable","SCOSCHE STRIKELINE ADAPTER LIGHTNING BLK","Apple Lightning",19.989999999999998,19.989999999999998,"-","Remove from Web","-","-","2021-08-17","Inactive"]
[null,217241,"Charger","Android Cable","SCOSCHE STRIKELINE ADAPTER TYPE C BLK","Universal",39.99,39.99,"-","Include on Web, Available","-","-","2023-06-01","Active"]
[null,217244,"Charger","Wireless Dock Charger","GOOGLE WIRELESS PIXEL CHARGER STAND","Universal",29.99,29.99,"-","Remove from Web","-","-","2021-08-17","Inactive"]
[null,217259,"Case","Fashion Case","SAM A20 GRADATION COVER BLK","Samsung Galaxy A20",19.989999999999998,19.989999999999998,"-","Remove from Web","-","-","2020-08-25","Inactive","*On Stop-Buy"]
[null,217260,"Case","Soft Case","SAM A20 TECH21 STUDIO COLOUR BLK","Samsung Galaxy A20",29.99,29.99,"-","Remove from Web","-","-","2020-08-25","Inactive"]
[null,217261,"Case","Fashion Case","SAM A20 TECH21 STUDIO COLOUR CORAL","Samsung Galaxy A20",29.99,29.99,"-","Remove from Web","-","-","2020-08-25","Inactive"]
[null,217262,"Screen Protection","Glass","SAM A20 GADGUARD BLACK ICE SCREEN PROT","Samsung Galaxy A20",39.99,39.99,"-","Remove from Web","-","-","2020-08-25","Inactive"]
[null,217263,"Case","Other Case","SAM A20 CASE-MATE PROTECTION PACK CLR","Samsung Galaxy A20",39.99,39.99,"-","Remove from Web","-","-","2020-08-25","Inactive"]
[null,217264,"Case","Hard Case","SAM A20 OTTERBOX COMMUTER LITE BLK","Samsung Galaxy A20",29.99,29.99,"-","Remove from Web","-","-","2020-08-25","Inactive"]
[null,217265,"Case","Hard Case","SAM A20 SPECK PRESIDIO LITE BLU","Samsung Galaxy A20",24.99,24.99,"-","Remove from Web","-","-","2020-08-25","Inactive"]
[null,217267,"Case","Fashion Case","GOOGLE PIXEL 4 FABRIC CASE BLK","Google Pixel 4",25,25,"-","Remove from Web","-","-","2020-10-19","Inactive"]
[null,217268,"Case","Fashion Case","GOOGLE PIXEL 4 XL  FABRIC CASE BLK","Google Pixel 4 XL",25,25,"-","Remove from Web","-","-","2020-10-19","Inactive"]
[null,217271,"Case","Clip Case","GOOGLE PIXEL 4 OTTERBOX DEFENDER BLK","Google Pixel 4",29.99,29.99,"-","Remove from Web","-","-","2020-10-19","Inactive"]
[null,217272,"Case","Hard Case","GOOGLE PIXEL 4 OTTERBOX SYMMETRY BLK","Google Pixel 4",29.99,29.99,"-","Remove from Web","-","-","2020-10-19","Inactive"]
[null,217273,"Case","Hard Case","GOOGLE PIXEL 4 OTTERBOX SYMMETRY STAR","Google Pixel 4",24.99,24.99,"-","Remove from Web","-","-","2020-10-19","Inactive"]
[null,217274,"Case","Clip Case","GOOGLE PIXEL 4 XL OTTERBOX DEFENDER BLK","Google Pixel 4 XL",29.99,29.99,"-","Remove from Web","-","-","2020-10-19","Inactive"]
[null,217275,"Case","Hard Case","GOOGLE PIXEL 4 XL OTTERBOX SYMMETRY BLK","Google Pixel 4 XL",24.99,24.99,"-","Remove from Web","-","-","2020-10-19","Inactive"]
[null,217276,"Case","Hard Case","GOOGLE PIXEL 4 XL OTTERBOX SYMMETRY STAR","Google Pixel 4 XL",24.99,24.99,"-","Remove from Web","-","-","2020-10-19","Inactive"]
[null,217277,"Case","Soft Case","GOOGLE PIXEL 4 TECH21 EVO CHECK BLK","Google Pixel 4",19.989999999999998,19.989999999999998,"-","Remove from Web","-","-","2020-10-19","Inactive"]
[null,217278,"Case","Hard Case","GOOGLE PIXEL 4 TECH21 PURE CLR","Google Pixel 4",19.989999999999998,19.989999999999998,"-","Remove from Web","-","-","2020-10-19","Inactive"]
[null,217279,"Case","Soft Case","GOOGLE PIXEL 4 XL TECH21 EVO CHECK BLK","Google Pixel 4 XL",19.989999999999998,19.989999999999998,"-","Remove from Web","-","-","2020-10-19","Inactive"]
[null,217280,"Case","Hard Case","GOOGLE PIXEL 4 XL TECH21 PURE CLR","Google Pixel 4 XL",19.989999999999998,19.989999999999998,"-","Remove from Web","-","-","2020-10-19","Inactive"]
[null,217281,"Screen Protection","Glass","GOOGLE PIXEL 4 GADGRD BLK ICE SCRNPRT","Google Pixel 4",39.99,39.99,"-","Remove from Web","-","-","2020-10-19","Inactive"]
[null,217282,"Screen Protection","Glass","GOOGLE PIXEL 4 XL GADGRD BLK ICE SCRNPRT","Google Pixel 4 XL",39.99,39.99,"-","Remove from Web","-","-","2020-10-19","Inactive"]
[null,217313,"Connected Home","Smart Display","GOOGLE NEST HUB MAX CHALK","Universal",229,229,"-","Remove from Web","-","-","2023-03-01","Active"]
[null,217421,"Charger","Apple Cable","VENTEV CHARGESYNC C LIGHTNING 6FT WHT","Apple Lightning",29.99,29.99,"-","Include on Web, Available","-","-","2022-05-27","Active"]
[null,217482,"Wearable","Cellular Apple Wearable","APL WATCH S5 CELL SIL ALUM WHT 44","Apple Watch",429,429,"-","Remove from Web","-","-","2020-09-15","Inactive"]
[null,217483,"Wearable","Cellular Apple Wearable","APL WATCH S5 CELL GLD ALUM PNK 44","Apple Watch",429,429,"-","Remove from Web","-","-","2020-09-15","Inactive"]
[null,217484,"Wearable","Cellular Apple Wearable","APL WATCH S5 CELL GRY ALUM BLK 44","Apple Watch",429,429,"-","Remove from Web","-",{"$f":"IF(I1735=\"Status Changed\",\"Status Changed\",IF(K1735=\"Status Changed\",\"Status Changed\",\"-\"))","v":"-"},"2020-09-15","Inactive"]
[null,217485,"Wearable","Cellular Apple Wearable","APL WATCH S5 CELL STN WHT 44","Apple Watch",649,649,"-","Remove from Web","-","-","2020-09-15","Inactive"]
[null,217486,"Wearable","Cellular Apple Wearable","APL WATCH S5 CELL STN MIL 44","Apple Watch",699,699,"-","Remove from Web","-","-","2020-09-15","Inactive"]
[null,217497,"Wearable","Cellular Apple Wearable","APL WATCH S5 CELL GLD STN STONE 44","Apple Watch",749,749,"-","Remove from Web","-","-","2020-09-15","Inactive"]
[null,217498,"Wearable","Cellular Apple Wearable","APL WATCH S5 CELL GLD STN MIL 44","Apple Watch",799,799,"-","Remove from Web","-","-","2020-09-15","Inactive"]
[null,217499,"Wearable","Cellular Apple Wearable","APL WATCH S5 CELL BLK STN BLK 44","Apple Watch",649,649,"-","Remove from Web","-","-","2020-09-15","Inactive"]
[null,217500,"Wearable","Cellular Apple Wearable","APL WATCH S5 CELL BLK STN BLK MIL 44","Apple Watch",699,699,"-","Remove from Web","-","-","2020-09-15","Inactive"]
[null,217501,"Wearable","Cellular Apple Wearable","APL WATCH S5 CELL SIL ALUM WHT 40","Apple Watch",399,399,"-","Remove from Web","-","-","2020-09-15","Inactive"]
[null,217502,"Wearable","Cellular Apple Wearable","APL WATCH S5 CELL GLD ALUM PNK 40","Apple Watch",399,399,"-","Remove from Web","-","-","2020-09-15","Inactive"]
[null,217503,"Wearable","Cellular Apple Wearable","APL WATCH S5 CELL GRY ALUM BLK 40","Apple Watch",399,399,"-","Remove from Web","-","-","2020-09-15","Inactive"]
[null,217504,"Wearable","Cellular Apple Wearable","APL WATCH S5 CELL STN WHT 40","Apple Watch",599,599,"-","Remove from Web","-","-","2020-09-15","Inactive"]
[null,217505,"Wearable","Cellular Apple Wearable","APL WATCH S5 CELL STN MIL 40","Apple Watch",749,749,"-","Remove from Web","-","-","2020-09-15","Inactive"]
[null,217506,"Wearable","Cellular Apple Wearable","APL WATCH S5 CELL GLD STN STONE 40","Apple Watch",699,699,"-","Remove from Web","-","-","2020-09-15","Inactive"]
[null,217507,"Wearable","Cellular Apple Wearable","APL WATCH S5 CELL GLD STN MIL 40","Apple Watch",749,749,"-","Remove from Web","-","-","2020-09-15","Inactive"]
[null,217508,"Wearable","Cellular Apple Wearable","APL WATCH S5 CELL BLK STN BLK 40","Apple Watch",599,599,"-","Remove from Web","-","-","2020-09-15","Inactive"]
[null,217509,"Wearable","Cellular Apple Wearable","APL WATCH S5 CELL BLK STN BLK MIL 40","Apple Watch",749,749,"-","Remove from Web","-","-","2020-09-08","Inactive"]
[null,217520,"Case","Fashion Case","IPHONE 11 APPLE SILICONE CASE WHT","iPhone 11",19,19,"-","Remove from Web","-","-","2020-08-25","Inactive"]
[null,217521,"Case","Fashion Case","IPHONE 11 PRO APPLE LEATHER CASE BRN","iPhone 11 Pro",29,29,"-","Remove from Web","-","-","2020-10-19","Inactive"]
[null,217522,"Case","Fashion Case","IPHONE 11 PRO APPLE LEATHER CASE BLK","iPhone 11 Pro",29,29,"-","Remove from Web","-","-","2020-10-19","Inactive"]
[null,217523,"Case","Fashion Case","IPHONE 11 PRO MAX APPLE LEATHER BRN","iPhone 11 Pro Max",29,29,"-","Remove from Web","-","-","2020-10-19","Inactive"]
[null,217524,"Case","Fashion Case","IPHONE 11 PRO MAX APPLE LEATHER BLK","iPhone 11 Pro Max",29,29,"-","Remove from Web","-","-","2020-10-19","Inactive"]
[null,217525,"Case","Tablet Case","IPAD 7TH GEN SPECK BALANCE FOLIO BLK","iPad 7th Gen",29.99,29.99,"-","Remove from Web","-","-","2021-08-17","Inactive"]
[null,217526,"Case","Tablet Case","SPECK STYLEFOLIO FLEX 9-10.5 PNK","Universal",39.99,39.99,"-","Remove from Web","-","-","2021-02-19","Inactive"]
[null,217547,"Case","Soft Case","SAM A10E AXESSORIZE REVOLVE CASE CLR","Samsung Galaxy A10e",14.99,14.99,"-","Remove from Web","-","-","2020-08-25","Inactive"]
[null,217548,"Case","Soft Case","SAM A10E AXESSORIZE REVOLVE CASE PURP","Samsung Galaxy A10e",14.99,14.99,"-","Remove from Web","-","-","2020-08-25","Inactive"]
[null,217577,"Case","Tablet Case","IPAD 7TH GEN OTTERBOX DEFENDER BLK","iPad 7/8/9th Gen",89.99,89.99,"-","Remove from Web","-","-","2022-09-30","Active"]
[null,217623,"Screen Protection","Glass","IPAD 7TH GEN GADGUARD BLACKICE SCRN PROT","iPad 7/8/9th Gen",69.989999999999995,69.989999999999995,"-","Include on Web, Available","-","-","2022-09-30","Active"]
[null,217627,"Case","Tablet Case","SAM TAB S6 BOOK COVER GRY","Samsung Galaxy Tab S6",69.989999999999995,69.989999999999995,"-","Remove from Web","-","-","2021-02-19","Inactive"]
[null,217684,"Connected Home","Smart Speaker","GOOGLE NEST MINI CHALK","Universal",49,49,"-","Remove from Web","Status Changed","Status Changed","2023-03-01","Active"]
[null,217685,"Screen Protection","Glass","SAM TAB S6 GADGUARD BLACK ICE SCRN PROT","Samsung Galaxy Tab S6",69.989999999999995,69.989999999999995,"-","Remove from Web","-","-","2021-02-19","Inactive"]
[null,218529,"Audio","True Wireless","AIRPODS PRO","Universal",249,249,"-","Include on Web, Available","-","-","2022-02-18","Inactive"]
[null,218295,"Audio","Wireless On-Ear","BEATS SOLO3 2019 WIRELESS ON-EAR BLK","Universal",199.95,199.95,"-","Include on Web, Available","-","-","2023-03-01","Active"]
[null,218296,"Audio","Wireless On-Ear","BEATS SOLO PRO NC WIRELESS ON-EAR BLK","Universal",299.95,299.95,"-","Not On Flash","-","-","2021-10-15","Inactive"]
[null,218297,"Connected Home","Networking","WEBOOST HOME MULTI ROOM SIGNAL BOOSTER","Universal",569.99,569.99,"-","Include on Web, Available","-","-","2023-03-01","Active"]
[null,218298,"Connected Home","Networking","WEBOOST HOME COMPLETE SIGNAL BOOSTER","Universal",999.99,999.99,"-","Remove from Web","-","-","2020-08-25","Inactive"]
[null,218007,"Case","Soft Case","MOTO E6 AXESSORIZE REVOLVE CASE PURP","Moto E6",8.99,8.99,"-","Remove from Web","-","-","2020-10-19","Inactive"]
[null,218103,"Screen Protection","Glass","MOTO E6 SHOCK SHIELD GLASS PROT","Moto E6",19.989999999999998,19.989999999999998,"-","Remove from Web","-","-","2020-10-19","Inactive"]
[null,217686,"Case","Soft Case","MOTO E6 AXESSORIZE REVOLVE CASE CLR","Moto E6",8.99,8.99,"-","Remove from Web","-","-","2020-10-19","Inactive"]
[null,217496,"Case","Keyboard Case","SAM TAB S6 KEYBOARD COVER GRY","Samsung Galaxy Tab S6",179.99,179.99,"-","Remove from Web","-","-","2021-02-19","Inactive"]
[null,219135,"Audio","True Wireless","SAMSUNG GALAXY BUDS PLUS BLK","Universal",149.99,149.99,"-","Remove from Web","-","-","2021-10-15","Inactive"]
[null,219111,"Case","Fashion Case","SAM GS20 5G S-VIEW FLIP COVER BLK","Samsung Galaxy S20 5G",49.99,49.99,"-","Remove from Web","-","-","2020-10-19","Inactive"]
[null,219114,"Case","Fashion Case","SAM GS20 5G RUGGED PROT COVER BLK","Samsung Galaxy S20 5G",39.99,39.99,"-","Remove from Web","-","-","2020-10-19","Inactive"]
[null,219177,"Case","Clip Case","SAM GS20 5G OTTERBOX DEFENDER BLK","Samsung Galaxy S20 5G",59.99,59.99,"-","Remove from Web","-","-","2021-02-19","Inactive"]
[null,219178,"Case","Hard Case","SAM GS20 5G OTTERBOX SYMMETRY GLIT","Samsung Galaxy S20 5G",49.99,49.99,"-","Remove from Web","-","-","2021-02-19","Inactive"]
[null,219179,"Case","Hard Case","SAM GS20 5G OTTERBOX COMMUTER BLK","Samsung Galaxy S20 5G",39.99,39.99,"-","Remove from Web","-","-","2021-02-19","Inactive"]
[null,219180,"Case","Hard Case","SAM GS20 5G OTTERBOX SYMMETRY BLK","Samsung Galaxy S20 5G",49.99,49.99,"-","Remove from Web","-","-","2021-02-19","Inactive"]
[null,219181,"Case","Hard Case","SAM GS20 5G OTTERBOX COMMUTER BLU","Samsung Galaxy S20 5G",39.99,39.99,"-","Remove from Web","-","-","2021-02-19","Inactive","*No more buys"]
[null,219182,"Case","Fashion Case","SAM GS20 5G CASE-MATE TWINKLE STAR","Samsung Galaxy S20 5G",29.99,29.99,"-","Remove from Web","-","-","2021-02-19","Inactive"]
[null,219183,"Case","Fashion Case","SAM GS20 5G RIFLE PAPER CO. WILD FLOWERS","Samsung Galaxy S20 5G",39.99,39.99,"-","Remove from Web","-","-","2020-10-19","Inactive"]
[null,219184,"Case","Soft Case","SAM GS20 5G TECH21 EVO CHECK BLK","Samsung Galaxy S20 5G",39.99,39.99,"-","Remove from Web","-","-","2021-02-19","Inactive"]
[null,219185,"Case","Hard Case","SAM GS20 5G TECH 21 PURE CLR","Samsung Galaxy S20 5G",39.99,39.99,"-","Remove from Web","-","-","2021-02-19","Inactive"]
[null,219186,"Screen Protection","Plastic","SAM GS20 5G GADGUARD BLACK ICE FLEX","Samsung Galaxy S20 5G",49.99,49.99,"-","Remove from Web","-","-","2021-02-19","Inactive"]
[null,218982,"Case","Fashion Case","SAM GS20 ULTRA 5G S-VIEW FLIP COVER BLK","Samsung Galaxy S20 Ultra 5G",49.99,49.99,"-","Remove from Web","-","-","2020-10-19","Inactive"]
[null,219103,"Case","Hard Case","SAM GS20 ULTRA 5G OTTERBOX SYMMETRY BLK","Samsung Galaxy S20 Ultra 5G",49.99,49.99,"-","Remove from Web","-","-","2021-02-19","Inactive"]
[null,219104,"Case","Fashion Case","SAM GS20 ULTRA 5G OTTERPOP SYMMETRY PURP","Samsung Galaxy S20 Ultra 5G",59.99,59.99,"-","Remove from Web","-","-","2021-02-19","Inactive"]
[null,219105,"Case","Hard Case","SAM GS20 ULTRA 5G OTTERBOX COMMUTER BLU","Samsung Galaxy S20 Ultra 5G",39.99,39.99,"-","Remove from Web","-","-","2021-02-19","Inactive"]
[null,219106,"Case","Hard Case","SAM GS20 ULTRA 5G GEAR4 PICCADILLY BLACK","Samsung Galaxy S20 Ultra 5G",29.99,29.99,"-","Remove from Web","-","-","2021-02-19","Inactive"]
[null,219116,"Case","Fashion Case","SAM GS20 ULTRA 5G RUGGED PROT COVER BLK","Samsung Galaxy S20 Ultra 5G",39.99,39.99,"-","Remove from Web","-","-","2020-10-19","Inactive"]
[null,219200,"Case","Fashion Case","SAM GS20 ULTRA 5G CASE-MATE TWINKLE","Samsung Galaxy S20 Ultra 5G",29.99,29.99,"-","Remove from Web","-","-","2021-02-19","Inactive"]
[null,219201,"Case","Fashion Case","SAM GS20 ULTRA 5G RIFLE PAPER WILD FLRS","Samsung Galaxy S20 Ultra 5G",39.99,39.99,"-","Remove from Web","-","-","2020-10-19","Inactive"]
[null,219202,"Case","Soft Case","SAM GS20 ULTRA 5G TECH21 EVO CHECK BLK","Samsung Galaxy S20 Ultra 5G",29.99,29.99,"-","Remove from Web","-","-","2021-02-19","Inactive"]
[null,219203,"Case","Hard Case","SAM GS20 ULTRA 5G TECH21 PURE CLR","Samsung Galaxy S20 Ultra 5G",39.99,39.99,"-","Remove from Web","-","-","2021-02-19","Inactive"]
[null,219204,"Case","Clip Case","SAM GS20 ULTRA 5G OTTERBOX DEFENDER BLK","Samsung Galaxy S20 Ultra 5G",59.99,59.99,"-","Remove from Web","-","-","2021-02-19","Inactive"]
[null,219205,"Case","Hard Case","SAM GS20 ULTRA 5G OTTERBOX SYMMETRY GLIT","Samsung Galaxy S20 Ultra 5G",49.99,49.99,"-","Remove from Web","-","-","2021-02-19","Inactive"]
[null,219206,"Case","Hard Case","SAM GS20 ULTRA 5G OTTERBOX COMMUTER BLK","Samsung Galaxy S20 Ultra 5G",39.99,39.99,"-","Remove from Web","-",{"$f":"IF(I1799=\"Status Changed\",\"Status Changed\",IF(K1799=\"Status Changed\",\"Status Changed\",\"-\"))","v":"-"},"2021-02-19","Inactive"]
[null,219207,"Screen Protection","Plastic","SAM GS20 ULTRA 5G GADGUARD BLK ICE FLEX","Samsung Galaxy S20 Ultra 5G",49.99,49.99,"-","Remove from Web","-","-","2021-02-19","Inactive"]
[null,219208,"Case","Fashion Case","SAM GS20 ULTRA 5G SONIX SOUTHERN FLORAL","Samsung Galaxy S20 Ultra 5G",29.99,29.99,"-","Remove from Web","-","-","2021-02-19","Inactive","*0 at NDC, on Active-SB"]
[null,218983,"Case","Clip Case","SAM GS20PLUS 5G OTTERBOX DEFENDER BLK","Samsung Galaxy S20+ 5G",59.99,59.99,"-","Remove from Web","-","-","2021-02-19","Inactive"]
[null,218984,"Case","Hard Case","SAM GS20PLUS 5G OTTERBOX SYMMETRY GLIT","Samsung Galaxy S20+ 5G",49.99,49.99,"-","Remove from Web","-","-","2021-02-19","Inactive"]
[null,218985,"Case","Hard Case","SAM GS20PLUS 5G OTTERBOX COMMUTER BLK","Samsung Galaxy S20+ 5G",39.99,39.99,"-","Remove from Web","-","-","2021-02-19","Inactive"]
[null,218986,"Case","Hard Case","SAM GS20PLUS 5G OTTERBOX SYMMETRY BLK","Samsung Galaxy S20+ 5G",49.99,49.99,"-","Remove from Web","-","-","2021-02-19","Inactive"]
[null,219112,"Case","Fashion Case","SAM GS20PLUS 5G S-VIEW FLIP COVER BLK","Samsung Galaxy S20+ 5G",49.99,49.99,"-","Remove from Web","-","-","2020-10-19","Inactive"]
[null,219115,"Case","Fashion Case","SAM GS20PLUS 5G RUGGED PROT COVER BLK","Samsung Galaxy S20+ 5G",39.99,39.99,"-","Remove from Web","-","-","2020-10-19","Inactive"]
[null,219187,"Case","Fashion Case","SAM GS20PLUS 5G OTTER POP SYMMETRY PURP","Samsung Galaxy S20+ 5G",59.99,59.99,"-","Remove from Web","-","-","2021-02-19","Inactive"]
[null,219188,"Case","Hard Case","SAM GS20PLUS 5G OTTERBOX COMMUTER BLU","Samsung Galaxy S20+ 5G",39.99,39.99,"-","Remove from Web","-","-","2021-02-19","Inactive"]
[null,219189,"Case","Hard Case","SAM GS20PLUS 5G SPECK PRESIDIO PRO BLK","Samsung Galaxy S20+ 5G",39.99,39.99,"-","Remove from Web","-","-","2020-10-19","Inactive"]
[null,219190,"Case","Fashion Case","SAM GS20PLUS 5G CASE-MATE TWINKLE","Samsung Galaxy S20+ 5G",29.99,29.99,"-","Remove from Web","-","-","2021-02-19","Inactive"]
[null,219191,"Case","Soft Case","SAM GS20PLUS 5G TECH21 EVO CHECK BLK","Samsung Galaxy S20+ 5G",29.99,29.99,"-","Remove from Web","-","-","2021-02-19","Inactive"]
[null,219192,"Case","Hard Case","SAM GS20PLUS 5G TECH21 PURE CLR","Samsung Galaxy S20+ 5G",39.99,39.99,"-","Remove from Web","-","-","2021-02-19","Inactive"]
[null,219197,"Screen Protection","Plastic","SAM GS20PLUS 5G GADGUARD BLACK ICE FLEX","Samsung Galaxy S20+ 5G",49.99,49.99,"-","Remove from Web","-","-","2021-02-19","Inactive"]
[null,219198,"Case","Fashion Case","SAM GS20PLUS 5G SONIX SOUTHERN FLORAL","Samsung Galaxy S20+ 5G",29.99,29.99,"-","Remove from Web","-","-","2021-02-19","Inactive"]
[null,219199,"Case","Hard Case","SAM GS20PLUS 5G GEAR4 PICCADILLY BLK","Samsung Galaxy S20+ 5G",29.99,29.99,"-","Remove from Web","-","-","2021-02-19","Inactive"]
[null,219482,"Audio","True Wireless","GOOGLE PIXEL BUDS TW WHITE","Universal",99.99,99.99,"-","Remove from Web","-","-","2021-10-15","Inactive"]
[null,219579,"Charger","Wireless Dock Charger","MOPHIE PAD FAST CHARGE BLK","Universal",49.99,49.99,"-","Include on Web, Available","-","-","2021-10-15","Inactive","*0 at NDC, on Active-SB"]
[null,219588,"Screen Protection","Glass","LG V60 THINQ 5G GADGRD BLK ICE SCRN PROT","LG V60 ThinQ 5G",29.99,29.99,"-","Remove from Web","-","-","2021-08-17","Inactive"]
[null,219589,"Case","Hard Case","LG V60 THINQ 5G AXESSORIZE PROTECH BLK","LG V60 ThinQ 5G",19.989999999999998,19.989999999999998,"-","Remove from Web","-","-","2021-08-17","Inactive"]
[null,219590,"Case","Other Case","LG V60 THINQ 5G CASE-MATE PROT PACK CLR","LG V60 ThinQ 5G",34.99,34.99,"-","Remove from Web","-","-","2021-08-17","Inactive"]
[null,219637,"Case","Other Case","LG V60 THINQ 5G DUAL SCREEN","LG V60 ThinQ 5G",199.99,199.99,"-","Remove from Web","-","-","2021-08-17","Inactive"]
[null,219496,"Case","Hard Case","LG WINE 2 LTE HARD SHELL BLK","LG Wine 2 LTE",19.989999999999998,19.989999999999998,"-","Remove from Web","-","-","2021-10-15","Inactive"]
[null,219712,"Memory","Memory Card","KINGSTON CANVAS SELECT PLUS MICROSD 32GB","Universal",7.99,7.99,"-","Remove from Web","-","-","2021-05-17","Inactive"]
[null,219673,"Connected Home","Other Connected Home","HOMEDICS UV-CLEAN PHONE SANITIZER","Universal",59.99,59.99,"-","Remove from Web","-","-","2021-02-19","Not Launching"]
[null,219880,"Screen Protection","Glass","IPHONE SE 2NDGEN GADGRD BLKICE SCRN PROT","iPhone SE 2nd Gen",39.99,39.99,"-","Include on Web, Available","-","-","2023-03-31","Active"]
[null,219815,"Case","Clip Case","IPHONE SE 2ND GEN OTTERBOX DEFENDER BLK","iPhone SE 2nd Gen",54.99,54.99,"-","Include on Web, Available","-","-","2023-03-31","Active"]
[null,219816,"Case","Hard Case","IPHONE SE 2ND GEN TECH21 PURE CLR","iPhone SE 2nd Gen",39.99,39.99,"-","Remove from Web","-","-","2022-04-01","Inactive"]
[null,219909,"Case","Hard Case","IPHONE SE 2ND GEN OTTERBOX COMMUTER GRN","iPhone SE 2nd Gen",39.99,39.99,"-","Remove from Web","-","-","2021-08-17","Inactive"]
[null,219878,"Case","Hard Case","IPHONE SE 2ND GEN GEAR4 PICCADILLY BLK","iPhone SE 2nd Gen",29.99,29.99,"-","Remove from Web","-","-","2021-08-17","Inactive"]
[null,219877,"Case","Hard Case","IPHONE SE 2ND GEN TECH21 EVO CHECK BLK","iPhone SE 2nd Gen",29.99,29.99,"-","Include on Web, Available","-","-","2023-03-31","Active"]
[null,219881,"Case","Fashion Case","IPHONE SE 2ND GEN CASE-MATE TWINKLE","iPhone SE 2nd Gen",39.99,39.99,"-","Remove from Web","-","-","2021-05-17","Inactive"]
[null,219879,"Case","Fashion Case","IPHONE SE 2ND GEN SONIX SOUTHERN FLORAL","iPhone SE 2nd Gen",39.99,39.99,"-","Remove from Web","-","-","2021-05-17","Inactive"]
[null,219842,"Case","Other Case","CASE-MATE AIRPODS CASE CLR","Universal",19.989999999999998,19.989999999999998,"-","Include on Web, Available","-","-","2023-03-01","Active"]
[null,219843,"Case","Other Case","CASE-MATE AIRPODS CASE TWINKLE STARDUST","Universal",24.99,24.99,"-","Include on Web, Available","-","-","2023-03-01","Active"]
[null,219844,"Case","Other Case","CASE-MATE AIRPODS PRO CASE BLK","Universal",19.989999999999998,19.989999999999998,"-","Include on Web, Available","-","-","2022-02-18","Inactive"]
[null,219845,"Case","Other Case","CASE-MATE AIRPODS PRO CASE TWINKLE STAR","Universal",24.99,24.99,"-","Include on Web, Available","-","-","2022-02-18","Inactive"]
[null,219851,"Audio","Wireless In-Ear","POWERBEATS HI PERF WIRELESS IN-EAR BLK","Universal",149.94999999999999,149.94999999999999,"-","Include on Web, Available","-","-","2022-02-18","Inactive"]
[null,219928,"Audio","True Wireless","JLAB GO AIR TRUE WIRELESS EARBUDS BLK","Universal",29.99,29.99,"-","Include on Web, Available","-","-","2023-03-01","Active"]
[null,219966,"Connected Home","Indoor Camera","RING INDOOR CAMERA WHT","Universal",59.99,59.99,"-","Remove from Web","-","-","2021-10-15","Inactive"]
[null,219987,"Connected Home","Outdoor Camera","RING STICK UP CAMERA BATTERY WHT","Universal",99.99,99.99,"-","Remove from Web","-","-","2021-10-15","Inactive"]
[null,219892,"Charger","Other Charger","SCOSCHE BLUETOOTH FM TRANSMITTER","Universal",19.989999999999998,19.989999999999998,"-","Include on Web, Available","-","-","2021-08-17","Inactive"]
[null,219893,"Charger","Other Charger","SCOSCHE MAGICMOUNT PRO FREE FLOW VENT","Universal",24.99,24.99,"-","Remove from Web","-","-","2021-08-17","Inactive"]
[null,219894,"Charger","Wireless Car Charger","SCOSCHE MAGICGRIP WINDOW/DASH","Universal",69.989999999999995,69.989999999999995,"-","Include on Web, Available","-","-","2023-06-01","Active"]
[null,219771,"Case","Waterproof Case","IPHONE 11 PRO MAX LIFEPROOF FRE BLK","iPhone 11 Pro Max",89.99,89.99,"-","Remove from Web","-","-","2020-10-19","Inactive"]
[null,219770,"Case","Waterproof Case","IPHONE 11 PRO LIFEPROOF FRE BLK","iPhone 11 Pro",89.99,89.99,"-","Remove from Web","-","-","2021-02-19","Inactive"]
[null,219769,"Case","Waterproof Case","IPHONE 11 LIFEPROOF FRE BLK","iPhone 11",89.99,89.99,"-","Remove from Web","-","-","2022-08-19","Inactive"]
[null,219768,"Case","Fashion Case","IPHONE 11 SONIX SOUTHERN FLORAL","iPhone 11",34.99,34.99,"-","Remove from Web","-","-","2020-10-19","Inactive"]
[null,219964,"Case","Other Case","NITE IZE CLIPCASE CARGO XTALL","Universal",19.989999999999998,19.989999999999998,"-","Include on Web, Available","-","-","2022-08-19","Active"]
[null,219965,"Case","Other Case","NITE IZE CLIPCASE SIDEWAYS XXL","Universal",19.989999999999998,19.989999999999998,"-","Temp. Unavailable, Remove from Web","-","-","2022-08-19","Active"]
[null,219978,"Case","Waterproof Case","NITE IZE RUNOFF WATERPROOF POUCH BLK","Universal",34.99,34.99,"-","Remove from Web","-","-","2020-10-19","Inactive"]
[null,219973,"Case","Keyboard Case","APL IPAD PRO 11IN 2NDGEN SMT KEYBD FOL","iPad Pro 11in 2nd Gen",179,179,"-","Include on Web, Available","-","-","2023-03-31","Active"]
[null,219974,"Case","Keyboard Case","APL IPAD PRO 12.9IN 4THGEN SMT KEYBD FOL","iPad Pro 12.9 4th Gen",199,199,"-","Include on Web, Available","-","-","2022-09-30","Active"]
[null,220008,"Case","Tablet Case","IPAD PRO 11IN 2ND GEN OTTER DEFENDER BLK","iPad Pro 11in 2nd Gen",69.989999999999995,69.989999999999995,"-","Remove from Web","-","-","2021-05-17","Inactive"]
[null,220009,"Case","Tablet Case","IPAD PRO 12.9IN 4TH GEN OTTER DEFEND BLK","iPad Pro 12.9 4th Gen",129.99,129.99,"-","Remove from Web","-","-","2021-05-17","Inactive"]
[null,220010,"Case","Keyboard Case","APL IPAD PRO 11IN 2ND GEN MAGIC KEYBOARD","iPad Pro 11in 2nd Gen",299,299,"-","Remove from Web","-","-","2022-02-18","Inactive"]
[null,220011,"Case","Keyboard Case","APL IPAD PRO 12.9IN 4TH GEN MAGIC KEYBRD","iPad Pro 12.9 4th Gen",349,349,"-","Remove from Web","-","-","2021-08-17","Inactive"]
[null,220387,"Case","Hard Case","MOTO G POWER 8GEN AXESSORIZE PROTECH BLK","Moto G Power 8th Gen",14.99,14.99,"-","Remove from Web","-","-","2021-05-17","Inactive"]
[null,220388,"Case","Other Case","MOTO G POWER 8GEN CASE-MATE PROT PCK BLK","Moto G Power 8th Gen",19.989999999999998,19.989999999999998,"-","Remove from Web","-","-","2021-05-17","Inactive"]
[null,220389,"Case","Other Case","MOTO G POWER 8GEN CASE-MATE PROT PCK CLR","Moto G Power 8th Gen",19.989999999999998,19.989999999999998,"-","Remove from Web","-","-","2021-05-17","Inactive"]
[null,220392,"Case","Fashion Case","IPHONE SE 2ND GEN APL SILICONE PNK","iPhone SE 2nd Gen",35,35,"-","Remove from Web","-","-","2021-05-17","Inactive"]
[null,220393,"Case","Fashion Case","IPHONE SE 2ND GEN APL LEATHER BLK","iPhone SE 2nd Gen",45,45,"-","Remove from Web","-","-","2021-05-17","Inactive"]
[null,220649,"Case","Hard Case","LG K8X AXESSORIZE PROTECH BLK","LG K8X",17.989999999999998,17.989999999999998,"-","Remove from Web","-",{"$f":"IF(I1863=\"Status Changed\",\"Status Changed\",IF(K1863=\"Status Changed\",\"Status Changed\",\"-\"))","v":"-"},"2021-08-17","Inactive"]
[null,220650,"Case","Hard Case","LG K8X AXESSORIZE PROTECH BLU","LG K8X",14.99,14.99,"-","Remove from Web","-","-","2021-05-17","Inactive"]
[null,220651,"Case","Other Case","LG K8X CASE-MATE PROTECTION PACK CLR","LG K8X",24.99,24.99,"-","Remove from Web","-","-","2021-08-17","Inactive"]
[null,220652,"Case","Hard Case","LG K8X OTTERBOX COMMUTER LITE BLK","LG K8X",19.989999999999998,19.989999999999998,"-","Remove from Web","-","-","2021-05-17","Inactive"]
[null,220471,"Case","Soft Case","ALCATEL 1B AXESSORIZE SILICONE CASE BLK","Alcatel 1B",9.99,9.99,"-","Remove from Web","-","-","2022-07-01","Active"]
[null,220472,"Case","Soft Case","ALCATEL 1B AXESSORIZE SILICONE CASE BLU","Alcatel 1B",9.99,9.99,"-","Include on Web, Available","-","-","2022-07-01","Active"]
[null,220755,"Case","Hard Case","LG K8X AXESSORIZE PROTECH BUR","LG K8X",9.99,9.99,"-","Remove from Web","-","-","2021-08-17","Inactive"]
[null,220677,"Case","Tablet Case","SAM TAB A 8.4 OTTEBOX DEFENDER BLK","Samsung Tab A 8.4",69.989999999999995,69.989999999999995,"-","Remove from Web","-","-","2021-08-17","Inactive"]
[null,220777,"Screen Protection","Glass","LG K8X GADGUARD BLACK ICE SCRN PROT","LG K8X",29.99,29.99,"-","Remove from Web","-","-","2021-05-17","Inactive"]
[null,220685,"Screen Protection","Glass","LG K8X GADGUARD BULK SCRN PROT","LG K8X",9.99,9.99,"-","Remove from Web","-","-","2021-05-17","Inactive"]
[null,220686,"Screen Protection","Cleaner","CASE-MATE CLEANSCREENZ PHONE WIPES 20PK","Universal",9.99,9.99,"-","Include on Web, Available","-","-","2022-05-27","Active"]
[null,220778,"Connected Home","Networking","WEBOOST INSTALLED HOME COMPLETE","Universal",1299.99,1299.99,"-","Include on Web, Available","-","-","2023-03-01","Active"]
[null,220812,"Case","Fashion Case","GOOGLE PIXEL 4A FABRIC CASE BLK","Google Pixel 4a",20,20,"-","Remove from Web","-","-","2021-05-17","Inactive"]
[null,220813,"Case","Other Case","GOOGLE PIXEL 4A CASE-MATE PROTECTION PACK CLR","Google Pixel 4a",29.99,29.99,"-","Remove from Web","-","-","2021-05-17","Inactive"]
[null,220814,"Case","Hard Case","GOOGLE PIXEL 4A TECH21 STUDIO COLOUR BLK","Google Pixel 4a",19.989999999999998,19.989999999999998,"-","Remove from Web","-","-","2021-05-17","Inactive"]
[null,220815,"Case","Hard Case","GOOGLE PIXEL 4A INCIPIO DUALPRO BLU","Google Pixel 4a",19.989999999999998,19.989999999999998,"-","Remove from Web","-","-","2021-05-17","Inactive"]
[null,221071,"Case","Hard Case","GOOGLE PIXEL 4A OTTERBOX COMMUTER BLK","Google Pixel 4a",29.99,29.99,"-","Remove from Web","-","-","2021-05-17","Inactive"]
[null,220616,"Screen Protection","Glass","GOOGLE PIXEL 4A GADGUARD BLK ICE SCRN","Google Pixel 4a",29.99,29.99,"-","Remove from Web","-","-","2021-05-17","Inactive"]
[null,221234,"Case","Other Case","MOTO E 7GEN CASE-MATE PROTECT PACK CLR","moto e (7th Gen)",24.99,24.99,"-","Include on Web, Available","-","-","2022-02-28","Inactive"]
[null,221235,"Case","Hard Case","MOTO E 7GEN SPECK PRESIDIO EXOTECH GRY","moto e (7th Gen)",24.99,24.99,"-","Include on Web, Available","-","-","2022-02-28","Inactive"]
[null,221208,"Case","Other Case","MOTO E 7GEN AXESSORIZE PROTECH PACK BLK","moto e (7th Gen)",24.99,24.99,"-","Include on Web, Available","-","-","2022-02-28","Inactive"]
[null,221236,"Case","Hard Case","MOTO E 7GEN AXESSORIZE PROTECH BLU","moto e (7th Gen)",19.989999999999998,19.989999999999998,"-","Remove from Web","-","-","2021-05-17","Inactive"]
[null,221095,"Case","Hard Case","SAM A11 OTTERBOX COMMUTER LITE BLK","Samsung Galaxy A11",29.99,29.99,"-","Remove from Web","-","-","2021-05-17","Inactive"]
[null,221096,"Case","Hard Case","SAM A11 OTTERBOX COMMUTER LITE MINT","Samsung Galaxy A11",29.99,29.99,"-","Remove from Web","-","-","2021-05-17","Inactive"]
[null,221147,"Case","Other Case","SAM A11 CASE-MATE PROTECTION PACK CLR","Samsung Galaxy A11",39.99,39.99,"-","Remove from Web","-","-","2021-05-17","Inactive"]
[null,221148,"Case","Hard Case","SAM A11 SPECK PRESIDIO EXOTECH BLK","Samsung Galaxy A11",14.99,14.99,"-","Remove from Web","-","-","2021-05-17","Inactive"]
[null,221149,"Case","Hard Case","SAM A11 AXESSORIZE PROTECH BLU","Samsung Galaxy A11",24.99,24.99,"-","Remove from Web","-","-","2021-05-17","Inactive"]
[null,221150,"Screen Protection","Glass","SAM A11 GADGUARD BLACK ICE SCRN PROT","Samsung Galaxy A11",29.99,29.99,"-","Remove from Web","-","-","2021-05-17","Inactive"]
[null,221157,"Case","Hard Case","SAM A21 OTTERBOX COMMUTER LITE BLK","Samsung Galaxy A21",29.99,29.99,"-","Remove from Web","-","-","2021-05-17","Inactive"]
[null,221158,"Case","Hard Case","SAM A21 OTTERBOX COMMUTER LITE MINT","Samsung Galaxy A21",29.99,29.99,"-","Remove from Web","-","-","2021-05-17","Inactive"]
[null,221159,"Case","Other Case","SAM A21 CASE-MATE PROTECTION PACK CLR","Samsung Galaxy A21",39.99,39.99,"-","Remove from Web","-","-","2021-05-17","Inactive"]
[null,221160,"Case","Hard Case","SAM A21 SPECK PRESIDIO EXOTECH BLK","Samsung Galaxy A21",24.99,24.99,"-","Remove from Web","-","-","2021-05-17","Inactive"]
[null,221161,"Case","Hard Case","SAM A21 AXESSORIZE PROTECH BLU","Samsung Galaxy A21",24.99,24.99,"-","Remove from Web","-","-","2021-05-17","Inactive"]
[null,221162,"Screen Protection","Glass","SAM A21 GADGUARD BLACK ICE SCRN PROT","Samsung Galaxy A21",29.99,29.99,"-","Remove from Web","-","-","2021-05-17","Inactive"]
[null,221562,"Case","Fashion Case","SAM NOTE20 5G CASE-MATE TWINKLE","Samsung Galaxy Note20 5G",39.99,39.99,"-","Remove from Web","-","-","2021-05-17","Inactive"]
[null,221563,"Screen Protection","Plastic","SAM NOTE20 5G GADGUARD BLACK ICE FLX","Samsung Galaxy Note20 5G",29.99,29.99,"-","Include on Web, Available","-","-","2021-12-31","Inactive"]
[null,221564,"Case","Clip Case","SAM NOTE20 5G OTTERBOX DEFENDER BLK","Samsung Galaxy Note20 5G",59.99,59.99,"-","Remove from Web","-","-","2021-12-31","Inactive"]
[null,221565,"Case","Hard Case","SAM NOTE20 5G OTTERBOX SYMMETRY STAR","Samsung Galaxy Note20 5G",39.99,39.99,"-","Include on Web, Available","-","-","2021-12-31","Inactive"]
[null,221566,"Case","Soft Case","SAM NOTE20 5G TECH21 EVOCHECK BLK","Samsung Galaxy Note20 5G",29.99,29.99,"-","Remove from Web","-","-","2021-05-17","Inactive"]
[null,221577,"Case","Soft Case","SAM NOTE20 5G TECH21 EVOCLR","Samsung Galaxy Note20 5G",29.99,29.99,"-","Include on Web, Available","-","-","2021-12-31","Inactive"]
[null,221576,"Case","Fashion Case","SAM NOTE20 ULTRA 5G CASE-MATE TWINKLE","Samsung Galaxy Note20 Ultra 5G",39.99,39.99,"-","Remove from Web","-","-","2021-05-17","Inactive"]
[null,221587,"Screen Protection","Plastic","SAM NOTE20 ULTRA 5G GADGUARD BLK ICE FLX","Samsung Galaxy Note20 Ultra 5G",49.99,49.99,"-","Include on Web, Available","-","-","2021-12-31","Inactive"]
[null,221588,"Case","Clip Case","SAM NOTE20 ULTRA 5G OTTER DEFENDER BLK","Samsung Galaxy Note20 Ultra 5G",59.99,59.99,"-","Remove from Web","-","-","2021-05-17","Inactive"]
[null,221589,"Case","Hard Case","SAM NOTE20 ULTRA 5G OTTER SYMMETRY BLK","Samsung Galaxy Note20 Ultra 5G",34.99,34.99,"-","Include on Web, Available","-","-","2021-12-31","Inactive"]
[null,221590,"Case","Hard Case","SAM NOTE20 ULTRA 5G OTTER SYMMETRY STAR","Samsung Galaxy Note20 Ultra 5G",49.99,49.99,"-","Remove from Web","-","-","2021-12-31","Inactive"]
[null,221591,"Case","Soft Case","SAM NOTE20 ULTRA 5G TECH21 EVOCHECK BLK","Samsung Galaxy Note20 Ultra 5G",39.99,39.99,"-","Remove from Web","-","-","2021-05-17","Inactive"]
[null,221592,"Case","Soft Case","SAM NOTE20 ULTRA 5G TECH21 EVOCLR","Samsung Galaxy Note20 Ultra 5G",39.99,39.99,"-","Include on Web, Available","-","-","2021-12-31","Inactive"]
[null,221578,"Case","Hard Case","SAM A71 5G OTTERBOX SYMMETRY CLR","Samsung Galaxy A71 5G",39.99,39.99,"-","Remove from Web","-","-","2021-08-17","Inactive"]
[null,221579,"Audio","True Wireless","SAMSUNG GALAXY BUDS LIVE TW BLK","Universal",169.99,169.99,"-","Include on Web, Available","-","-","2023-03-01","Active"]
[null,221580,"Audio","True Wireless","SAMSUNG GALAXY BUDS LIVE TW WHT","Universal",169.99,169.99,"-","Temp. Unavailable, Remove from Web","-","-","2023-03-01","Active"]
[null,221486,"Audio","Wireless Mono","JABRA TALK BT 25","Universal",39.99,39.99,"-","Remove from Web","-","-","2022-05-27","Active"]
[null,221650,"Case","Other Case","POPSOCKETS POPGRIP VINTAGE AMERICAN FLAG","Universal",9.99,9.99,"-","Include on Web, Available","-","-","2022-05-27","Active"]
[null,221651,"Case","Other Case","POPSOCKETS POPGRIP MICRO BLOSSOMS","Universal",9.99,9.99,"-","Remove from Web","-","-","2021-05-17","Inactive"]
[null,221652,"Case","Other Case","POPSOCKETS POPGRIP MAGENTA NEBULA","Universal",9.99,9.99,"-","Include on Web, Available","-","-","2022-05-27","Active"]
[null,221780,"Charger","Other Charger","SAMSUNG UV STERILIZER","Universal",29.99,29.99,"-","Include on Web, Available","-","-","2022-02-18","Inactive"]
[null,221866,"Case","Other Case","LG STYLO 6 CASE-MATE PROTECT PACK CLR","LG Stylo 6",39.99,39.99,"-","Remove from Web","-","-","2021-05-17","Inactive"]
[null,221887,"Case","Other Case","LG STYLO 6 AXESSORIZE PROTECH PACK BLK","LG Stylo 6",39.99,39.99,"-","Remove from Web","-","-","2021-05-17","Inactive"]
[null,221888,"Case","Other Case","LG STYLO 6 AXESSORIZE PROTECH BLU","LG Stylo 6",24.99,24.99,"-","Remove from Web","-","-","2021-05-17","Inactive"]
[null,221893,"Case","Hard Case","SAM NOTE20 5G S-VIEW FLIP COVER BLK","Samsung Galaxy Note20 5G",49.99,49.99,"-","Remove from Web","-","-","2021-02-19","Inactive"]
[null,221894,"Case","Soft Case","SAM NOTE20 ULTRA 5G S-VIEW FLIP COV BLK","Samsung Galaxy Note20 Ultra 5G",39.99,39.99,"-","Remove from Web","-","-","2021-05-17","Inactive"]
[null,221895,"Case","Other Case","SAM NOTE20 5G RUGGED PROTECT COV BLK","Samsung Galaxy Note20 5G",39.99,39.99,"-","Remove from Web","-","-","2021-02-19","Inactive"]
[null,221896,"Case","Fashion Case","SAM NOTE20 ULTRA 5G RUGGED PROT COV BLK","Samsung Galaxy Note20 Ultra 5G",39.99,39.99,"-","Remove from Web","-","-","2021-02-19","Inactive"]
[null,221694,"Case","Hard Case","SAM A51 5G AXESSORIZE PROTECH BLK","Samsung Galaxy A51 5G",24.99,24.99,"-","Remove from Web","-","-","2021-05-17","Inactive"]
[null,221695,"Case","Soft Case","SAM A51 5G BODYGUARDZ CARVE BLK","Samsung Galaxy A51 5G",19.989999999999998,19.989999999999998,"-","Remove from Web","-","-","2021-05-17","Inactive"]
[null,221696,"Case","Other Case","SAM A51 5G CASE-MATE PROTECTION PACK CLR","Samsung Galaxy A51 5G",39.99,39.99,"-","Remove from Web","-",{"$f":"IF(I1927=\"Status Changed\",\"Status Changed\",IF(K1927=\"Status Changed\",\"Status Changed\",\"-\"))","v":"-"},"2021-05-17","Inactive"]
[null,221747,"Case","Fashion Case","SAM A51 5G CASE-MATE TWINKLE STARDUST","Samsung Galaxy A51 5G",29.99,29.99,"-","Remove from Web","-","-","2021-05-17","Inactive"]
[null,221748,"Case","Hard Case","SAM A51 5G OTTERBOX SYMMETRY CLR","Samsung Galaxy A51 5G",49.99,49.99,"-","Remove from Web","-","-","2021-05-17","Inactive"]
[null,221749,"Screen Protection","Glass","SAM A51 5G GADGUARD BLACK ICE SCRN PROT","Samsung Galaxy A51 5G",29.99,29.99,"-","Remove from Web","-","-","2021-05-17","Inactive"]
[null,221897,"Screen Protection","Glass","SAM G TAB S7 5G GADGUARD BLK ICE","Samsung Galaxy Tab S7",49.99,49.99,"-","Include on Web, Available","-","-","2022-01-31","Active"]
[null,221899,"Case","Keyboard Case","SAM G TAB S7 5G KEYBOARD COVER BLK","Samsung Galaxy Tab S7",199.99,199.99,"-","Remove from Web","-","-","2022-01-31","Inactive"]
[null,221898,"Screen Protection","Glass","SAM G TAB S7PLUS 5G GADGUARD BLK ICE","Samsung Galaxy Tab S7+",49.99,49.99,"-","Include on Web, Available","-","-","2023-03-01","Active"]
[null,221900,"Case","Keyboard Case","SAM G TAB S7PLUS 5G KEYBOARD COVER BLK","Samsung Galaxy Tab S7+",229.99,229.99,"-","Include on Web, Available","-","-","2023-03-01","Active"]
[null,221034,"Case","Hard Case","SAM A71 5G AXESSORIZE PROTECH BLK","Samsung Galaxy A71 5G",19.989999999999998,19.989999999999998,"-","Remove from Web","-","-","2021-08-17","Inactive"]
[null,221035,"Case","Hard Case","SAM A71 5G AXESSORIZE PROTECH BLU","Samsung Galaxy A71 5G",19.989999999999998,19.989999999999998,"-","Remove from Web","-","-","2021-08-17","Inactive"]
[null,221036,"Case","Hard Case","SAM A71 5G SPECK PRESID EXOTECH GLITTER","Samsung Galaxy A71 5G",19.989999999999998,19.989999999999998,"-","Remove from Web","-","-","2021-08-17","Inactive"]
[null,221057,"Case","Other Case","SAM A71 5G CASE-MATE PROTECTION PACK CLR","Samsung Galaxy A71 5G",39.99,39.99,"-","Remove from Web","-","-","2021-08-17","Inactive"]
[null,221058,"Screen Protection","Glass","SAM A71 5G GADGUARD BLACK ICE SCRN PROT","Samsung Galaxy A71 5G",29.99,29.99,"-","Remove from Web","-","-","2021-08-17","Inactive"]
[null,222125,"Screen Protection","Plastic","SAM GS20 FE 5G GADGUARD FLEX CLR","Samsung Galaxy S20 FE 5G",49.99,49.99,"-","Include on Web, Available","-","-","2021-08-17","Inactive"]
[null,222126,"Case","Hard Case","SAM GS20 FE 5G OTTERBOX SYMMETRY BLK","Samsung Galaxy S20 FE 5G",49.99,49.99,"-","Remove from Web","-","-","2021-08-17","Inactive"]
[null,222140,"Case","Soft Case","SAM GS20 FE 5G TECH21 EVOCHECK BLK","Samsung Galaxy S20 FE 5G",39.99,39.99,"-","Remove from Web","-","-","2021-05-17","Inactive"]
[null,222141,"Case","Soft Case","SAM GS20 FE 5G TECH21 EVOCHECK BLU","Samsung Galaxy S20 FE 5G",39.99,39.99,"-","Remove from Web","-","-","2021-05-17","Inactive"]
[null,222147,"Case","Fashion Case","SAM GS20 FE 5G CASE-MATE SOAP BUBBLE","Samsung Galaxy S20 FE 5G",39.99,39.99,"-","Remove from Web","-","-","2021-08-17","Inactive"]
[null,222148,"Case","Hard Case","SAM GS20 FE 5G PELICAN VOYAGER CLR","Samsung Galaxy S20 FE 5G",59.99,59.99,"-","Include on Web, Available","-","-","2021-08-17","Inactive"]
[null,222053,"Case","Fashion Case","SAM GS20 FE 5G SILICONE NAV","Samsung Galaxy S20 FE 5G",29.99,29.99,"-","Remove from Web","-","-","2021-05-17","Inactive"]
[null,222142,"Case","Other Case","GOOGLE PIXEL 4A 5G CASE-MATE PRT PCK CLR","Google Pixel 4a 5G",29.99,29.99,"-","Remove from Web","-","-","2021-05-17","Inactive"]
[null,222143,"Case","Fashion Case","GOOGLE PIXEL 4A 5G FABRIC CASE GRY","Google Pixel 4a 5G",20,20,"-","Remove from Web","-","-","2021-05-17","Inactive"]
[null,222144,"Case","Hard Case","GOOGLE PIXEL 4A 5G OTTERBOX COMMUTER BLK","Google Pixel 4a 5G",29.99,29.99,"-","Remove from Web","-","-","2021-05-17","Inactive"]
[null,222145,"Case","Hard Case","GOOGLE PIXEL 4A 5G AXESSORIZE PROTECH BLK","Google Pixel 4a 5G",19.989999999999998,19.989999999999998,"-","Remove from Web","-","-","2021-05-17","Inactive"]
[null,222081,"Screen Protection","Glass","GOOGLE PIXEL 4A 5G GADGUARD BLK ICE CLR","Google Pixel 4a 5G",29.99,29.99,"-","Remove from Web","-","-","2021-05-17","Inactive"]
[null,222146,"Case","Other Case","GOOGLE PIXEL 5 CASE-MATE PROT PCK CLR","Google Pixel 5",44.99,44.99,"-","Remove from Web","-","-","2021-08-17","Inactive"]
[null,222167,"Case","Fashion Case","GOOGLE PIXEL 5 FABRIC CASE BLU","Google Pixel 5",40,40,"-","Remove from Web","-","-","2021-08-17","Inactive"]
[null,222168,"Case","Hard Case","GOOGLE PIXEL 5 OTTERBOX DEFENDER BLK","Google Pixel 5",59.99,59.99,"-","Remove from Web","-","-","2021-08-17","Inactive"]
[null,222169,"Case","Hard Case","GOOGLE PIXEL 5 AXESSORIZE PROTECH BLK","Google Pixel 5",24.99,24.99,"-","Remove from Web","-","-","2021-08-17","Inactive"]
[null,222082,"Screen Protection","Glass","GOOGLE PIXEL 5 GADGUARD BLACK ICE CLR","Google Pixel 5",29.99,29.99,"-","Include on Web, Available","-","-","2021-08-17","Inactive"]
[null,222239,"Case","Other Case","LG K92 5G CASE-MATE PROTECTION PACK CLR","LG K92 5G",39.99,39.99,"-","Remove from Web","-","-","2021-05-17","Inactive"]
[null,222240,"Case","Hard Case","LG K92 5G AXESSORIZE PROTECH BLK","LG K92 5G",24.99,24.99,"-","Remove from Web","-","-","2021-05-17","Inactive"]
[null,222241,"Case","Other Case","LG K92 5G AXESSORIZE PROTECH BLU","LG K92 5G",24.99,24.99,"-","Remove from Web","-","-","2021-05-17","Inactive"]
[null,221196,"Wearable","Cellular Samsung Wearable","SAM GALAXY WATCH3 LTE 45MM BLK",0,479.99,479.99,"-","Include on Web, Available","-","-","2022-02-11","Inactive"]
[null,221247,"Wearable","Cellular Samsung Wearable","SAM GALAXY WATCH3 LTE 45MM SIL","Samsung Watch",479.99,479.99,"-","Include on Web, Available","-","-","2022-02-11","Inactive"]
[null,221248,"Wearable","Cellular Samsung Wearable","SAM GALAXY WATCH3 LTE 41MM BRZ","Samsung Watch",449.99,449.99,"-","Remove from Web","-","-","2022-02-11","Inactive"]
[null,222071,"Audio","Wireless Mono","JABRA TALK 45 BT MONO","Universal",79.989999999999995,79.989999999999995,"-","Include on Web, Available","-","-","2023-03-01","Active"]
[null,222304,"Charger","Wireless Dock Charger","SAMSUNG WIRELESS CHARGER TRIO PAD BLK","Universal",89.99,89.99,"-","Include on Web, Available","-","-","2023-03-01","Active"]
[null,222305,"Charger","Wireless Dock Charger","SAMSUNG WIRELESS CHARGER CONVERTIBLE 9W","Universal",49.99,49.99,"-","Include on Web, Available","-","-","2022-10-28","Active"]
[null,222211,"Charger","Wireless Portable Charger","VENTEV WIRELESS BATTERY STAND","Universal",54.99,54.99,"-","Include on Web, Available","-","-","2023-03-01","Active"]
[null,222212,"Charger","Universal Wall","VENTEV ESSENTIALS WALL CHARGER","Universal",14.99,14.99,"-","Remove from Web","-","-","2021-08-17","Inactive"]
[null,222214,"Charger","Wireless Dock Charger","UBIO CHARGE PAD APL WATCH 10W","Universal",69.989999999999995,69.989999999999995,"-","Include on Web, Available","-","-","2022-08-19","Active"]
[null,222215,"Charger","Wireless Portable Charger","UBIO 4-IN-1 WIRELESS POWER PACK 10K","Universal",49.99,49.99,"-","Include on Web, Available","-","-","2022-02-18","Inactive"]
[null,222213,"Charger","Wireless Dock Charger","MOPHIE CHARGE STAND 15W","Universal",59.99,59.99,"-","Include on Web, Available","-","-","2023-03-01","Active"]
[null,222290,"Charger","Mounts","SCOSCHE UNIVERSAL CUP MOUNT BLACK","Universal",24.99,24.99,"-","Include on Web, Available","-","-","2022-08-19","Active"]
[null,222291,"Charger","Mounts","SCOSCHE 2-IN-1 CAR MOUNT","Universal",19.989999999999998,19.989999999999998,"-","Include on Web, Available","-","-","2023-06-01","Active"]
[null,222233,"Charger","Universal Portable Charger","LANDER CAIRN XL POWER BANK LANTERN 10K","Universal",39.99,39.99,"-","Include on Web, Available","-","-","2022-02-18","Inactive"]
[null,222164,"Audio","Wireless Over-Ear","APL AIRPODS MAX SIL","Universal",549.99,549.99,"-","Include on Web, Available","-","-","2023-03-01","Active"]
[null,222514,"Case","Tablet Case","IPAD AIR 4TH GEN OTTERBOX DEFENDER BLK","iPad Air 4th Gen",89.99,89.99,"-","Include on Web, Available","-","-","2023-04-01","Active"]
[null,222604,"Wearable","Cellular Apple Wearable","APL WATCH SE CELL GLD ALUM PNK 44",0,359,359,"-","Remove from Web","-","-","00:00:00","Not Launching"]
[null,222605,"Wearable","Cellular Apple Wearable","APL WATCH SE CELL GLD ALUM PLM 44",0,359,359,"-","Remove from Web","-","-","00:00:00","Not Launching"]
[null,222606,"Wearable","Cellular Apple Wearable","APL WATCH SE CELL GRY ALUM BLK 44","Apple Watch",359,359,"-","Remove from Web","-","-","2022-02-11","Inactive"]
[null,222642,"Wearable","Cellular Apple Wearable","APL WATCH S6 CELL SIL ALUM WHT 40","Apple Watch",399,399,"-","Remove from Web","-","-","2022-02-11","Inactive"]
[null,222643,"Wearable","Cellular Apple Wearable","APL WATCH S6 CELL GLD ALUM PNK 40","Apple Watch",399,399,"-","Include on Web, Available","-","-","2022-02-11","Inactive"]
[null,222644,"Wearable","Cellular Apple Wearable","APL WATCH S6 CELL GRY ALUM BLK 40","Apple Watch",399,399,"-","Remove from Web","-","-","2022-02-11","Inactive"]
[null,222645,"Wearable","Cellular Apple Wearable","APL WATCH S6 CELL RED ALUM RED 40","Apple Watch",399,399,"-","Remove from Web","-","-","2022-02-11","Inactive"]
[null,222646,"Wearable","Cellular Apple Wearable","APL WATCH S6 CELL SIL ALUM WHT 44","Apple Watch",429,429,"-","Remove from Web","-","-","2022-02-11","Inactive"]
[null,222647,"Wearable","Cellular Apple Wearable","APL WATCH SE CELL GRY ALUM CHR 44","Apple Watch",359,359,"-","Remove from Web","-","-","2022-02-11","Inactive"]
[null,222648,"Wearable","Cellular Apple Wearable","APL WATCH SE CELL GLD ALUM DEMO 40",0,0.01,0.01,"-","Include on Web, Available","-","-","2022-09-13","Demo"]
[null,222649,"Wearable","Cellular Apple Wearable","APL WATCH SE CELL GRY ALUM DEMO 44",0,0.01,0.01,"-","Include on Web, Available","-","-","2022-09-13","Demo"]
[null,222650,"Wearable","Cellular Apple Wearable","APL WATCH S6 CELL SIL ALUM DEMO 40","Apple Watch",0.01,0.01,"-","Include on Web, Available","-","-","2022-09-13","Demo"]
[null,222651,"Wearable","Cellular Apple Wearable","APL WATCH S6 CELL BLU ALUM DEMO 44","Apple Watch",0.01,0.01,"-","Include on Web, Available","-","-","2022-09-13","Demo"]
[null,222652,"Wearable","Cellular Apple Wearable","APL WATCH SE CELL SIL ALUM WHT 40","Apple Watch",329,329,"-","Remove from Web","-","-","2022-02-11","Inactive"]
[null,222653,"Wearable","Cellular Apple Wearable","APL WATCH SE CELL SIL ALUM BLU 40","Apple Watch",329,329,"-","Remove from Web","-","-","2022-02-11","Inactive"]
[null,222654,"Wearable","Cellular Apple Wearable","APL WATCH SE CELL GLD ALUM PNK 40","Apple Watch",329,329,"-","Include on Web, Available","-",{"$f":"IF(I1991=\"Status Changed\",\"Status Changed\",IF(K1991=\"Status Changed\",\"Status Changed\",\"-\"))","v":"-"},"2022-02-11","Inactive"]
[null,222655,"Wearable","Cellular Apple Wearable","APL WATCH SE CELL GLD ALUM PLM 40",0,329,329,"-","Remove from Web","-","-","00:00:00","Not Launching"]
[null,222656,"Wearable","Cellular Apple Wearable","APL WATCH SE CELL GRY ALUM BLK 40","Apple Watch",329,329,"-","Include on Web, Available","-","-","2022-02-11","Inactive"]
[null,222657,"Wearable","Cellular Apple Wearable","APL WATCH SE CELL GRY ALUM CHR 40","Apple Watch",329,329,"-","Include on Web, Available","-","-","2022-02-11","Inactive"]
[null,222658,"Wearable","Cellular Apple Wearable","APL WATCH SE CELL SIL ALUM WHT 44",0,359,359,"-","Remove from Web","-","-","00:00:00","Not Launching"]
[null,222659,"Wearable","Cellular Apple Wearable","APL WATCH SE CELL SIL ALUM BLU 44",0,359,359,"-","Remove from Web","-","-","00:00:00","Not Launching"]
[null,222667,"Wearable","Cellular Apple Wearable","APL WATCH S6 CELL GLD ALUM PNK 44","Apple Watch",429,429,"-","Remove from Web","-","-","2022-02-11","Inactive"]
[null,222668,"Wearable","Cellular Apple Wearable","APL WATCH S6 CELL GRY ALUM BLK 44","Apple Watch",429,429,"-","Not On Flash","-","-","2022-02-11","Inactive"]
[null,222669,"Wearable","Cellular Apple Wearable","APL WATCH S6 CELL BLU ALUM BLU 44","Apple Watch",429,429,"-","Remove from Web","-","-","2022-02-11","Inactive"]
[null,222670,"Wearable","Cellular Apple Wearable","APL WATCH S6 CELL SIL SS SIL 44","Apple Watch",799,799,"-","Not On Flash","-","-","2022-01-28","Inactive"]
[null,222671,"Wearable","Cellular Apple Wearable","APL WATCH S6 CELL GLD SS GRN 44","Apple Watch",749,749,"-","Remove from Web","-","-","2022-01-28","Inactive"]
[null,222594,"Wearable","Cellular Apple Wearable","APL WATCH S6 CELL BLU ALUM BLUE 40","Apple Watch",399,399,"-","Remove from Web","-","-","2022-02-11","Inactive"]
[null,222991,"Connected Home","Smart Speaker","APPLE HOMEPOD MINI WHT","Universal",99,99,"-","Remove from Web","-","-","2022-02-18","Inactive"]
[null,222992,"Connected Home","Smart Speaker","APPLE HOMEPOD MINI GRY","Universal",99,99,"-","Remove from Web","-","-","2022-02-18","Inactive"]
[null,222150,"Screen Protection","Glass","IPHONE 12 MINI BODYGRDZ PRTX PRIV SCRN","iPhone 12 mini",12.99,12.99,"-","Remove from Web","-","-","2021-08-17","Inactive"]
[null,222151,"Case","Fashion Case","IPHONE 12 MINI CASE-MATE TWINKLE STAR","iPhone 12 mini",16.989999999999998,16.989999999999998,"-","Remove from Web","-","-","2021-05-17","Inactive"]
[null,222152,"Case","Fashion Case","IPHONE 12 MINI RIFLE PAPER GARDEN BLU","iPhone 12 mini",16.989999999999998,16.989999999999998,"-","Remove from Web","-","-","2021-08-17","Inactive"]
[null,222153,"Screen Protection","Glass","IPHONE 12 MINI GADGUARD BLACK ICE SCRN","iPhone 12 mini",8.99,8.99,"-","Include on Web, Available","-","-","2022-09-01","Active"]
[null,222154,"Case","Hard Case","IPHONE 12 MINI GEAR4 PICCADILLY BLK","iPhone 12 mini",13.99,13.99,"-","Remove from Web","-","-","2021-08-17","Inactive"]
[null,222155,"Case","Fashion Case","IPHONE 12 MINI KATE SPADE SCATTR FLOWER","iPhone 12 mini",22.99,22.99,"-","Remove from Web","-","-","2021-08-17","Inactive"]
[null,222156,"Case","Hard Case","IPHONE 12 MINI OTTERBOX COMMUTER BLU","iPhone 12 mini",20.99,20.99,"-","Remove from Web","-","-","2021-08-17","Inactive"]
[null,222187,"Case","Hard Case","IPHONE 12 MINI OTTERBOX COMMUTER BLK","iPhone 12 mini",20.99,20.99,"-","Include on Web, Available","-","-","2022-09-01","Active"]
[null,222188,"Case","Clip Case","IPHONE 12 MINI OTTERBOX DEFENDER BLK","iPhone 12 mini",64.989999999999995,64.989999999999995,"-","Include on Web, Available","-","-","2022-09-01","Active"]
[null,222189,"Case","Other Case","IPHONE 12 MINI OTTERPOP SYMMETRY VLT","iPhone 12 mini",31.99,31.99,"-","Remove from Web","-","-","2021-08-17","Inactive"]
[null,222197,"Case","Hard Case","IPHONE 12 MINI OTTERBOX SYMMETRY STAR","iPhone 12 mini",27.99,27.99,"-","Remove from Web","-","-","2021-08-17","Inactive"]
[null,222198,"Case","Fashion Case","IPHONE 12 MINI SONIX SOUTHERN FLORAL","iPhone 12 mini",15.99,15.99,"-","Remove from Web","-","-","2021-08-17","Inactive"]
[null,222199,"Case","Soft Case","IPHONE 12 MINI TECH21 EVOCHECK BLK","iPhone 12 mini",15.99,15.99,"-","Remove from Web","-","-","2021-08-17","Inactive"]
[null,222200,"Case","Hard Case","IPHONE 12 MINI TECH21 EVOCLEAR CLR","iPhone 12 mini",15.99,15.99,"-","Include on Web, Available","-","-","2022-09-01","Active"]
[null,222511,"Case","Other Case","IPHONE 12 MINI OTTER SYMMETRY PLUS BLK","iPhone 12 mini",31.99,31.99,"-","Remove from Web","-","-","2022-02-18","Inactive"]
[null,222184,"Case","Clip Case","IPHONE 12 PRO MAX OTTERBOX DEFENDER BLK","iPhone 12 Pro Max",59.99,59.99,"-","Remove from Web","-","-","2021-10-15","Inactive"]
[null,222185,"Case","Other Case","IPHONE 12 PRO MAX OTTERPOP SYMMETRY VLT","iPhone 12 Pro Max",59.99,59.99,"-","Remove from Web","-","-","2021-10-15","Inactive"]
[null,222186,"Case","Hard Case","IPHONE 12 PRO MAX OTTERBOX SYMMETRY STAR","iPhone 12 Pro Max",49.99,49.99,"-","Remove from Web","-","-","2021-10-15","Inactive"]
[null,222191,"Screen Protection","Glass","IPHONE 12 PRO MAX BODYGRDZ PRTX PRV SCRN","iPhone 12 Pro Max",49.99,49.99,"-","Remove from Web","-","-","2021-10-15","Inactive"]
[null,222192,"Case","Fashion Case","IPHONE 12 PRO MAX CASE-MATE TWINKLE STAR","iPhone 12 Pro Max",39.99,39.99,"-","Remove from Web","-","-","2021-05-17","Inactive"]
[null,222193,"Case","Folio Case","IPHONE 12 PRO MAX CASE-MATE WALLET BLK","iPhone 12 Pro Max",59.99,59.99,"-","Remove from Web","-","-","2021-10-15","Inactive"]
[null,222194,"Case","Fashion Case","IPHONE 12 PRO MAX RIFLE PAPER GARDEN BLU","iPhone 12 Pro Max",39.99,39.99,"-","Remove from Web","-","-","2021-10-15","Inactive"]
[null,222195,"Screen Protection","Glass","IPHONE 12 PRO MAX GADGUARD BLK ICE SCRN","iPhone 12 Pro Max",39.99,39.99,"-","Include on Web, Available","-","-","2021-10-15","Inactive"]
[null,222196,"Case","Hard Case","IPHONE 12 PRO MAX GEAR4 PICCADILLY BLK","iPhone 12 Pro Max",39.99,39.99,"-","Remove from Web","-","-","2021-10-15","Inactive"]
[null,222217,"Case","Hard Case","IPHONE 12 PRO MAX KATE SPADE SCATTR FLR","iPhone 12 Pro Max",39.99,39.99,"-","Remove from Web","-","-","2021-10-15","Inactive"]
[null,222218,"Case","Hard Case","IPHONE 12 PRO MAX OTTERBOX COMMUTER BLU","iPhone 12 Pro Max",29.99,29.99,"-","Remove from Web","-","-","2021-10-15","Inactive"]
[null,222219,"Case","Hard Case","IPHONE 12 PRO MAX OTTERBOX COMMUTER BLK","iPhone 12 Pro Max",39.99,39.99,"-","Include on Web, Available","-","-","2021-10-15","Inactive"]
[null,222227,"Case","Fashion Case","IPHONE 12 PRO MAX SONIX SOUTHERN FLORAL","iPhone 12 Pro Max",39.99,39.99,"-","Remove from Web","-","-","2021-10-15","Inactive"]
[null,222228,"Case","Soft Case","IPHONE 12 PRO MAX TECH21 EVOCHECK BLK","iPhone 12 Pro Max",39.99,39.99,"-","Remove from Web","-","-","2021-10-15","Inactive"]
[null,222229,"Case","Hard Case","IPHONE 12 PRO MAX TECH21 EVOCLEAR CLR","iPhone 12 Pro Max",39.99,39.99,"-","Remove from Web","-","-","2021-10-15","Inactive"]
[null,222513,"Case","Other Case","IPHONE 12 PRO MAX OTTER SYMMTRY PLUS BLK","iPhone 12 Pro Max",39.99,39.99,"-","Include on Web, Available","-","-","2021-10-15","Inactive"]
[null,222111,"Case","Hard Case","IPHONE 12.12 PRO GEAR4 PICCADILLY BLK","iPhone 12/12 Pro",34.99,34.99,"-","Include on Web, Available","-","-","2022-09-01","Active"]
[null,222112,"Case","Fashion Case","IPHONE 12.12 PRO KATE SPADE SCATTR FLR","iPhone 12/12 Pro",39.99,39.99,"-","Remove from Web","-","-","2021-08-17","Inactive"]
[null,222113,"Case","Hard Case","IPHONE 12.12 PRO OTTERBOX COMMUTER BLU","iPhone 12/12 Pro",39.99,39.99,"-","Include on Web, Available","-","-","2022-09-01","Active"]
[null,222114,"Case","Hard Case","IPHONE 12.12 PRO OTTERBOX COMMUTER BLK","iPhone 12/12 Pro",34.99,34.99,"-","Include on Web, Available","-","-","2022-09-01","Active"]
[null,222115,"Case","Clip Case","IPHONE 12.12 PRO OTTERBOX DEFENDER BLK","iPhone 12/12 Pro",64.989999999999995,64.989999999999995,"-","Include on Web, Available","-","-","2022-09-01","Active"]
[null,222116,"Case","Other Case","IPHONE 12.12 PRO OTTERPOP SYMMETRY VLT","iPhone 12/12 Pro",39.99,39.99,"-","Include on Web, Available","-","-","2022-09-01","Active"]
[null,222190,"Case","Hard Case","IPHONE 12.12 PRO TECH21 EVOCLEAR CLR","iPhone 12/12 Pro",39.99,39.99,"-","Include on Web, Available","-","-","2022-09-01","Active"]
[null,222201,"Screen Protection","Glass","IPHONE 12.12 PRO BODYGRDZ PRTX PRIV SCRN","iPhone 12/12 Pro",39.99,39.99,"-","Include on Web, Available","-","-","2022-09-01","Active"]
[null,222202,"Case","Fashion Case","IPHONE 12.12 PRO CASE-MATE TWINKLE CONF","iPhone 12/12 Pro",39.99,39.99,"-","Remove from Web","-","-","2021-08-17","Inactive"]
[null,222203,"Case","Folio Case","IPHONE 12.12 PRO CASE-MATE WALLET BLK","iPhone 12/12 Pro",24.99,24.99,"-","Include on Web, Available","-","-","2022-09-01","Active"]
[null,222204,"Case","Fashion Case","IPHONE 12.12 PRO CASE-MATE TWINKLE STAR","iPhone 12/12 Pro",39.99,39.99,"-","Remove from Web","-","-","2021-05-17","Inactive"]
[null,222205,"Case","Fashion Case","IPHONE 12.12 PRO RIFLE PAPER GARDEN BLU","iPhone 12/12 Pro",39.99,39.99,"-","Include on Web, Available","-","-","2022-09-01","Active"]
[null,222206,"Screen Protection","Glass","IPHONE 12.12 PRO GADGUARD BLACK ICE SCRN","iPhone 12/12 Pro",39.99,39.99,"-","Include on Web, Available","-","-","2022-09-01","Active"]
[null,222207,"Case","Hard Case","IPHONE 12.12 PRO OTTERBOX SYMMETRY STAR","iPhone 12/12 Pro",49.99,49.99,"-","Include on Web, Available","-","-","2022-09-01","Active"]
[null,222208,"Case","Fashion Case","IPHONE 12.12 PRO SONIX AGATE","iPhone 12/12 Pro",39.99,39.99,"-","Remove from Web","-","-","2021-08-17","Inactive"]
[null,222209,"Case","Fashion Case","IPHONE 12.12 PRO SONIX SOUTHERN FLORAL","iPhone 12/12 Pro",39.99,39.99,"-","Remove from Web","-","-","2021-08-17","Inactive"]
[null,222210,"Case","Soft Case","IPHONE 12.12 PRO TECH21 EVOCHECK BLK","iPhone 12/12 Pro",34.99,34.99,"-","Include on Web, Available","-","-","2022-09-01","Active"]
[null,222512,"Case","Other Case","IPHONE 12.12 PRO OTTER SYMMETRY PLUS BLK","iPhone 12/12 Pro",49.99,49.99,"-","Include on Web, Available","-","-","2022-09-01","Active"]
[null,222359,"CHARGER","APPLE WALL","APL 20W USB-C POWER ADAPTER","Apple Lightning",19.989999999999998,19.989999999999998,"-","Include on Web, Available","-","-","2022-10-28","Active"]
[null,222902,"Charger","Wireless Dock Charger","APL MAGSAFE WIRELESS CHARGER","Apple Lightning",39.99,39.99,"-","Include on Web, Available","-",{"$f":"IF(I2055=\"Status Changed\",\"Status Changed\",IF(K2055=\"Status Changed\",\"Status Changed\",\"-\"))","v":"-"},"2022-10-28","Active"]
[null,222894,"Case","Fashion Case","IPHONE 12 LEATHER WALLET MAGSAFE BRN","iPhone 12/12 Pro",59,59,"-","Remove from Web","-","-","2021-10-15","Inactive"]
[null,222895,"Case","Fashion Case","IPHONE 12 LEATHER WALLET MAGSAFE BLK","iPhone 12/12 Pro",59,59,"-","Remove from Web","-","-","2021-10-15","Inactive"]
[null,222905,"Case","Fashion Case","IPHONE 12.12 PRO LEATHER MAGSAFE BRN","iPhone 12/12 Pro",59,59,"-","Remove from Web","-","-","00:00:00","Not Launching"]
[null,222906,"Case","Fashion Case","IPHONE 12.12 PRO LEATHER MAGSAFE BLK","iPhone 12/12 Pro",59,59,"-","Remove from Web","-","-","2021-05-17","Inactive"]
[null,222324,"Case","Fashion Case","IPHONE 12.12 PRO SILICONE MAGSAFE PNK","iPhone 12/12 Pro",49,49,"-","Remove from Web","-","-","2021-05-17","Inactive"]
[null,222888,"Case","Fashion Case","IPHONE 12.12 PRO SILICONE MAGSAFE NAV","iPhone 12/12 Pro",49,49,"-","Not On Flash","-","-","2021-10-15","Inactive"]
[null,222892,"Case","Fashion Case","IPHONE 12.12 PRO MAGSAFE CLEAR","iPhone 12/12 Pro",49.99,49.99,"-","Include on Web, Available","-","-","2022-09-01","Active"]
[null,222903,"Case","Fashion Case","IPHONE 12 MINI LEATHER MAGSAFE BRN","iPhone 12 Mini",59,59,"-","Remove from Web","-","-","00:00:00","Not Launching"]
[null,222904,"Case","Fashion Case","IPHONE 12 MINI LEATHER MAGSAFE BLK","iPhone 12 Mini",59,59,"-","Remove from Web","-","-","00:00:00","Not Launching"]
[null,222989,"Case","Fashion Case","IPHONE 12 MINI SILICONE MAGSAFE PNK","iPhone 12 Mini",49,49,"-","Remove from Web","-","-","00:00:00","Not Launching"]
[null,222990,"Case","Fashion Case","IPHONE 12 MINI SILICONE MAGSAFE NAV","iPhone 12 Mini",41.99,41.99,"-","Remove from Web","-","-","2021-10-15","Inactive"]
[null,222891,"Case","Fashion Case","IPHONE 12 MINI MAGSAFE CLEAR","iPhone 12 Mini",41.99,41.99,"-","Remove from Web","-","-","2021-10-15","Inactive"]
[null,222987,"Case","Fashion Case","IPHONE 12 PRO MAX LEATHER MAGSAFE BRN","iPhone 12 Pro Max",59,59,"-","Remove from Web","-","-","00:00:00","Not Launching"]
[null,222988,"Case","Fashion Case","IPHONE 12 PRO MAX LEATHER MAGSAFE BLK","iPhone 12 Pro Max",59,59,"-","Remove from Web","-","-","00:00:00","Not Launching"]
[null,222889,"Case","Fashion Case","IPHONE 12 PRO MAX SILICONE MAGSAFE PNK","iPhone 12 Pro Max",49,49,"-","Remove from Web","-","-","2021-05-17","Inactive"]
[null,222890,"Case","Fashion Case","IPHONE 12 PRO MAX SILICONE MAGSAFE NAV","iPhone 12 Pro Max",49,49,"-","Remove from Web","-","-","2021-05-17","Inactive"]
[null,222893,"Case","Fashion Case","IPHONE 12 PRO MAX MAGSAFE CLEAR","iPhone 12 Pro Max",49,49,"-","Remove from Web","-","-","2021-10-15","Inactive"]
[null,223378,"Case","Soft Case","LG K22 ITSKINS SPECTRUM CLEAR SMK","LG K22 (DH0)",19.989999999999998,19.989999999999998,"-","Include on Web, Available","-","-","2021-10-15","Inactive"]
[null,223357,"Case","Other Case","LG K22 AXESSORIZE PROTECH PACK BLK","LG K22 (DH0)",34.99,34.99,"-","Remove from Web","-","-","2021-10-15","Inactive"]
[null,223358,"Case","Hard Case","LG K22 AXESSORIZE PROTECH BLU","LG K22 (DH0)",24.99,24.99,"-","Remove from Web","-","-","2021-10-15","Inactive"]
[null,223359,"Case","Soft Case","LG K22 PUREGEAR SLIM SHELL CLR","LG K22 (DH0)",14.99,14.99,"-","Remove from Web","-","-","2021-10-15","Inactive"]
[null,223436,"Audio","True Wireless","SAMSUNG GALAXY BUDS PRO TW BLK","Universal",199.99,199.99,"-","Include on Web, Available","-","-","2022-08-19","Active"]
[null,223447,"Audio","True Wireless","SAMSUNG GALAXY BUDS PRO TW SIL","Universal",199.99,199.99,"-","Include on Web, Available","-","-","2022-08-19","Active"]
[null,223450,"Charger","Wireless Dock Charger","SAMSUNG WIRELESS CHARGER DUO BLK","Universal",49.99,49.99,"-","Include on Web, Available","-","-","2022-05-27","Active"]
[null,223451,"Charger","Wireless Dock Charger","SAMSUNG WIRELESS CHARGER BLK","Universal",29.99,29.99,"-","Include on Web, Available","-","-","2022-05-27","Active"]
[null,223452,"Charger","Universal Wall","SAMSUNG 25W USB-C WALL ADAPTER","Universal",19.989999999999998,19.989999999999998,"-","Include on Web, Available","-","-","2023-03-01","Active"]
[null,223449,"Charger","Android Wall","VENTEV WALLPORT Q1270 27W C-C CABLE","Universal",24.99,24.99,"-","Remove from Web","-","-","2022-02-18","Inactive"]
[null,223553,"Case","Fashion Case","SAM GS21 5G CASE-MATE SOAP BUBBLE","Samsung Galaxy S21 5G",39.99,39.99,"-","Include on Web, Available","-","-","2022-02-24","Inactive"]
[null,223554,"Case","Clip Case","SAM GS21 5G OTTERBOX DEFENDER PRO BLK","Samsung Galaxy S21 5G",64.989999999999995,64.989999999999995,"-","Include on Web, Available","-","-","2022-02-24","Inactive"]
[null,223555,"Case","Hard Case","SAM GS21 5G OTTERBOX SYMMETRY BLK","Samsung Galaxy S21 5G",49.99,49.99,"-","Include on Web, Available","-","-","2022-02-24","Inactive"]
[null,223556,"Case","Hard Case","SAM GS21 5G OTTERBOX SYMMETRY STARDUST","Samsung Galaxy S21 5G",49.99,49.99,"-","Include on Web, Available","-","-","2022-02-24","Inactive"]
[null,223577,"Case","Hard Case","SAM GS21 5G OTTERBOX COMMUTER BLK","Samsung Galaxy S21 5G",29.99,29.99,"-","Remove from Web","-","-","2022-02-24","Inactive"]
[null,223578,"Case","Hard Case","SAM GS21 5G OTTER COMMUTER BESPOKE WAY","Samsung Galaxy S21 5G",39.99,39.99,"-","Include on Web, Available","-","-","2022-02-24","Inactive"]
[null,223579,"Case","Clip Case","SAM GS21 5G PELICAN VOYAGER CLEAR","Samsung Galaxy S21 5G",44.99,44.99,"-","Include on Web, Available","-","-","2022-02-24","Inactive"]
[null,223580,"Case","Fashion Case","SAM GS21 5G RIFLE PAPER GARDEN PARTY BLU","Samsung Galaxy S21 5G",29.99,29.99,"-","Include on Web, Available","-","-","2022-02-24","Inactive"]
[null,223513,"Case","Fashion Case","SAM GS21 5G RUGGED PROTECTIVE COVER SIL","Samsung Galaxy S21 5G",39.99,39.99,"-","Include on Web, Available","-","-","2022-02-24","Inactive"]
[null,223514,"Case","Fashion Case","SAM GS21 5G SILICONE COVER BLK","Samsung Galaxy S21 5G",29.99,29.99,"-","Include on Web, Available","-","-","2022-02-24","Inactive"]
[null,223515,"Case","Soft Case","SAM GS21 5G TECH21 EVOCHECK BLK","Samsung Galaxy S21 5G",29.99,29.99,"-","Include on Web, Available","-","-","2022-02-24","Inactive"]
[null,223516,"Case","Hard Case","SAM GS21 5G TECH21 EVOCLEAR CLR","Samsung Galaxy S21 5G",24.99,24.99,"-","Include on Web, Available","-","-","2022-02-24","Inactive"]
[null,223581,"Screen Protection","Plastic","SAM GS21 5G GADGUARD BLK ICE FLEX SCRN","Samsung Galaxy S21 5G",49.99,49.99,"-","Include on Web, Available","-","-","2022-02-24","Inactive"]
[null,223582,"Screen Protection","Plastic","SAM GS21 5G GADGUARD BLACK ICE FLEX PRIV","Samsung Galaxy S21 5G",34.99,34.99,"-","Remove from Web","-","-","2022-02-24","Inactive"]
[null,223594,"Case","Fashion Case","SAM GS21 ULTRA 5G CASE-MATE SOAP BUBBLE","Samsung Galaxy S21 Ultra 5G",39.99,39.99,"-","Include on Web, Available","-","-","2022-02-24","Inactive"]
[null,223595,"Case","Clip Case","SAM GS21 ULTRA 5G OTTER DEFENDER PRO BLK","Samsung Galaxy S21 Ultra 5G",64.989999999999995,64.989999999999995,"-","Include on Web, Available","-","-","2022-02-24","Inactive"]
[null,223596,"Case","Hard Case","SAM GS21 ULTRA 5G OTTERBOX SYMMETRY BLK","Samsung Galaxy S21 Ultra 5G",29.99,29.99,"-","Remove from Web","-","-","2022-02-24","Inactive"]
[null,223597,"Case","Hard Case","SAM GS21 ULTRA 5G OTTERBOX SYMMETRY STAR","Samsung Galaxy S21 Ultra 5G",49.99,49.99,"-","Include on Web, Available","-","-","2022-02-24","Inactive"]
[null,223598,"Case","Hard Case","SAM GS21 ULTRA 5G OTTERBOX COMMUTER BLK","Samsung Galaxy S21 Ultra 5G",39.99,39.99,"-","Include on Web, Available","-","-","2022-02-24","Inactive"]
[null,223599,"Case","Hard Case","SAM GS21 ULTRA 5G OTTER COMMUTER BESPOKE","Samsung Galaxy S21 Ultra 5G",39.99,39.99,"-","Include on Web, Available","-","-","2022-02-24","Inactive"]
[null,223600,"Case","Clip Case","SAM GS21 ULTRA 5G PELICAN VOYAGER CLEAR","Samsung Galaxy S21 Ultra 5G",49.99,49.99,"-","Include on Web, Available","-","-","2022-02-24","Inactive"]
[null,223455,"Case","Case Accessories","SAM GS21 ULTRA 5G S-VIEW COVR S-PEN BLK","Samsung Galaxy S21 Ultra 5G",89.99,89.99,"-","Include on Web, Available","-","-","2022-02-24","Inactive"]
[null,223547,"Case","Fashion Case","SAM GS21 ULTRA 5G SILICONE COVER BLK","Samsung Galaxy S21 Ultra 5G",29.99,29.99,"-","Include on Web, Available","-","-","2022-02-24","Inactive"]
[null,223548,"Case","Soft Case","SAM GS21 ULTRA 5G TECH21 EVOCHECK BLK","Samsung Galaxy S21 Ultra 5G",39.99,39.99,"-","Include on Web, Available","-","-","2022-02-24","Inactive"]
[null,223549,"Case","Hard Case","SAM GS21 ULTRA 5G TECH21 EVOCLEAR CLR","Samsung Galaxy S21 Ultra 5G",24.99,24.99,"-","Include on Web, Available","-","-","2022-02-24","Inactive"]
[null,223456,"Case","Case Accessories","SAM GS21 ULTRA 5G S-PEN BLK","Samsung Galaxy S21 Ultra 5G",39.99,39.99,"-","Include on Web, Available","-","-","2022-02-24","Inactive"]
[null,223601,"Screen Protection","Plastic","SAM GS21 ULTRA 5G GADGRD BLKICE FLX SCRN","Samsung Galaxy S21 Ultra 5G",49.99,49.99,"-","Include on Web, Available","-","-","2022-02-24","Inactive"]
[null,223602,"Screen Protection","Plastic","SAM GS21 ULTRA 5G GADGRD BLKICE FLX PRIV","Samsung Galaxy S21 Ultra 5G",54.99,54.99,"-","Include on Web, Available","-","-","2022-02-24","Active"]
[null,223466,"Case","Fashion Case","SAM GS21 PLUS 5G CASE-MATE SOAP BUBBLE","Samsung Galaxy S21+ 5G",39.99,39.99,"-","Include on Web, Available","-","-","2022-02-24","Inactive"]
[null,223587,"Case","Clip Case","SAM GS21 PLUS 5G OTTER DEFENDER PRO BLK","Samsung Galaxy S21+ 5G",64.989999999999995,64.989999999999995,"-","Include on Web, Available","-","-","2022-02-24","Inactive"]
[null,223588,"Case","Hard Case","SAM GS21 PLUS 5G OTTERBOX SYMMETRY BLK","Samsung Galaxy S21+ 5G",34.99,34.99,"-","Remove from Web","-","-","2022-02-24","Inactive"]
[null,223589,"Case","Hard Case","SAM GS21 PLUS 5G OTTERBOX SYMMETRY STAR","Samsung Galaxy S21+ 5G",49.99,49.99,"-","Include on Web, Available","-","-","2022-02-24","Inactive"]
[null,223590,"Case","Hard Case","SAM GS21 PLUS 5G OTTERBOX COMMUTER BLK","Samsung Galaxy S21+ 5G",39.99,39.99,"-","Include on Web, Available","-","-","2022-02-24","Inactive"]
[null,223591,"Case","Hard Case","SAM GS21 PLUS 5G OTTER COMMUTER BESPOKE","Samsung Galaxy S21+ 5G",34.99,34.99,"-","Remove from Web","-","-","2022-02-24","Inactive"]
[null,223518,"Case","Fashion Case","SAM GS21 PLUS 5G RUGGED PROTECT COVR SIL","Samsung Galaxy S21+ 5G",39.99,39.99,"-","Include on Web, Available","-","-","2022-02-24","Inactive"]
[null,223519,"Case","Fashion Case","SAM GS21 PLUS 5G SILICONE COVER BLK","Samsung Galaxy S21+ 5G",29.99,29.99,"-","Include on Web, Available","-","-","2022-02-24","Inactive"]
[null,223520,"Case","Soft Case","SAM GS21 PLUS 5G TECH21 EVOCHECK BLK","Samsung Galaxy S21+ 5G",34.99,34.99,"-","Include on Web, Available","-",{"$f":"IF(I2119=\"Status Changed\",\"Status Changed\",IF(K2119=\"Status Changed\",\"Status Changed\",\"-\"))","v":"-"},"2022-02-24","Inactive"]
[null,223521,"Case","Hard Case","SAM GS21 PLUS 5G TECH21 EVOCLEAR CLR","Samsung Galaxy S21+ 5G",39.99,39.99,"-","Include on Web, Available","-","-","2022-02-24","Inactive"]
[null,223592,"Screen Protection","Plastic","SAM GS21 PLUS 5G GADGRD BLKICE FLX SCRN","Samsung Galaxy S21+ 5G",49.99,49.99,"-","Include on Web, Available","-","-","2022-02-24","Inactive"]
[null,223593,"Screen Protection","Plastic","SAM GS21 PLUS 5G GADGRD BLKICE FLEX PRIV","Samsung Galaxy S21+ 5G",54.99,54.99,"-","Include on Web, Available","-","-","2022-02-24","Inactive"]
[null,223538,"Case","Case Accessories","POPSOCKETS POPGRIP CLR","Universal",9.99,9.99,"-","Include on Web, Available","-","-","2022-05-27","Active"]
[null,223539,"Case","Fashion Case","IPHONE 12.12 PRO CASE-MATE SOAP BUBBLE","iPhone 12/12 Pro",39.99,39.99,"-","Remove from Web","-","-","2021-08-17","Inactive"]
[null,223540,"Case","Fashion Case","IPHONE 12 MINI CASE-MATE SOAP BUBBLE","iPhone 12 mini",17.989999999999998,17.989999999999998,"-","Include on Web, Available","-","-","2021-08-17","Inactive"]
[null,223541,"Case","Fashion Case","IPHONE 12 PRO MAX CASE-MATE SOAP BUBBLE","iPhone 12 Pro Max",39.99,39.99,"-","Remove from Web","-","-","2021-10-15","Inactive"]
[null,223696,"Charger","Android Cable","VENTEV C TO C ALLOY CABLE 10FT STEEL GRY","Universal",29.99,29.99,"-","Include on Web, Available","-","-","2022-08-19","Active"]
[null,223727,"Charger","Apple Cable","VENTEV C TO LIGHTNING CABLE 10FT WHITE","Apple Lightning",34.99,34.99,"-","Include on Web, Available","-","-","2022-05-27","Active"]
[null,223728,"Charger","Universal Portable","MOPHIE POWERSTATION 10K BLK 2021","Universal",49.99,49.99,"-","Include on Web, Available","-","-","2023-03-01","Active"]
[null,223730,"Memory","Memory Card","SAMSUNG EVO PLUS MEMORY CARD 128GB 2021","Universal",49.99,49.99,"-","Include on Web, Available","-","-","2022-10-28","Inactive"]
[null,223735,"Case","Waterproof Case","IPHONE 12 LIFEPROOF FRE BLK","iPhone 12/12 Pro",69.989999999999995,69.989999999999995,"-","Include on Web, Available","-","-","2022-09-01","Active"]
[null,223736,"Case","Waterproof Case","IPHONE 12 PRO LIFEPROOF FRE BLK","iPhone 12/12 Pro",89.99,89.99,"-","Remove from Web","-","-","2022-08-19","Inactive"]
[null,223737,"Case","Waterproof Case","IPHONE 12 PRO MAX LIFEPROOF FRE BLK","iPhone 12 Pro Max",59.99,59.99,"-","Remove from Web","-","-","2021-10-15","Inactive"]
[null,223738,"Screen Protection","Glass","IPAD 8GEN GADGUARD BLKICE BLUELIGHT PROT","iPad 7/8/9th Gen",74.989999999999995,74.989999999999995,"-","Include on Web, Available","-","-","2022-09-30","Active"]
[null,223832,"Case","Hard Case","MOTO G PWR 2021 OTTERBOX COMM LITE BLK","Motorola moto g power (2021)",29.99,29.99,"-","Include on Web, Available","-","-","2022-06-30","Active"]
[null,223833,"Case","Other Case","MOTO G PWR 2021 CASE-MATE PROT PCK CLR","Motorola moto g power (2021)",39.99,39.99,"-","Include on Web, Available","-","-","2022-06-30","Active"]
[null,223834,"Case","Other Case","MOTO G PWR 2021 AXESSORIZE PROTCH PK BLK","Motorola moto g power (2021)",39.99,39.99,"-","Include on Web, Available","-","-","2022-06-30","Active"]
[null,223835,"Screen Protection","Glass","MOTO G PWR 2021 GADGETGUARD SCRN PROT","Motorola moto g power (2021)",19.989999999999998,19.989999999999998,"-","Include on Web, Available","-","-","2022-06-30","Active"]
[null,223836,"Case","Hard Case","MOTO G PWR 2021 SPIGEN CORE ARMOR NVY","Motorola moto g power (2021)",19.989999999999998,19.989999999999998,"-","Include on Web, Available","-","-","2022-06-30","Active"]
[null,224096,"Case","Hard Case","SAM A02S ITSKINS SPECTRUM CLR","Samsung Galaxy A02S",14.99,14.99,"-","Include on Web, Available","-","-","2022-01-30","Active"]
[null,224107,"Case","Other Case","SAM A02S AXESSORIZE PROTECH PACK BLK","Samsung Galaxy A02S",24.99,24.99,"-","Include on Web, Available","-","-","2022-01-30","Active"]
[null,224108,"Screen Protection","Glass","SAM A02S GADGUARD GLASS","Samsung Galaxy A02S",19.989999999999998,19.989999999999998,"-","Include on Web, Available","-","-","2022-01-30","Active"]
[null,224109,"Case","Hard Case","SAM A12 OTTERBOX COMMUTER LITE BLK","Samsung Galaxy A12",24.99,24.99,"-","Include on Web, Available","-","-","2022-06-30","Active"]
[null,224110,"Case","Hard Case","SAM A12 ITSKINS SPECTRUM CLR","Samsung Galaxy A12",14.99,14.99,"-","Include on Web, Available","-","-","2022-06-30","Active"]
[null,224111,"Case","Other Case","SAM A12 AXESSORIZE PROTECH PACK BLK","Samsung Galaxy A12",24.99,24.99,"-","Include on Web, Available","-","-","2022-06-30","Active"]
[null,224112,"Screen Protection","Glass","SAM A12/A32 5G GADGUARD GLASS","Samsung Galaxy A12/A32 5G",19.989999999999998,19.989999999999998,"-","Include on Web, Available","-","-","2022-06-30","Active"]
[null,224098,"Case","Hard Case","SAM A32 5G OTTERBOX COMMUTER LITE BLK","Samsung Galaxy A32 5G",29.99,29.99,"-","Include on Web, Available","-","-","2022-01-30","Inactive"]
[null,224099,"Case","Hard Case","SAM A32 5G PELICAN ADVENTURER CLR","Samsung Galaxy A32 5G",29.99,29.99,"-","Include on Web, Available","-","-","2022-01-30","Active"]
[null,224100,"Case","Other Case","SAM A32 5G CASE-MATE PROT PACK CLR","Samsung Galaxy A32 5G",29.99,29.99,"-","Include on Web, Available","-","-","2022-01-30","Active"]
[null,224102,"Case","Hard Case","SAM A32 5G ITSKINS SPECTRUM PURP","Samsung Galaxy A32 5G",19.989999999999998,19.989999999999998,"-","Include on Web, Available","-","-","2022-01-30","Active"]
[null,224101,"Screen Protection","Glass","SAM A52 5G GADGUARD GLASS","Samsung Galaxy A52 5G",24.99,24.99,"-","Include on Web, Available","-","-","2023-03-18","Active"]
[null,224113,"Case","Hard Case","SAM A52 5G OTTERBOX COMMUTER LITE BLK","Samsung Galaxy A52 5G",29.99,29.99,"-","Include on Web, Available","-","-","2022-03-17","Active"]
[null,224114,"Case","Hard Case","SAM A52 5G PELICAN ADVENTURER CLR","Samsung Galaxy A52 5G",29.99,29.99,"-","Include on Web, Available","-","-","2022-03-17","Active"]
[null,224115,"Case","Other Case","SAM A52 5G CASE-MATE PROTECTION PACK CLR","Samsung Galaxy A52 5G",39.99,39.99,"-","Include on Web, Available","-","-","2022-03-17","Active"]
[null,224116,"Case","Hard Case","SAM A52 5G INCIPIO DUO RED","Samsung Galaxy A52 5G",29.99,29.99,"-","Include on Web, Available","-","-","2022-03-17","Active"]
[null,223729,"Memory","Memory Card","SAMSUNG EVO PLUS MEMORY CARD 64GB 2021","Universal",29.99,29.99,"-","Remove from Web","-","-","2022-08-19","Inactive"]
[null,223731,"Memory","Memory Card","SAMSUNG EVO PLUS MEMORY CARD 256GB 2021","Universal",99.99,99.99,"-","Remove from Web","-","-","2023-09-01","Inactive"]
[null,224448,"Charger","Universal Car Charger","Ventev Dashport PD1180 Gry","Universal",24.99,24.99,"-","Include on Web, Available","-","-","2022-10-28","Active"]
[null,224450,"Charger","Other Charger","PhoneSoap UV Sanitizer Wireless Wht",0,99.99,99.99,"-","Remove from Web","-","-","2022-02-18","Not Launching"]
[null,224371,"Audio","True Wireless","GOOGLE PIXEL BUDS 2021 TW WHT","Universal",99.99,99.99,"-","Include on Web, Available","-","-","2022-10-28","Active"]
[null,224449,"Charger","Universal Wall","Native Union Smart Hub 8ft Slt","Universal",44.99,44.99,"-","Include on Web, Available","-","-","2022-05-27","Active"]
[null,224372,"Connected Home","Smart Display","GOOGLE NEST HUB 2ND GEN WHT","Universal",99.99,99.99,"-","Include on Web, Available","-","-","2023-03-01","Active"]
[null,224373,"Audio","Wireless Mono","BLUEPARROT M300XT BT MONO BLK","Universal",99.99,99.99,"-","Include on Web, Available","-","-","2023-01-01","Active"]
[null,224374,"Audio","Portable Speaker","JBL XTREME 3 BLK","Universal",379.99,379.99,"-","Include on Web, Available","-","-","2023-01-01","Active"]
[null,224375,"Audio","Wired Over-Ear","JBL QUANTUM 400 BLK","Universal",99.99,99.99,"-","Include on Web, Available","-","-","2023-01-01","Active"]
[null,224376,"Audio","Portable Speaker","ANKER SOUNDCORE RAVE PARTYCAST BLK","Universal",179.99,179.99,"-","Include on Web, Available","-","-","2022-10-28","Active"]
[null,224477,"Audio","Portable Speaker","ANKER SOUNDCORE FLARE 2 BLU","Universal",79.989999999999995,79.989999999999995,"-","Include on Web, Available","-","-","2023-03-01","Active"]
[null,224201,"Audio","Wireless In-Ear","BEATS FLEX WIRELESS EARPHONES BLK","Universal",69.989999999999995,69.989999999999995,"-","Include on Web, Available","-","-","2023-03-01","Active"]
[null,224520,"Case","Case Accessories","POPSOCKETS POPGRIP CAMO","Universal",9.99,9.99,"-","Include on Web, Available","-","Include","2022-05-27","Active"]
[null,224521,"Case","Case Accessories","POPSOCKETS POPGRIP KNURLED BLK","Universal",9.99,9.99,"-","Include on Web, Available","-","-","2022-05-27","Active"]
[null,224522,"Case","Case Accessories","APL WATCH ITSKINS NYLON 40MM BLK","iOS",11.99,11.99,"-","Include on Web, Available","-","-","2022-05-27","Active"]
[null,224523,"Case","Case Accessories","APL WATCH ITSKINS NYLON 44MM BLK","iOS",11.99,11.99,"-","Include on Web, Available","-","-","2022-05-27","Active"]
[null,224524,"Case","Case Accessories","APL WATCH ITSKINS SILICONE SPRT 44MM BLK","iOS",11.99,11.99,"-","Include on Web, Available","-","-","2022-05-27","Active"]
[null,224525,"Case","Case Accessories","SAM GXY WATCH ITSKINS SIL 41/40/44MM BLK","Universal",14.99,14.99,"-","Include on Web, Available","-","-","2022-08-19","Active"]
[null,224526,"Case","Case Accessories","SAM GXY WATCH ITSKINS SIL 41/40/44MM WHT","Universal",14.99,14.99,"-","Include on Web, Available","-","-","2022-08-19","Active"]
[null,224527,"Case","Case Accessories","SAM GXY WATCH ITSKINS SIL 45MM BLK","Universal",14.99,14.99,"-","Include on Web, Available","-","-","2022-08-19","Active"]
[null,224537,"Case","Tablet Case","ITSKINS UNIV TABLET FOLIO 9/10.5IN BLK","Universal",34.99,34.99,"-","Include on Web, Available","-","-","2022-08-19","Active"]
[null,224538,"Case","Tablet Case","ITSKINS UNIV TABLET FOLIO 7/8IN BLK","Universal",34.99,34.99,"-","Include on Web, Available","-","-","2022-08-19","Active"]
[null,224539,"Case","Tablet Case","IPAD 8TH GEN INCIPIO FARADAY BLK","iPad 7/8/9th Gen",39.99,39.99,"-","Include on Web, Available","-","-","2022-09-30","Active"]
[null,224852,"Connected Home","Tracker","APL AIRTAG WHT","Universal",29.99,29.99,"-","Include on Web, Available","-","-","2023-03-01","Active"]
[null,224847,"Connected Home","Tracker","APL AIRTAG 4 PACK WHT","Universal",99.99,99.99,"-","Include on Web, Available","-","-","2023-03-01","Active"]
[null,224849,"Case","Other Case","APL AIRTAG LOOP WHT","Universal",29.99,29.99,"-","Include on Web, Available","-","-","2023-03-01","Active"]
[null,224850,"Case","Other Case","APL AIRTAG LEATHER KEY RING BLU","Universal",35.99,35.99,"-","Include on Web, Available","-","Include","2023-03-01","Active"]
[null,224826,"Case","Tablet Case","APL IPAD PRO 12.9IN MAGIC KEYBOARD WHT","iPad Pro 12.9 5th Gen",349,349,"-","Include on Web, Available","-",{"$f":"IF(I2184=\"Status Changed\",\"Status Changed\",IF(K2184=\"Status Changed\",\"Status Changed\",\"-\"))","v":"-"},"2022-12-31","Active"]
[null,224837,"Case","Keyboard Case","APL IPAD PRO/AIR 11IN MAGIC KEYBOARD WHT","iPad Pro 11in 3rd Gen",299,299,"-","Temp. Unavailable, Remove from Web","-","-","2022-12-31","Active"]
[null,224881,"Case","Keyboard Case","APL IPAD PRO 12.9IN 5THGEN MAGIC KEY BLK","iPad Pro 12.9 5th Gen",349,349,"-","Temp. Unavailable, Remove from Web","-","-","2022-12-31","Active"]
[null,224882,"Case","Keyboard Case","APL IPAD PRO/AIR 11IN MAGIC KEYBOARD BLK","iPad Pro 11in 3rd Gen",299,299,"-","Include on Web, Available","-","Include","2022-12-31","Active"]
[null,224883,"Case","Hard Case","MOTO G PLAY 2021 SPIGEN CORE ARMOR BLK","moto g play (2021)",19.989999999999998,19.989999999999998,"-","Include on Web, Available","-","-","2022-12-31","Active"]
[null,224884,"Case","Other Case","MOTO GPLAY 2021 AXESSORIZE PRTECH PK BLU","moto g play (2021)",39.99,39.99,"-","Include on Web, Available","-","-","2022-12-31","Active"]
[null,224885,"Screen Protection","Glass","MOTO G PLAY 2021 GADGETGUARD SCRN PROT","moto g play (2021)",19.989999999999998,19.989999999999998,"-","Include on Web, Available","-","-","2022-12-31","Active"]
[null,224886,"Case","Hard Case","MOTO G PLAY 2021 OTTERBOX COMM LITE BLK","moto g play (2021)",29.99,29.99,"-","Include on Web, Available","-","-","2022-12-31","Active"]
[null,225107,"Case","Soft Case","MOTO G PLAY 2021 ITSKINS SPECTRUM CLR","moto g play (2021)",19.989999999999998,19.989999999999998,"-","Include on Web, Available","-","-","2022-12-31","Active"]
[null,224935,"Connected Home","Networking","EERO 6 WIFI MESH ROUTER","Universal",129,129,"-","Include on Web, Available","-","-","2023-03-01","Active"]
[null,225166,"Case","Hard Case","SAM G TAB S7 5G OTTERBOX DEFENDER BLK","Samsung Galaxy Tab S7",89.99,89.99,"-","Not On Flash","-","-","2022-01-31","Active"]
[null,224361,"Charger","Universal Portable Charger","VENTEV POWERCELL 5200K GREY DRK","Universal",34.99,34.99,"-","Not On Flash","-","-","2022-08-19","Demo"]
[null,224362,"Charger","Universal Portable Charger","VENTEV POWERCELL 2600K WHITE DRK","Universal",19.989999999999998,19.989999999999998,"-","Not On Flash","-","-","2022-08-19","Demo"]
[null,224363,"Charger","Universal Car Charger","VENTEV ESSENTIALS DASH 224 DRK","Universal",14.99,14.99,"-","Not On Flash","-","-","2022-08-19","Demo"]
[null,224364,"Charger","Android Wall","VENTEV WALL CHARGER A-MICRO CABLE DRK","Universal",19.989999999999998,19.989999999999998,"-","Not On Flash","-","-","2022-08-19","Demo"]
[null,224365,"Charger","Android Cable","VENTEV CHARGESYNC A-C CABLE 3FT GREY DRK","Universal",19.989999999999998,19.989999999999998,"-","Not On Flash","-","-","2022-08-19","Demo"]
[null,224366,"Charger","Lightning Cable","VENTEV CHARGESYNC LIGHTNING 3FT WHT DRK","Universal",19.989999999999998,19.989999999999998,"-","Not On Flash","-","-","2022-08-19","Demo"]
[null,225403,"Audio","True Wireless","SAMSUNG GALAXY BUDS2 GTE","Universal",149.99,149.99,"-","Include on Web, Available","-","-","2023-09-01","Active"]
[null,225476,"Screen Protection","Glass","MOTO G STYLUS GADGETGUARD SCRN PROT","moto g stylus",19.989999999999998,19.989999999999998,"-","Include on Web, Available","-","-","2022-06-30","Active"]
[null,225517,"Case","Soft Case","MOTO G STYLUS ITSKINS SPECTRUM CLR","moto g stylus",14.99,14.99,"-","Include on Web, Available","-","-","2022-06-30","Active"]
[null,225518,"Case","Hard Case","MOTO G STYLUS OTTERBOX COMM LITE BLK","moto g stylus",24.99,24.99,"-","Include on Web, Available","-","-","2022-06-30","Active"]
[null,225519,"Case","Other Case","MOTO G STYLUS AXESSORIZE PROTECH PK BLK","moto g stylus",34.99,34.99,"-","Include on Web, Available","-","-","2022-06-30","Active"]
[null,225520,"Case","Hard Case","TCL A30 AXESSORIZE PROTECH BLU","TCL A30",14.99,14.99,"-","Include on Web, Available","-","-","2022-10-31","Active"]
[null,225521,"Screen Protection","Glass","TCL A30 GADGETGUARD SCRN PROT","TCL A30",19.989999999999998,19.989999999999998,"-","Include on Web, Available","-","-","2022-10-31","Active"]
[null,225522,"Case","Other Case","TCL A30 AXESSORIZE PROTECH PACK BLK","TCL A30",29.99,29.99,"-","Include on Web, Available","-","-","2022-10-31","Active"]
[null,225498,"Case","Fashion Case","SAM GS21 FE 5G CASE-MATE SOAP BUBBLE","Samsung Galaxy S21 FE 5G",39.99,39.99,"-","Include on Web, Available","-","-","2022-12-31","Active"]
[null,225499,"Case","Fashion Case","SAM GS21 FE 5G RIFLEPAPER GARD PARTY BLU","Samsung Galaxy S21 FE 5G",39.99,39.99,"-","Include on Web, Available","-","-","2022-12-31","Active"]
[null,225500,"Case","Hard Case","SAM GS21 FE 5G PELICAN VOYAGER CLR","Samsung Galaxy S21 FE 5G",59.99,59.99,"-","Include on Web, Available","-","-","2022-12-31","Active"]
[null,225501,"Screen Protection","Glass","SAM GS21 FE 5G GADGUARD SCREEN PROTECTOR","Samsung Galaxy S21 FE 5G",29.99,29.99,"-","Include on Web, Available","-","-","2022-12-31","Active"]
[null,225502,"Case","Hard Case","SAM GS21 FE 5G OTTERBOX COMMUTER BLK","Samsung Galaxy S21 FE 5G",39.99,39.99,"-","Include on Web, Available","-","-","2022-12-31","Active"]
[null,225503,"Case","Soft Case","SAM GS21 FE 5G TECH21 EVOCHECK BLK","Samsung Galaxy S21 FE 5G",39.99,39.99,"-","Include on Web, Available","-","-","2022-12-31","Active"]
[null,225758,"Case","Case Accessories","POPSOCKETS POPGRIP OCEAN VIEW","Universal",9.99,9.99,"-","Include on Web, Available","-","-","2022-02-18","Inactive"]
[null,225759,"Case","Case Accessories","POPSOCKETS POPGRIP ROSE GOLD LUTZ","Universal",9.99,9.99,"-","Include on Web, Available","-","-","2022-02-18","Inactive"]
[null,225760,"Screen Protection","Liquid","GADGET GUARD BLACK ICE LIQUID PROTECTION","Universal",19.989999999999998,19.989999999999998,"-","Remove from Web","-","-","2022-02-18","Inactive"]
[null,225692,"Case","Case Accessories","IPAD ZAGG PRO STYLUS BLACK","iOS",54.99,54.99,"-","Include on Web, Available","-","-","2022-08-19","Active"]
[null,225693,"Case","Universal Case","NITE IZE FITSALL XL VERTICAL HOLSTER BLK","Universal",11.99,11.99,"-","Include on Web, Available","-","-","2022-08-19","Active"]
[null,225757,"Charger","Universal Wall","NIMBLE 65W 3 PORT WALL CHARGER GRY","Universal",54.99,54.99,"-","Include on Web, Available","-","-","2022-08-19","Active"]
[null,225747,"Charger","Wireless Portable Charger","BELKIN MAGNETIC PORTABLE WIRELESS 10K BLK","iOS",69.989999999999995,69.989999999999995,"-","Include on Web, Available","-","-","2022-10-28","Active"]
[null,225748,"Charger","Wireless Dock Charger","BELKIN 2 IN 1 MAGSAFE STAND 15W WHT","iOS",99.99,99.99,"-","Include on Web, Available","-","-","2022-10-28","Active"]
[null,225749,"Charger","Wireless Dock Charger","BELKIN 3 IN 1 MAGSAFE STAND 15W WHT","iOS",149.99,149.99,"-","Include on Web, Available","-","-","2022-10-28","Active"]
[null,225750,"Charger","Universal Car Charger","SCOSCHE BT TRANSMITTER USB C AND A SIL","Universal",39.99,39.99,"-","Include on Web, Available","-","-","2023-06-01","Active"]
[null,225751,"Charger","Wireless Car Charger","MOPHIE MAGNETIC WIRELESS VENT MOUNT BLK","Universal",49.99,49.99,"-","Include on Web, Available","-","-","2023-03-01","Active"]
[null,225752,"Charger","Universal Portable Charger","MOPHIE POWERSTATION 20K BLK","Universal",59.99,59.99,"-","Include on Web, Available","-","-","2023-03-01","Active"]
[null,225753,"Charger","Universal Wall","VENTEV 27W USB C AND A WALL CHARGER WHT","Universal",24.99,24.99,"-","Include on Web, Available","-","-","2023-03-01","Active"]
[null,225754,"Charger","Universal Wall","VENTEV 30W USB C WALL CHARGER WHT","Universal",29.99,29.99,"-","Include on Web, Available","-","-","2023-03-01","Active"]
[null,225755,"Charger","Universal Wall","VENTEV 20W USB C WALL CHARGER WHT","Universal",18.989999999999998,18.989999999999998,"-","Include on Web, Available","-","-","2023-03-01","Active"]
[null,225756,"Charger","Universal Wall","VENTEV 12W USB A WALL CHARGER WHT","Universal",14.99,14.99,"-","Include on Web, Available","-","-","2023-03-01","Active"]
[null,225656,"Audio","Portable Speaker","JBL CHARGE 5 BLK","Universal",179.99,179.99,"-","Include on Web, Available","-","-","2023-03-01","Active"]
[null,225570,"Screen Protection","Glass","SAM G TAB A7 LITE GADGUARD SCREEN PROT","Samsung Galaxy Tab A7 Lite",49.99,49.99,"-","Include on Web, Available","Status Changed","Status Changed","2022-12-31","Active"]
[null,225571,"Case","Hard Case","SAM G TAB A7 OTTERBOX DEFENDER PRO BLK","Samsung Galaxy Tab A7 Lite",69.989999999999995,69.989999999999995,"-","Include on Web, Available","Status Changed","Status Changed","2022-12-31","Active"]
[null,225651,"Case","Tablet Case","SAM G TAB A7 LITE BOOKCOVER GRY","Samsung Galaxy Tab A7 Lite",29.99,29.99,"-","Include on Web, Available","Status Changed","Include","2022-12-31","Active"]
[null,225572,"Screen Protection","Glass","SAM G TAB S7 FE 5G GADGUARD SCREEN PROT","Samsung Galaxy Tab S7 FE 5G",69.989999999999995,69.989999999999995,"-","Include on Web, Available","Status Changed","Status Changed","2022-12-31","Active"]
[null,225573,"Case","Hard Case","SAM G TAB S7 FE 5G OTTERBOX REACT BLK","Samsung Galaxy Tab S7 FE 5G",59.99,59.99,"-","Include on Web, Available","Status Changed","Status Changed","2022-12-31","Active"]
[null,225652,"Case","Keyboard Case","SAM G TAB S7 FE 5G BOOKCOVER KEYBRD BLK","Samsung Galaxy Tab S7 FE 5G",159.99,159.99,"-","Include on Web, Available","Status Changed","Status Changed","2023-03-01","Active"]
[null,225680,"Case","Hard Case","SAM GALAXY ZFLIP3 5G TECH21 EVOCLEAR CLR","Samsung Galaxy Z Flip3 5G",59.99,59.99,"-","Include on Web, Available","Status Changed","Status Changed","2022-07-31","Active"]
[null,225681,"Case","Hard Case","SAM GALAXY ZFLIP3 5G OTTER THIN FLEX FUS","Samsung Galaxy Z Flip3 5G",49.99,49.99,"-","Include on Web, Available","Status Changed","Status Changed","2022-07-31","Active"]
[null,225682,"Case","Hard Case","SAM GALAXY Z FLIP3 5G OTTER SYM FLEX BLK","Samsung Galaxy Z Flip3 5G",69.989999999999995,69.989999999999995,"-","Include on Web, Available","Status Changed","Status Changed","2022-07-31","Active"]
[null,225653,"Case","Soft Case","SAM GALAXY Z FLIP3 5G SILICONE COVER NAV","Samsung Galaxy Z Flip3 5G",39.99,39.99,"-","Include on Web, Available","Status Changed","Status Changed","2022-07-31","Active"]
[null,225683,"Case","Hard Case","SAM GALAXY ZFOLD3 5G TECH21 EVOCLEAR CLR","Samsung Galaxy Z Fold3 5G",59.99,59.99,"-","Include on Web, Available","Status Changed","Status Changed","2022-07-31","Active"]
[null,225654,"Case","Other Case","SAM GALAXY ZFOLD3 5G FLIP COVER SPEN BLK","Samsung Galaxy Z Fold3 5G",79.989999999999995,79.989999999999995,"-","Remove from Web","Status Changed","Status Changed","2022-07-31","Active"]
[null,225655,"Case","Case Accessories","SAM S PEN PRO BLK","Samsung Galaxy Fold2 5G",99.99,99.99,"-","Include on Web, Available","Status Changed","Status Changed","2023-09-01","Active"]
[null,225374,"Wearable","Samsung Wearable","SM GALAXY WATCH4 CLASSIC BLACK 46MM","Samsung Galaxy Watch 4",429.99,429.99,"-","Include on Web, Available","Status Changed","Status Changed","2022-12-31","Active"]
[null,225375,"Wearable","Samsung Wearable","SM GALAXY WATCH4 CLASSIC SILVER 46MM","Samsung Galaxy Watch 4",429.99,429.99,"-","Include on Web, Available","Status Changed","Status Changed","2022-10-31","Active"]
[null,225376,"Wearable","Samsung Wearable","SM GALAXY WATCH4 CLASSIC BLACK 42MM","Samsung Galaxy Watch 4",399.99,399.99,"-","Include on Web, Available","Status Changed",{"$f":"IF(I2247=\"Status Changed\",\"Status Changed\",IF(K2247=\"Status Changed\",\"Status Changed\",\"-\"))","v":"Status Changed"},"2022-08-19","Active"]
[null,225377,"Wearable","Samsung Wearable","SM GALAXY WATCH4 CLASSIC SILVER 42MM","Samsung Galaxy Watch 4",399.99,399.99,"-","Include on Web, Available","Status Changed","Status Changed","2022-08-19","Active"]
[null,225378,"Wearable","Samsung Wearable","SM GALAXY WATCH4 BLACK 44MM","Samsung Galaxy Watch 4",329.99,329.99,"-","Include on Web, Available","Status Changed","Status Changed","2022-08-19","Active"]
[null,225379,"Wearable","Samsung Wearable","SM GALAXY WATCH4 SILVER 44MM","Samsung Galaxy Watch 4",329.99,329.99,"-","Include on Web, Available","Status Changed","Status Changed","2022-05-20","Active"]
[null,225380,"Wearable","Samsung Wearable","SM GALAXY WATCH4 BLACK 40MM","Samsung Galaxy Watch 4",299.99,299.99,"-","Include on Web, Available","Status Changed","Status Changed","2022-10-31","Active"]
[null,225381,"Wearable","Samsung Wearable","SM GALAXY WATCH4 SILVER 40MM","Samsung Galaxy Watch 4",299.99,299.99,"-","Include on Web, Available","Status Changed","Status Changed","2022-08-19","Active"]
[null,225387,"Wearable","Samsung Wearable","SM GALAXY WATCH4 GREEN 44MM","Samsung Galaxy Watch 4",329.99,329.99,"-","Include on Web, Available","Status Changed","Status Changed","2022-08-15","Active"]
[null,225388,"Wearable","Samsung Wearable","SM GALAXY WATCH4 GOLD 40MM","Samsung Galaxy Watch 4",299.99,299.99,"-","Include on Web, Available","Status Changed","Status Changed","2022-12-31","Active"]
[null,226781,"Charger","Universal Wall","FUEL 40W DUAL USB C WALL CHARGER WHT","Universal",39.99,39.99,"-","Include on Web, Available","Status Changed","Status Changed","2022-10-28","Active"]
[null,226022,"Case","Fashion Case","IPHONE 13 CASE-MATE SOAP BUBBLE","iPhone 13",39.99,39.99,"-","Include on Web, Available","Status Changed","Status Changed","2022-09-01","Active"]
[null,226038,"Case","Other Case","IPHONE 13 CASE-MATE SOAP BUBBLE MAGSAFE","iPhone 13",44.99,44.99,"-","Include on Web, Available","Status Changed","Status Changed","2022-09-01","Active"]
[null,226148,"Case","Soft Case","IPHONE 13 GEAR4 SANTA CRUZ BLK","iPhone 13",39.99,39.99,"-","Include on Web, Available","Status Changed","Status Changed","2022-09-01","Active"]
[null,226149,"Case","Other Case","IPHONE 13 INCIPIO DUO MAGSAFE BLK","iPhone 13",39.99,39.99,"-","Include on Web, Available","Status Changed","Status Changed","2022-09-01","Active"]
[null,226150,"Case","Fashion Case","IPHONE 13 KATE SPADE GLITTER BLOCK WHT","iPhone 13",39.99,39.99,"-","Include on Web, Available","Status Changed","Status Changed","2022-09-01","Active"]
[null,226151,"Case","Fashion Case","IPHONE 13 KATE SPADE SCATTER FLOWER","iPhone 13",39.99,39.99,"-","Include on Web, Available","Status Changed","Status Changed","2022-09-01","Active"]
[null,226152,"Case","Fashion Case","IPHONE 13 KATE SPADE HOLLYHOCK FLORAL","iPhone 13",39.99,39.99,"-","Remove from Web","Status Changed","Status Changed","2022-09-01","Active"]
[null,226153,"Case","Hard Case","IPHONE 13 OTTERBOX COMMUTER BLK","iPhone 13",39.99,39.99,"-","Include on Web, Available","Status Changed","Status Changed","2022-09-01","Active"]
[null,226154,"Case","Clip Case","IPHONE 13 OTTERBOX COMMUTER BLU","iPhone 13",39.99,39.99,"-","Include on Web, Available","Status Changed","Status Changed","2022-09-01","Active"]
[null,226156,"Case","Clip Case","IPHONE 13 OTTERBOX DEFENDER PRO BLK","iPhone 13",64.989999999999995,64.989999999999995,"-","Include on Web, Available","Status Changed","Status Changed","2022-09-01","Active"]
[null,226119,"Case","Hard Case","IPHONE 13 OTTER SYMMETRY STARDUST","iPhone 13",49.99,49.99,"-","Include on Web, Available","Status Changed","Status Changed","2022-09-01","Active"]
[null,226120,"Case","Other Case","IPHONE 13 OTTERBOX SYM PLUS MAGSAFE BLK","iPhone 13",59.99,59.99,"-","Include on Web, Available","Status Changed","Status Changed","2022-09-01","Active"]
[null,226025,"Case","Hard Case","IPHONE 13 PELICAN PROTECTOR BLK","iPhone 13",39.99,39.99,"-","Include on Web, Available","Status Changed","Status Changed","2022-09-01","Active"]
[null,226024,"Case","Clip Case","IPHONE 13 PELICAN VOYAGER CLR","iPhone 13",59.99,59.99,"-","Include on Web, Available","Status Changed","Status Changed","2022-09-01","Active"]
[null,226039,"Case","Fashion Case","IPHONE 13 RIFLE PAPER GARDEN PARTY BLU","iPhone 13",39.99,39.99,"-","Include on Web, Available","Status Changed","Status Changed","2022-09-01","Active"]
[null,226122,"Case","Soft Case","IPHONE 13 TECH21 EVOCHECK BLK","iPhone 13",39.99,39.99,"-","Include on Web, Available","Status Changed","Status Changed","2022-09-01","Active"]
[null,226123,"Case","Hard Case","IPHONE 13 TECH21 EVOCLEAR CLR","iPhone 13",39.99,39.99,"-","Include on Web, Available","Status Changed","Status Changed","2022-09-01","Active"]
[null,226124,"Case","Other Case","IPHONE 13 TECH21 EVOCLEAR MAGSAFE CLR","iPhone 13",49.99,49.99,"-","Include on Web, Available","Status Changed","Status Changed","2022-09-01","Active"]
[null,226125,"Case","Fashion Case","IPHONE 13 TECH21 EVOSPARKLE GLD","iPhone 13",29.99,29.99,"-","Include on Web, Available","Status Changed","Status Changed","2022-09-01","Active"]
[null,226218,"Screen Protection","Privacy","IPHONE 13.13 PRO BODYGRDZ PRTX PRIV SCRN","iPhone 13/13 Pro",49.99,49.99,"-","Include on Web, Available","Status Changed","Status Changed","2022-09-01","Active"]
[null,226219,"Screen Protection","Glass","IPHONE 13.13 PRO GADGUARD BLK ICE SCRN","iPhone 13/13 Pro",39.99,39.99,"-","Include on Web, Available","Status Changed","Status Changed","2022-09-01","Active"]
[null,226220,"Screen Protection","Plastic","IPHONE 13.13 PRO GADGUARD FLEX SCRN PROT","iPhone 13/13 Pro",49.99,49.99,"-","Include on Web, Available","Status Changed","Status Changed","2022-08-31T23:00:00","Active"]
[null,226188,"Screen Protection","Privacy","IPHONE 13 PRO MAX BODYGRDZ PRTX PRV SCRN","iPhone 13 Pro Max",49.99,49.99,"-","Include on Web, Available","Status Changed","Status Changed","2022-09-01","Active"]
[null,226020,"Case","Fashion Case","IPHONE 13 PRO MAX CASE-MATE SOAP BUBBLE","iPhone 13 Pro Max/iPhone 12 Pro Max",39.99,39.99,"-","Include on Web, Available","Status Changed","Status Changed","2022-09-01","Active"]
[null,226044,"Case","Other Case","IPHONE 13 PRO MAX CASE-MATE SOAP MAGSAFE","iPhone 13 Pro Max/iPhone 12 Pro Max",44.99,44.99,"-","Include on Web, Available","Status Changed","Status Changed","2022-09-01","Active"]
[null,226189,"Screen Protection","Glass","IPHONE 13 PRO MAX GADGAURD BLK ICE SCRN","iPhone 13 Pro Max",39.99,39.99,"-","Include on Web, Available","Status Changed","Status Changed","2022-09-01","Active"]
[null,226190,"Screen Protection","Plastic","IPHONE 13 PRO MAX GADGUARD FLEX SCRN","iPhone 13 Pro Max",49.99,49.99,"-","Include on Web, Available","Status Changed","Status Changed","2022-09-01","Active"]
[null,226193,"Case","Other Case","IPHONE 13 PRO MAX INCIPIO DUO MAG BLK","iPhone 13 Pro Max/iPhone 12 Pro Max",39.99,39.99,"-","Include on Web, Available","Status Changed","Status Changed","2022-09-01","Active"]
[null,226093,"Case","Fashion Case","IPHONE 13 PRO MAX KATE SPADE GLITTER WHT","iPhone 13 Pro Max/iPhone 12 Pro Max",39.99,39.99,"-","Include on Web, Available","Status Changed","Status Changed","2022-09-01","Active"]
[null,226094,"Case","Fashion Case","IPHONE 13 PRO MAX KATE SPADE HOLLYHK FLR","iPhone 13 Pro Max/iPhone 12 Pro Max",39.99,39.99,"-","Include on Web, Available","Status Changed","Status Changed","2022-09-01","Active"]
[null,226095,"Case","Fashion Case","IPHONE 13 PRO MAX KATE SPADE SCATTER FLR","iPhone 13 Pro Max/iPhone 12 Pro Max",39.99,39.99,"-","Include on Web, Available","Status Changed","Status Changed","2022-09-01","Active"]
[null,226096,"Case","Hard Case","IPHONE 13 PRO MAX OTTERBOX COMMUTER BLU","iPhone 13 Pro Max/iPhone 12 Pro Max",39.99,39.99,"-","Include on Web, Available","Status Changed","Status Changed","2022-09-01","Active"]
[null,226207,"Case","Hard Case","IPHONE 13 PRO MAX OTTERBOX COMMUTER BLK","iPhone 13 Pro Max/iPhone 12 Pro Max",39.99,39.99,"-","Include on Web, Available","Status Changed","Status Changed","2022-09-01","Active"]
[null,226209,"Case","Clip Case","IPHONE 13 PRO MAX OTTERBOX DFEND PRO BLK","iPhone 13 Pro Max/iPhone 12 Pro Max",64.989999999999995,64.989999999999995,"-","Include on Web, Available",{"$error":"#N/A"},{"$error":"#N/A"},"2022-09-01","Active"]
[null,226210,"Case","Other Case","IPHONE 13 PRO MAX OTTER SYMMTRY PLUS BLK","iPhone 13 Pro Max/iPhone 12 Pro Max",59.99,59.99,"-","Include on Web, Available",{"$error":"#N/A"},{"$error":"#N/A"},"2022-09-01","Active"]
[null,226211,"Case","Other Case","IPHONE 13 PRO MAX OTTER SYMMTRY PLUS BLU","iPhone 13 Pro Max/iPhone 12 Pro Max",59.99,59.99,"-","Include on Web, Available",{"$error":"#N/A"},{"$error":"#N/A"},"2022-09-01","Active"]
[null,226212,"Case","Hard Case","IPHONE 13 PRO MAX OTTERBOX SYMMETRY STAR","iPhone 13 Pro Max/iPhone 12 Pro Max",49.99,49.99,"-","Include on Web, Available",{"$error":"#N/A"},{"$error":"#N/A"},"2022-09-01","Active"]
[null,226045,"Case","Hard Case","IPHONE 13 PRO MAX PELICAN PROTECTOR BLK","iPhone 13 Pro Max/iPhone 12 Pro Max",39.99,39.99,"-","Include on Web, Available",{"$error":"#N/A"},{"$error":"#N/A"},"2022-09-01","Active"]
[null,226046,"Case","Clip Case","IPHONE 13 PRO MAX PELICAN VOYAGER CLR","iPhone 13 Pro Max/iPhone 12 Pro Max",59.99,59.99,"-","Include on Web, Available",{"$error":"#N/A"},{"$error":"#N/A"},"2022-09-01","Active"]
[null,226047,"Case","Fashion Case","IPHONE 13 PRO MAX RIFLE GARD PARTY BLU","iPhone 13 Pro Max/iPhone 12 Pro Max",39.99,39.99,"-","Include on Web, Available",{"$error":"#N/A"},{"$error":"#N/A"},"2022-09-01","Active"]
[null,226194,"Case","Soft Case","IPHONE 13 PRO MAX TECH21 EVOCHECK BLK","iPhone 13 Pro Max/iPhone 12 Pro Max",39.99,39.99,"-","Include on Web, Available",{"$error":"#N/A"},{"$error":"#N/A"},"2022-09-01","Active"]
[null,226195,"Case","Hard Case","IPHONE 13 PRO MAX TECH21 EVOCLEAR CLR","iPhone 13 Pro Max/iPhone 12 Pro Max",39.99,39.99,"-","Include on Web, Available",{"$error":"#N/A"},{"$error":"#N/A"},"2022-09-01","Active"]
[null,226196,"Case","Other Case","IPHONE 13 PRO MAX TECH21 EVOCLR MAG CLR","iPhone 13 Pro Max/iPhone 12 Pro Max",49.99,49.99,"-","Include on Web, Available",{"$error":"#N/A"},{"$error":"#N/A"},"2022-09-01","Active"]
[null,226217,"Case","Fashion Case","IPHONE 13 PRO MAX TECH21 EVOSPARKLE GLD","iPhone 13 Pro Max/iPhone 12 Pro Max",39.99,39.99,"-","Include on Web, Available",{"$error":"#N/A"},{"$error":"#N/A"},"2022-09-01","Active"]
[null,226040,"Case","Other Case","IPHONE 13 PRO CASE-MATE SOAP BUB MAGSAFE","iPhone 13 Pro",44.99,44.99,"-","Include on Web, Available",{"$error":"#N/A"},{"$error":"#N/A"},"2022-09-01","Active"]
[null,226021,"Case","Fashion Case","IPHONE 13 PRO CASE-MATE SOAP BUBBLE","iPhone 13 Pro",39.99,39.99,"-","Include on Web, Available",{"$error":"#N/A"},{"$error":"#N/A"},"2022-09-01","Active"]
[null,226185,"Case","Other Case","IPHONE 13 PRO INCIPIO DUO MAGSAFE BLK","iPhone 13 Pro",39.99,39.99,"-","Include on Web, Available",{"$error":"#N/A"},{"$error":"#N/A"},"2022-09-01","Active"]
[null,226186,"Case","Fashion Case","IPHONE 13 PRO KATE SPADE GLIT BLOCK WHT","iPhone 13 Pro",39.99,39.99,"-","Include on Web, Available",{"$error":"#N/A"},{"$error":"#N/A"},"2022-09-01","Active"]
[null,226197,"Case","Fashion Case","IPHONE 13 PRO KATE SPADE HOLLYHOCK FLRL","iPhone 13 Pro",39.99,39.99,"-","Include on Web, Available",{"$error":"#N/A"},{"$error":"#N/A"},"2022-09-01","Active"]
[null,226198,"Case","Hard Case","IPHONE 13 PRO OTTERBOX COMMUTER BLK","iPhone 13 Pro",39.99,39.99,"-","Include on Web, Available",{"$error":"#N/A"},{"$error":"#N/A"},"2022-09-01","Active"]
[null,226199,"Case","Hard Case","IPHONE 13 PRO OTTERBOX COMMUTER BLU","iPhone 13 Pro",39.99,39.99,"-","Include on Web, Available",{"$error":"#N/A"},{"$error":"#N/A"},"2022-09-01","Active"]
[null,226200,"Case","Clip Case","IPHONE 13 PRO OTTERBOX DEFENDER PRO BLK","iPhone 13 Pro",64.989999999999995,64.989999999999995,"-","Include on Web, Available",{"$error":"#N/A"},{"$error":"#N/A"},"2022-09-01","Active"]
[null,226201,"Case","Hard Case","IPHONE 13 PRO OTTERBOX SYMMETRY STAR","iPhone 13 Pro",49.99,49.99,"-","Include on Web, Available",{"$error":"#N/A"},{"$error":"#N/A"},"2022-09-01","Active"]
[null,226202,"Case","Other Case","IPHONE 13 PRO OTTERBOX SYMMETRY PLUS BLK","iPhone 13 Pro",59.99,59.99,"-","Include on Web, Available",{"$error":"#N/A"},{"$error":"#N/A"},"2022-09-01","Active"]
[null,226104,"Case","Other Case","IPHONE 13 PRO OTTERBOX SYMMETRY PLUS BLU","iPhone 13 Pro",59.99,59.99,"-","Include on Web, Available",{"$error":"#N/A"},{"$error":"#N/A"},"2022-09-01","Active"]
[null,226041,"Case","Hard Case","IPHONE 13 PRO PELICAN PROTECTOR BLK","iPhone 13 Pro",39.99,39.99,"-","Include on Web, Available",{"$error":"#N/A"},{"$f":"IF(I2311=\"Status Changed\",\"Status Changed\",IF(K2311=\"Status Changed\",\"Status Changed\",\"-\"))","v":{"$error":"#N/A"}},44805,"Active"]
[null,226042,"Case","Clip Case","IPHONE 13 PRO PELICAN VOYAGER CLR","iPhone 13 Pro",59.99,59.99,"-","Include on Web, Available",{"$error":"#N/A"},{"$error":"#N/A"},44805,"Active"]
[null,226043,"Case","Fashion Case","IPHONE 13 PRO RIFLE PAPER GARD PARTY BLU","iPhone 13 Pro",39.99,39.99,"-","Include on Web, Available",{"$error":"#N/A"},{"$error":"#N/A"},44805,"Active"]
[null,226105,"Case","Soft Case","IPHONE 13 PRO TECH21 EVOCHECK BLK","iPhone 13 Pro",39.99,39.99,"-","Include on Web, Available",{"$error":"#N/A"},{"$error":"#N/A"},44805,"Active"]
[null,226106,"Case","Hard Case","IPHONE 13 PRO TECH21 EVOCLEAR CLR","iPhone 13 Pro",39.99,39.99,"-","Include on Web, Available",{"$error":"#N/A"},{"$error":"#N/A"},44805,"Active"]
[null,226187,"Case","Other Case","IPHONE 13 PRO TECH21 EVOCLEAR MAG CLR","iPhone 13 Pro",49.99,49.99,"-","Include on Web, Available",{"$error":"#N/A"},{"$error":"#N/A"},44805,"Active"]
[null,226023,"Case","Fashion Case","IPHONE 13 MINI CASE-MATE SOAP BUBBLE","iPhone 13 mini/iPhone 12 mini",29.99,29.99,"-","Include on Web, Available",{"$error":"#N/A"},{"$error":"#N/A"},44805,"Active"]
[null,226126,"Screen Protection","Glass","IPHONE 13 MINI GADGAURD BLKICE SCRN PROT","iPhone 13 mini",39.99,39.99,"-","Include on Web, Available",{"$error":"#N/A"},{"$error":"#N/A"},44805,"Active"]
[null,226157,"Case","Clip Case","IPHONE 13 MINI OTTERBOX DEFENDER PRO BLK","iPhone 13 mini/iPhone 12 mini",64.989999999999995,64.989999999999995,"-","Include on Web, Available",{"$error":"#N/A"},{"$error":"#N/A"},44805,"Active"]
[null,226158,"Case","Other Case","IPHONE 13 MINI OTTER SYMMETRY PLUS BLK","iPhone 13 mini/iPhone 12 mini",59.99,59.99,"-","Remove from Web",{"$error":"#N/A"},{"$error":"#N/A"},44805,"Active"]
[null,226183,"Case","Hard Case","IPHONE 13 MINI TECH21 EVOCLEAR CLR","iPhone 13 mini/iPhone 12 mini",29.99,29.99,"-","Include on Web, Available",{"$error":"#N/A"},{"$error":"#N/A"},44805,"Active"]
[null,226859,"Wearable","Cellular Apple Wearable","APL WATCH SE 2021 CELL SIL ALUM BLU 40","Apple Watch",329.99,329.99,"-","Remove from Web",{"$error":"#N/A"},{"$error":"#N/A"},44701,"Active"]
[null,226861,"Wearable","Cellular Apple Wearable","APL WATCH SE 2021 CELL GLD ALUM STRL 40","Apple Watch",329.99,329.99,"-","Include on Web, Available",{"$error":"#N/A"},{"$error":"#N/A"},44835,"Active"]
[null,226862,"Wearable","Cellular Apple Wearable","APL WATCH SE 2021 CELL GLD ALUM WHT 40","Apple Watch",329.99,329.99,"-","Include on Web, Available",{"$error":"#N/A"},{"$error":"#N/A"},44835,"Active"]
[null,226863,"Wearable","Cellular Apple Wearable","APL WATCH SE 2021 CELL GRY ALUM MDN 40","Apple Watch",329.99,329.99,"-","Include on Web, Available",{"$error":"#N/A"},{"$error":"#N/A"},44835,"Active"]
[null,226864,"Wearable","Cellular Apple Wearable","APL WATCH SE 2021 CELL GRY ALUM GRY 40","Apple Watch",329.99,329.99,"-","Include on Web, Available",{"$error":"#N/A"},{"$error":"#N/A"},44835,"Active"]
[null,226989,"Wearable","Cellular Apple Wearable","APL WATCH SE 2021 CELL GRY ALUM MDN 44","Apple Watch",359.99,359.99,"-","Include on Web, Available",{"$error":"#N/A"},{"$error":"#N/A"},44835,"Active"]
[null,226990,"Wearable","Cellular Apple Wearable","APL WATCH SE 2021 CELL GRY ALUM GRY 44","Apple Watch",359.99,359.99,"-","Include on Web, Available",{"$error":"#N/A"},{"$error":"#N/A"},44835,"Active"]
[null,224544,"Case","Tablet Case","IPAD PRO 5TH GEN 12.9IN OTTER DEFND BLK","iPad Pro 12.9 5th Gen",129.99,129.99,"-","Include on Web, Available",{"$error":"#N/A"},{"$error":"#N/A"},44926,"Active"]
[null,224545,"Case","Tablet Case","IPAD PRO 3RD GEN 11IN OTTER DEFENDR BLK","iPad Pro 11in 3rd Gen",89.99,89.99,"-","New SKU: Pending Web",{"$error":"#N/A"},{"$error":"#N/A"},44926,"Active"]
[null,226853,"Audio","Portable Speaker","LG XBOOM GO PL7 BLK",0,129.99,129.99,"-","Include on Web, Available",{"$error":"#N/A"},{"$error":"#N/A"},45078,"Active"]
[null,226854,"Case","Other Case","OTTERBOX GALAXY BUDS CASE BLACK CRYSTAL",0,29.99,29.99,"-","Include on Web, Available",{"$error":"#N/A"},{"$error":"#N/A"},44792,"Active"]
[null,226855,"Case","Other Case","CASE-MATE TOUGH SPORT AIRTAG CASE BLK",0,19.989999999999998,19.989999999999998,"-","Include on Web, Available",{"$error":"#N/A"},{"$error":"#N/A"},44986,"Active"]
[null,226856,"Case","Other Case","CASE-MATE CLIP RING AIRTAG CASE SPARKLE",0,19.989999999999998,19.989999999999998,"-","Include on Web, Available",{"$error":"#N/A"},{"$error":"#N/A"},44986,"Active"]
[null,226877,"Case","Other Case","CASE-MATE CLIP RING AIRTAG CASE BLK",0,19.989999999999998,19.989999999999998,"-","Include on Web, Available",{"$error":"#N/A"},{"$error":"#N/A"},44986,"Active"]
[null,226830,"Case","Hard Case","TCL A30 PUREGEAR SLIM SHELL CLR","TCL A30",14.99,14.99,"-","Include on Web, Available",{"$error":"#N/A"},{"$error":"#N/A"},"2022-10-31","Active"]
[null,226831,"Screen Protection","Plastic","SAM GALAXY ZFOLD3 5G GADGUARD FRONT FLEX","Samsung Galaxy Z Fold3 5G",49.99,49.99,"-","Include on Web, Available",{"$error":"#N/A"},{"$error":"#N/A"},"2022-07-31","Active"]
[null,226832,"Screen Protection","Plastic","SAM GALAXY Z FLIP3 5G GADGUARD FRNT FLEX","Samsung Galaxy Z Flip3 5G",34.99,34.99,"-","Include on Web, Available",{"$error":"#N/A"},{"$error":"#N/A"},"2022-07-31","Active"]
[null,226141,"Audio","True Wireless","APL AIRPODS GEN 3","N/A",179.99,179.99,"-","Include on Web, Available",{"$error":"#N/A"},{"$error":"#N/A"},"2023-09-01","Active"]
[null,227393,"Audio","True Wireless","AIRPODS PRO MAGSAFE CASE","N/A",249.99,249.99,"-","Include on Web, Available",{"$error":"#N/A"},{"$error":"#N/A"},"2023-03-01","Active"]
[null,226184,"Case","Soft Case","IPHONE 13 PRO GEAR4 SANTA CRUZ BLK","iPhone 13 Pro",39.99,39.99,"-","Include on Web, Available",{"$error":"#N/A"},{"$error":"#N/A"},"2022-09-01","Active"]
[null,226192,"Case","Fashion Case","IPHONE 13 PRO MAX GEAR4 SANTACRUZ BLK","iPhone 13 Pro Max",39.99,39.99,"-","Include on Web, Available",{"$error":"#N/A"},{"$error":"#N/A"},"2022-09-01","Active"]
[null,226208,"Case","Clip Case","IPHONE 13 PRO MAX OTTERBOX DEFENDER TREE","iPhone 13 Pro Max/iPhone 12 Pro Max",69.989999999999995,69.989999999999995,"-","Include on Web, Available",{"$error":"#N/A"},{"$error":"#N/A"},"2022-09-01","Active"]
[null,226642,"Case","Fashion Case","GOOGLE PIXEL 6 CASE GRY","Google Pixel 6",29,29,"-","Include on Web, Available",{"$error":"#N/A"},{"$error":"#N/A"},"2022-10-24","Active"]
[null,226644,"Case","Clip Case","GOOGLE PIXEL 6 OTTERBOX DEFENDER PRO BLK","Google Pixel 6",64.989999999999995,64.989999999999995,"-","Include on Web, Available",{"$error":"#N/A"},{"$error":"#N/A"},"2022-10-24","Active"]
[null,226645,"Case","Hard Case","GOOGLE PIXEL 6 AXESSORIZE PROTECH BLU","Google Pixel 6",24.99,24.99,"-","Include on Web, Available",{"$error":"#N/A"},{"$error":"#N/A"},"2022-10-24","Active"]
[null,226836,"Case","Leather Case","IPHONE 13 LEATHER WALLET MAGSAFE BLK","iPhone 13",59.99,59.99,"-","Include on Web, Available",{"$error":"#N/A"},{"$error":"#N/A"},"2022-09-01","Active"]
[null,226914,"Case","Soft Case","IPHONE 13 MINI SILICONE MAGSAFE BLU","iPhone 13 mini",49.99,49.99,"-","Include on Web, Available",{"$error":"#N/A"},{"$error":"#N/A"},"2022-09-01","Active"]
[null,226915,"Case","Soft Case","IPHONE 13 SILICONE MAGSAFE BLU","iPhone 13",49.99,49.99,"-","Include on Web, Available",{"$error":"#N/A"},{"$error":"#N/A"},"2022-09-01","Active"]
[null,226917,"Case","Leather Case","IPHONE 13 LEATHER WALLET MAGSAFE BRN","iPhone 13",59.99,59.99,"-","Include on Web, Available",{"$error":"#N/A"},{"$error":"#N/A"},"2022-09-01","Active"]
[null,226918,"Case","Leather Case","IPHONE 13 LEATHER MAGSAFE BLK","iPhone 13",59.99,59.99,"-","Include on Web, Available",{"$error":"#N/A"},{"$error":"#N/A"},"2022-09-01","Active"]
[null,226919,"Case","Leather Case","IPHONE 13 PRO LEATHER MAGSAFE BLK","iPhone 13 Pro",59.99,59.99,"-","Include on Web, Available",{"$error":"#N/A"},{"$error":"#N/A"},"2022-09-01","Active"]
[null,226920,"Case","Leather Case","IPHONE 13 PRO MAX LEATHER MAGSAFE BLK","iPhone 13 Pro Max",59.99,59.99,"-","Include on Web, Available",{"$error":"#N/A"},{"$error":"#N/A"},"2022-09-01","Active"]
[null,226922,"Case","Leather Case","IPHONE 13 PRO MAX LEATHER MAGSAFE BRN","iPhone 13 Pro Max",59.99,59.99,"-","Include on Web, Available",{"$error":"#N/A"},{"$error":"#N/A"},"2022-09-01","Active"]
[null,226927,"Case","Soft Case","IPHONE 13 PRO MAX SILICONE MAGSAFE BLU","iPhone 13 Pro Max",49.99,49.99,"-","Include on Web, Available",{"$error":"#N/A"},{"$error":"#N/A"},"2022-09-01","Active"]
[null,226521,"Case","Other Case","CASE-MATE AIRPODS CASE SOAP BUBBLE","N/A",29.99,29.99,"-","Include on Web, Available",{"$error":"#N/A"},{"$error":"#N/A"},"2023-03-01","Active"]
[null,226522,"Case","Other Case","PELICAN PROTECTOR AIRPODS CASE BLK","N/A",19.989999999999998,19.989999999999998,"-","Include on Web, Available",{"$error":"#N/A"},{"$error":"#N/A"},"2023-03-01","Active"]
[null,227171,"Wearable","Cellular Apple Wearable","APL WATCH S7 CELL MDN ALUM MDN 41","Apple Watch",499.99,499.99,"-","Include on Web, Available",{"$error":"#N/A"},{"$error":"#N/A"},"2022-10-01","Active"]
[null,227172,"Wearable","Cellular Apple Wearable","APL WATCH S7 CELL STRLT ALUM STRLT 41","Apple Watch",499.99,499.99,"-","Include on Web, Available",{"$error":"#N/A"},{"$error":"#N/A"},"2022-10-01","Active"]
[null,227173,"Wearable","Cellular Apple Wearable","APL WATCH S7 CELL GRN ALUM CLVR 41","Apple Watch",499.99,499.99,"-","Include on Web, Available",{"$error":"#N/A"},{"$error":"#N/A"},"2022-10-01","Active"]
[null,227174,"Wearable","Cellular Apple Wearable","APL WATCH S7 CELL BLUE ALUM ABS 41","Apple Watch",499.99,499.99,"-","Include on Web, Available",{"$error":"#N/A"},{"$error":"#N/A"},"2022-10-01","Active"]
[null,227175,"Wearable","Cellular Apple Wearable","APL WATCH S7 CELL RED ALUM RED 41","Apple Watch",499.99,499.99,"-","Include on Web, Available",{"$error":"#N/A"},{"$error":"#N/A"},"2022-10-01","Active"]
[null,227176,"Wearable","Cellular Apple Wearable","APL WATCH S7 CELL MDN ALUM MDN 45","Apple Watch",529.99,529.99,"-","Include on Web, Available",{"$error":"#N/A"},{"$error":"#N/A"},"2022-10-01","Active"]
[null,227247,"Wearable","Cellular Apple Wearable","APL WATCH S7 CELL STRLT ALUM STRLT 45","Apple Watch",529.99,529.99,"-","Include on Web, Available",{"$error":"#N/A"},{"$error":"#N/A"},"2022-10-01","Active"]
[null,227248,"Wearable","Cellular Apple Wearable","APL WATCH S7 CELL GRN ALUM CLVR 45","Apple Watch",529.99,529.99,"-","Include on Web, Available",{"$error":"#N/A"},{"$error":"#N/A"},"2022-10-01","Active"]
[null,227249,"Wearable","Cellular Apple Wearable","APL WATCH S7 CELL BLUE ALUM ABS 45","Apple Watch",529.99,529.99,"-","Include on Web, Available",{"$error":"#N/A"},{"$error":"#N/A"},"2022-10-01","Active"]
[null,226147,"Case","Other Case","IPHONE 13 GEAR4 MILAN SNAP MAGSAFE PNK","iPhone 13",49.99,49.99,"-","Include on Web, Available",{"$error":"#N/A"},{"$error":"#N/A"},"2022-09-01","Active"]
[null,226155,"Case","Clip Case","IPHONE 13 OTTERBOX DEFENDER TREE","iPhone 13",69.989999999999995,69.989999999999995,"-","Include on Web, Available",{"$error":"#N/A"},{"$error":"#N/A"},"2022-09-01","Active"]
[null,226121,"Case","Other Case","IPHONE 13 OTTERBOX SYMMETRY PLUS BLU","iPhone 13",59.99,59.99,"-","Include on Web, Available",{"$error":"#N/A"},{"$error":"#N/A"},"2022-09-01","Active"]
[null,226191,"Case","Other Case","IPHONE 13 PRO MAX GEAR4 MILAN MAG PNK","iPhone 13 Pro Max",49.99,49.99,"-","Include on Web, Available",{"$error":"#N/A"},{"$error":"#N/A"},"2022-09-01","Active"]
[null,226462,"Audio","True Wireless","BEATS STUDIO BUDS BLK","Universal",149.99,149.99,"-","Include on Web, Available",{"$error":"#N/A"},{"$error":"#N/A"},"2023-03-01","Active"]
[null,226547,"Charger","Wireless Dock Charger","MOPHIE WIRELESS CHARGE PAD 15W BLK","Universal",49.99,49.99,"-","Include on Web, Available",{"$error":"#N/A"},{"$error":"#N/A"},"2023-03-01","Active"]
[null,226463,"Audio","Portable Speaker","JBL CLIP 4 BLK","Universal",79.989999999999995,79.989999999999995,"-","Include on Web, Available",{"$error":"#N/A"},{"$error":"#N/A"},"2023-01-01","Active"]
[null,226464,"Audio","Wireless On-Ear","JBL TUNE 510BT BLK",0,49.99,49.99,"-","Include on Web, Available",{"$error":"#N/A"},{"$error":"#N/A"},"2023-01-01","Active"]
[null,226465,"Audio","True Wireless","JLAB JBUDS AIR ANC BLK",0,69.989999999999995,69.989999999999995,"-","Include on Web, Available",{"$error":"#N/A"},{"$f":"IF(I2375=\"Status Changed\",\"Status Changed\",IF(K2375=\"Status Changed\",\"Status Changed\",\"-\"))","v":{"$error":"#N/A"}},"2023-03-01","Active"]
[null,226687,"Case","Other Case","SAM A02S AXESSORIZE PROTECH PACK BLU","Samsung Galaxy A02S",24.99,24.99,"-","Include on Web, Available",{"$error":"#N/A"},{"$error":"#N/A"},"2022-01-30","Active"]
[null,225498,"Case","Fashion Case","SAM GS21 FE 5G CASE-MATE SOAP BUBBLE","Samsung Galaxy S21 FE 5G",39.99,39.99,"-","Include on Web, Available",{"$error":"#N/A"},{"$error":"#N/A"},"2022-12-31","Active"]
[null,225499,"Case","Fashion Case","SAM GS21 FE 5G RIFLEPAPER GARD PARTY BLU","Samsung Galaxy S21 FE 5G",39.99,39.99,"-","Include on Web, Available",{"$error":"#N/A"},{"$error":"#N/A"},"2022-12-31","Active"]
[null,225500,"Case","Hard Case","SAM GS21 FE 5G PELICAN VOYAGER CLR","Samsung Galaxy S21 FE 5G",59.99,59.99,"-","Include on Web, Available",{"$error":"#N/A"},{"$error":"#N/A"},"2022-12-31","Active"]
[null,225501,"Screen Protection","Glass","SAM GS21 FE 5G GADGUARD SCREEN PROTECTOR","Samsung Galaxy S21 FE 5G",29.99,29.99,"-","Include on Web, Available",{"$error":"#N/A"},{"$error":"#N/A"},44926,"Active"]
[null,225502,"Case","Hard Case","SAM GS21 FE 5G OTTERBOX COMMUTER BLK","Samsung Galaxy S21 FE 5G",39.99,39.99,"-","Include on Web, Available",{"$error":"#N/A"},{"$error":"#N/A"},44926,"Active"]
[null,225503,"Case","Soft Case","SAM GS21 FE 5G TECH21 EVOCHECK BLK","Samsung Galaxy S21 FE 5G",39.99,39.99,"-","Include on Web, Available",{"$error":"#N/A"},{"$error":"#N/A"},44926,"Active"]
[null,233843,"Case","Other Case","MOTO G PURE CASE-MATE PROTECTION PK CLR","Moto G Pure",44.99,44.99,"-","Include on Web, Available",{"$error":"#N/A"},{"$error":"#N/A"},45017,"Active"]
[null,233844,"Case","Hard Case","MOTO G PURE PELICAN ADVENTURER BLK","Moto G Pure",34.99,34.99,"-","Include on Web, Available",{"$error":"#N/A"},{"$error":"#N/A"},45017,"Active"]
[null,233845,"Case","Hard Case","MOTO G PURE CASE-MATE TOUGH CLR","Moto G Pure",29.99,29.99,"-","Include on Web, Available",{"$error":"#N/A"},{"$error":"#N/A"},45017,"Active"]
[null,233846,"Case","Other Case","MOTO G PURE AXESSORIZE PROT PK BLU","Moto G Pure",44.99,44.99,"-","Include on Web, Available",{"$error":"#N/A"},{"$error":"#N/A"},45017,"Active"]
[null,233877,"Case","Other Case","MOTO G PURE AXESSORIZE PROT PK BLK","Moto G Pure",44.99,44.99,"-","Include on Web, Available",{"$error":"#N/A"},{"$error":"#N/A"},45017,"Active"]
[null,233878,"Screen Protection","Glass","MOTO G PURE GADGUARD BLACK ICE SCRN PROT","Moto G Pure",29.99,29.99,"-","Include on Web, Available",{"$error":"#N/A"},{"$error":"#N/A"},45017,"Active"]
[null,233860,"Case","Other Case","SAM A13 5G AXESSORIZE PROTECH PACK BLU","Samsung Galaxy A13 5G",44.99,44.99,"-","Include on Web, Available",{"$error":"#N/A"},{"$error":"#N/A"},44958,"Active"]
[null,233861,"Screen Protection","Glass","SAM A13 5G GADGUARD BLACK ICE SCRN PROT","Samsung Galaxy A13 5G",29.99,29.99,"-","Include on Web, Available",{"$error":"#N/A"},{"$error":"#N/A"},45024,"Active"]
[null,233862,"Case","Soft Case","SAM A13 5G ITSKINS SPECTRUM SMOKE","Samsung Galaxy A13 5G",24.99,24.99,"-","Include on Web, Available",{"$error":"#N/A"},{"$error":"#N/A"},44958,"Active"]
[null,233863,"Case","Hard Case","SAM A13 5G CASE-MATE TOUGH BLK","Samsung Galaxy A13 5G",29.99,29.99,"-","Include on Web, Available",{"$error":"#N/A"},{"$error":"#N/A"},44958,"Active"]
[null,233864,"Case","Hard Case","SAM A13 5G PELICAN ADVENTURER CLR","Samsung Galaxy A13 5G",29.99,29.99,"-","Include on Web, Available",{"$error":"#N/A"},{"$error":"#N/A"},44958,"Active"]
[null,234410,"Case","Other Case","SAM A13 5G AXESSORIZE PROTECH PACK BLK","Samsung Galaxy A13 5G",44.99,44.99,"-","Include on Web, Available",{"$error":"#N/A"},{"$error":"#N/A"},44958,"Active"]
[null,233911,"Connected Home","Indoor Camera","GOOGLE NEST CAM 2ND GEN INDOOR","Universal",99.99,99.99,"-","Include on Web, Available",{"$error":"#N/A"},{"$error":"#N/A"},44986,"Active"]
[null,233912,"Connected Home","Outdoor Camera","GOOGLE NEST CAM OUTDOOR INDOOR","Universal",179.99,179.99,"-","Include on Web, Available",{"$error":"#N/A"},{"$error":"#N/A"},44986,"Active"]
[null,233913,"Connected Home","Doorbell and Lock","GOOGLE NEST DOORBELL BATTERY","Universal",179.99,179.99,"-","Include on Web, Available",{"$error":"#N/A"},{"$error":"#N/A"},44986,"Active"]
[null,233914,"Audio","Wireless On-Ear","JBL TUNE 660NC BLK","Universal",99.99,99.99,"-","Include on Web, Available",{"$error":"#N/A"},{"$error":"#N/A"},44986,"Active"]
[null,233915,"Audio","True Wireless","BEATS FIT PRO BLK","Universal",199.99,199.99,"-","Include on Web, Available",{"$error":"#N/A"},{"$error":"#N/A"},44986,"Active"]
[null,233916,"Audio","True Wireless","JABRA ELITE 3 GRY","Universal",79.989999999999995,79.989999999999995,"-","Include on Web, Available",{"$error":"#N/A"},{"$error":"#N/A"},44986,"Active"]
[null,234027,"Audio","Portable Speaker","JBL FLIP 6 BLK","Universal",129.99,129.99,"-","Include on Web, Available",{"$error":"#N/A"},{"$error":"#N/A"},44986,"Active"]
[null,234028,"Audio","Portable Speaker","ANKER SOUNDCORE SELECT PRO BLK","Universal",109.99,109.99,"-","Include on Web, Available",{"$error":"#N/A"},{"$error":"#N/A"},44986,"Active"]
[null,234029,"Audio","Portable Speaker","ANKER SOUNDCORE MINI 3 PRO BLK","Universal",39.99,39.99,"-","Include on Web, Available",{"$error":"#N/A"},{"$error":"#N/A"},44986,"Active"]
[null,233917,"Charger","Wireless Portable","mophie Magnetic Juice Pack 5K Blk","WirelessCharging",49.99,49.99,"-","Include on Web, Available",{"$error":"#N/A"},{"$error":"#N/A"},44986,"Active"]
[null,233918,"Charger","Wireless Dock Charger","mophie Magnetic Wireless 15W Stand Blk","WirelessCharging",59.99,59.99,"-","Include on Web, Available",{"$error":"#N/A"},{"$error":"#N/A"},44862,"Active"]
[null,233919,"Charger","Wireless Dock Charger","mophie Magnetic Wireless 15W Pad Blk","WirelessCharging",34.99,34.99,"-","Include on Web, Available",{"$error":"#N/A"},{"$error":"#N/A"},44986,"Active"]
[null,233920,"Memory","Memory Card","Gigastone Prime MicroSD Card 64GB","Universal",29.99,29.99,"-","Include on Web, Available",{"$error":"#N/A"},{"$error":"#N/A"},45170,"Active"]
[null,233956,"Case","Waterproof Case","IPHONE 13 PRO LIFEPROOF FRE BLK","iPhone 13 Pro",89.99,89.99,"-","Include on Web, Available",{"$error":"#N/A"},{"$error":"#N/A"},44805,"Active"]
[null,233977,"Case","Waterproof Case","IPHONE 13 LIFEPROOF FRE BLK","iPhone 13",89.99,89.99,"-","Include on Web, Available",{"$error":"#N/A"},{"$error":"#N/A"},44805,"Active"]
[null,233978,"Case","Waterproof Case","IPHONE 13 PRO MAX LIFEPROOF FRE BLK","iPhone 13 Pro Max",89.99,89.99,"-","Include on Web, Available",{"$error":"#N/A"},{"$error":"#N/A"},44805,"Active"]
[null,233855,"Case","Hard Case","SAM GS22 5G CLEAR STANDING COVER CLR","Samsung Galaxy S22",29.99,29.99,"-","Include on Web, Available",{"$error":"#N/A"},{"$error":"#N/A"},44986,"Active"]
[null,233868,"Case","Fashion Case","SAM GS22 5G SILICONE COVER BLK","Samsung Galaxy S22",29.99,29.99,"-","Include on Web, Available",{"$error":"#N/A"},{"$error":"#N/A"},44986,"Active"]
[null,233871,"Case","Fashion Case","SAM GS22 5G S-VIEW COVER BLK","Samsung Galaxy S22",49.99,49.99,"-","Include on Web, Available",{"$error":"#N/A"},{"$error":"#N/A"},44986,"Active"]
[null,233853,"Case","Hard Case","SAM GS22 ULTRA 5G CLEAR STANDING CVR CLR","Samsung Galaxy S22 Ultra",29.99,29.99,"-","New SKU: Pending Web",{"$error":"#N/A"},{"$error":"#N/A"},44986,"Active"]
[null,233856,"Case","Fashion Case","SAM GS22 ULTRA 5G SILICONE COVER BLK","Samsung Galaxy S22 Ultra",29.99,29.99,"-","Include on Web, Available",{"$error":"#N/A"},{"$error":"#N/A"},44986,"Active"]
[null,233869,"Case","Fashion Case","SAM GS22 ULTRA 5G S-VIEW COVER BLK","Samsung Galaxy S22 Ultra",49.99,49.99,"-","Include on Web, Available",{"$error":"#N/A"},{"$error":"#N/A"},44986,"Active"]
[null,233854,"Case","Hard Case","SAM GS22 PLUS 5G CLEAR STANDING CVR CLR","Samsung Galaxy S22+",29.99,29.99,"-","Include on Web, Available",{"$error":"#N/A"},{"$error":"#N/A"},44986,"Active"]
[null,233867,"Case","Fashion Case","SAM GS22 PLUS 5G SILICONE COVER BLK","Samsung Galaxy S22+",29.99,29.99,"-","Include on Web, Available",{"$error":"#N/A"},{"$error":"#N/A"},44986,"Active"]
[null,233870,"Case","Fashion Case","SAM GS22 PLUS 5G S-VIEW COVER BLK","Samsung Galaxy S22+",49.99,49.99,"-","Include on Web, Available",{"$error":"#N/A"},{"$error":"#N/A"},44986,"Active"]
[null,233958,"Charger","Wireless Dock Charger","SAMSUNG WIRELESS CHARGER 15W BLK","Universal",59.99,59.99,"-","Include on Web, Available",{"$error":"#N/A"},{"$error":"#N/A"},44986,"Active"]
[null,233959,"Charger","Wireless Dock Charger","SAMSUNG WIRELESS CHARGER DUO 15W BLK","Universal",89.99,89.99,"-","Include on Web, Available",{"$error":"#N/A"},{"$error":"#N/A"},44986,"Active"]
[null,234012,"Charger","Universal Wall","SAMSUNG 45W USB-C WALL W CABLE BLK","Universal",49.99,49.99,"-","Include on Web, Available",{"$error":"#N/A"},{"$error":"#N/A"},44986,"Active"]
[null,227691,"Case","Soft Case","SAM GS22 5G GEAR4 SANTA CRUZ BLK","Samsung Galaxy S22",39.99,39.99,"-","Include on Web, Available",{"$error":"#N/A"},{"$error":"#N/A"},44986,"Active"]
[null,227707,"Case","Hard Case","SAM GS22 5G OTTERBOX COMMUTER BLK","Samsung Galaxy S22",39.99,39.99,"-","Include on Web, Available",{"$error":"#N/A"},{"$error":"#N/A"},44986,"Active"]
[null,227705,"Case","Hard Case","SAM GS22 5G OTTERBOX COMMUTER BLU","Samsung Galaxy S22",39.99,39.99,"-","Include on Web, Available",{"$error":"#N/A"},{"$error":"#N/A"},44986,"Active"]
[null,227708,"Case","Clip Case","SAM GS22 5G OTTERBOX DEFENDER PRO BLK","Samsung Galaxy S22",59.99,59.99,"-","Include on Web, Available",{"$error":"#N/A"},{"$error":"#N/A"},44986,"Active"]
[null,227704,"Case","Clip Case","SAM GS22 5G OTTERBOX DEFENDER PRO PURPLE","Samsung Galaxy S22",64.989999999999995,64.989999999999995,"-","Include on Web, Available",{"$error":"#N/A"},{"$error":"#N/A"},44986,"Active"]
[null,227706,"Case","Hard Case","SAM GS22 5G OTTERBOX SYMMETRY STARDUST","Samsung Galaxy S22",49.99,49.99,"-","Include on Web, Available",{"$error":"#N/A"},{"$error":"#N/A"},44986,"Active"]
[null,227724,"Case","Hard Case","SAM GS22 5G PELICAN RANGER CLR","Samsung Galaxy S22",44.99,44.99,"-","Include on Web, Available",{"$error":"#N/A"},{"$error":"#N/A"},44986,"Active"]
[null,227725,"Case","Clip Case","SAM GS22 5G PELICAN VOYAGER CLR","Samsung Galaxy S22",59.99,59.99,"-","Include on Web, Available",{"$error":"#N/A"},{"$error":"#N/A"},44986,"Active"]
[null,227523,"Case","Fashion Case","SAM GS22 5G RIFLE PAPER GARD PARTY BLU","Samsung Galaxy S22",44.99,44.99,"-","Include on Web, Available",{"$error":"#N/A"},{"$error":"#N/A"},44986,"Active"]
[null,227690,"Case","Soft Case","SAM GS22 5G TECH21 EVOCHECK BLK","Samsung Galaxy S22",39.99,39.99,"-","Include on Web, Available",{"$error":"#N/A"},{"$error":"#N/A"},44986,"Active"]
[null,227689,"Case","Hard Case","SAM GS22 5G TECH21 EVOCLEAR CLR","Samsung Galaxy S22",39.99,39.99,"-","Include on Web, Available",{"$error":"#N/A"},{"$error":"#N/A"},44986,"Active"]
[null,227726,"Case","Fashion Case","SAM GS22 5G TWINKLE OMBRE DIAMOND","Samsung Galaxy S22",44.99,44.99,"-","Include on Web, Available",{"$error":"#N/A"},{"$error":"#N/A"},44986,"Active"]
[null,227711,"Screen Protection","Plastic","SAM GS22 5G GADGUARD BLK ICE PLUS SCRN","Samsung Galaxy S22",59.99,59.99,"-","Include on Web, Available",{"$error":"#N/A"},{"$error":"#N/A"},44986,"Active"]
[null,227714,"Screen Protection","Privacy","SAM GS22 5G GADGUARD BLK ICE PRIV SCRN","Samsung Galaxy S22",54.99,54.99,"-","Include on Web, Available",{"$error":"#N/A"},{"$error":"#N/A"},44986,"Active"]
[null,227717,"Screen Protection","Plastic","SAM GS22 5G GADGUARD BLK ICE SCRN PROT","Samsung Galaxy S22",49.99,49.99,"-","Include on Web, Available",{"$error":"#N/A"},{"$error":"#N/A"},44986,"Active"]
[null,227615,"Case","Hard Case","SAM GS22 ULTRA 5G TECH21 EVOCLEAR CLR","Samsung Galaxy S22 Ultra",39.99,39.99,"-","Include on Web, Available",{"$error":"#N/A"},{"$error":"#N/A"},44986,"Active"]
[null,227616,"Case","Soft Case","SAM GS22 ULTRA 5G TECH21 EVOCHECK BLK","Samsung Galaxy S22 Ultra",39.99,39.99,"-","Include on Web, Available",{"$error":"#N/A"},{"$f":"IF(I2439=\"Status Changed\",\"Status Changed\",IF(K2439=\"Status Changed\",\"Status Changed\",\"-\"))","v":{"$error":"#N/A"}},44986,"Active"]
[null,227693,"Case","Soft Case","SAM GS22 ULTRA 5G GEAR4 SANTA CRUZ BLK","Samsung Galaxy S22 Ultra",39.99,39.99,"-","Include on Web, Available",{"$error":"#N/A"},{"$error":"#N/A"},44986,"Active"]
[null,227694,"Case","Hard Case","SAM GS22 ULTRA 5G OTTERBOX SYMMETRY STAR","Samsung Galaxy S22 Ultra",49.99,49.99,"-","Include on Web, Available",{"$error":"#N/A"},{"$error":"#N/A"},44986,"Active"]
[null,227695,"Case","Hard Case","SAM GS22 ULTRA 5G OTTERBOX COMMUTER BLU","Samsung Galaxy S22 Ultra",39.99,39.99,"-","Include on Web, Available",{"$error":"#N/A"},{"$error":"#N/A"},44986,"Active"]
[null,227696,"Case","Hard Case","SAM GS22 ULTRA 5G OTTERBOX COMMUTER BLK","Samsung Galaxy S22 Ultra",39.99,39.99,"-","Include on Web, Available",{"$error":"#N/A"},{"$error":"#N/A"},44986,"Active"]
[null,227697,"Case","Clip Case","SAM GS22 ULTRA 5G OTTER DEFEND PRO PURP","Samsung Galaxy S22 Ultra",64.989999999999995,64.989999999999995,"-","Include on Web, Available",{"$error":"#N/A"},{"$error":"#N/A"},44986,"Active"]
[null,227698,"Case","Clip Case","SAM GS22 ULTRA 5G OTTER DEFEND PRO BLK","Samsung Galaxy S22 Ultra",64.989999999999995,64.989999999999995,"-","Include on Web, Available",{"$error":"#N/A"},{"$error":"#N/A"},44986,"Active"]
[null,227709,"Screen Protection","Plastic","SAM GS22 ULTRA 5G GADGUARD BLK ICE PLUS","Samsung Galaxy S22 Ultra",59.99,59.99,"-","Include on Web, Available",{"$error":"#N/A"},{"$error":"#N/A"},44986,"Active"]
[null,227712,"Screen Protection","Privacy","SAM GS22 ULTRA 5G GADGUARD BLK ICE PRIV ","Samsung Galaxy S22 Ultra",54.99,54.99,"-","Include on Web, Available",{"$error":"#N/A"},{"$error":"#N/A"},44986,"Active"]
[null,227715,"Screen Protection","Plastic","SAM GS22 ULTRA 5G GADGUARD BLK ICE SCRN","Samsung Galaxy S22 Ultra",49.99,49.99,"-","Include on Web, Available",{"$error":"#N/A"},{"$error":"#N/A"},44986,"Active"]
[null,227718,"Case","Hard Case","SAM GS22 ULTRA 5G PELICAN RANGER CLR","Samsung Galaxy S22 Ultra",44.99,44.99,"-","Include on Web, Available",{"$error":"#N/A"},{"$error":"#N/A"},44986,"Active"]
[null,227719,"Case","Clip Case","SAM GS22 ULTRA 5G PELICAN VOYAGER CLR","Samsung Galaxy S22 Ultra",59.99,59.99,"-","Include on Web, Available",{"$error":"#N/A"},{"$error":"#N/A"},44986,"Active"]
[null,227524,"Case","Fashion Case","SAM GS22 ULTRA 5G RIFLE PAPER GARD PARTY","Samsung Galaxy S22 Ultra",44.99,44.99,"-","Include on Web, Available",{"$error":"#N/A"},{"$error":"#N/A"},44986,"Active"]
[null,227720,"Case","Fashion Case","SAM GS22 ULTRA 5G TWINKLE OMBRE DIAMOND","Samsung Galaxy S22 Ultra",44.99,44.99,"-","Include on Web, Available",{"$error":"#N/A"},{"$error":"#N/A"},44986,"Active"]
[null,227687,"Case","Hard Case","SAM GS22 PLUS 5G TECH21 EVOCLEAR CLR","Samsung Galaxy S22+",39.99,39.99,"-","Include on Web, Available",{"$error":"#N/A"},{"$error":"#N/A"},44986,"Active"]
[null,227688,"Case","Soft Case","SAM GS22 PLUS 5G TECH21 EVOCHECK BLK","Samsung Galaxy S22+",39.99,39.99,"-","Include on Web, Available",{"$error":"#N/A"},{"$error":"#N/A"},44986,"Active"]
[null,227692,"Case","Soft Case","SAM GS22 PLUS 5G GEAR4 SANTA CRUZ BLK","Samsung Galaxy S22+",39.99,39.99,"-","Include on Web, Available",{"$error":"#N/A"},{"$error":"#N/A"},44986,"Active"]
[null,227699,"Case","Hard Case","SAM GS22 PLUS 5G OTTER SYMMETRY STARDUST","Samsung Galaxy S22+",49.99,49.99,"-","Include on Web, Available",{"$error":"#N/A"},{"$error":"#N/A"},44986,"Active"]
[null,227700,"Case","Hard Case","SAM GS22 PLUS 5G OTTERBOX COMMUTER BLU","Samsung Galaxy S22+",39.99,39.99,"-","Include on Web, Available",{"$error":"#N/A"},{"$error":"#N/A"},44986,"Active"]
[null,227701,"Case","Hard Case","SAM GS22 PLUS 5G OTTERBOX COMMUTER BLK","Samsung Galaxy S22+",39.99,39.99,"-","Include on Web, Available",{"$error":"#N/A"},{"$error":"#N/A"},44986,"Active"]
[null,227702,"Case","Clip Case","SAM GS22 PLUS 5G OTTER DEFENDER PRO PURP","Samsung Galaxy S22+",64.989999999999995,64.989999999999995,"-","Include on Web, Available",{"$error":"#N/A"},{"$error":"#N/A"},44986,"Active"]
[null,227703,"Case","Clip Case","SAM GS22 PLUS 5G OTTER DEFENDER PRO BLK","Samsung Galaxy S22+",64.989999999999995,64.989999999999995,"-","Include on Web, Available",{"$error":"#N/A"},{"$error":"#N/A"},44986,"Active"]
[null,227721,"Case","Hard Case","SAM GS22 PLUS 5G PELICAN RANGER CLR","Samsung Galaxy S22+",44.99,44.99,"-","Include on Web, Available",{"$error":"#N/A"},{"$error":"#N/A"},44986,"Active"]
[null,227722,"Case","Clip Case","SAM GS22 PLUS 5G PELICAN VOYAGER CLR","Samsung Galaxy S22+",59.99,59.99,"-","Include on Web, Available",{"$error":"#N/A"},{"$error":"#N/A"},44986,"Active"]
[null,227723,"Case","Fashion Case","SAM GS22 PLUS 5G TWINKLE OMBRE DIAMOND","Samsung Galaxy S22+",44.99,44.99,"-","Include on Web, Available",{"$error":"#N/A"},{"$error":"#N/A"},44986,"Active"]
[null,227710,"Screen Protection","Plastic","SAM GS22 PLUS 5G GADGUARD BLK ICE PLUS","Samsung Galaxy S22+",59.99,59.99,"-","Include on Web, Available",{"$error":"#N/A"},{"$error":"#N/A"},44986,"Active"]
[null,227713,"Screen Protection","Privacy","SAM GS22 PLUS 5G GADGUARD BLK ICE PRIV","Samsung Galaxy S22+",54.99,54.99,"-","Include on Web, Available",{"$error":"#N/A"},{"$error":"#N/A"},44986,"Active"]
[null,227716,"Screen Protection","Plastic","SAM GS22 PLUS 5G GADGUARD BLK ICE SCRN","Samsung Galaxy S22+",49.99,49.99,"-","Include on Web, Available",{"$error":"#N/A"},{"$error":"#N/A"},44986,"Active"]
[null,234344,"Case","Soft Case","SAM A03S TECH21 EVOLITE CLR","Samsung Galaxy A03s",19.989999999999998,19.989999999999998,"-","Include on Web, Available",{"$error":"#N/A"},{"$error":"#N/A"},44986,"Active"]
[null,234345,"Case","Other Case","SAM A03S AXESSORIZE PROTECH PACK BLU","Samsung Galaxy A03s",34.99,34.99,"-","Include on Web, Available",{"$error":"#N/A"},{"$error":"#N/A"},44986,"Active"]
[null,234346,"Case","Other Case","SAM A03S AXESSORIZE PROTECH PACK BLA","Samsung Galaxy A03s",34.99,34.99,"-","Include on Web, Available",{"$error":"#N/A"},{"$error":"#N/A"},44986,"Active"]
[null,234367,"Case","Soft Case","SAM A03S ITSKINS SPECTRUM SMK","Samsung Galaxy A03s",19.989999999999998,19.989999999999998,"-","Include on Web, Available",{"$error":"#N/A"},{"$error":"#N/A"},44986,"Active"]
[null,234368,"Screen Protection","Glass","SAM A03S GADGUARD BLK ICE SCRN PROT CLR","Samsung Galaxy A03s",19.989999999999998,19.989999999999998,"-","Include on Web, Available",{"$error":"#N/A"},{"$error":"#N/A"},44986,"Active"]
[null,235630,"Case","Fashion Case","IPHONE SE 3RDGEN RIFLE PAPER GARDEN BLU","iPhone SE 3rd/2nd Gen/8/7",39.99,39.99,"-","Include on Web, Available",{"$error":"#N/A"},{"$error":"#N/A"},45016,"Active"]
[null,235631,"Case","Other Case","IPHONE SE 3RDGEN CASE-MATE PROT PK CLR","iPhone SE 3rd/2nd Gen/8/7",44.99,44.99,"-","Include on Web, Available",{"$error":"#N/A"},{"$error":"#N/A"},45016,"Active"]
[null,235632,"Case","Hard Case","IPHONE SE 3RDGEN PELICAN PROTECTOR BLK","iPhone SE 3rd/2nd Gen/8/7",39.99,39.99,"-","Include on Web, Available",{"$error":"#N/A"},{"$error":"#N/A"},45016,"Active"]
[null,235633,"Case","Hard Case","IPHONE SE 3RDGEN GEAR4 SANTA CRUZ CLR","iPhone SE 3rd/2nd Gen/8/7",39.99,39.99,"-","Include on Web, Available",{"$error":"#N/A"},{"$error":"#N/A"},45016,"Active"]
[null,235634,"Case","Fashion Case","IPHONE SE 3RDGEN KATE SPADE HOLLYHOCK","iPhone SE 3rd/2nd Gen/8/7",39.99,39.99,"-","Include on Web, Available",{"$error":"#N/A"},{"$error":"#N/A"},45016,"Active"]
[null,235635,"Case","Hard Case","IPHONE SE 3RDGEN INCIPIO DUALPRO RED","iPhone SE 3rd/2nd Gen/8/7",29.99,29.99,"-","Include on Web, Available",{"$error":"#N/A"},{"$error":"#N/A"},45016,"Active"]
[null,235636,"Screen Protection","Glass","IPHONE SE 3RDGEN GADGRD BLKICE PLUS SCRN","iPhone SE 3rd/2nd Gen/8/7",49.99,49.99,"-","Include on Web, Available",{"$error":"#N/A"},{"$error":"#N/A"},45016,"Active"]
[null,236147,"Case","Hard Case","IPHONE SE 3RDGEN TECH21 EVOLITE BLK","iPhone SE 3rd/2nd Gen/8/7",19.989999999999998,19.989999999999998,"-","Include on Web, Available",{"$error":"#N/A"},{"$error":"#N/A"},45016,"Active"]
[null,234350,"Case","Other Case","SAM A53 5G PROTECTIVE STANDING CVR WHT","Samsung Galaxy A53 5G",29.99,29.99,"-","Include on Web, Available",{"$error":"#N/A"},{"$error":"#N/A"},45003,"Active"]
[null,234356,"Case","Other Case","SAM A53 5G CASE-MATE PROTECTION PACK CLR","Samsung Galaxy A53 5G",39.99,39.99,"-","Include on Web, Available",{"$error":"#N/A"},{"$error":"#N/A"},45003,"Active"]
[null,234947,"Case","Hard Case","SAM A53 5G OTTERBOX COMMUTER LITE PNK","Samsung Galaxy A53 5G",29.99,29.99,"-","Include on Web, Available",{"$error":"#N/A"},{"$error":"#N/A"},45003,"Active"]
[null,234948,"Case","Hard Case","SAM A53 5G OTTERBOX COMMUTER LITE BLK","Samsung Galaxy A53 5G",29.99,29.99,"-","Include on Web, Available",{"$error":"#N/A"},{"$error":"#N/A"},45003,"Active"]
[null,234949,"Case","Hard Case","SAM A53 5G PELICAN ADVENTURER CLR","Samsung Galaxy A53 5G",34.99,34.99,"-","Include on Web, Available",{"$error":"#N/A"},{"$error":"#N/A"},45003,"Active"]
[null,226643,"Case","Other Case","GOOGLE PIXEL 6 CASE-MATE PROTECT PK CLR","Google Pixel 6",44.99,44.99,"-","Include on Web, Available",{"$error":"#N/A"},{"$error":"#N/A"},44858,"Active"]
[null,226677,"Case","Other Case","GOOGLE PIXEL 6 PRO CASE-MATE PROT PK CLR","Google Pixel 6 Pro",44.99,44.99,"-","Remove from Web",{"$error":"#N/A"},{"$error":"#N/A"},44858,"Pending"]
[null,235549,"Case","Soft Case","SAM A13 ITSKINS SPECTRUM CLR","Samsung Galaxy A13",19.989999999999998,19.989999999999998,"-","Include on Web, Available",{"$error":"#N/A"},{"$error":"#N/A"},45024,"Active"]
[null,235550,"Case","Hard Case","SAM A13 OTTERBOX COMMUTER LITE PURP","Samsung Galaxy A13",29.99,29.99,"-","Include on Web, Available",{"$error":"#N/A"},{"$error":"#N/A"},44958,"Active"]
[null,235551,"Case","Hard Case","SAM A13 OTTERBOX COMMUTER LITE BLK","Samsung Galaxy A13",29.99,29.99,"-","Include on Web, Available",{"$error":"#N/A"},{"$error":"#N/A"},45024,"Active"]
[null,235555,"Case","Other Case","SAM A13 PROTECH PACK BLU","Samsung Galaxy A13",39.99,39.99,"-","Include on Web, Available",{"$error":"#N/A"},{"$error":"#N/A"},45024,"Active"]
[null,235568,"Case","Other Case","SAM A13 PROTECH PACK BLK","Samsung Galaxy A13",39.99,39.99,"-","Include on Web, Available",{"$error":"#N/A"},{"$error":"#N/A"},45024,"Active"]
[null,235638,"Case","Hard Case","MOTO G POWER 22 PELICAN ADVENTURER BLK","Motorola moto g power 2022",34.99,34.99,"-","Remove from Web",{"$error":"#N/A"},{"$error":"#N/A"},45031,"Active"]
[null,235639,"Case","Hard Case","MOTO G POWER 22 INCIPIO DUO BLU","Motorola moto g power 2022",29.99,29.99,"-","Remove from Web",{"$error":"#N/A"},{"$error":"#N/A"},45031,"Active"]
[null,235640,"Case","Hard Case","MOTO G POWER 22 TECH21 EVOLITE CLR","Motorola moto g power 2022",19.989999999999998,19.989999999999998,"-","Remove from Web",{"$error":"#N/A"},{"$error":"#N/A"},45031,"Active"]
[null,235641,"Case","Other Case","MOTO G POWER 22 AXESSORIZ PROTECH PK BLK","Motorola moto g power 2022",44.99,44.99,"-","Remove from Web",{"$error":"#N/A"},{"$error":"#N/A"},45031,"Active"]
[null,235642,"Screen Protection","Glass","MOTO G POWER 22 GADGUARD BLK ICE SCRN PR","Motorola moto g power 2022",29.99,29.99,"-","Remove from Web",{"$error":"#N/A"},{"$error":"#N/A"},45031,"Active"]
[null,"C180498","Wearable","CPO Wearable","Motorola Moto 360 Silver/Dark Metal CPO","Universal",79.989999999999995,79.989999999999995,"-","Not On Flash","-","-",0,"Inactive"]
[null,"C184205","Connected Home","Networking","WEBOOST HOME 4G CPO","Universal",359.99,359.99,"-","Not On Flash","-","-",0,"Active"]
[null,"C184247","Connected Home","Networking","WeBoost Connect 4G CPO","Universal",439.99,439.99,"-","Not On Flash","-","-",0,"Active"]
[null,"C188077","Connected Home","Networking","WeBoost Drive 4G-M CPO","Universal",329.99,329.99,"-","Not On Flash","-","-",0,"Active"]
[null,"C189680","Wearable","CPO Wearable","SAM Gear S2 Black CPO","Universal",89.99,89.99,"-","Not On Flash","-","-",43356,"Inactive"]
[null,"C189689","Wearable","CPO Wearable","SAM Gear S2 White CPO","Universal",89.99,89.99,"-","Not On Flash","-","-",43356,"Inactive"]
[null,"C190010","Charger","CPO Charger","SAM Fast Charge Wirelss Charging Mat CPO","Universal",29.99,29.99,"-","Not On Flash","-",{"$f":"IF(I2503=\"Status Changed\",\"Status Changed\",IF(K2503=\"Status Changed\",\"Status Changed\",\"-\"))","v":"-"},0,"Active"]
[null,"C190918","Case","Case Accessories","APL Pencil CPO","iPad Air 3rd Gen/iPad mini 5th Gen/iPad 6th Gen/iPad 12.9 1/2 Gen/iPad Pro 10.5/iPad Pro 9.7",69.989999999999995,69.989999999999995,"-","Not On Flash","-","-",0,"Active"]
[null,"C193563","Wearable","CPO Wearable","SAM Gear S2 Classic BT Blk CPO","Universal",109.99,109.99,"-","Not On Flash","-","-",43356,"Inactive"]
[null,"C194175","Charger","CPO Charger","SAM FAST CHARGE WIRELESS STAND BLK CPO","Universal",37.99,37.99,"-","Not On Flash","-","-",0,"Active"]
[null,"C194418","Wearable","CPO Wearable","Moto 360 2nd Gen 42 Mens Blk CPO","Universal",89.99,89.99,"-","Not On Flash","-","-",0,"Inactive"]
[null,"C194816","Wearable","CPO Wearable","Samsung Gear Fit2 Black Large CPO","Universal",79.989999999999995,79.989999999999995,"-","Not On Flash","-","-",0,"Inactive"]
[null,"C195027","Wearable","CPO Wearable","Samsung Gear Fit2 Black Small CPO","Universal",79.989999999999995,79.989999999999995,"-","Not On Flash","-","-",0,"Inactive"]
[null,"C196007","Audio","CPO Audio","SAM Level U Pro ANC BLK CPO","Universal",39.99,39.99,"-","Not On Flash","-","-",0,"Active"]
[null,"C197582","Wearable","CPO Wearable","Sam Gear S3 Frontier CPO","Universal",219.99,219.99,"-","Not On Flash","-","-",0,"Inactive"]
[null,"C197583","Wearable","CPO Wearable","Sam Gear S3 Classic CPO","Universal",199.99,199.99,"-","Not On Flash","-","-",0,"Inactive"]
[null,"C197636","Audio","CPO Audio","Beats Studio 2 Wireless Over-Ear Blk CPO","Universal",159.99,159.99,"-","Not On Flash","-","-",0,"Active"]
[null,"C197667","Audio","CPO Audio","Blue Parrot B450 BT Headset CPO","Universal",119,119,"-","Not On Flash","-","-",0,"Active"]
[null,"C197668","Connected Home","CPO Connected Home","Google Nest Cam Outdoor CPO","Universal",159.99,159.99,"-","Not On Flash","-","-",0,"Active"]
[null,"C198004","Audio","CPO Audio","APL AirPods CPO","Universal",139,139,"-","Not On Flash","-","-",0,"Active"]
[null,"C198006","Audio","CPO Audio","APL Beats Solo3 Wireless On-Ear Blk CPO","Universal",159.99,159.99,"-","Not On Flash","-",{"$f":"IF(I2517=\"Status Changed\",\"Status Changed\",IF(K2517=\"Status Changed\",\"Status Changed\",\"-\"))","v":"-"},0,"Active"]
[null,"C198033","Wearable","CPO Wearable","APL Watch S1 RoseGld Alum Pnk Spt 38 CPO","Apple Watch",169,169,"-","Not On Flash","-","-",43356,"Inactive"]
[null,"C198034","Wearable","CPO Wearable","APL Watch S1 Sil Alum Wht Spt 38 CPO","Apple Watch",149,149,"-","Not On Flash","-","-",43356,"Inactive"]
[null,"C198054","Wearable","CPO Wearable","APL Watch S2 Silver Alum Wht Spt 42 CPO","Apple Watch",229,229,"-","Not On Flash","-","-",43356,"Inactive"]
[null,"C198055","Wearable","CPO Wearable","APL Watch S2 Spc Gry Alum Blk Spt 42 CPO","Apple Watch",229,229,"-","Not On Flash","-","-",43356,"Inactive"]
[null,"C198057","Audio","CPO Audio","APL Powerbeats3 Wireless Blk CPO","Universal",129.99,129.99,"-","Not On Flash","-","-",0,"Active"]
[null,"C198060","Wearable","CPO Wearable","APL Watch S1 Sil Alum Wht Spt 42 CPO","Apple Watch",159,159,"-","Not On Flash","-","-",43356,"Inactive"]
[null,"C198062","Wearable","CPO Wearable","APL Watch S2  Silver Alum Wht Spt 38 CPO","Apple Watch",219,219,"-","Not On Flash","-","-",43412,"Inactive"]
[null,"C198063","Wearable","CPO Wearable","APL Watch S1 Spc Gry Alum Blk Spt 38 CPO","Apple Watch",149,149,"-","Not On Flash","-","-",43356,"Inactive"]
[null,"C198064","Wearable","CPO Wearable","APL Watch S2 Spc Gry Alum Blk Spt 38 CPO","Apple Watch",219,219,"-","Not On Flash","-","-",43412,"Inactive"]
[null,"C198065","Wearable","CPO Wearable","APL Watch S1 Spc Gry Alum Blk Spt 42 CPO","Apple Watch",179,179,"-","Not On Flash","-","-",43356,"Inactive"]
[null,"C198066","Wearable","CPO Wearable","APL Watch S2 RoseGld Alum Pnk Spt 38 CPO","Apple Watch",219,219,"-","Remove from Web","Status Changed","Status Changed",43412,"Inactive"]
[null,"C200761","Charger","CPO Charger","SAM Fast Chrg Wirelss Chrg Stand Sil CPO","Universal",37.99,37.99,"-","Remove from Web","Status Changed","Status Changed",0,"Active"]
[null,"C200762","Charger","CPO Charger","SAM Fast Chrg Wireless Convertible  CPO","Universal",49.99,49.99,"-","Remove from Web","Status Changed","Status Changed",0,"Active"]
[null,"C201942","Connected Home","Networking","weboost eqo 4G CPO","Universal",299.99,299.99,"-","Remove from Web","Status Changed","Status Changed",0,"Active"]
[null,"C202068","Audio","CPO Audio","Plantronics Voyager 5200 Headset Blk CPO","Universal",79.989999999999995,79.989999999999995,"-","Remove from Web","Status Changed","Status Changed",0,"Active - SB"]
[null,"C202928","Connected Home","CPO Connected Home","Google Home CPO","Universal",89.99,89.99,"-","Remove from Web","Status Changed","Status Changed",0,"Active"]
[null,"C203446","Connected Home","CPO Connected Home","Ring V2 CPO","Universal",149.99,149.99,"-","Remove from Web","Status Changed","Status Changed",0,"Active"]
[null,"C203484","Connected Home","CPO Connected Home","Motorola Orbit indoor/outdoor Camera CPO","Universal",89.99,89.99,"-","Remove from Web","Status Changed","Status Changed",0,"Active"]
[null,"C204911","Wearable","CPO Wearable","Samsung Gear Fit Pro 2 Small CPO","Universal",129.99,129.99,"-","Remove from Web","Status Changed","Status Changed",0,"Inactive"]
[null,"C204912","Wearable","CPO Wearable","Samsung Gear Fit Pro 2 Large CPO","Universal",129.99,129.99,"-","Remove from Web","Status Changed","Status Changed",0,"Inactive"]
[null,"C205435","Charger","CPO Charger","Ventev Wireless Pro Dock Car Charger CPO","Universal",49.99,49.99,"-","Remove from Web","Status Changed","Status Changed",0,"Active"]
[null,"C205471","Audio","CPO Audio","Samsung IconX 2018 CPO","Universal",159.99,159.99,"-","Remove from Web","Status Changed","Status Changed",0,"Active"]
[null,"C205643","Wearable","CPO Wearable","APL Watch S3 Gray Alum Blk Sprt 38mm CPO","Universal",170,170,"-","Remove from Web","Status Changed","Status Changed",0,"Inactive"]
[null,"C205644",null,null,null,null,null,null,null,null,null,"-"]
[null,"C205645",null,null,null,null,null,null,null,null,null,"-"]
[null,"C205646",null,null,null,null,null,null,null,null,null,"-"]
[null,"C205863",null,null,null,null,null,null,null,null,null,"-"]
[null,"C206048",null,null,null,null,null,null,null,null,null,"-"]
[null,"C209458",null,null,null,null,null,null,null,null,null,"-"]
[null,"C209459",null,null,null,null,null,null,null,null,null,"-"]
[null,"C209460",null,null,null,null,null,null,null,null,null,"-"]
[null,"C209461",null,null,null,null,null,null,null,null,null,"-"]
[null,"C212093",null,null,null,null,null,null,null,null,null,"-"]
[null,"C212094",null,null,null,null,null,null,null,null,null,"-"]
[null,"C212095",null,null,null,null,null,null,null,null,null,"-"]
[null,"C212096",null,null,null,null,null,null,null,null,null,"-"]

{"sheet":"conversion sheet","index":2,"n_rows":28,"n_cols":9,"rows_kept":28,"cut":false,"hidden":true,"merged":[[2,2,2,3],[11,7,11,8]]}
[]
[]
[null,null,"Retail Price to Points Conversion Tool"]
[]
[null,null,"Item Type:","Accessories"]
[]
[null,null,"Retail Price:",29.99]
[null,null,null,11.99]
[null,null,"Points Price:",{"$f":"ROUNDUP(((D7+I28)/VLOOKUP(D5,H17:I23,2,))/I13,0)*I13","v":4300}]
[]
[]
[null,null,null,null,null,null,null,"Inputs for Calculation"]
[null,null,null,null,null,null,null,"Round to:",100]
[null,null,null,null,null,null,null,"Accessory Gross up relative to Upgrade",0.1]
[null,null,null,null,null,null,null,"Other Gross up relative to Upgrade",0.25]
[null,null,null,null,null,null,null,"Item","Retail Cost per Point"]
[null,null,null,null,null,null,null,"Timer Accelerator",8.2415858881718287E-3]
[null,null,null,null,null,null,null,"Free Phone",{"$f":"+$I$17/(1+$I$15)","v":6.5932687105374633E-3}]
[null,null,null,null,null,null,null,"Accessories",{"$f":"+$I$17/(1+$I$14)","v":7.4923508074289345E-3}]
[null,null,null,null,null,null,null,"Add a Line Basic & Essential",{"$f":"+$I$17/(1+$I$15)","v":6.5932687105374633E-3}]
[null,null,null,null,null,null,null,"Add a Line Premium",{"$f":"+$I$17/(1+$I$15)","v":6.5932687105374633E-3}]
[null,null,null,null,null,null,null,"Application",{"$f":"+$I$17/(1+$I$15)","v":6.5932687105374633E-3}]
[null,null,null,null,null,null,null,"Overage Forgiveness",{"$f":"+$I$17/(1+$I$15)","v":6.5932687105374633E-3}]
[]
[null,null,null,null,null,null,null,"Shipping Adjustment"]
[null,null,null,null,null,null,null,"Free Phone",0.59]
[null,null,null,null,null,null,null,"Accessories",1.49]
[null,null,null,null,null,null,null,null,{"$f":"+IF(D5=H18,I26,IF(D5=H19,I27,0))","v":1.49}]

{"sheet":"Accessories","index":3,"n_rows":236,"n_cols":8,"rows_kept":236,"cut":false,"hidden":false,"merged":[]}
[null," "]
[]
[]
[]
[]
[null,"Article","Basic Category","SAP Category","Description","Compatibility","Current MSRP","State of Iowa price"]
[null,196840,"Case","Hard Case","IPHONE 7 OTTERBOX COMMUTER BLK","iPhone SE 2nd Gen",39.99,29.99]
[null,204306,"Case","Hard Case","IPHONE 8 OTTERBOX SYMMETRY GLITTER","iPhone SE 2nd Gen",24.99,18.739999999999998]
[null,205570,"Charger","Apple Cable","Ventev Lightning Alloy Cable 4ft Gry","Universal",24.99,18.739999999999998]
[null,205577,"Charger","Apple Car Charger","Ventev Dashport r2340C Lightning","Universal",34.99,26.24]
[null,205579,"Screen Protection","Liquid","GadgetGuard Black Ice Liquid Screen Plus","Universal",49.99,37.49]
[null,205631,"Charger","Android Cable","Ventev A to C Alloy Cable 4ft Steel Gry","Universal",24.99,18.739999999999998]
[null,205633,"Charger","Android Cable","Ventev C to C Alloy Cable 4ft Steel Gray","Universal",24.99,18.739999999999998]
[null,205638,"Charger","Android Car Charger","Ventev dashport r2400cTypeC 3.0A/1A","Universal",34.99,26.24]
[null,208050,"Audio","Wired In-Ear","Apple EarPods Lightning Connector","Universal",19.989999999999998]
[null,209280,"Charger","Android Wall","Ventev 121c Wall Chrger 2.1A Type C, Gry","Universal",24.99,18.739999999999998]
[null,209289,"Charger","Android Cable","Ventev chargesync cable A-C Blk, 6ft","Universal",24.99,18.739999999999998]
[null,209292,"Charger","Android Cable","Ventev 121c Wall Charger 2.1A Micro Gry","Universal",19.989999999999998,14.99]
[null,209298,"Charger","Apple Cable","Ventev chargesync Lightning 3ft-White","Universal",19.989999999999998,14.99]
[null,209299,"Charger","Apple Cable","Ventev chargesync Lightning 6ft-White","Universal",24.99,18.739999999999998]
[null,209300,"Charger","Android Cable","Ventev chargesync Cable A-C Blk, 3ft","Universal",19.989999999999998,14.99]
[null,210682,"Charger","Wireless Dock Charger","Ventev Wireless Chargepad Plus Gray","Universal",49.99,37.49]
[null,214963,"Case","Case Accessories","POPSOCKETS POPGRIP BLK","Universal",6.99,5.24]
[null,218297,"Connected Home","Networking","WEBOOST HOME MULTI ROOM SIGNAL BOOSTER","Universal",569.99]
[null,219851,"Audio","Wireless In-Ear","POWERBEATS HI PERF WIRELESS IN-EAR BLK","Universal",149.94999999999999]
[null,220472,"Case","Soft Case","ALCATEL 1B AXESSORIZE SILICONE CASE BLU","Alcatel 1B",9.99,7.49]
[null,221592,"Case","Soft Case","SAM NOTE20 ULTRA 5G TECH21 EVOCLR","Samsung Galaxy Note20 Ultra 5G",39.99,29.99]
[null,222125,"Screen Protection","Plastic","SAM GS20 FE 5G GADGUARD FLEX CLR","Samsung Galaxy S20 FE 5G",49.99,37.49]
[null,222082,"Screen Protection","Glass","GOOGLE PIXEL 5 GADGUARD BLACK ICE CLR","Google Pixel 5",29.99,22.49]
[null,222195,"Screen Protection","Glass","IPHONE 12 PRO MAX GADGUARD BLK ICE SCRN","iPhone 12 Pro Max",39.99,29.99]
[null,223378,"Case","Soft Case","LG K22 ITSKINS SPECTRUM CLEAR SMK","LG K22 (DH0)",19.989999999999998,14.99]
[null,223548,"Case","Soft Case","SAM GS21 ULTRA 5G TECH21 EVOCHECK BLK","Samsung Galaxy S21 Ultra 5G",39.99,29.99]
[null,223456,"Case","Case Accessories","SAM GS21 ULTRA 5G S-PEN BLK","Samsung Galaxy S21 Ultra 5G",39.99,29.99]
[null,223601,"Screen Protection","Plastic","SAM GS21 ULTRA 5G GADGRD BLKICE FLX SCRN","Samsung Galaxy S21 Ultra 5G",49.99,37.49]
[null,223521,"Case","Hard Case","SAM GS21 PLUS 5G TECH21 EVOCLEAR CLR","Samsung Galaxy S21+ 5G",39.99,29.99]
[null,224935,"Connected Home","Networking","EERO 6 WIFI MESH ROUTER","Universal",129]
[null,225376,"Wearable","Samsung Wearable","SM GALAXY WATCH4 CLASSIC BLACK 42MM","Samsung Galaxy Watch 4",399.99]
[null,225380,"Wearable","Samsung Wearable","SM GALAXY WATCH4 BLACK 40MM","Samsung Galaxy Watch 4",299.99]
[null,225387,"Wearable","Samsung Wearable","SM GALAXY WATCH4 GREEN 44MM","Samsung Galaxy Watch 4",329.99]
[null,226022,"Case","Fashion Case","IPHONE 13 CASE-MATE SOAP BUBBLE","iPhone 13",39.99,29.99]
[null,226038,"Case","Other Case","IPHONE 13 CASE-MATE SOAP BUBBLE MAGSAFE","iPhone 13",44.99,33.74]
[null,226148,"Case","Soft Case","IPHONE 13 GEAR4 SANTA CRUZ BLK","iPhone 13",39.99,29.99]
[null,226149,"Case","Other Case","IPHONE 13 INCIPIO DUO MAGSAFE BLK","iPhone 13",39.99,29.99]
[null,226150,"Case","Fashion Case","IPHONE 13 KATE SPADE GLITTER BLOCK WHT","iPhone 13",39.99,29.99]
[null,226151,"Case","Fashion Case","IPHONE 13 KATE SPADE SCATTER FLOWER","iPhone 13",39.99,29.99]
[null,226153,"Case","Hard Case","IPHONE 13 OTTERBOX COMMUTER BLK","iPhone 13",39.99,29.99]
[null,226154,"Case","Clip Case","IPHONE 13 OTTERBOX COMMUTER BLU","iPhone 13",39.99,29.99]
[null,226156,"Case","Clip Case","IPHONE 13 OTTERBOX DEFENDER PRO BLK","iPhone 13",64.989999999999995,48.47]
[null,226119,"Case","Hard Case","IPHONE 13 OTTER SYMMETRY STARDUST","iPhone 13",49.99,37.49]
[null,226120,"Case","Other Case","IPHONE 13 OTTERBOX SYM PLUS MAGSAFE BLK","iPhone 13",59.99,44.99]
[null,226025,"Case","Hard Case","IPHONE 13 PELICAN PROTECTOR BLK","iPhone 13",39.99,29.99]
[null,226024,"Case","Clip Case","IPHONE 13 PELICAN VOYAGER CLR","iPhone 13",59.99,44.99]
[null,226039,"Case","Fashion Case","IPHONE 13 RIFLE PAPER GARDEN PARTY BLU","iPhone 13",39.99,29.99]
[null,226122,"Case","Soft Case","IPHONE 13 TECH21 EVOCHECK BLK","iPhone 13",39.99,29.99]
[null,226123,"Case","Hard Case","IPHONE 13 TECH21 EVOCLEAR CLR","iPhone 13",39.99,29.99]
[null,226124,"Case","Other Case","IPHONE 13 TECH21 EVOCLEAR MAGSAFE CLR","iPhone 13",49.99,37.49]
[null,226125,"Case","Fashion Case","IPHONE 13 TECH21 EVOSPARKLE GLD","iPhone 13",29.99,22.49]
[null,226218,"Screen Protection","Privacy","IPHONE 13.13 PRO BODYGRDZ PRTX PRIV SCRN","iPhone 13/13 Pro",49.99,37.49]
[null,226219,"Screen Protection","Glass","IPHONE 13.13 PRO GADGUARD BLK ICE SCRN","iPhone 13/13 Pro",39.99,29.99]
[null,226220,"Screen Protection","Plastic","IPHONE 13.13 PRO GADGUARD FLEX SCRN PROT","iPhone 13/13 Pro",49.99,37.49]
[null,226188,"Screen Protection","Privacy","IPHONE 13 PRO MAX BODYGRDZ PRTX PRV SCRN","iPhone 13 Pro Max",49.99,37.49]
[null,226020,"Case","Fashion Case","IPHONE 13 PRO MAX CASE-MATE SOAP BUBBLE","iPhone 13 Pro Max/iPhone 12 Pro Max",39.99,29.99]
[null,226044,"Case","Other Case","IPHONE 13 PRO MAX CASE-MATE SOAP MAGSAFE","iPhone 13 Pro Max/iPhone 12 Pro Max",44.99,33.74]
[null,226189,"Screen Protection","Glass","IPHONE 13 PRO MAX GADGAURD BLK ICE SCRN","iPhone 13 Pro Max",39.99,29.99]
[null,226190,"Screen Protection","Plastic","IPHONE 13 PRO MAX GADGUARD FLEX SCRN","iPhone 13 Pro Max",49.99,37.49]
[null,226193,"Case","Other Case","IPHONE 13 PRO MAX INCIPIO DUO MAG BLK","iPhone 13 Pro Max/iPhone 12 Pro Max",39.99,29.99]
[null,226093,"Case","Fashion Case","IPHONE 13 PRO MAX KATE SPADE GLITTER WHT","iPhone 13 Pro Max/iPhone 12 Pro Max",39.99,29.99]
[null,226094,"Case","Fashion Case","IPHONE 13 PRO MAX KATE SPADE HOLLYHK FLR","iPhone 13 Pro Max/iPhone 12 Pro Max",39.99,29.99]
[null,226095,"Case","Fashion Case","IPHONE 13 PRO MAX KATE SPADE SCATTER FLR","iPhone 13 Pro Max/iPhone 12 Pro Max",39.99,29.99]
[null,226096,"Case","Hard Case","IPHONE 13 PRO MAX OTTERBOX COMMUTER BLU","iPhone 13 Pro Max/iPhone 12 Pro Max",39.99,29.99]
[null,226207,"Case","Hard Case","IPHONE 13 PRO MAX OTTERBOX COMMUTER BLK","iPhone 13 Pro Max/iPhone 12 Pro Max",39.99,29.99]
[null,226209,"Case","Clip Case","IPHONE 13 PRO MAX OTTERBOX DFEND PRO BLK","iPhone 13 Pro Max/iPhone 12 Pro Max",64.989999999999995,48.47]
[null,226210,"Case","Other Case","IPHONE 13 PRO MAX OTTER SYMMTRY PLUS BLK","iPhone 13 Pro Max/iPhone 12 Pro Max",59.99,44.99]
[null,226211,"Case","Other Case","IPHONE 13 PRO MAX OTTER SYMMTRY PLUS BLU","iPhone 13 Pro Max/iPhone 12 Pro Max",59.99,44.99]
[null,226212,"Case","Hard Case","IPHONE 13 PRO MAX OTTERBOX SYMMETRY STAR","iPhone 13 Pro Max/iPhone 12 Pro Max",49.99,37.49]
[null,226045,"Case","Hard Case","IPHONE 13 PRO MAX PELICAN PROTECTOR BLK","iPhone 13 Pro Max/iPhone 12 Pro Max",39.99,29.99]
[null,226046,"Case","Clip Case","IPHONE 13 PRO MAX PELICAN VOYAGER CLR","iPhone 13 Pro Max/iPhone 12 Pro Max",59.99,44.99]
[null,226047,"Case","Fashion Case","IPHONE 13 PRO MAX RIFLE GARD PARTY BLU","iPhone 13 Pro Max/iPhone 12 Pro Max",39.99,29.99]
[null,226194,"Case","Soft Case","IPHONE 13 PRO MAX TECH21 EVOCHECK BLK","iPhone 13 Pro Max/iPhone 12 Pro Max",39.99,29.99]
[null,226195,"Case","Hard Case","IPHONE 13 PRO MAX TECH21 EVOCLEAR CLR","iPhone 13 Pro Max/iPhone 12 Pro Max",39.99,29.99]
[null,226196,"Case","Other Case","IPHONE 13 PRO MAX TECH21 EVOCLR MAG CLR","iPhone 13 Pro Max/iPhone 12 Pro Max",49.99,37.49]
[null,226217,"Case","Fashion Case","IPHONE 13 PRO MAX TECH21 EVOSPARKLE GLD","iPhone 13 Pro Max/iPhone 12 Pro Max",39.99,29.99]
[null,226040,"Case","Other Case","IPHONE 13 PRO CASE-MATE SOAP BUB MAGSAFE","iPhone 13 Pro",44.99,33.74]
[null,226021,"Case","Fashion Case","IPHONE 13 PRO CASE-MATE SOAP BUBBLE","iPhone 13 Pro",39.99,29.99]
[null,226185,"Case","Other Case","IPHONE 13 PRO INCIPIO DUO MAGSAFE BLK","iPhone 13 Pro",39.99,29.99]
[null,226186,"Case","Fashion Case","IPHONE 13 PRO KATE SPADE GLIT BLOCK WHT","iPhone 13 Pro",39.99,29.99]
[null,226197,"Case","Fashion Case","IPHONE 13 PRO KATE SPADE HOLLYHOCK FLRL","iPhone 13 Pro",39.99,29.99]
[null,226198,"Case","Hard Case","IPHONE 13 PRO OTTERBOX COMMUTER BLK","iPhone 13 Pro",39.99,29.99]
[null,226199,"Case","Hard Case","IPHONE 13 PRO OTTERBOX COMMUTER BLU","iPhone 13 Pro",39.99,29.99]
[null,226200,"Case","Clip Case","IPHONE 13 PRO OTTERBOX DEFENDER PRO BLK","iPhone 13 Pro",64.989999999999995,48.47]
[null,226201,"Case","Hard Case","IPHONE 13 PRO OTTERBOX SYMMETRY STAR","iPhone 13 Pro",49.99,37.49]
[null,226202,"Case","Other Case","IPHONE 13 PRO OTTERBOX SYMMETRY PLUS BLK","iPhone 13 Pro",59.99,44.99]
[null,226104,"Case","Other Case","IPHONE 13 PRO OTTERBOX SYMMETRY PLUS BLU","iPhone 13 Pro",59.99,44.99]
[null,226041,"Case","Hard Case","IPHONE 13 PRO PELICAN PROTECTOR BLK","iPhone 13 Pro",39.99,29.99]
[null,226042,"Case","Clip Case","IPHONE 13 PRO PELICAN VOYAGER CLR","iPhone 13 Pro",59.99,44.99]
[null,226043,"Case","Fashion Case","IPHONE 13 PRO RIFLE PAPER GARD PARTY BLU","iPhone 13 Pro",39.99,29.99]
[null,226105,"Case","Soft Case","IPHONE 13 PRO TECH21 EVOCHECK BLK","iPhone 13 Pro",39.99,29.99]
[null,226106,"Case","Hard Case","IPHONE 13 PRO TECH21 EVOCLEAR CLR","iPhone 13 Pro",39.99,29.99]
[null,226187,"Case","Other Case","IPHONE 13 PRO TECH21 EVOCLEAR MAG CLR","iPhone 13 Pro",49.99,37.49]
[null,226023,"Case","Fashion Case","IPHONE 13 MINI CASE-MATE SOAP BUBBLE","iPhone 13 mini/iPhone 12 mini",29.99,22.49]
[null,226126,"Screen Protection","Glass","IPHONE 13 MINI GADGAURD BLKICE SCRN PROT","iPhone 13 mini",39.99,29.99]
[null,226157,"Case","Clip Case","IPHONE 13 MINI OTTERBOX DEFENDER PRO BLK","iPhone 13 mini/iPhone 12 mini",64.989999999999995,48.47]
[null,226183,"Case","Hard Case","IPHONE 13 MINI TECH21 EVOCLEAR CLR","iPhone 13 mini/iPhone 12 mini",29.99,22.49]
[null,226853,"Audio","Portable Speaker","LG XBOOM GO PL7 BLK",0,129.99]
[null,226854,"Case","Other Case","OTTERBOX GALAXY BUDS CASE BLACK CRYSTAL","N/A",29.99,22.49]
[null,226856,"Case","Other Case","CASE-MATE CLIP RING AIRTAG CASE SPARKLE","N/A",19.989999999999998,14.99]
[null,226877,"Case","Other Case","CASE-MATE CLIP RING AIRTAG CASE BLK","N/A",19.989999999999998,14.99]
[null,226830,"Case","Hard Case","TCL A30 PUREGEAR SLIM SHELL CLR","TCL A30",14.99,11.24]
[null,226831,"Screen Protection","Plastic","SAM GALAXY ZFOLD3 5G GADGUARD FRONT FLEX","Samsung Galaxy Z Fold3 5G",49.99,37.49]
[null,226832,"Screen Protection","Plastic","SAM GALAXY Z FLIP3 5G GADGUARD FRNT FLEX","Samsung Galaxy Z Flip3 5G",34.99,26.24]
[null,226184,"Case","Soft Case","IPHONE 13 PRO GEAR4 SANTA CRUZ BLK","iPhone 13 Pro",39.99,29.99]
[null,226192,"Case","Fashion Case","IPHONE 13 PRO MAX GEAR4 SANTACRUZ BLK","iPhone 13 Pro Max",39.99,29.99]
[null,226208,"Case","Clip Case","IPHONE 13 PRO MAX OTTERBOX DEFENDER TREE","iPhone 13 Pro Max/iPhone 12 Pro Max",69.989999999999995,52.49]
[null,226642,"Case","Fashion Case","GOOGLE PIXEL 6 CASE GRY","Google Pixel 6",29.99,22.49]
[null,226644,"Case","Clip Case","GOOGLE PIXEL 6 OTTERBOX DEFENDER PRO BLK","Google Pixel 6",64.989999999999995,48.47]
[null,226645,"Case","Hard Case","GOOGLE PIXEL 6 AXESSORIZE PROTECH BLU","Google Pixel 6",24.99,18.739999999999998]
[null,226836,"Case","Leather Case","IPHONE 13 LEATHER WALLET MAGSAFE BLK","iPhone 13",59.99,44.99]
[null,226914,"Case","Soft Case","IPHONE 13 MINI SILICONE MAGSAFE BLU","iPhone 13 mini",49.99,37.49]
[null,226915,"Case","Soft Case","IPHONE 13 SILICONE MAGSAFE BLU","iPhone 13",49.99,37.49]
[null,226917,"Case","Leather Case","IPHONE 13 LEATHER WALLET MAGSAFE BRN","iPhone 13",59.99,44.99]
[null,226918,"Case","Leather Case","IPHONE 13 LEATHER MAGSAFE BLK","iPhone 13",59.99,44.99]
[null,226919,"Case","Leather Case","IPHONE 13 PRO LEATHER MAGSAFE BLK","iPhone 13 Pro",59.99,44.99]
[null,226920,"Case","Leather Case","IPHONE 13 PRO MAX LEATHER MAGSAFE BLK","iPhone 13 Pro Max",59.99,44.99]
[null,226922,"Case","Leather Case","IPHONE 13 PRO MAX LEATHER MAGSAFE BRN","iPhone 13 Pro Max",59.99,44.99]
[null,226927,"Case","Soft Case","IPHONE 13 PRO MAX SILICONE MAGSAFE BLU","iPhone 13 Pro Max",49.99,37.49]
[null,226521,"Case","Other Case","CASE-MATE AIRPODS CASE SOAP BUBBLE","N/A",29.99,22.49]
[null,226522,"Case","Other Case","PELICAN PROTECTOR AIRPODS CASE BLK","N/A",19.989999999999998,14.99]
[null,226147,"Case","Other Case","IPHONE 13 GEAR4 MILAN SNAP MAGSAFE PNK","iPhone 13",49.99,37.49]
[null,226155,"Case","Clip Case","IPHONE 13 OTTERBOX DEFENDER TREE","iPhone 13",69.989999999999995,52.49]
[null,226121,"Case","Other Case","IPHONE 13 OTTERBOX SYMMETRY PLUS BLU","iPhone 13",59.99,44.99]
[null,226191,"Case","Other Case","IPHONE 13 PRO MAX GEAR4 MILAN MAG PNK","iPhone 13 Pro Max",49.99,37.49]
[null,226462,"Audio","True Wireless","BEATS STUDIO BUDS BLK","Universal",149.99]
[null,226547,"Charger","Wireless Dock Charger","MOPHIE WIRELESS CHARGE PAD 15W BLK","Universal",49.99,37.49]
[null,226463,"Audio","Portable Speaker","JBL CLIP 4 BLK","Universal",79.989999999999995]
[null,226464,"Audio","Wireless On-Ear","JBL TUNE 510BT BLK",0,49.99]
[null,226465,"Audio","True Wireless","JLAB JBUDS AIR ANC BLK",0,69.989999999999995]
[null,226687,"Case","Other Case","SAM A02S AXESSORIZE PROTECH PACK BLU","Samsung Galaxy A02S",24.99,18.739999999999998]
[null,233843,"Case","Other Case","MOTO G PURE CASE-MATE PROTECTION PK CLR","Moto G Pure",44.99,33.74]
[null,233844,"Case","Hard Case","MOTO G PURE PELICAN ADVENTURER BLK","Moto G Pure",34.99,26.24]
[null,233845,"Case","Hard Case","MOTO G PURE CASE-MATE TOUGH CLR","Moto G Pure",29.99,22.49]
[null,233846,"Case","Other Case","MOTO G PURE AXESSORIZE PROT PK BLU","Moto G Pure",44.99,33.74]
[null,233877,"Case","Other Case","MOTO G PURE AXESSORIZE PROT PK BLK","Moto G Pure",44.99,33.74]
[null,233878,"Screen Protection","Glass","MOTO G PURE GADGUARD BLACK ICE SCRN PROT","Moto G Pure",29.99,22.49]
[null,233860,"Case","Other Case","SAM A13 5G AXESSORIZE PROTECH PACK BLU","Samsung Galaxy A13 5G",44.99,33.74]
[null,233861,"Screen Protection","Glass","SAM A13 5G GADGUARD BLACK ICE SCRN PROT","Samsung Galaxy A13 5G",29.99,22.49]
[null,233862,"Case","Soft Case","SAM A13 5G ITSKINS SPECTRUM SMOKE","Samsung Galaxy A13 5G",24.99,18.739999999999998]
[null,233863,"Case","Hard Case","SAM A13 5G CASE-MATE TOUGH BLK","Samsung Galaxy A13 5G",29.99,22.49]
[null,233864,"Case","Hard Case","SAM A13 5G PELICAN ADVENTURER CLR","Samsung Galaxy A13 5G",29.99,22.49]
[null,234410,"Case","Other Case","SAM A13 5G AXESSORIZE PROTECH PACK BLK","Samsung Galaxy A13 5G",44.99,33.74]
[null,233911,"Connected Home","Indoor Camera","GOOGLE NEST CAM 2ND GEN INDOOR","Universal",99.99]
[null,233912,"Connected Home","Outdoor Camera","GOOGLE NEST CAM OUTDOOR INDOOR","Universal",179.99]
[null,233913,"Connected Home","Doorbell and Lock","GOOGLE NEST DOORBELL BATTERY","Universal",179.99]
[null,233914,"Audio","Wireless On-Ear","JBL TUNE 660NC BLK","Universal",99.99]
[null,233915,"Audio","True Wireless","BEATS FIT PRO BLK","Universal",199.99]
[null,233916,"Audio","True Wireless","JABRA ELITE 3 GRY","Universal",79.989999999999995]
[null,234027,"Audio","Portable Speaker","JBL FLIP 6 BLK","Universal",129.99]
[null,234028,"Audio","Portable Speaker","ANKER SOUNDCORE SELECT PRO BLK","Universal",109.99]
[null,234029,"Audio","Portable Speaker","ANKER SOUNDCORE MINI 3 PRO BLK","Universal",39.99]
[null,233917,"Charger","Wireless Portable","mophie Magnetic Juice Pack 5K Blk","WirelessCharging",49.99,37.49]
[null,233918,"Charger","Wireless Dock Charger","mophie Magnetic Wireless 15W Stand Blk","WirelessCharging",59.99,44.99]
[null,233919,"Charger","Wireless Dock Charger","mophie Magnetic Wireless 15W Pad Blk","WirelessCharging",34.99,26.24]
[null,233920,"Memory","Memory Card","Gigastone Prime MicroSD Card 64GB","Universal",29.99]
[null,233956,"Case","Waterproof Case","IPHONE 13 PRO LIFEPROOF FRE BLK","iPhone 13 Pro",89.99,67.489999999999995]
[null,233978,"Case","Waterproof Case","IPHONE 13 PRO MAX LIFEPROOF FRE BLK","iPhone 13 Pro Max",89.99,67.489999999999995]
[null,233855,"Case","Hard Case","SAM GS22 5G CLEAR STANDING COVER CLR","Samsung Galaxy S22",29.99,22.49]
[null,233868,"Case","Fashion Case","SAM GS22 5G SILICONE COVER BLK","Samsung Galaxy S22",29.99,22.49]
[null,233871,"Case","Fashion Case","SAM GS22 5G S-VIEW COVER BLK","Samsung Galaxy S22",49.99,37.49]
[null,233856,"Case","Fashion Case","SAM GS22 ULTRA 5G SILICONE COVER BLK","Samsung Galaxy S22 Ultra",29.99,22.49]
[null,233854,"Case","Hard Case","SAM GS22 PLUS 5G CLEAR STANDING CVR CLR","Samsung Galaxy S22+",29.99,22.49]
[null,233958,"Charger","Wireless Dock Charger","SAMSUNG WIRELESS CHARGER 15W BLK","Universal",59.99,44.99]
[null,234012,"Charger","Universal Wall","SAMSUNG 45W USB-C WALL W CABLE BLK","Universal",49.99,37.49]
[null,227691,"Case","Soft Case","SAM GS22 5G GEAR4 SANTA CRUZ BLK","Samsung Galaxy S22",39.99,29.99]
[null,227707,"Case","Hard Case","SAM GS22 5G OTTERBOX COMMUTER BLK","Samsung Galaxy S22",39.99,29.99]
[null,227705,"Case","Hard Case","SAM GS22 5G OTTERBOX COMMUTER BLU","Samsung Galaxy S22",39.99,29.99]
[null,227708,"Case","Clip Case","SAM GS22 5G OTTERBOX DEFENDER PRO BLK","Samsung Galaxy S22",59.99,44.99]
[null,227704,"Case","Clip Case","SAM GS22 5G OTTERBOX DEFENDER PRO PURPLE","Samsung Galaxy S22",64.989999999999995,48.47]
[null,227706,"Case","Hard Case","SAM GS22 5G OTTERBOX SYMMETRY STARDUST","Samsung Galaxy S22",49.99,37.49]
[null,227724,"Case","Hard Case","SAM GS22 5G PELICAN RANGER CLR","Samsung Galaxy S22",44.99,33.74]
[null,227725,"Case","Clip Case","SAM GS22 5G PELICAN VOYAGER CLR","Samsung Galaxy S22",59.99,44.99]
[null,227523,"Case","Fashion Case","SAM GS22 5G RIFLE PAPER GARD PARTY BLU","Samsung Galaxy S22",44.99,33.74]
[null,227690,"Case","Soft Case","SAM GS22 5G TECH21 EVOCHECK BLK","Samsung Galaxy S22",39.99,29.99]
[null,227689,"Case","Hard Case","SAM GS22 5G TECH21 EVOCLEAR CLR","Samsung Galaxy S22",39.99,29.99]
[null,227726,"Case","Fashion Case","SAM GS22 5G TWINKLE OMBRE DIAMOND","Samsung Galaxy S22",44.99,33.74]
[null,227711,"Screen Protection","Plastic","SAM GS22 5G GADGUARD BLK ICE PLUS SCRN","Samsung Galaxy S22",59.99,44.99]
[null,227714,"Screen Protection","Privacy","SAM GS22 5G GADGUARD BLK ICE PRIV SCRN","Samsung Galaxy S22",54.99,41.24]
[null,227717,"Screen Protection","Plastic","SAM GS22 5G GADGUARD BLK ICE SCRN PROT","Samsung Galaxy S22",49.99,37.49]
[null,227615,"Case","Hard Case","SAM GS22 ULTRA 5G TECH21 EVOCLEAR CLR","Samsung Galaxy S22 Ultra",39.99,29.99]
[null,227616,"Case","Soft Case","SAM GS22 ULTRA 5G TECH21 EVOCHECK BLK","Samsung Galaxy S22 Ultra",39.99,29.99]
[null,227693,"Case","Soft Case","SAM GS22 ULTRA 5G GEAR4 SANTA CRUZ BLK","Samsung Galaxy S22 Ultra",39.99,29.99]
[null,227694,"Case","Hard Case","SAM GS22 ULTRA 5G OTTERBOX SYMMETRY STAR","Samsung Galaxy S22 Ultra",49.99,37.49]
[null,227695,"Case","Hard Case","SAM GS22 ULTRA 5G OTTERBOX COMMUTER BLU","Samsung Galaxy S22 Ultra",39.99,29.99]
[null,227696,"Case","Hard Case","SAM GS22 ULTRA 5G OTTERBOX COMMUTER BLK","Samsung Galaxy S22 Ultra",39.99,29.99]
[null,227697,"Case","Clip Case","SAM GS22 ULTRA 5G OTTER DEFEND PRO PURP","Samsung Galaxy S22 Ultra",64.989999999999995,48.47]
[null,227698,"Case","Clip Case","SAM GS22 ULTRA 5G OTTER DEFEND PRO BLK","Samsung Galaxy S22 Ultra",64.989999999999995,48.47]
[null,227709,"Screen Protection","Plastic","SAM GS22 ULTRA 5G GADGUARD BLK ICE PLUS","Samsung Galaxy S22 Ultra",59.99,44.99]
[null,227712,"Screen Protection","Privacy","SAM GS22 ULTRA 5G GADGUARD BLK ICE PRIV ","Samsung Galaxy S22 Ultra",54.99,41.24]
[null,227715,"Screen Protection","Plastic","SAM GS22 ULTRA 5G GADGUARD BLK ICE SCRN","Samsung Galaxy S22 Ultra",49.99,37.49]
[null,227718,"Case","Hard Case","SAM GS22 ULTRA 5G PELICAN RANGER CLR","Samsung Galaxy S22 Ultra",44.99,33.74]
[null,227719,"Case","Clip Case","SAM GS22 ULTRA 5G PELICAN VOYAGER CLR","Samsung Galaxy S22 Ultra",59.99,44.99]
[null,227524,"Case","Fashion Case","SAM GS22 ULTRA 5G RIFLE PAPER GARD PARTY","Samsung Galaxy S22 Ultra",44.99,33.74]
[null,227720,"Case","Fashion Case","SAM GS22 ULTRA 5G TWINKLE OMBRE DIAMOND","Samsung Galaxy S22 Ultra",44.99,33.74]
[null,227687,"Case","Hard Case","SAM GS22 PLUS 5G TECH21 EVOCLEAR CLR","Samsung Galaxy S22+",39.99,29.99]
[null,227688,"Case","Soft Case","SAM GS22 PLUS 5G TECH21 EVOCHECK BLK","Samsung Galaxy S22+",39.99,29.99]
[null,227692,"Case","Soft Case","SAM GS22 PLUS 5G GEAR4 SANTA CRUZ BLK","Samsung Galaxy S22+",39.99,29.99]
[null,227699,"Case","Hard Case","SAM GS22 PLUS 5G OTTER SYMMETRY STARDUST","Samsung Galaxy S22+",49.99,37.49]
[null,227700,"Case","Hard Case","SAM GS22 PLUS 5G OTTERBOX COMMUTER BLU","Samsung Galaxy S22+",39.99,29.99]
[null,227701,"Case","Hard Case","SAM GS22 PLUS 5G OTTERBOX COMMUTER BLK","Samsung Galaxy S22+",39.99,29.99]
[null,227702,"Case","Clip Case","SAM GS22 PLUS 5G OTTER DEFENDER PRO PURP","Samsung Galaxy S22+",64.989999999999995,48.47]
[null,227703,"Case","Clip Case","SAM GS22 PLUS 5G OTTER DEFENDER PRO BLK","Samsung Galaxy S22+",64.989999999999995,48.47]
[null,227722,"Case","Clip Case","SAM GS22 PLUS 5G PELICAN VOYAGER CLR","Samsung Galaxy S22+",59.99,44.99]
[null,227723,"Case","Fashion Case","SAM GS22 PLUS 5G TWINKLE OMBRE DIAMOND","Samsung Galaxy S22+",44.99,33.74]
[null,227710,"Screen Protection","Plastic","SAM GS22 PLUS 5G GADGUARD BLK ICE PLUS","Samsung Galaxy S22+",59.99,44.99]
[null,227716,"Screen Protection","Plastic","SAM GS22 PLUS 5G GADGUARD BLK ICE SCRN","Samsung Galaxy S22+",49.99,37.49]
[null,234344,"Case","Soft Case","SAM A03S TECH21 EVOLITE CLR","Samsung Galaxy A03s",19.989999999999998,14.99]
[null,234345,"Case","Other Case","SAM A03S AXESSORIZE PROTECH PACK BLU","Samsung Galaxy A03s",34.99,26.24]
[null,234346,"Case","Other Case","SAM A03S AXESSORIZE PROTECH PACK BLA","Samsung Galaxy A03s",34.99,26.24]
[null,234367,"Case","Soft Case","SAM A03S ITSKINS SPECTRUM SMK","Samsung Galaxy A03s",19.989999999999998,14.99]
[null,234368,"Screen Protection","Glass","SAM A03S GADGUARD BLK ICE SCRN PROT CLR","Samsung Galaxy A03s",19.989999999999998,14.99]
[null,235630,"Case","Fashion Case","IPHONE SE 3RDGEN RIFLE PAPER GARDEN BLU","iPhone SE 3rd/2nd Gen/8/7",39.99,29.99]
[null,235631,"Case","Other Case","IPHONE SE 3RDGEN CASE-MATE PROT PK CLR","iPhone SE 3rd/2nd Gen/8/7",44.99,33.74]
[null,235632,"Case","Hard Case","IPHONE SE 3RDGEN PELICAN PROTECTOR BLK","iPhone SE 3rd/2nd Gen/8/7",39.99,29.99]
[null,235633,"Case","Hard Case","IPHONE SE 3RDGEN GEAR4 SANTA CRUZ CLR","iPhone SE 3rd/2nd Gen/8/7",39.99,29.99]
[null,235634,"Case","Fashion Case","IPHONE SE 3RDGEN KATE SPADE HOLLYHOCK","iPhone SE 3rd/2nd Gen/8/7",39.99,29.99]
[null,235635,"Case","Hard Case","IPHONE SE 3RDGEN INCIPIO DUALPRO RED","iPhone SE 3rd/2nd Gen/8/7",29.99,22.49]
[null,236147,"Case","Hard Case","IPHONE SE 3RDGEN TECH21 EVOLITE BLK","iPhone SE 3rd/2nd Gen/8/7",19.989999999999998,14.99]
[null,234350,"Case","Other Case","SAM A53 5G PROTECTIVE STANDING CVR WHT","Samsung Galaxy A53 5G",29.99,22.49]
[null,234356,"Case","Other Case","SAM A53 5G CASE-MATE PROTECTION PACK CLR","Samsung Galaxy A53 5G",39.99,29.99]
[null,234947,"Case","Hard Case","SAM A53 5G OTTERBOX COMMUTER LITE PNK","Samsung Galaxy A53 5G",29.99,22.49]
[null,234948,"Case","Hard Case","SAM A53 5G OTTERBOX COMMUTER LITE BLK","Samsung Galaxy A53 5G",29.99,22.49]
[null,234949,"Case","Hard Case","SAM A53 5G PELICAN ADVENTURER CLR","Samsung Galaxy A53 5G",34.99,26.24]
[null,226643,"Case","Other Case","GOOGLE PIXEL 6 CASE-MATE PROTECT PK CLR","Google Pixel 6",44.99,33.74]
[null,235549,"Case","Soft Case","SAM A13 ITSKINS SPECTRUM CLR","Samsung Galaxy A13",19.989999999999998,14.99]
[null,235550,"Case","Hard Case","SAM A13 OTTERBOX COMMUTER LITE PURP","Samsung Galaxy A13",29.99,22.49]
[null,235551,"Case","Hard Case","SAM A13 OTTERBOX COMMUTER LITE BLK","Samsung Galaxy A13",29.99,22.49]
[null,235555,"Case","Other Case","SAM A13 PROTECH PACK BLU","Samsung Galaxy A13",39.99,29.99]
[null,235568,"Case","Other Case","SAM A13 PROTECH PACK BLK","Samsung Galaxy A13",39.99,29.99]

{"sheet":"Apple Brand","index":4,"n_rows":23,"n_cols":8,"rows_kept":23,"cut":false,"hidden":false,"merged":[]}
[null," "]
[]
[]
[]
[]
[null,"Article","Basic Category","SAP Category","Description","Compatibility","Current MSRP"]
[null,190918,"Case","Case Accessories","APL Pencil","iPad 6/7/8/9th Gen/iPad mini 5th/iPad Pro 9.7/iPad Air 3rd/iPad Pro 9.7/10.5/12.9/12.9 2nd Gen",99,{"$f":"B7&\"-\"&E7","v":"190918-APL Pencil"}]
[null,227393,"Audio","True Wireless","AIRPODS PRO MAGSAFE CASE","N/A",249.99,{"$f":"B9&\"-\"&E9","v":"209803-APL LIGHTNING TO 3.5MM ADAPTER"}]
[null,209803,"Audio","Other Audio","APL LIGHTNING TO 3.5MM ADAPTER","Universal",9.99,"226861-APL WATCH SE 2021 CELL GLD ALUM STRL 40"]
[null,226861,"Wearable","Cellular Apple Wearable","APL WATCH SE 2021 CELL GLD ALUM STRL 40","Apple Watch",329.99,"226862-APL WATCH SE 2021 CELL GLD ALUM WHT 40"]
[null,226862,"Wearable","Cellular Apple Wearable","APL WATCH SE 2021 CELL GLD ALUM WHT 40","Apple Watch",329.99,"226863-APL WATCH SE 2021 CELL GRY ALUM MDN 40"]
[null,226863,"Wearable","Cellular Apple Wearable","APL WATCH SE 2021 CELL GRY ALUM MDN 40","Apple Watch",329.99,"226864-APL WATCH SE 2021 CELL GRY ALUM GRY 40"]
[null,226864,"Wearable","Cellular Apple Wearable","APL WATCH SE 2021 CELL GRY ALUM GRY 40","Apple Watch",329.99,"226989-APL WATCH SE 2021 CELL GRY ALUM MDN 44"]
[null,226989,"Wearable","Cellular Apple Wearable","APL WATCH SE 2021 CELL GRY ALUM MDN 44","Apple Watch",359.99,"226141-APL AIRPODS GEN 3"]
[null,226141,"Audio","True Wireless","APL AIRPODS GEN 3","N/A",179.99,"227171-APL WATCH S7 CELL MDN ALUM MDN 41"]
[null,227171,"Wearable","Cellular Apple Wearable","APL WATCH S7 CELL MDN ALUM MDN 41","Apple Watch",499.99,"227172-APL WATCH S7 CELL STRLT ALUM STRLT 41"]
[null,227172,"Wearable","Cellular Apple Wearable","APL WATCH S7 CELL STRLT ALUM STRLT 41","Apple Watch",499.99,"227173-APL WATCH S7 CELL GRN ALUM CLVR 41"]
[null,227173,"Wearable","Cellular Apple Wearable","APL WATCH S7 CELL GRN ALUM CLVR 41","Apple Watch",499.99,"227174-APL WATCH S7 CELL BLUE ALUM ABS 41"]
[null,227174,"Wearable","Cellular Apple Wearable","APL WATCH S7 CELL BLUE ALUM ABS 41","Apple Watch",499.99,"227175-APL WATCH S7 CELL RED ALUM RED 41"]
[null,227175,"Wearable","Cellular Apple Wearable","APL WATCH S7 CELL RED ALUM RED 41","Apple Watch",499.99,"227176-APL WATCH S7 CELL MDN ALUM MDN 45"]
[null,227176,"Wearable","Cellular Apple Wearable","APL WATCH S7 CELL MDN ALUM MDN 45","Apple Watch",529.99,"227247-APL WATCH S7 CELL STRLT ALUM STRLT 45"]
[null,227247,"Wearable","Cellular Apple Wearable","APL WATCH S7 CELL STRLT ALUM STRLT 45","Apple Watch",529.99,"227249-APL WATCH S7 CELL BLUE ALUM ABS 45"]
[null,227249,"Wearable","Cellular Apple Wearable","APL WATCH S7 CELL BLUE ALUM ABS 45","Apple Watch",529.99]